Workbook

Sheet 1. Information Sheet
V1: Algoma Power Inc.
V2: Atikokan Hydro Inc.
V3: Attawapiskat Power Corp.
V4: Bluewater Power Distribution Corporation
V5: Brant County Power Inc.
V6: Brantford Power Inc.
V7: Burlington Hydro Inc.
V8: Cambridge and North Dumfries Hydro Inc.
V9: Canadian Niagara Power Inc.
V10: Centre Wellington Hydro Ltd.
V11: Chapleau Public Utilities Corporation
M12: Version | N12: 2.3 | V12: Clinton Power Corporation
V13: COLLUS Power Corporation
E14: Utility Name | F14: PowerStream Inc. | V14: Cooperative Hydro Embrun Inc.
V15: E.L.K. Energy Inc.
E16: Service Territory | F16: York Region & Simcoe County | V16: Enersource Hydro Mississauga Inc.
V17: Entegrus Powerlines Inc.
E18: Assigned EB Number | F18: EB-2015-0003 | V18: ENWIN Utilities Ltd.
V19: Erie Thames Powerlines Corporation
E20: Name of Contact and Title | F20: Tom Barrett, Manager, Rates Application | V20: Espanola Regional Hydro Distribution Corporation
V21: Essex Powerlines Corporation
E22: Phone Number | F22: (905) 532-4640 | V22: Festival Hydro Inc.
V23: Fort Albany Power Corporation
E24: Email Address | F24: Tom.Barrett@powerstream.ca | V24: Fort Frances Power Corporation
V25: Greater Sudbury Hydro Inc.
V26: Grimsby Power Inc.
B27: General Notes 1. Please ensure that your macros have been enabled. (Tools -> Macro -> Security) 2. Due to the time lag of deferral/variance account dispositions, this model assumes that all opening balances include previously disposed of amounts. Accordingly, all "Board Approved Dispositions" are deducted from the opening balance. 3. Please provide information in this model since the last time your balances were disposed. 4. For all Board-Approved dispositions, please ensure that the disposition amount has the same sign (e.g: debit balances are to have a positive figure and credit balance are to have a negative figure) as per the related Board decision. | V27: Guelph Hydro Electric Systems Inc.
V28: Haldimand County Hydro Inc.
B29: Notes | V29: Halton Hills Hydro Inc.
V30: Hearst Power Distribution Company Limited
C31: Pale green cells represent input cells. | V31: Horizon Utilities Corporation
V32: Hydro 2000 Inc.
C33: Pale blue cells represent drop-down lists. The applicant should select the appropriate item from the drop-down list. | V33: Hydro Hawkesbury Inc.
V34: Hydro One Brampton Networks Inc.
C35: White cells contain fixed values, automatically generated values or formulae. | V35: Hydro One Networks Inc.
V36: Hydro Ottawa Limited
V37: Innisfil Hydro Distribution Systems Limited
V38: Kashechewan Power Corporation
V39: Kenora Hydro Electric Corporation Ltd.
V40: Kingston Hydro Corporation
V41: Kitchener-Wilmot Hydro Inc.
V42: Lakefront Utilities Inc.
V43: Lakeland Power Distribution Ltd.
V44: London Hydro Inc.
V45: Midland Power Utility Corporation
V46: Milton Hydro Distribution inc.
V47: Newmarket - Tay Power Distribution Ltd.
V48: Niagara Peninsula Energy Inc.
V49: Niagara-on-the-Lake Hydro Inc.
V50: Norfolk Power Distribution Inc.
V51: North Bay Hydro Distribution Limited
V52: Northern Ontario Wires Inc.
V53: Oakville Hydro Electricity Distribution Inc.
V54: Orangeville Hydro Limited
V55: Orillia Power Distribution Corporation
V56: Oshawa PUC Networks Inc.
V57: Ottawa River Power Corporation
V58: Parry Sound Power Corporation
V59: Peterborough Distribution Incorporated
V60: PowerStream Inc.
V61: PUC Distribution Inc.
V62: Renfrew Hydro Inc.
V63: Rideau St. Lawrence Distribution Inc.
V64: Sioux Lookout Hydro Inc.
V65: St. Thomas Energy Inc.
V66: Thunder Bay Hydro Electricity Distribution Inc.
V67: Tillsonburg Hydro Inc.
V68: Toronto Hydro-Electric System Limited
V69: Veridian Connections Inc.
V70: Wasaga Distribution Inc.
V71: Waterloo North Hydro Inc.
V72: Welland Hydro-Electric System Corp.
V73: Wellington North Power Inc.
V74: West Coast Huron Energy Inc.
V75: West Perth Power Inc.
V76: Westario Power Inc.
V77: Whitby Hydro Electric Corporation
V78: Woodstock Hydro Services Inc.

Sheet 2. 2016-20 Continuity Schedule
E14: 2011 | O14: 2012 | Y14: 2013 | AI14: 2014 | AS14: 2015 - Bridge Year | BC14: Projected Interest on Dec-31-14 Balances
C15: Account Descriptions | D15: Account Number | E15: Opening Principal Amounts as of Jan-1-11 | F15: Transactions Debit / (Credit) during 2011 excluding interest and adjustments 3 | G15: Board-Approved Disposition during 2011 | H15: Adjustments during 2011 - other 2 | I15: Closing Principal Balance as of Dec-31-11 | J15: Opening Interest Amounts as of Jan-1-11 | K15: Interest Jan-1 to Dec-31-11 | L15: Board-Approved Disposition during 2011 | M15: Adjustments during 2011 - other 2 | N15: Closing Interest Amounts as of Dec-31-11 | O15: Opening Principal Amounts as of Jan-1-12 | P15: Transactions Debit / (Credit) during 2012 excluding interest and adjustments 3 | Q15: Board-Approved Disposition during 2012 | R15: Adjustments during 2012 - other 2 | S15: Closing Principal Balance as of Dec-31-12 | T15: Opening Interest Amounts as of Jan-1-12 | U15: Interest Jan-1 to Dec-31-12 | V15: Board-Approved Disposition during 2012 | W15: Adjustments during 2012 - other 2 | X15: Closing Interest Amounts as of Dec-31-12 | Y15: Opening Principal Amounts as of Jan-1-13 | Z15: Transactions Debit / (Credit) during 2013 excluding interest and adjustments 3 | AA15: Board-Approved Disposition during 2013 | AB15: Adjustments during 2013 - other 2 | AC15: Closing Principal Balance as of Dec-31-13 | AD15: Opening Interest Amounts as of Jan-1-13 | AE15: Interest Jan-1 to Dec-31-13 | AF15: Board-Approved Disposition during 2013 | AG15: Adjustments during 2013 - other 2 | AH15: Closing Interest Amounts as of Dec-31-13 | AI15: Opening Principal Amounts as of Jan-1-14 | AJ15: Transactions Debit / (Credit) during 2014 excluding interest and adjustments 3 | AK15: Board-Approved Disposition during 2014 | AL15: Adjustments during 2014 - other 2 | AM15: Closing Principal Balance as of Dec-31-14 | AN15: Opening Interest Amounts as of Jan-1-14 | AO15: Interest Jan-1 to Dec-31-14 | AP15: Board-Approved Disposition during 2014 | AQ15: Adjustments during 2014 - other 2 | AR15: Closing Interest Amounts as of Dec-31-14 | AS15: Opening Principal Amounts as of Jan-1-15 | AT15: Projected Transactions Debit / (Credit) during 2015 | AU15: Board-Approved Disposition during 2015 | AV15: Adjustments during 2015 - other 2 | AW15: Closing Principal Balances as of Dec 31-15 Adjusted for Dispositions during 2015 | AX15: Opening Interest Amounts as of Jan-1-15 | AY15: Interest Jan-1 to Dec-31-15 | AZ15: Board-Approved Disposition during 2015 | BA15: Adjustments during 2015 - other 2 | BB15: Closing Interest Amounts as of Dec-31-15 | BC15: Projected Interest from Jan 1, 2015 to December 31, 2015 on Dec 31 -14 balance adjusted for disposition during 2015 6 | BD15: Total Claim
BD17: Claim before Forecasted Transactions
C18: Group 1 Accounts
A19: 1 | C19: LV Variance Account | D19: 1550 | E19: =-325044-498528-150811 -> -974383 | F19: =293576 -> 293576 | I19: =E19+F19-G19+H19 -> -680807 | J19: =-1286-8583-1518 -> -11387 | K19: =-7327.3616-4342-2217 -> -13886.3616 | N19: =J19+K19-L19+M19 -> -25273.3616 | O19: =I19 -> -680807 | P19: 477919 | Q19: -680807 | S19: =O19+P19-Q19+R19 -> 477919 | T19: =N19 -> -25273.3616 | U19: -7005 | V19: -35310 | X19: =T19+U19-V19+W19 -> 3031.6384 | Y19: =S19 -> 477919 | Z19: -112182 | AC19: =Y19+Z19-AA19+AB19 -> 365737 | AD19: =X19 -> 3031.6384 | AE19: 6431 | AH19: =AD19+AE19-AF19+AG19 -> 9462.6384 | AI19: =AC19 -> 365737 | AJ19: -133409 | AK19: 477919 | AM19: =AI19+AJ19-AK19+AL19 -> -245591 | AN19: =AH19 -> 9462.6384 | AO19: -1339 | AP19: 10057 | AR19: =AN19+AO19-AP19+AQ19 -> -1933.3616 | AS19: =+AM19 -> -245591 | AW19: =+AS19-AU19+AV19 -> -245591 | AX19: =+AR19 -> -1933.3616 | BB19: =AX19+AY19-AZ19+BA19 -> -1933.3616 | BC19: =AM19*0.0147 -> -3610.1877 | BD19: =+AW19+BB19+BC19 -> -251134.5493
C20: SME Variance account | D20: 1551 | I20: =E20+F20+G20+H20 -> 0 | N20: =J20+K20+L20+M20 -> 0 | O20: =I20 -> 0 | Z20: 185108 | AC20: =Y20+Z20+AA20+AB20 -> 185108 | AE20: 1632 | AH20: =AD20+AE20+AF20+AG20 -> 1632 | AI20: =AC20 -> 185108 | AJ20: -93458 | AM20: =AI20+AJ20-AK20+AL20 -> 91650 | AN20: =AH20 -> 1632 | AO20: 2228 | AR20: =AN20+AO20-AP20+AQ20 -> 3860 | AS20: =+AM20 -> 91650 | AW20: =+AS20-AU20+AV20 -> 91650 | AX20: =+AR20 -> 3860 | BB20: =AX20+AY20-AZ20+BA20 -> 3860 | BC20: =AM20*0.0147 -> 1347.255 | BD20: =+AW20+BB20+BC20 -> 96857.255
A21: 2 | C21: RSVA - Wholesale Market Service Charge | D21: 1580 | E21: =-267069-4874780-8512333 -> -13654182 | F21: =-8506527 -> -8506527 | I21: =E21+F21-G21+H21 -> -22160709 | J21: =-2556-166998-33372 -> -202926 | K21: =-71659-175081-3926 -> -250666 | N21: =J21+K21-L21+M21 -> -453592 | O21: =I21 -> -22160709 | P21: -10646313 | Q21: -22160709 | S21: =O21+P21-Q21+R21 -> -10646313 | T21: -453592 | U21: -411074 | V21: -780247 | X21: =T21+U21-V21+W21 -> -84419 | Y21: =S21 -> -10646313 | Z21: -5065917 | AC21: =Y21+Z21-AA21+AB21 -> -15712230 | AD21: -84419 | AE21: -200434 | AH21: =AD21+AE21-AF21+AG21 -> -284853 | AI21: =AC21 -> -15712230 | AJ21: -877534 | AK21: -10646313 | AM21: =AI21+AJ21-AK21+AL21 -> -5943451 | AN21: -284853 | AO21: -58992 | AP21: -240919 | AR21: =AN21+AO21-AP21+AQ21 -> -102926 | AS21: -5943451 | AW21: -5943451 | AX21: -102926 | BB21: =AX21+AY21-AZ21+BA21 -> -102926 | BC21: -87368.7297 | BD21: -6133745.73
A22: 3 | C22: RSVA - Retail Transmission Network Charge | D22: 1584 | E22: =286232-2802278+3095654 -> 579608 | F22: =2093688 -> 2093688 | I22: 2673296 | J22: =1555-163450+15079 -> -146816 | K22: =-41193+67394+ 4208 -> 30409 | N22: -116407 | O22: 2673296 | P22: 1005953 | Q22: 2673296 | S22: 1005953 | T22: -116407 | U22: 62777 | V22: -77003 | X22: =T22+U22-V22+W22 -> 23373 | Y22: 1005953 | Z22: 2616584 | AC22: 3622537 | AD22: 23373 | AE22: 30713 | AH22: 54086 | AI22: 3622537 | AJ22: 1288689 | AK22: 1005953 | AM22: 3905273 | AN22: 54086 | AO22: 47481 | AP22: 38161 | AR22: 63406 | AS22: 3905273 | AW22: 3905273 | AX22: 63406 | BB22: 63406 | BC22: 57407.5131 | BD22: 4026086.513
A23: 4 | C23: RSVA - Retail Transmission Connection Charge | D23: 1586 | E23: =-103340-2820954+28790 -> -2895504 | F23: =-332379 -> -332379 | I23: -3227883 | J23: =-1725-114925+719 -> -115931 | K23: =-41468+1963-1519 -> -41024 | N23: -156955 | O23: =I23 -> -3227883 | P23: -588231 | Q23: -3227884 | S23: -588230 | T23: -156955 | U23: -52540 | V23: -204532 | X23: -4963 | Y23: -588230 | Z23: 601094 | AC23: 12864 | AD23: -4963 | AE23: -5847 | AH23: -10810 | AI23: 12864 | AJ23: 852228 | AK23: -588230 | AM23: 1453322 | AN23: -10810 | AO23: 10423 | AP23: -13609 | AR23: 13222 | AS23: 1453322 | AW23: 1453322 | AX23: 13222 | BB23: 13222 | BC23: 21363.8334 | BD23: 1487907.833
A24: 5 | C24: RSVA - Power (excluding Global Adjustment) | D24: 1588 | E24: =-3062075+2461511+712267 -> 111703 | F24: =1990599 -> 1990599 | H24: -13 | I24: 2102289 | J24: =-35710+370529+9552 -> 344371 | K24: =36184+64514-45014 -> 55684 | N24: 400055 | O24: =I24 -> 2102289 | P24: 877101 | Q24: 2102302 | S24: 877088 | T24: =N24 -> 400055 | U24: 8778 | V24: 431043 | X24: -22210 | Y24: 877088 | Z24: 1357196 | AC24: 2234284 | AD24: =X24 -> -22210 | AE24: 51968 | AH24: =AD24+AE24-AF24+AG24 -> 29758 | AI24: =AC24 -> 2234284 | AJ24: -794425 | AK24: 877088 | AM24: =AI24+AJ24-AK24+AL24 -> 562771 | AN24: =AH24 -> 29758 | AO24: 27275 | AP24: -9317 | AR24: 66350 | AS24: 562771 | AW24: 562771 | AX24: 66350 | BB24: 66350 | BC24: 8272.7337 | BD24: 637393.7337
A25: 7 | C25: RSVA - Global Adjustment | D25: 1589 | E25: 15313269 | F25: 2213095 | I25: =E25+F25+G25+H25 -> 17526364 | J25: 444764 | K25: 224038 | N25: =J25+K25+L25+M25 -> 668802 | O25: =I25 -> 17526364 | P25: -1664568 | Q25: 17526364 | S25: -1664568 | T25: =N25 -> 668802 | U25: 259570 | V25: 927145 | X25: 1227 | Y25: =S25 -> -1664568 | Z25: -3374332 | AC25: =Y25+Z25+AA25+AB25 -> -5038900 | AD25: =X25 -> 1227 | AE25: 22026 | AH25: =AD25+AE25-AF25+AG25 -> 23253 | AI25: =AC25 -> -5038900 | AJ25: 13553905 | AK25: -1664568 | AM25: =AI25+AJ25-AK25 -> 10179573 | AN25: =AH25 -> 23253 | AO25: 46383 | AP25: -23242 | AR25: 92878 | AS25: 10179573 | AW25: 10179573 | AX25: 92878 | BB25: 92878 | BC25: 149639.7231 | BD25: 10422090.72
A26: 8 | C26: Recovery of Regulatory Asset Balances | D26: 1590 | E26: =3257-3876 -> -619 | F26: -423 | I26: -1042 | J26: =-28+ 3264 -> 3236 | K26: =48-62 -> -14 | N26: 3222 | O26: -1042 | P26: -15 | Q26: -1042 | S26: -15 | T26: =N26 -> 3222 | V26: 3208 | X26: 14 | Y26: -15 | AC26: -15 | AD26: 14 | AH26: 14 | AI26: -15 | AJ26: 2 | AK26: -15 | AM26: 2 | AN26: 14 | AP26: 14 | AR26: 0 | AS26: 2 | AW26: 2 | AX26: 0 | BB26: 0 | BC26: 0.0294 | BD26: 2.0294
A27: 9 | C27: Disposition and Recovery/Refund of Regulatory Balances (2008)7 | D27: 1595 | E27: 0 | I27: 0 | N27: 0 | O27: =I27 -> 0 | S27: 0 | T27: 0 | X27: 0 | Y27: =S27 -> 0 | AC27: 0 | AD27: 0 | AH27: 0 | AI27: =AC27 -> 0 | AM27: 0 | AN27: 0 | AR27: 0 | AS27: 0 | AW27: 0 | AX27: 0 | BB27: 0 | BC27: 0 | BD27: 0
A28: 10 | C28: Disposition and Recovery/Refund of Regulatory Balances (2009)7 | D28: 1595 | I28: 0 | N28: 0 | O28: =I28 -> 0 | S28: 0 | T28: 0 | X28: 0 | Y28: =S28 -> 0 | AC28: 0 | AD28: 0 | AH28: 0 | AI28: =AC28 -> 0 | AM28: 0 | AN28: 0 | AR28: 0 | AS28: 0 | AW28: 0 | AX28: 0 | BB28: 0 | BC28: 0 | BD28: 0
A29: 11 | C29: Disposition and Recovery/Refund of Regulatory Balances (2010)7 | D29: 1595 | I29: 0 | N29: =J29+K29-L29+M29 -> 0 | O29: =I29 -> 0 | S29: 0 | T29: 0 | X29: 0 | Y29: =S29 -> 0 | AC29: 0 | AD29: 0 | AH29: =AD29+AE29-AF29+AG29 -> 0 | AI29: =AC29 -> 0 | AM29: 0 | AN29: 0 | AR29: =AN29+AO29-AP29+AQ29 -> 0 | AS29: 0 | AW29: 0 | AX29: 0 | BB29: 0 | BC29: 0 | BD29: 0
A30: 12 | C30: Disposition and Recovery/Refund of Regulatory Balances (2011)7 | D30: 1595 | E30: =-4059903.54+-2186117.85 -> -6246021.39 | F30: 8479488.04 | I30: 2233466.65 | J30: =-1344546-605476 -> -1950022 | K30: 6332 | N30: =J30+K30-L30+M30 -> -1943690 | O30: =I30 -> 2233466.65 | P30: -680508 | Q30: 8245690 | S30: -6692731.35 | T30: -1943690 | U30: 144693 | V30: 86845 | X30: -1885842 | Y30: =S30 -> -6692731.35 | Z30: 4236921 | AC30: -2455810.35 | AD30: -1885842 | AE30: -96444 | AH30: =AD30+AE30-AF30+AG30 -> -1982286 | AI30: =AC30 -> -2455810.35 | AJ30: 9270221 | AK30: 10538166 | AM30: -3723755.35 | AN30: -1982286 | AO30: -56377 | AP30: 277339 | AR30: =AN30+AO30-AP30+AQ30 -> -2316002 | AS30: =+AM30 -> -3723755.35 | AV30: =-AS30 -> 3723755.35 | AW30: 0 | AX30: -2316002 | BA30: =-AX30 -> 2316002 | BB30: 0 | BC30: =(AM30+AV30)*0.0147 -> 0 | BD30: 0
S31: 0 | X31: 0
C32: Group 1 Sub-Total (including Account 1589 - Global Adjustment) | E32: =SUM(E19:E30) -> -7766129.39 | F32: 6231117.04 | G32: 0 | H32: -13 | I32: -1535025.35 | J32: -1634711 | K32: 10872.6384 | L32: 0 | M32: 0 | N32: -1623838.362 | O32: -1535025.35 | P32: -11218662 | Q32: 4477210 | R32: 0 | S32: -17230897.35 | T32: -1623838.362 | U32: 5199 | V32: 351149 | W32: 0 | X32: -1969788.362 | Y32: -17230897.35 | Z32: 444472 | AA32: 0 | AB32: 0 | AC32: -16786425.35 | AD32: -1969788.362 | AE32: -189955 | AF32: 0 | AG32: 0 | AH32: -2159743.362 | AI32: -16786425.35 | AJ32: 23066219 | AK32: 0 | AL32: 0 | AM32: 6279793.65 | AN32: -2159743.362 | AO32: 17082 | AP32: 38484 | AQ32: 0 | AR32: -2181145.362 | AS32: 6279793.65 | AT32: 0 | AU32: =SUM(AU19:AU30) -> 0 | AV32: =SUM(AV19:AV30) -> 3723755.35 | AW32: =SUM(AW19:AW30) -> 10003549 | AX32: =SUM(AX19:AX30) -> -2181145.362 | AY32: 0 | AZ32: 0 | BA32: 2316002 | BB32: =SUM(BB19:BB30) -> 134856.6384 | BC32: =SUM(BC19:BC30) -> 147052.1703 | BD32: =SUM(BD19:BD30) -> 10285457.81
C33: Group 1 Sub-Total (excluding Account 1589 - Global Adjustment) | E33: =E32-E34 -> -23079398.39 | F33: 4018022.04 | G33: 0 | H33: -13 | I33: -19061389.35 | J33: -2079475 | K33: -213165.3616 | L33: 0 | M33: 0 | N33: -2292640.362 | O33: =O32-O34 -> -19061389.35 | P33: -9554094 | Q33: -13049154 | R33: 0 | S33: -15566329.35 | T33: -2292640.362 | U33: -254371 | V33: -575996 | W33: 0 | X33: -1971015.362 | Y33: =Y32-Y34 -> -15566329.35 | Z33: 3818804 | AA33: 0 | AB33: 0 | AC33: -11747525.35 | AD33: -1971015.362 | AE33: -211981 | AF33: 0 | AG33: 0 | AH33: -2182996.362 | AI33: =AI32-AI34 -> -11747525.35 | AJ33: 9512314 | AK33: 1664568 | AL33: 0 | AM33: -3899779.35 | AN33: -2182996.362 | AO33: -29301 | AP33: 61726 | AQ33: 0 | AR33: -2274023.362 | AS33: -3899779.35 | AT33: 0 | AU33: =AU32-AU34 -> 0 | AV33: 3723755.35 | AW33: -176024 | AX33: =AX32-AX34 -> -2274023.362 | AY33: 0 | AZ33: 0 | BA33: 2316002 | BB33: 41978.6384 | BC33: =BC32-BC34 -> -2587.5528 | BD33: =+BD32-BD25 -> -136632.9144
C34: =C25 -> RSVA - Global Adjustment | D34: 1589 | E34: =E25 -> 15313269 | F34: 2213095 | G34: 0 | H34: 0 | I34: 17526364 | J34: 444764 | K34: 224038 | L34: 0 | M34: 0 | N34: 668802 | O34: =O25 -> 17526364 | P34: -1664568 | Q34: 17526364 | R34: 0 | S34: -1664568 | T34: 668802 | U34: 259570 | V34: 927145 | W34: 0 | X34: 1227 | Y34: =Y25 -> -1664568 | Z34: -3374332 | AA34: 0 | AB34: 0 | AC34: -5038900 | AD34: 1227 | AE34: 22026 | AF34: 0 | AG34: 0 | AH34: 23253 | AI34: =AI25 -> -5038900 | AJ34: 13553905 | AK34: -1664568 | AL34: 0 | AM34: 10179573 | AN34: 23253 | AO34: 46383 | AP34: -23242 | AQ34: 0 | AR34: 92878 | AS34: =AS25 -> 10179573 | AT34: 0 | AU34: =AU25 -> 0 | AV34: 0 | AW34: 10179573 | AX34: =AX25 -> 92878 | AY34: 0 | AZ34: 0 | BA34: 0 | BB34: 92878 | BC34: 149639.7231 | BD34: =+AM34+AR34+BC34 -> 10422090.72
S35: 0 | X35: 0
C36: Group 2 Accounts | S36: 0 | X36: 0
A37: 13 | C37: Other Regulatory Assets - Sub-Account - OEB Cost Assessments /Hone charges | D37: 1508 | E37: 65269 | F37: 572 | I37: =E37+F37-G37+H37 -> 65841 | J37: =507.96-95-91 -> 321.96 | K37: 959.11 | N37: =J37+K37-L37+M37 -> 1281.07 | O37: =I37 -> 65841 | P37: -22 | Q37: 65840 | S37: -21 | T37: =N37 -> 1281.07 | U37: 968 | V37: 2252 | X37: -2.93 | Y37: =S37 -> -21 | Z37: 99364 | AC37: =Y37+Z37-AA37+AB37 -> 99343 | AD37: =X37 -> -2.93 | AE37: 14983.4 | AH37: =AD37+AE37-AF37+AG37 -> 14980.47 | AI37: =AC37 -> 99343 | AJ37: 141656.73 | AM37: =AI37+AJ37-AK37+AL37 -> 240999.73 | AN37: =AH37 -> 14980.47 | AO37: 14346.91 | AR37: =AN37+AO37-AP37+AQ37 -> 29327.38 | AS37: =+AM37 -> 240999.73 | AW37: =+AS37-AU37+AV37 -> 240999.73 | AX37: =+AR37 -> 29327.38 | BB37: =AX37+AY37-AZ37+BA37 -> 29327.38 | BC37: =AM37*0.0147 -> 3542.696031 | BD37: =+AW37+BB37+BC37 -> 273869.806
A38: 14 | C38: Other Regulatory Assets - Sub-Account - Pension Contributions | D38: 1508 | E38: 0 | I38: 0 | N38: 0 | O38: 0 | P38: 1418000 | S38: 1418000 | T38: 0 | X38: 0 | Y38: 1418000 | AC38: 1418000 | AD38: 0 | AH38: 0 | AI38: 1418000 | AJ38: -3480259 | AM38: -2062259 | AN38: 0 | AR38: 0 | AS38: -2062259 | AV38: =-AS38 -> 2062259 | AW38: 0 | AX38: 0 | BB38: 0 | BC38: 0 | BD38: 0
A39: 15 | C39: Other Regulatory Assets - Sub-Account - Deferred IFRS Transition Costs | D39: 1509 | E39: =320943-94676 -> 226267 | F39: =98270-393800 -> -295530 | I39: -69263 | J39: =3103+3019 -> 6122 | K39: =-4235+5332 -> 1097 | N39: 7219 | O39: -69263 | P39: -404677 | Q39: -219916 | S39: -254024 | T39: 7219 | U39: -3693 | V39: 6642 | X39: -3116 | Y39: -254024 | Z39: 117323 | AC39: -136701 | AD39: -3116 | AE39: -2775 | AH39: -5891 | AI39: -136701 | AJ39: 280 | AM39: -136421 | AN39: -5891 | AO39: -2006 | AR39: -7897 | AS39: -136421 | AW39: -136421 | AX39: -7897 | BB39: -7897 | BC39: =AM39*0.0147 -> -2005.3887 | BD39: -146323.3887
A40: 16 | C40: Other Regulatory Assets - Sub-Account - Incremental Capital Charges | D40: 1508 | I40: 0 | N40: 0 | O40: 0 | S40: =O40+P40-Q40+R40 -> 0 | T40: 0 | X40: 0 | Y40: 0 | AC40: 0 | AD40: 0 | AE40: =70986-14983.4-56002.82 -> -0.22 | AH40: -0.22 | AI40: 0 | AJ40: 9832485 | AM40: 9832485 | AN40: -0.22 | AO40: 7764 | AR40: 7763.78 | AS40: 9832485 | AV40: =303700-AS40 -> -9528785 | AW40: 303700 | AX40: 7763.78 | BA40: =-14715-AX40 -> -22478.78 | BB40: -14715 | BC40: =(AM40-AM40)*0.0147 -> 0 | BD40: 288985
A41: 17 | C41: Other Regulatory Assets - Sub-Account - Financial Assistance Payment and Recovery Variance - Ontario Clean Energy Benefit Act8 | D41: 1508 | E41: 0 | I41: 0 | N41: 0 | O41: 0 | S41: 0 | T41: 0 | X41: 0 | Y41: 0 | AC41: 0 | AD41: 0 | AH41: 0 | AI41: 0 | AM41: 0 | AN41: 0 | AR41: 0 | AS41: 0 | AW41: 0 | AX41: 0 | BB41: 0 | BC41: 0 | BD41: 0
A42: 18 | C42: Other Regulatory Assets - Sub-Account - Financial Assistance Payment and Recovery Carrying Charges | D42: 1508 | E42: 0 | I42: 0 | N42: 0 | O42: 0 | S42: 0 | T42: 0 | X42: 0 | Y42: 0 | AC42: 0 | AD42: 0 | AH42: 0 | AI42: 0 | AM42: 0 | AN42: 0 | AR42: 0 | AS42: =+AM42 -> 0 | AW42: 0 | AX42: 0 | BB42: 0 | BC42: 0 | BD42: 0
A43: 19 | C43: Other Regulatory Assets - Sub-Account - Other : CGAAP CWIP differential4 | D43: 1508 | E43: 0 | I43: 0 | N43: =J43+K43-L43+M43 -> 0 | O43: 0 | P43: 5300000 | S43: 5300000 | T43: 0 | X43: 0 | Y43: 5300000 | Z43: -1249373.8 | AC43: 4050626.2 | AD43: 0 | AE43: 56002.82 | AH43: 56002.82 | AI43: 4050626.2 | AJ43: -1385181.67 | AM43: 2665444.53 | AN43: 56002.82 | AO43: 38302.35 | AR43: 94305.17 | AS43: =+AM43 -> 2665444.53 | AV43: =-AM43 -> -2665444.53 | AW43: 0 | AX43: 94305.17 | BA43: =-AR43 -> -94305.17 | BB43: 0 | BC43: =(AM43+AV43)*0.0147 -> 0 | BD43: 0
A44: 20 | C44: Retail Cost Variance Account - Retail | D44: 1518 | E44: =50237+12361+-37739 -> 24859 | F44: =-25534 -> -25534 | I44: -675 | J44: =8611+2180+111 -> 10902 | K44: =182-496+ 738 -> 424 | N44: 11326 | O44: -675 | P44: -3168 | Q44: -674 | S44: -3169 | T44: 11326 | U44: 161 | V44: 11316 | X44: 171 | Y44: -3169 | Z44: 83709 | AC44: 80540 | AD44: 171 | AE44: 757 | AH44: 928 | AI44: 80540 | AJ44: 131048 | AM44: 211588 | AN44: 928 | AO44: 2253 | AR44: 3181 | AS44: 211588 | AW44: 211588 | AX44: 3181 | BB44: 3181 | BC44: 3110.3436 | BD44: 217879.3436
A45: 21 | C45: Misc. Deferred Debits | D45: 1525 | E45: 0 | I45: 0 | N45: 0 | O45: 0 | S45: 0 | T45: 0 | X45: 0 | Y45: 0 | AC45: 0 | AD45: 0 | AH45: 0 | AI45: 0 | AM45: 0 | AN45: 0 | AR45: 0 | AS45: 0 | AW45: 0 | AX45: 0 | BB45: 0 | BC45: 0 | BD45: 0
A46: 22 | C46: Renewable Generation Connection Capital Deferral Account | D46: 1531 | E46: =84798 -> 84798 | F46: 440019 | I46: 524817 | J46: 296 | K46: 2425 | N46: 2721 | O46: =+I46 -> 524817 | P46: 630287 | S46: 1155104 | T46: 2721 | U46: 10209 | X46: 12930 | Y46: 1155104 | Z46: 883418 | AC46: 2038522 | AD46: 12930 | AE46: 16350 | AH46: 29280 | AI46: 2038522 | AJ46: 304154 | AK46: 1343622 | AM46: 999054 | AN46: 29280 | AO46: 28059 | AR46: 57339 | AS46: 999054 | AV46: =-AS46 -> -999054 | AW46: 0 | AX46: 57339 | BA46: =-AX46 -> -57339 | BC46: =(AM46+AV46)*0.0147 -> 0 | BD46: 0
A47: 23 | C47: Renewable Generation Connection OM&A Deferral Account | D47: 1532 | E47: 0 | F47: =142559 -> 142559 | I47: 142559 | K47: 570 | N47: 570 | O47: 142559 | P47: 32215 | Q47: 142559 | S47: 32215 | T47: 570 | U47: 1979 | V47: 2671 | X47: -122 | Y47: 32215 | Z47: 160573 | AC47: 192788 | AD47: -122 | AE47: 1189 | AH47: 1067 | AI47: 192788 | AJ47: 80538 | AM47: 273326 | AN47: 1067 | AO47: 3165 | AR47: 4232 | AS47: 273326 | AW47: 273326 | AX47: 4232 | BB47: 4232 | BC47: 4017.8922 | BD47: 281575.8922
A48: 24 | C48: Renewable Generation Connection Funding Adder Deferral Account | D48: 1533 | E48: 0 | I48: 0 | N48: 0 | O48: 0 | S48: 0 | T48: 0 | X48: 0 | Y48: 0 | AC48: 0 | AD48: 0 | AH48: 0 | AI48: 0 | AM48: 0 | AN48: 0 | AR48: 0 | AS48: 0 | AW48: 0 | AX48: 0 | BB48: 0 | BC48: 0 | BD48: 0
A49: 25 | C49: Smart Grid Capital Deferral Account | D49: 1534 | E49: 191896 | F49: 297024 | I49: 488920 | J49: 369 | K49: 4030 | N49: 4399 | O49: =+I49 -> 488920 | P49: 397414 | Q49: 476808 | S49: 409526 | T49: 4399 | U49: 8550 | X49: 12949 | Y49: 409526 | Z49: 800880 | AC49: 1210406 | AD49: 12949 | AE49: 7498 | AH49: 20447 | AI49: 1210406 | AJ49: 1290596 | AM49: 2501002 | AN49: 20447 | AO49: 24519 | AR49: 44966 | AS49: 2501002 | AV49: =-AS49 -> -2501002 | AW49: 0 | AX49: 44966 | BA49: =-AX49 -> -44966 | BC49: =(AM49+AV49)*0.0147 -> 0 | BD49: 0
A50: 26 | C50: Smart Grid OM&A Deferral Account | D50: 1535 | E50: 206380 | F50: 243724 | H50: -200 | I50: 449904 | J50: 393 | K50: 4685 | M50: 200 | N50: 5278 | O50: 449904 | P50: 799709 | Q50: 450104 | S50: 799509 | T50: 5278 | U50: 10425 | V50: 11713 | X50: 3990 | Y50: 799509 | Z50: 628474 | AC50: 1427983 | AD50: 3990 | AE50: 15607 | AH50: 19597 | AI50: 1427983 | AJ50: 799504 | AM50: 2227487 | AN50: 19597 | AO50: 24229 | AR50: 43826 | AS50: 2227487 | AW50: 2227487 | AX50: 43826 | BB50: 43826 | BC50: 32744.0589 | BD50: 2304057.059
A51: 27 | C51: Smart Grid Funding Adder Deferral Account | D51: 1536 | E51: 0 | I51: 0 | N51: 0 | O51: 0 | S51: 0 | T51: 0 | X51: 0 | Y51: 0 | AC51: 0 | AD51: 0 | AH51: 0 | AJ51: -872000 | AM51: -872000 | AN51: 0 | AO51: -4803 | AR51: -4803 | AS51: -872000 | AV51: =-525761-AS51 -> 346239 | AW51: -525761 | AX51: -4803 | BA51: =-AX51 -> 4803 | BB51: 0 | BC51: =(AM51-AS51)*0.0147 -> 0 | BD51: -525761
A52: 28 | C52: Retail Cost Variance Account - STR | D52: 1548 | E52: =-24249-1880 -> -26129 | I52: -26129 | J52: =-2481-20 -> -2501 | K52: =-356-27.54 -> -383.54 | N52: -2884.54 | O52: =I52 -> -26129 | P52: 0 | Q52: -26129 | S52: =O52+P52-Q52+R52 -> 0 | T52: -2884.54 | U52: -384 | V52: -3270 | X52: 1.46 | Y52: 0 | AC52: 0 | AD52: 1.46 | AH52: 1.46 | AI52: 0 | AM52: 0 | AN52: 1.46 | AR52: 1.46 | AS52: 0 | AW52: 0 | AX52: 1.46 | BB52: 1.46 | BC52: 0 | BD52: 1.46
A53: 29 | C53: Board-Approved CDM Variance Account | D53: 1567 | E53: 0 | I53: 0 | N53: =J53+K53-L53+M53 -> 0 | O53: 0 | S53: 0 | T53: 0 | X53: 0 | Y53: 0 | Z53: -775217 | AC53: -775217 | AD53: 0 | AE53: -6053 | AH53: =AD53+AE53-AF53+AG53 -> -6053 | AI53: -775217 | AJ53: 391252 | AM53: -383965 | AN53: -6053 | AO53: -6198 | AR53: =AN53+AO53-AP53+AQ53 -> -12251 | AS53: -383965 | AV53: =-AS53 -> 383965 | AW53: 0 | AX53: -12251 | BA53: =-AX53 -> 12251 | BB53: 0 | BC53: =(AM53+AV53)*0.0147 -> 0 | BD53: 0
A54: 30 | C54: Extra-Ordinary Event Costs | D54: 1572 | E54: 1024433 | F54: -1024433 | I54: 0 | N54: 0 | O54: =I54 -> 0 | S54: 0 | T54: 0 | X54: 0 | Y54: =S54 -> 0 | AC54: 0 | AD54: 0 | AH54: 0 | AI54: =AC54 -> 0 | AM54: 0 | AN54: 0 | AR54: =AN54+AO54-AP54+AQ54 -> 0 | AS54: 0 | AW54: 0 | AX54: 0 | BB54: 0 | BC54: 0 | BD54: 0
A55: 31 | C55: Deferred Rate Impact Amounts | D55: 1574 | E55: 0 | I55: 0 | N55: 0 | O55: 0 | S55: 0 | T55: 0 | X55: 0 | Y55: 0 | AC55: 0 | AD55: 0 | AH55: 0 | AI55: 0 | AM55: 0 | AN55: 0 | AR55: =AN55+AO55-AP55+AQ55 -> 0 | AS55: 0 | AW55: 0 | AX55: 0 | BB55: 0 | BC55: 0 | BD55: 0
A56: 32 | C56: RSVA - One-time | D56: 1582 | E56: =80600-45641 -> 34959 | I56: 34959 | J56: =15776-170+35 -> 15641 | K56: =1185-671.81 -> 513.19 | N56: 16154.19 | O56: 34959 | Q56: 34960 | S56: -1 | T56: 16154.19 | U56: 517 | V56: 16668 | X56: 3.19 | Y56: -1 | AC56: -1 | AD56: 3.19 | AH56: 3.19 | AI56: -1 | AM56: -1 | AN56: 3.19 | AR56: =AN56+AO56-AP56+AQ56 -> 3.19 | AS56: -1 | AW56: -1 | AX56: 3.19 | BB56: 3.19 | BC56: -0.0147 | BD56: 2.1753
C57: Other Regulatory Liaiblities / Credits | D57: 2405 | E57: -53312859 | F57: 3779766 | I57: -49533093 | J57: 0 | N57: 0 | O57: -49533093 | P57: 6930177 | S57: -42602916 | T57: 0 | X57: 0 | Y57: -42602916 | Z57: 10482406 | AC57: -32120510 | AH57: 0 | AI57: -32120510 | AJ57: 7589025 | AM57: -24531485 | AN57: 0 | AO57: 0 | AS57: -24531485 | AV57: =-AS57 -> 24531485 | AW57: 0 | AX57: 0 | BA57: 0 | BB57: 0 | BC57: =(AM57+AV57)*0.0147 -> 0 | BD57: =+AW57+BB57+BC57 -> 0
A58: 33 | C58: Other Deferred Credits | D58: 2425 | E58: -145932 | F58: -172490 | I58: -318422 | J58: =9312-9660 -> -348 | K58: -3487 | N58: -3835 | O58: -318422 | P58: -212280 | Q58: -532264 | S58: 1562 | T58: -3835 | U58: -5533 | V58: -8529 | X58: -839 | Y58: 1562 | Z58: -1562 | AC58: 0 | AD58: -839 | AE58: 841 | AH58: 2 | AI58: 0 | AM58: 0 | AN58: 2 | AR58: =AN58+AO58-AP58+AQ58 -> 2 | AS58: 0 | AW58: 0 | AX58: 2 | BB58: 2 | BC58: 0 | BD58: 2
I59: 0 | O59: 0 | S59: 0 | X59: 0 | Y59: 0 | AC59: 0 | AI59: 0 | AM59: 0
C60: Group 2 Sub-Total | E60: =SUM(E37:E59) -> -51626059 | F60: =SUM(F37:F58) -> 3385677 | G60: =SUM(G37:G58) -> 0 | H60: -200 | I60: =SUM(I37:I59) -> -48240582 | J60: =SUM(J37:J58) -> 31195.96 | K60: =SUM(K37:K58) -> 10832.76 | L60: 0 | M60: 200 | N60: 42228.72 | O60: =SUM(O37:O59) -> -48240582 | P60: =SUM(P37:P58) -> 14887655 | Q60: 391288 | R60: 0 | S60: -33744215 | T60: 42228.72 | U60: 23199 | V60: 39463 | W60: 0 | X60: 25964.72 | Y60: =SUM(Y37:Y59) -> -33744215 | Z60: =SUM(Z37:Z58) -> 11229994.2 | AA60: 0 | AB60: 0 | AC60: =SUM(AC37:AC59) -> -22514220.8 | AD60: 25964.72 | AE60: 104400 | AF60: 0 | AG60: 0 | AH60: 130364.72 | AI60: =SUM(AI37:AI59) -> -22514220.8 | AJ60: =SUM(AJ37:AJ58) -> 14823098.06 | AK60: 1343622 | AL60: 0 | AM60: =SUM(AM37:AM59) -> -9034744.74 | AN60: 130364.72 | AO60: 129631.26 | AP60: 0 | AQ60: 0 | AR60: 259995.98 | AS60: -9034744.74 | AT60: 0 | AU60: 0 | AV60: 11629662.47 | AW60: 2594917.73 | AX60: 259995.98 | AY60: 0 | AZ60: 0 | BA60: -202034.95 | BB60: 57961.03 | BC60: 41409.58733 | BD60: =SUM(BD37:BD58) -> 2694288.347
S61: 0 | X61: 0
A62: 34 | C62: Deferred Payments in Lieu of Taxes | D62: 1562 | E62: =-370329-2963417 -> -3333746 | F62: =-350906-827897 -> -1178803 | I62: =E62+F62-G62+H62 -> -4512549 | J62: =241111-78965 -> 162146 | K62: =-82819-158402 -> -241221 | N62: =J62+K62-L62+M62 -> -79075 | O62: =I62 -> -4512549 | P62: 721235 | Q62: -3791314 | S62: =O62+P62-Q62+R62 -> 0 | T62: =N62 -> -79075 | U62: -214178 | V62: -293253 | X62: =T62+U62-V62+W62 -> 0 | Y62: =S62 -> 0 | AC62: =Y62+Z62-AA62+AB62 -> 0 | AD62: =X62 -> 0 | AH62: =AD62+AE62-AF62+AG62 -> 0 | AI62: =AC62 -> 0 | AM62: =AI62+AJ62-AK62+AL62 -> 0 | AN62: =AH62 -> 0 | AR62: =AN62+AO62-AP62+AQ62 -> 0 | AS62: =+AM62 -> 0 | AW62: =+AS62-AU62+AV62 -> 0 | AX62: =+AR62 -> 0 | BB62: =AR62-AT62 -> 0 | BC62: =AM62*0.0147 -> 0 | BD62: =+AW62+BB62+BC62 -> 0
A63: 35 | C63: PILs and Tax Variance for 2006 and Subsequent Years (excludes sub-account and contra account below) | D63: 1592 | E63: =-54576-633969-173460 -> -862005 | F63: 20823 | H63: 15 | I63: -841167 | J63: =-6016-68665-1154 -> -75835 | K63: =-9319-2555-803 -> -12677 | N63: =J63+K63-L63+M63 -> -88512 | O63: =I63 -> -841167 | P63: -1003 | Q63: -841182 | S63: -988 | T63: =N63 -> -88512 | U63: -12378 | V63: -100910 | X63: 20 | Y63: =S63 -> -988 | AC63: -988 | AD63: =X63 -> 20 | AE63: -14 | AH63: =AD63+AE63-AF63+AG63 -> 6 | AI63: =AC63 -> -988 | AM63: -988 | AN63: =AH63 -> 6 | AO63: -15 | AR63: =AN63+AO63-AP63+AQ63 -> -9 | AS63: -988 | AW63: -988 | AX63: -9 | BB63: -9 | BC63: =AM63*0.0147 -> -14.5236 | BD63: -1011.5236
A64: 36 | C64: PILs and Tax Variance for 2006 and Subsequent Years - Sub-Account HST/OVAT Input Tax Credits (ITCs) | D64: 1592 | I64: 0 | N64: =J64+K64-L64+M64 -> 0 | O64: =I64 -> 0 | S64: 0 | T64: =N64 -> 0 | X64: 0 | Y64: =S64 -> 0 | AC64: 0 | AD64: =X64 -> 0 | AH64: =AD64+AE64-AF64+AG64 -> 0 | AI64: =AC64 -> 0 | AM64: 0 | AN64: =AH64 -> 0 | AR64: =AN64+AO64-AP64+AQ64 -> 0 | AS64: 0 | AW64: 0 | AX64: 0 | BB64: 0 | BC64: 0 | BD64: 0
S65: 0 | X65: 0 | AX65: 0
C66: Total of Group 1 and Group 2 Accounts (including 1562 and 1592) | E66: =+E60+E32+E62+E63+E64 -> -63587939.39 | F66: 8458814.04 | G66: 0 | H66: -198 | I66: =+I60+I32+I62+I63+I64 -> -55129323.35 | J66: -1517204.04 | K66: -232192.6016 | L66: 0 | M66: 200 | N66: -1749196.642 | O66: -55129323.35 | P66: 4389225 | Q66: 236002 | R66: =+R60+R32+R62+R63+R64 -> 0 | S66: -50976100.35 | T66: =+T60+T32+T62+T63+T64 -> -1749196.642 | U66: -198158 | V66: -3551 | W66: 0 | X66: =T66+U66-V66+W66 -> -1943803.642 | Y66: -50976100.35 | Z66: 11674466.2 | AA66: 0 | AB66: 0 | AC66: =+AC60+AC32+AC62+AC63+AC64 -> -39301634.15 | AD66: -1943803.642 | AE66: -85569 | AF66: 0 | AG66: 0 | AH66: -2029372.642 | AI66: -39301634.15 | AJ66: 37889317.06 | AK66: 1343622 | AL66: 0 | AM66: =+AM60+AM32+AM62+AM63+AM64 -> -2755939.09 | AN66: -2029372.642 | AO66: 146698.26 | AP66: 38484 | AQ66: 0 | AR66: -1921158.382 | AS66: -2755939.09 | AT66: 0 | AU66: 0 | AV66: 15353417.82 | AW66: 12597478.73 | AX66: -1921158.382 | AY66: 0 | AZ66: 0 | BA66: 2113967.05 | BB66: 192808.6684 | BC66: 188447.234 | BD66: 12978734.63
S67: 0 | X67: 0
S68: 0 | X68: 0
A69: 37 | C69: LRAM Variance Account | D69: 1568 | I69: =E69+F69-G69+H69 -> 0 | N69: =J69+K69-L69+M69 -> 0 | O69: =I69 -> 0 | P69: 716910 | S69: 716910 | T69: =N69 -> 0 | X69: 0 | Y69: =S69 -> 716910 | Z69: -513961 | AC69: =Y69+Z69-AA69+AB69 -> 202949 | AD69: =X69 -> 0 | AE69: 13029 | AH69: =AD69+AE69-AF69+AG69 -> 13029 | AI69: =AC69 -> 202949 | AJ69: 73996 | AM69: =AI69+AJ69-AK69+AL69 -> 276945 | AN69: =AH69 -> 13029 | AO69: 3378 | AR69: =AN69+AO69-AP69+AQ69 -> 16407 | AS69: =+AM69 -> 276945 | AU69: 801680 | AW69: =+AS69-AU69+AV69 -> -524735 | AX69: =+AR69 -> 16407 | BB69: =AR69-AT69 -> 16407 | BC69: =AM69*0.0147 -> 4071.0915 | BD69: =+AW69+BB69+BC69 -> -504256.9085
A70: 38 | C70: Special purpose Charge Assessment Variance Account | D70: 1521 | E70: =1094729 -> 1094729 | F70: =-1119584 -> -1119584 | I70: =E70+F70+G70+H70 -> -24855 | J70: 7756 | K70: =3123 -> 3123 | N70: =M70+L70+K70+J70 -> 10879 | O70: =I70 -> -24855 | P70: 24855 | Q70: 0 | S70: 0 | T70: =N70 -> 10879 | U70: -10879 | V70: 0 | X70: 0
S71: 0 | X71: 0
C72: Total including Account 1568 and 1521 | E72: =E66+E69+E70 -> -62493210.39 | F72: =F66+F69+F70 -> 7339230.04 | G72: 0 | H72: -198 | I72: -55154178.35 | J72: -1509448.04 | K72: -229069.6016 | L72: 0 | M72: 200 | N72: -1738317.642 | O72: -55154178.35 | P72: 5130990 | Q72: 236002 | R72: 0 | S72: -50259190.35 | T72: -1738317.642 | U72: -209037 | V72: -3551 | W72: 0 | X72: -1943803.642 | Y72: -50259190.35 | Z72: 11160505.2 | AA72: 0 | AB72: 0 | AC72: -39098685.15 | AD72: -1943803.642 | AE72: -72540 | AF72: 0 | AG72: 0 | AH72: -2016343.642 | AI72: -39098685.15 | AJ72: 37963313.06 | AK72: 1343622 | AL72: 0 | AM72: -2478994.09 | AN72: -2016343.642 | AO72: 150076.26 | AP72: 38484 | AQ72: 0 | AR72: -1904751.382 | AS72: -2478994.09 | AT72: 0 | AU72: 801680 | AV72: 15353417.82 | AW72: 12072743.73 | AX72: -1904751.382 | AY72: 0 | AZ72: 0 | BA72: 2113967.05 | BB72: 209215.6684 | BC72: 192518.3255 | BD72: 12474477.72
S73: 0 | X73: 0
A74: 36 | C74: Smart Meter Capital and Recovery Offset Variance - Sub-Account - Capital10 | D74: 1555 | E74: =-2346843-4701320 -> -7048163 | F74: =-454579-17242 -> -471821 | G74: =-2801422-4718562 -> -7519984 | I74: =E74+F74-G74+H74 -> 0 | N74: =J74+K74-L74+M74 -> 0 | O74: =I74 -> 0 | S74: 0 | T74: =N74 -> 0 | X74: 0 | Y74: =S74 -> 0 | AC74: =Y74+Z74-AA74+AB74 -> 0 | AD74: =X74 -> 0 | AH74: =AD74+AE74-AF74+AG74 -> 0 | AI74: =AC74 -> 0 | AM74: =AI74+AJ74-AK74+AL74 -> 0 | AN74: =AH74 -> 0 | AR74: =AN74+AO74-AP74+AQ74 -> 0 | AS74: =+AM74 -> 0 | AW74: =+AS74-AU74+AV74 -> 0 | AX74: =+AR74 -> 0 | BB74: =AR74-AT74 -> 0 | BC74: =AM74*0.0147 -> 0 | BD74: =+AW74+BB74+BC74 -> 0
A75: 37 | C75: Smart Meter Capital and Recovery Offset Variance - Sub-Account - Recoveries10 | D75: 1555 | E75: =9640354+11390659 -> 21031013 | F75: =47020-1171279 -> -1124259 | G75: =9687374+10219380 -> 19906754 | I75: 0 | N75: =J75+K75-L75+M75 -> 0 | O75: =I75 -> 0 | S75: 0 | T75: =N75 -> 0 | X75: 0 | Y75: =S75 -> 0 | AC75: 0 | AD75: =X75 -> 0 | AH75: =AD75+AE75-AF75+AG75 -> 0 | AI75: =AC75 -> 0 | AM75: 0 | AN75: =AH75 -> 0 | AR75: =AN75+AO75-AP75+AQ75 -> 0 | AS75: 0 | AW75: 0 | AX75: 0 | BB75: 0 | BC75: =AM75*0.0147 -> 0 | BD75: 0
A76: 38 | C76: Smart Meter Capital and Recovery Offset Variance - Sub-Account - Stranded Meter Costs10 | D76: 1555 | E76: =3149265+10347694 -> 13496959 | F76: =-103675-604500 -> -708175 | I76: 12788784 | N76: =J76+K76-L76+M76 -> 0 | O76: =I76 -> 12788784 | P76: -1333881 | S76: 11454903 | T76: =N76 -> 0 | X76: 0 | Y76: =S76 -> 11454903 | Z76: -5232747 | AC76: 6222156 | AD76: =X76 -> 0 | AE76: 135982 | AH76: =AD76+AE76-AF76+AG76 -> 135982 | AI76: =AC76 -> 6222156 | AJ76: -5815721 | AM76: 406435 | AN76: =AH76 -> 135982 | AO76: 50719 | AR76: =AN76+AO76-AP76+AQ76 -> 186701 | AS76: 406435 | AW76: 406435 | AX76: 186701 | BB76: 186701 | BC76: 5974.5945 | BD76: 599110.5945
A77: 39 | C77: Smart Meter OM&A Variance10 | D77: 1556 | E77: =691960+985715 -> 1677675 | F77: =1417356+927637 -> 2344993 | G77: =1957148+1824713 -> 3781861 | I77: 240807 | N77: =J77+K77-L77+M77 -> 0 | O77: =I77 -> 240807 | P77: 14 | Q77: 240807 | S77: 14 | T77: =N77 -> 0 | U77: 3540 | V77: 3549 | X77: -9 | Y77: =S77 -> 14 | Z77: -14 | AC77: 0 | AD77: =X77 -> -9 | AE77: 9 | AH77: =AD77+AE77-AF77+AG77 -> 0 | AI77: =AC77 -> 0 | AM77: 0 | AN77: =AH77 -> 0 | AR77: =AN77+AO77-AP77+AQ77 -> 0 | AS77: 0 | AW77: 0 | AX77: 0 | BB77: 0 | BC77: 0 | BD77: 0
S78: 0 | X78: 0 | AW78: 0 | AX78: 0 | BB78: =AR78-AT78 -> 0 | BD78: 0
A79: 40 | C79: IFRS-CGAAP Transition PP&E Amounts Balance + Return Component9 | D79: 1575 | P79: -9571000 | S79: -9571000 | T79: =N79 -> 0 | X79: 0 | Y79: =S79 -> -9571000 | Z79: 2392753 | AC79: =Y79+Z79-AA79+AB79 -> -7178247 | AD79: =X79 -> 0 | AH79: =AD79+AE79-AF79+AG79 -> 0 | AI79: =AC79 -> -7178247 | AJ79: 2392750 | AM79: =AI79+AJ79-AK79+AL79 -> -4785497 | AN79: =AH79 -> 0 | AR79: =AN79+AO79-AP79+AQ79 -> 0 | AS79: -4785497 | AV79: 2392750 | AW79: -2392747 | AX79: 0 | BB79: 0 | BC79: 0 | BD79: -2392747
A80: 41 | C80: Accounting Changes Under CGAAP Balance + Return Component9 | D80: 1576 | S80: 0 | T80: =N80 -> 0 | X80: 0 | Y80: 0 | AC80: 0 | AD80: =X80 -> 0 | AH80: =AD80+AE80-AF80+AG80 -> 0 | AI80: 0 | AM80: 0 | AN80: =AH80 -> 0 | AR80: =AN80+AO80-AP80+AQ80 -> 0 | AS80: 0 | AW80: 0 | AX80: 0 | BB80: 0 | BC80: =AM80*0.0147 -> 0 | BD80: 0
S81: 0 | X81: 0 | AW81: 0 | BB81: 0
C82: The following is not included in the total claim but are included on a memo basis: | S82: 0 | X82: 0 | AW82: 0 | BB82: 0
A83: 42 | C83: Deferred PILs Contra Account 5 | D83: 1563 | I83: =E83+F83-G83+H83 -> 0 | N83: =J83+K83-L83+M83 -> 0 | O83: =I83 -> 0 | S83: 0 | T83: =N83 -> 0 | X83: 0 | Y83: =S83 -> 0 | AC83: =Y83+Z83-AA83+AB83 -> 0 | AD83: =X83 -> 0 | AH83: =AD83+AE83-AF83+AG83 -> 0 | AI83: =AC83 -> 0 | AM83: =AI83+AJ83-AK83+AL83 -> 0 | AN83: =AH83 -> 0 | AR83: =AN83+AO83-AP83+AQ83 -> 0 | AS83: =+AM83 -> 0 | AW83: 0 | AX83: =+AR83 -> 0 | BB83: 0 | BC83: =AM83*0.0147 -> 0 | BD83: =+AM83+AR83+BC83 -> 0
A84: 43 | C84: PILs and Tax Variance for 2006 and Subsequent Years - Sub-Account HST/OVAT Contra Account | D84: 1592 | I84: 0 | N84: =J84+K84-L84+M84 -> 0 | O84: =I84 -> 0 | S84: 0 | T84: =N84 -> 0 | X84: 0 | Y84: =S84 -> 0 | AC84: 0 | AD84: =X84 -> 0 | AH84: =AD84+AE84-AF84+AG84 -> 0 | AI84: =AC84 -> 0 | AM84: 0 | AN84: =AH84 -> 0 | AR84: =AN84+AO84-AP84+AQ84 -> 0 | AS84: 0 | AW84: 0 | AX84: 0 | BB84: 0 | BC84: =AM84*0.0147 -> 0 | BD84: 0
A85: 44 | C85: Disposition and Recovery of Regulatory Balances7 | D85: 1595 | I85: 0 | N85: =J85+K85-L85+M85 -> 0 | O85: =I85 -> 0 | S85: 0 | T85: =N85 -> 0 | X85: 0 | Y85: =S85 -> 0 | AC85: 0 | AD85: =X85 -> 0 | AH85: =AD85+AE85-AF85+AG85 -> 0 | AI85: =AC85 -> 0 | AM85: 0 | AN85: =AH85 -> 0 | AR85: =AN85+AO85-AP85+AQ85 -> 0 | AS85: 0 | AW85: 0 | AX85: 0 | BB85: 0 | BC85: 0 | BD85: 0
C87: Total Check | E87: =E72+E74+E75+E76+E77+E79 -> -33335726.39 | F87: =F72+F74+F75+F76+F77+F79 -> 7379968.04 | G87: 16168631 | H87: -198 | I87: -42124587.35 | J87: -1509448.04 | K87: -229069.6016 | L87: 0 | M87: 200 | N87: -1738317.642 | O87: -42124587.35 | P87: -5773877 | Q87: 476809 | R87: 0 | S87: -48375273.35 | T87: -1738317.642 | U87: -205497 | V87: -2 | W87: 0 | X87: -1943812.642 | Y87: -48375273.35 | Z87: 8320497.2 | AA87: 0 | AB87: 0 | AC87: -40054776.15 | AD87: -1943812.642 | AE87: 63451 | AF87: 0 | AG87: 0 | AH87: -1880361.642 | AI87: -40054776.15 | AJ87: 34540342.06 | AK87: 1343622 | AL87: 0 | AM87: -6858056.09 | AN87: -1880361.642 | AO87: 200795.26 | AP87: 38484 | AQ87: 0 | AR87: -1718050.382 | AS87: -6858056.09 | AT87: 0 | AU87: 801680 | AV87: 17746167.82 | AW87: =SUM(AW72:AW80) -> 10086431.73 | AX87: =SUM(AX72:AX80) -> -1718050.382 | AY87: 0 | AZ87: 0 | BA87: 2113967.05 | BB87: 395916.6684 | BC87: 198492.92 | BD87: 10680841.32
C89: For all Board-Approved dispositions, please ensure that the disposition amount has the same sign (e.g: debit balances are to have a positive figure and credit balance are to have a negative figure) as per the related Board decision.
B90: 1 | C90: Provide supporting statement indicating whether due to denial of costs in 2006 EDR by the Board, 10% transition costs write-off, etc.
B91: 1A | C91: Adjustments Instructed by the Board include deferral/variance account balances moved to Account 1590 as a result of the 2006 EDR and account 1595 during the 2008 EDR and subsequent years as ordered by the Board.
B92: 2 | C92: Please provide explanations for the nature of the adjustments. If the adjustment relates to previously Board Approved disposed balances, please provide amounts for adjustments and include supporting documentations.
B93: 3 | C93: For RSVA accounts only, report the net variance to the account during the year. For all other accounts, record the transactions during the year.
B94: 4 | C94: Please describe "other" components of 1508 and add more component lines if necessary.: CGAAP differential
B95: 5 | C95: 1563 is a contra-account and is not included in the total but is shown on a memo basis. Account 1562 establishes the obligation to the ratepayer.
B96: 6 | C96: If the LDC’s 2013 rate year begins January 1, 2013, the projected interest is recorded from January 1, 2012 to December 31, 2012 on the December 31, 2011 balance adjusted for the disposed balances approved by the Board in the 2012 rate decision. If the LDC’s 2013 rate year begins May 1, 2013 the projected interest is recorded from January 1, 2012 to April 30, 2013 on the December 31, 2011 balance adjusted for the disposed balances approved by the Board in the 2012 rate decision.
B99: 7 | C99: Include Account 1595 as part of Group 1 accounts (lines 31, 32, 33 and 34) for review and disposition if the recovery (or refund) period has been completed. If the recovery (or refund) period has not been completed, include the
C100: balances in Account 1595 on a memo basis only (line 85).
B101: 8 | C101: As per the January 6, 2011 Letter from the Board, regarding the implementation of the Ontario Clean Energy Benefit:
C102: "By way of exception... The Board does acticipate that licensed distributors that cannot adapt their invoices as of January 1, 2011 will require a variance account for OCEB purposes... The Board expects that any principal
C103: balances in "Sub account Financial Assistance Payment and Recovery Variance - Ontario Clean Energy Benefit Act" will be addressed through the monthly settlement process with the IESO or the host distributor, as applicable.
B104: 9 | C104: The Board requires that disposition of Account 1575 and Account 1576 shall require the use of separate rate riders. In the "Other Adjustments during Q4 2012" column of the continuity schedule, please enter the amounts to be included in the Account 1575 and 1576 rate rider calculation from the applicable Chapter 2 appendices. For Account 1575, please provide the value in cell F39 from the relevant Chapter 2 Appendix (i.e. 2-EA, 2-EB or 2-EC). For Account 1576, please provide the value in cell F39 from the relevant Chapter 2 Appendix (i.e. 2-ED or 2-EE).
B105: 10 | C105: Deferral accounts related to Smart Meter deployment are not to be recovered/refunded through the Deferral and Variance Account rate rider. For details on how to dispose of balances in Smart Meter accounts see the Board's
C106: Guideline: Smart Meter Disposition and Cost Recovery (G-2011-0001)

Sheet 3. Appendix A
B16: Accounts that produced a variance on the 2016 continuity schedule are listed below. Please provide a detailed explanation for each variance below.
C20: Account Descriptions | D20: Account Number | E20: Variance RRR vs. 2014 Balance (Principal + Interest) | F20: Explanation
C23: Group 1 Accounts
A24: 1 | C24: LV Variance Account | D24: 1550 | E24: =IF(ISERROR(VLOOKUP($A24,'2. 2016-20 Continuity Schedule'!$A$15:$BD$87,MATCH('3. Appendix A'!$E$20,'2. 2016-20 Continuity Schedule'!$A$15:$BD$15,0),FALSE)),0,VLOOKUP($A24,'2. 2016-20 Continuity Schedule'!$A$15:$BD$87,MATCH('3. Appendix A'!$E$20,'2. 2016-20 Continuity Schedule'!$A$15:$BD$15,0),FALSE)) -> 0 | F24: RRR not filed until Feb 28,2015. However, 2014 activity and closing balances are from PowerStream's general ledger and not expected to be any diffferent from the RRR filing
A25: 2 | C25: RSVA - Wholesale Market Service Charge | D25: 1580 | E25: =IF(ISERROR(VLOOKUP($A25,'2. 2016-20 Continuity Schedule'!$A$15:$BD$87,MATCH('3. Appendix A'!$E$20,'2. 2016-20 Continuity Schedule'!$A$15:$BD$15,0),FALSE)),0,VLOOKUP($A25,'2. 2016-20 Continuity Schedule'!$A$15:$BD$87,MATCH('3. Appendix A'!$E$20,'2. 2016-20 Continuity Schedule'!$A$15:$BD$15,0),FALSE)) -> 0 | F25: RRR not filed until Feb 28,2015. However, 2014 activity and closing balances are from PowerStream's general ledger and not expected to be any diffferent from the RRR filing
A26: 3 | C26: RSVA - Retail Transmission Network Charge | D26: 1584 | E26: =IF(ISERROR(VLOOKUP($A26,'2. 2016-20 Continuity Schedule'!$A$15:$BD$87,MATCH('3. Appendix A'!$E$20,'2. 2016-20 Continuity Schedule'!$A$15:$BD$15,0),FALSE)),0,VLOOKUP($A26,'2. 2016-20 Continuity Schedule'!$A$15:$BD$87,MATCH('3. Appendix A'!$E$20,'2. 2016-20 Continuity Schedule'!$A$15:$BD$15,0),FALSE)) -> 0 | F26: RRR not filed until Feb 28,2015. However, 2014 activity and closing balances are from PowerStream's general ledger and not expected to be any diffferent from the RRR filing
A27: 4 | C27: RSVA - Retail Transmission Connection Charge | D27: 1586 | E27: =IF(ISERROR(VLOOKUP($A27,'2. 2016-20 Continuity Schedule'!$A$15:$BD$87,MATCH('3. Appendix A'!$E$20,'2. 2016-20 Continuity Schedule'!$A$15:$BD$15,0),FALSE)),0,VLOOKUP($A27,'2. 2016-20 Continuity Schedule'!$A$15:$BD$87,MATCH('3. Appendix A'!$E$20,'2. 2016-20 Continuity Schedule'!$A$15:$BD$15,0),FALSE)) -> 0 | F27: RRR not filed until Feb 28,2015. However, 2014 activity and closing balances are from PowerStream's general ledger and not expected to be any diffferent from the RRR filing
A28: 5 | C28: RSVA - Power (excluding Global Adjustment) | D28: 1588 | E28: =IF(ISERROR(VLOOKUP($A28,'2. 2016-20 Continuity Schedule'!$A$15:$BD$87,MATCH('3. Appendix A'!$E$20,'2. 2016-20 Continuity Schedule'!$A$15:$BD$15,0),FALSE)),0,VLOOKUP($A28,'2. 2016-20 Continuity Schedule'!$A$15:$BD$87,MATCH('3. Appendix A'!$E$20,'2. 2016-20 Continuity Schedule'!$A$15:$BD$15,0),FALSE)) -> 0 | F28: RRR not filed until Feb 28,2015. However, 2014 activity and closing balances are from PowerStream's general ledger and not expected to be any diffferent from the RRR filing
A29: 6 | C29: RSVA - Global Adjustment | D29: 1589 | E29: =IF(ISERROR(VLOOKUP($A29,'2. 2016-20 Continuity Schedule'!$A$15:$BD$87,MATCH('3. Appendix A'!$E$20,'2. 2016-20 Continuity Schedule'!$A$15:$BD$15,0),FALSE)),0,VLOOKUP($A29,'2. 2016-20 Continuity Schedule'!$A$15:$BD$87,MATCH('3. Appendix A'!$E$20,'2. 2016-20 Continuity Schedule'!$A$15:$BD$15,0),FALSE)) -> 0 | F29: RRR not filed until Feb 28,2015. However, 2014 activity and closing balances are from PowerStream's general ledger and not expected to be any diffferent from the RRR filing
A30: 7 | C30: Recovery of Regulatory Asset Balances | D30: 1590 | E30: =IF(ISERROR(VLOOKUP($A30,'2. 2016-20 Continuity Schedule'!$A$15:$BD$87,MATCH('3. Appendix A'!$E$20,'2. 2016-20 Continuity Schedule'!$A$15:$BD$15,0),FALSE)),0,VLOOKUP($A30,'2. 2016-20 Continuity Schedule'!$A$15:$BD$87,MATCH('3. Appendix A'!$E$20,'2. 2016-20 Continuity Schedule'!$A$15:$BD$15,0),FALSE)) -> 0 | F30: RRR not filed until Feb 28,2015. However, 2014 activity and closing balances are from PowerStream's general ledger and not expected to be any diffferent from the RRR filing
A31: 8 | C31: Disposition and Recovery/Refund of Regulatory Balances (2008)7 | D31: 1595 | E31: =IF(ISERROR(VLOOKUP($A31,'2. 2016-20 Continuity Schedule'!$A$15:$BD$87,MATCH('3. Appendix A'!$E$20,'2. 2016-20 Continuity Schedule'!$A$15:$BD$15,0),FALSE)),0,VLOOKUP($A31,'2. 2016-20 Continuity Schedule'!$A$15:$BD$87,MATCH('3. Appendix A'!$E$20,'2. 2016-20 Continuity Schedule'!$A$15:$BD$15,0),FALSE)) -> 0 | F31: RRR not filed until Feb 28,2015. However, 2014 activity and closing balances are from PowerStream's general ledger and not expected to be any diffferent from the RRR filing
A32: 9 | C32: Disposition and Recovery/Refund of Regulatory Balances (2009)7 | D32: 1595 | E32: =IF(ISERROR(VLOOKUP($A32,'2. 2016-20 Continuity Schedule'!$A$15:$BD$87,MATCH('3. Appendix A'!$E$20,'2. 2016-20 Continuity Schedule'!$A$15:$BD$15,0),FALSE)),0,VLOOKUP($A32,'2. 2016-20 Continuity Schedule'!$A$15:$BD$87,MATCH('3. Appendix A'!$E$20,'2. 2016-20 Continuity Schedule'!$A$15:$BD$15,0),FALSE)) -> 0 | F32: RRR not filed until Feb 28,2015. However, 2014 activity and closing balances are from PowerStream's general ledger and not expected to be any diffferent from the RRR filing
A33: 9 | C33: Disposition and Recovery/Refund of Regulatory Balances (2010)7 | D33: 1595 | E33: =IF(ISERROR(VLOOKUP($A33,'2. 2016-20 Continuity Schedule'!$A$15:$BD$87,MATCH('3. Appendix A'!$E$20,'2. 2016-20 Continuity Schedule'!$A$15:$BD$15,0),FALSE)),0,VLOOKUP($A33,'2. 2016-20 Continuity Schedule'!$A$15:$BD$87,MATCH('3. Appendix A'!$E$20,'2. 2016-20 Continuity Schedule'!$A$15:$BD$15,0),FALSE)) -> 0 | F33: RRR not filed until Feb 28,2015. However, 2014 activity and closing balances are from PowerStream's general ledger and not expected to be any diffferent from the RRR filing
A34: 10 | C34: Disposition and Recovery/Refund of Regulatory Balances (2011)7 | D34: 1595 | E34: =IF(ISERROR(VLOOKUP($A34,'2. 2016-20 Continuity Schedule'!$A$15:$BD$87,MATCH('3. Appendix A'!$E$20,'2. 2016-20 Continuity Schedule'!$A$15:$BD$15,0),FALSE)),0,VLOOKUP($A34,'2. 2016-20 Continuity Schedule'!$A$15:$BD$87,MATCH('3. Appendix A'!$E$20,'2. 2016-20 Continuity Schedule'!$A$15:$BD$15,0),FALSE)) -> 0 | F34: RRR not filed until Feb 28,2015. However, 2014 activity and closing balances are from PowerStream's general ledger and not expected to be any diffferent from the RRR filing
C35: Group 2 Accounts | E35: =IF(ISERROR(VLOOKUP($A35,'2. 2016-20 Continuity Schedule'!$A$15:$BD$87,MATCH('3. Appendix A'!$E$20,'2. 2016-20 Continuity Schedule'!$A$15:$BD$15,0),FALSE)),0,VLOOKUP($A35,'2. 2016-20 Continuity Schedule'!$A$15:$BD$87,MATCH('3. Appendix A'!$E$20,'2. 2016-20 Continuity Schedule'!$A$15:$BD$15,0),FALSE)) -> 0 | F35: RRR not filed until Feb 28,2015. However, 2014 activity and closing balances are from PowerStream's general ledger and not expected to be any diffferent from the RRR filing
A36: 11 | C36: Other Regulatory Assets - Sub-Account - OEB Cost Assessments | D36: 1508 | E36: =IF(ISERROR(VLOOKUP($A36,'2. 2016-20 Continuity Schedule'!$A$15:$BD$87,MATCH('3. Appendix A'!$E$20,'2. 2016-20 Continuity Schedule'!$A$15:$BD$15,0),FALSE)),0,VLOOKUP($A36,'2. 2016-20 Continuity Schedule'!$A$15:$BD$87,MATCH('3. Appendix A'!$E$20,'2. 2016-20 Continuity Schedule'!$A$15:$BD$15,0),FALSE)) -> 0 | F36: RRR not filed until Feb 28,2015. However, 2014 activity and closing balances are from PowerStream's general ledger and not expected to be any diffferent from the RRR filing
A37: 12 | C37: Other Regulatory Assets - Sub-Account - Pension Contributions | D37: 1508 | E37: =IF(ISERROR(VLOOKUP($A37,'2. 2016-20 Continuity Schedule'!$A$15:$BD$87,MATCH('3. Appendix A'!$E$20,'2. 2016-20 Continuity Schedule'!$A$15:$BD$15,0),FALSE)),0,VLOOKUP($A37,'2. 2016-20 Continuity Schedule'!$A$15:$BD$87,MATCH('3. Appendix A'!$E$20,'2. 2016-20 Continuity Schedule'!$A$15:$BD$15,0),FALSE)) -> 0 | F37: RRR not filed until Feb 28,2015. However, 2014 activity and closing balances are from PowerStream's general ledger and not expected to be any diffferent from the RRR filing
A38: 13 | C38: Other Regulatory Assets - Sub-Account - Deferred IFRS Transition Costs | D38: 1508 | E38: =IF(ISERROR(VLOOKUP($A38,'2. 2016-20 Continuity Schedule'!$A$15:$BD$87,MATCH('3. Appendix A'!$E$20,'2. 2016-20 Continuity Schedule'!$A$15:$BD$15,0),FALSE)),0,VLOOKUP($A38,'2. 2016-20 Continuity Schedule'!$A$15:$BD$87,MATCH('3. Appendix A'!$E$20,'2. 2016-20 Continuity Schedule'!$A$15:$BD$15,0),FALSE)) -> 0 | F38: RRR not filed until Feb 28,2015. However, 2014 activity and closing balances are from PowerStream's general ledger and not expected to be any diffferent from the RRR filing
A39: 14 | C39: Other Regulatory Assets - Sub-Account - Incremental Capital Charges | D39: 1508 | E39: =IF(ISERROR(VLOOKUP($A39,'2. 2016-20 Continuity Schedule'!$A$15:$BD$87,MATCH('3. Appendix A'!$E$20,'2. 2016-20 Continuity Schedule'!$A$15:$BD$15,0),FALSE)),0,VLOOKUP($A39,'2. 2016-20 Continuity Schedule'!$A$15:$BD$87,MATCH('3. Appendix A'!$E$20,'2. 2016-20 Continuity Schedule'!$A$15:$BD$15,0),FALSE)) -> 0 | F39: RRR not filed until Feb 28,2015. However, 2014 activity and closing balances are from PowerStream's general ledger and not expected to be any diffferent from the RRR filing
A40: 15 | C40: Other Regulatory Assets - Sub-Account - Financial Assistance Payment and Recovery Variance - Ontario Clean Energy Benefit Act8 | D40: 1508 | E40: =IF(ISERROR(VLOOKUP($A40,'2. 2016-20 Continuity Schedule'!$A$15:$BD$87,MATCH('3. Appendix A'!$E$20,'2. 2016-20 Continuity Schedule'!$A$15:$BD$15,0),FALSE)),0,VLOOKUP($A40,'2. 2016-20 Continuity Schedule'!$A$15:$BD$87,MATCH('3. Appendix A'!$E$20,'2. 2016-20 Continuity Schedule'!$A$15:$BD$15,0),FALSE)) -> 0 | F40: RRR not filed until Feb 28,2015. However, 2014 activity and closing balances are from PowerStream's general ledger and not expected to be any diffferent from the RRR filing
A41: 16 | C41: Other Regulatory Assets - Sub-Account - Financial Assistance Payment and Recovery Carrying Charges | D41: 1508 | E41: =IF(ISERROR(VLOOKUP($A41,'2. 2016-20 Continuity Schedule'!$A$15:$BD$87,MATCH('3. Appendix A'!$E$20,'2. 2016-20 Continuity Schedule'!$A$15:$BD$15,0),FALSE)),0,VLOOKUP($A41,'2. 2016-20 Continuity Schedule'!$A$15:$BD$87,MATCH('3. Appendix A'!$E$20,'2. 2016-20 Continuity Schedule'!$A$15:$BD$15,0),FALSE)) -> 0 | F41: RRR not filed until Feb 28,2015. However, 2014 activity and closing balances are from PowerStream's general ledger and not expected to be any diffferent from the RRR filing
A42: 17 | C42: Other Regulatory Assets - Sub-Account - Other 4 | D42: 1508 | E42: =IF(ISERROR(VLOOKUP($A42,'2. 2016-20 Continuity Schedule'!$A$15:$BD$87,MATCH('3. Appendix A'!$E$20,'2. 2016-20 Continuity Schedule'!$A$15:$BD$15,0),FALSE)),0,VLOOKUP($A42,'2. 2016-20 Continuity Schedule'!$A$15:$BD$87,MATCH('3. Appendix A'!$E$20,'2. 2016-20 Continuity Schedule'!$A$15:$BD$15,0),FALSE)) -> 0 | F42: RRR not filed until Feb 28,2015. However, 2014 activity and closing balances are from PowerStream's general ledger and not expected to be any diffferent from the RRR filing
A43: 18 | C43: Retail Cost Variance Account - Retail | D43: 1518 | E43: =IF(ISERROR(VLOOKUP($A43,'2. 2016-20 Continuity Schedule'!$A$15:$BD$87,MATCH('3. Appendix A'!$E$20,'2. 2016-20 Continuity Schedule'!$A$15:$BD$15,0),FALSE)),0,VLOOKUP($A43,'2. 2016-20 Continuity Schedule'!$A$15:$BD$87,MATCH('3. Appendix A'!$E$20,'2. 2016-20 Continuity Schedule'!$A$15:$BD$15,0),FALSE)) -> 0 | F43: RRR not filed until Feb 28,2015. However, 2014 activity and closing balances are from PowerStream's general ledger and not expected to be any diffferent from the RRR filing
A44: 19 | C44: Misc. Deferred Debits | D44: 1525 | E44: =IF(ISERROR(VLOOKUP($A44,'2. 2016-20 Continuity Schedule'!$A$15:$BD$87,MATCH('3. Appendix A'!$E$20,'2. 2016-20 Continuity Schedule'!$A$15:$BD$15,0),FALSE)),0,VLOOKUP($A44,'2. 2016-20 Continuity Schedule'!$A$15:$BD$87,MATCH('3. Appendix A'!$E$20,'2. 2016-20 Continuity Schedule'!$A$15:$BD$15,0),FALSE)) -> 0 | F44: RRR not filed until Feb 28,2015. However, 2014 activity and closing balances are from PowerStream's general ledger and not expected to be any diffferent from the RRR filing
A45: 20 | C45: Renewable Generation Connection Capital Deferral Account | D45: 1531 | E45: =IF(ISERROR(VLOOKUP($A45,'2. 2016-20 Continuity Schedule'!$A$15:$BD$87,MATCH('3. Appendix A'!$E$20,'2. 2016-20 Continuity Schedule'!$A$15:$BD$15,0),FALSE)),0,VLOOKUP($A45,'2. 2016-20 Continuity Schedule'!$A$15:$BD$87,MATCH('3. Appendix A'!$E$20,'2. 2016-20 Continuity Schedule'!$A$15:$BD$15,0),FALSE)) -> 0 | F45: RRR not filed until Feb 28,2015. However, 2014 activity and closing balances are from PowerStream's general ledger and not expected to be any diffferent from the RRR filing
A46: 21 | C46: Renewable Generation Connection OM&A Deferral Account | D46: 1532 | E46: =IF(ISERROR(VLOOKUP($A46,'2. 2016-20 Continuity Schedule'!$A$15:$BD$87,MATCH('3. Appendix A'!$E$20,'2. 2016-20 Continuity Schedule'!$A$15:$BD$15,0),FALSE)),0,VLOOKUP($A46,'2. 2016-20 Continuity Schedule'!$A$15:$BD$87,MATCH('3. Appendix A'!$E$20,'2. 2016-20 Continuity Schedule'!$A$15:$BD$15,0),FALSE)) -> 0 | F46: RRR not filed until Feb 28,2015. However, 2014 activity and closing balances are from PowerStream's general ledger and not expected to be any diffferent from the RRR filing
A47: 22 | C47: Renewable Generation Connection Funding Adder Deferral Account | D47: 1533 | E47: =IF(ISERROR(VLOOKUP($A47,'2. 2016-20 Continuity Schedule'!$A$15:$BD$87,MATCH('3. Appendix A'!$E$20,'2. 2016-20 Continuity Schedule'!$A$15:$BD$15,0),FALSE)),0,VLOOKUP($A47,'2. 2016-20 Continuity Schedule'!$A$15:$BD$87,MATCH('3. Appendix A'!$E$20,'2. 2016-20 Continuity Schedule'!$A$15:$BD$15,0),FALSE)) -> 0 | F47: RRR not filed until Feb 28,2015. However, 2014 activity and closing balances are from PowerStream's general ledger and not expected to be any diffferent from the RRR filing
A48: 23 | C48: Smart Grid Capital Deferral Account | D48: 1534 | E48: =IF(ISERROR(VLOOKUP($A48,'2. 2016-20 Continuity Schedule'!$A$15:$BD$87,MATCH('3. Appendix A'!$E$20,'2. 2016-20 Continuity Schedule'!$A$15:$BD$15,0),FALSE)),0,VLOOKUP($A48,'2. 2016-20 Continuity Schedule'!$A$15:$BD$87,MATCH('3. Appendix A'!$E$20,'2. 2016-20 Continuity Schedule'!$A$15:$BD$15,0),FALSE)) -> 0 | F48: RRR not filed until Feb 28,2015. However, 2014 activity and closing balances are from PowerStream's general ledger and not expected to be any diffferent from the RRR filing
A49: 24 | C49: Smart Grid OM&A Deferral Account | D49: 1535 | E49: =IF(ISERROR(VLOOKUP($A49,'2. 2016-20 Continuity Schedule'!$A$15:$BD$87,MATCH('3. Appendix A'!$E$20,'2. 2016-20 Continuity Schedule'!$A$15:$BD$15,0),FALSE)),0,VLOOKUP($A49,'2. 2016-20 Continuity Schedule'!$A$15:$BD$87,MATCH('3. Appendix A'!$E$20,'2. 2016-20 Continuity Schedule'!$A$15:$BD$15,0),FALSE)) -> 0 | F49: RRR not filed until Feb 28,2015. However, 2014 activity and closing balances are from PowerStream's general ledger and not expected to be any diffferent from the RRR filing
A50: 25 | C50: Smart Grid Funding Adder Deferral Account | D50: 1536 | E50: =IF(ISERROR(VLOOKUP($A50,'2. 2016-20 Continuity Schedule'!$A$15:$BD$87,MATCH('3. Appendix A'!$E$20,'2. 2016-20 Continuity Schedule'!$A$15:$BD$15,0),FALSE)),0,VLOOKUP($A50,'2. 2016-20 Continuity Schedule'!$A$15:$BD$87,MATCH('3. Appendix A'!$E$20,'2. 2016-20 Continuity Schedule'!$A$15:$BD$15,0),FALSE)) -> 0 | F50: RRR not filed until Feb 28,2015. However, 2014 activity and closing balances are from PowerStream's general ledger and not expected to be any diffferent from the RRR filing
A51: 26 | C51: Retail Cost Variance Account - STR | D51: 1548 | E51: =IF(ISERROR(VLOOKUP($A51,'2. 2016-20 Continuity Schedule'!$A$15:$BD$87,MATCH('3. Appendix A'!$E$20,'2. 2016-20 Continuity Schedule'!$A$15:$BD$15,0),FALSE)),0,VLOOKUP($A51,'2. 2016-20 Continuity Schedule'!$A$15:$BD$87,MATCH('3. Appendix A'!$E$20,'2. 2016-20 Continuity Schedule'!$A$15:$BD$15,0),FALSE)) -> 0 | F51: RRR not filed until Feb 28,2015. However, 2014 activity and closing balances are from PowerStream's general ledger and not expected to be any diffferent from the RRR filing
A52: 27 | C52: Board-Approved CDM Variance Account | D52: 1567 | E52: =IF(ISERROR(VLOOKUP($A52,'2. 2016-20 Continuity Schedule'!$A$15:$BD$87,MATCH('3. Appendix A'!$E$20,'2. 2016-20 Continuity Schedule'!$A$15:$BD$15,0),FALSE)),0,VLOOKUP($A52,'2. 2016-20 Continuity Schedule'!$A$15:$BD$87,MATCH('3. Appendix A'!$E$20,'2. 2016-20 Continuity Schedule'!$A$15:$BD$15,0),FALSE)) -> 0 | F52: RRR not filed until Feb 28,2015. However, 2014 activity and closing balances are from PowerStream's general ledger and not expected to be any diffferent from the RRR filing
A53: 28 | C53: Extra-Ordinary Event Costs | D53: 1572 | E53: =IF(ISERROR(VLOOKUP($A53,'2. 2016-20 Continuity Schedule'!$A$15:$BD$87,MATCH('3. Appendix A'!$E$20,'2. 2016-20 Continuity Schedule'!$A$15:$BD$15,0),FALSE)),0,VLOOKUP($A53,'2. 2016-20 Continuity Schedule'!$A$15:$BD$87,MATCH('3. Appendix A'!$E$20,'2. 2016-20 Continuity Schedule'!$A$15:$BD$15,0),FALSE)) -> 0 | F53: RRR not filed until Feb 28,2015. However, 2014 activity and closing balances are from PowerStream's general ledger and not expected to be any diffferent from the RRR filing
A54: 29 | C54: Deferred Rate Impact Amounts | D54: 1574 | E54: =IF(ISERROR(VLOOKUP($A54,'2. 2016-20 Continuity Schedule'!$A$15:$BD$87,MATCH('3. Appendix A'!$E$20,'2. 2016-20 Continuity Schedule'!$A$15:$BD$15,0),FALSE)),0,VLOOKUP($A54,'2. 2016-20 Continuity Schedule'!$A$15:$BD$87,MATCH('3. Appendix A'!$E$20,'2. 2016-20 Continuity Schedule'!$A$15:$BD$15,0),FALSE)) -> 0 | F54: RRR not filed until Feb 28,2015. However, 2014 activity and closing balances are from PowerStream's general ledger and not expected to be any diffferent from the RRR filing
A55: 30 | C55: RSVA - One-time | D55: 1582 | E55: =IF(ISERROR(VLOOKUP($A55,'2. 2016-20 Continuity Schedule'!$A$15:$BD$87,MATCH('3. Appendix A'!$E$20,'2. 2016-20 Continuity Schedule'!$A$15:$BD$15,0),FALSE)),0,VLOOKUP($A55,'2. 2016-20 Continuity Schedule'!$A$15:$BD$87,MATCH('3. Appendix A'!$E$20,'2. 2016-20 Continuity Schedule'!$A$15:$BD$15,0),FALSE)) -> 0 | F55: RRR not filed until Feb 28,2015. However, 2014 activity and closing balances are from PowerStream's general ledger and not expected to be any diffferent from the RRR filing
A56: 31 | C56: Other Deferred Credits | D56: 2425 | E56: =IF(ISERROR(VLOOKUP($A56,'2. 2016-20 Continuity Schedule'!$A$15:$BD$87,MATCH('3. Appendix A'!$E$20,'2. 2016-20 Continuity Schedule'!$A$15:$BD$15,0),FALSE)),0,VLOOKUP($A56,'2. 2016-20 Continuity Schedule'!$A$15:$BD$87,MATCH('3. Appendix A'!$E$20,'2. 2016-20 Continuity Schedule'!$A$15:$BD$15,0),FALSE)) -> 0 | F56: RRR not filed until Feb 28,2015. However, 2014 activity and closing balances are from PowerStream's general ledger and not expected to be any diffferent from the RRR filing
A57: 32 | C57: Deferred Payments in Lieu of Taxes | D57: 1562 | E57: =IF(ISERROR(VLOOKUP($A57,'2. 2016-20 Continuity Schedule'!$A$15:$BD$87,MATCH('3. Appendix A'!$E$20,'2. 2016-20 Continuity Schedule'!$A$15:$BD$15,0),FALSE)),0,VLOOKUP($A57,'2. 2016-20 Continuity Schedule'!$A$15:$BD$87,MATCH('3. Appendix A'!$E$20,'2. 2016-20 Continuity Schedule'!$A$15:$BD$15,0),FALSE)) -> 0 | F57: RRR not filed until Feb 28,2015. However, 2014 activity and closing balances are from PowerStream's general ledger and not expected to be any diffferent from the RRR filing
A58: 33 | C58: PILs and Tax Variance for 2006 and Subsequent Years (excludes sub-account and contra account below) | D58: 1592 | E58: =IF(ISERROR(VLOOKUP($A58,'2. 2016-20 Continuity Schedule'!$A$15:$BD$87,MATCH('3. Appendix A'!$E$20,'2. 2016-20 Continuity Schedule'!$A$15:$BD$15,0),FALSE)),0,VLOOKUP($A58,'2. 2016-20 Continuity Schedule'!$A$15:$BD$87,MATCH('3. Appendix A'!$E$20,'2. 2016-20 Continuity Schedule'!$A$15:$BD$15,0),FALSE)) -> 0 | F58: RRR not filed until Feb 28,2015. However, 2014 activity and closing balances are from PowerStream's general ledger and not expected to be any diffferent from the RRR filing
A59: 34 | C59: PILs and Tax Variance for 2006 and Subsequent Years - Sub-Account HST/OVAT Input Tax Credits (ITCs) | D59: 1592 | E59: =IF(ISERROR(VLOOKUP($A59,'2. 2016-20 Continuity Schedule'!$A$15:$BD$87,MATCH('3. Appendix A'!$E$20,'2. 2016-20 Continuity Schedule'!$A$15:$BD$15,0),FALSE)),0,VLOOKUP($A59,'2. 2016-20 Continuity Schedule'!$A$15:$BD$87,MATCH('3. Appendix A'!$E$20,'2. 2016-20 Continuity Schedule'!$A$15:$BD$15,0),FALSE)) -> 0 | F59: RRR not filed until Feb 28,2015. However, 2014 activity and closing balances are from PowerStream's general ledger and not expected to be any diffferent from the RRR filing
A60: 35 | C60: LRAM Variance Account | D60: 1568 | E60: =IF(ISERROR(VLOOKUP($A60,'2. 2016-20 Continuity Schedule'!$A$15:$BD$87,MATCH('3. Appendix A'!$E$20,'2. 2016-20 Continuity Schedule'!$A$15:$BD$15,0),FALSE)),0,VLOOKUP($A60,'2. 2016-20 Continuity Schedule'!$A$15:$BD$87,MATCH('3. Appendix A'!$E$20,'2. 2016-20 Continuity Schedule'!$A$15:$BD$15,0),FALSE)) -> 0 | F60: RRR not filed until Feb 28,2015. However, 2014 activity and closing balances are from PowerStream's general ledger and not expected to be any diffferent from the RRR filing
A61: 36 | C61: Smart Meter Capital and Recovery Offset Variance - Sub-Account - Capital10 | D61: 1555 | E61: =IF(ISERROR(VLOOKUP($A61,'2. 2016-20 Continuity Schedule'!$A$15:$BD$87,MATCH('3. Appendix A'!$E$20,'2. 2016-20 Continuity Schedule'!$A$15:$BD$15,0),FALSE)),0,VLOOKUP($A61,'2. 2016-20 Continuity Schedule'!$A$15:$BD$87,MATCH('3. Appendix A'!$E$20,'2. 2016-20 Continuity Schedule'!$A$15:$BD$15,0),FALSE)) -> 0 | F61: RRR not filed until Feb 28,2015. However, 2014 activity and closing balances are from PowerStream's general ledger and not expected to be any diffferent from the RRR filing
A62: 37 | C62: Smart Meter Capital and Recovery Offset Variance - Sub-Account - Recoveries10 | D62: 1555 | E62: =IF(ISERROR(VLOOKUP($A62,'2. 2016-20 Continuity Schedule'!$A$15:$BD$87,MATCH('3. Appendix A'!$E$20,'2. 2016-20 Continuity Schedule'!$A$15:$BD$15,0),FALSE)),0,VLOOKUP($A62,'2. 2016-20 Continuity Schedule'!$A$15:$BD$87,MATCH('3. Appendix A'!$E$20,'2. 2016-20 Continuity Schedule'!$A$15:$BD$15,0),FALSE)) -> 0 | F62: RRR not filed until Feb 28,2015. However, 2014 activity and closing balances are from PowerStream's general ledger and not expected to be any diffferent from the RRR filing
A63: 38 | C63: Smart Meter Capital and Recovery Offset Variance - Sub-Account - Stranded Meter Costs10 | D63: 1555 | E63: =IF(ISERROR(VLOOKUP($A63,'2. 2016-20 Continuity Schedule'!$A$15:$BD$87,MATCH('3. Appendix A'!$E$20,'2. 2016-20 Continuity Schedule'!$A$15:$BD$15,0),FALSE)),0,VLOOKUP($A63,'2. 2016-20 Continuity Schedule'!$A$15:$BD$87,MATCH('3. Appendix A'!$E$20,'2. 2016-20 Continuity Schedule'!$A$15:$BD$15,0),FALSE)) -> 0 | F63: RRR not filed until Feb 28,2015. However, 2014 activity and closing balances are from PowerStream's general ledger and not expected to be any diffferent from the RRR filing
A64: 39 | C64: Smart Meter OM&A Variance10 | D64: 1556 | E64: =IF(ISERROR(VLOOKUP($A64,'2. 2016-20 Continuity Schedule'!$A$15:$BD$87,MATCH('3. Appendix A'!$E$20,'2. 2016-20 Continuity Schedule'!$A$15:$BD$15,0),FALSE)),0,VLOOKUP($A64,'2. 2016-20 Continuity Schedule'!$A$15:$BD$87,MATCH('3. Appendix A'!$E$20,'2. 2016-20 Continuity Schedule'!$A$15:$BD$15,0),FALSE)) -> 0 | F64: RRR not filed until Feb 28,2015. However, 2014 activity and closing balances are from PowerStream's general ledger and not expected to be any diffferent from the RRR filing
A65: 40 | C65: IFRS-CGAAP Transition PP&E Amounts Balance + Return Component9 | D65: 1575 | E65: =IF(ISERROR(VLOOKUP($A65,'2. 2016-20 Continuity Schedule'!$A$15:$BD$87,MATCH('3. Appendix A'!$E$20,'2. 2016-20 Continuity Schedule'!$A$15:$BD$15,0),FALSE)),0,VLOOKUP($A65,'2. 2016-20 Continuity Schedule'!$A$15:$BD$87,MATCH('3. Appendix A'!$E$20,'2. 2016-20 Continuity Schedule'!$A$15:$BD$15,0),FALSE)) -> 0 | F65: RRR not filed until Feb 28,2015. However, 2014 activity and closing balances are from PowerStream's general ledger and not expected to be any diffferent from the RRR filing
A66: 41 | C66: Accounting Changes Under CGAAP Balance + Return Component9 | D66: 1576 | E66: =IF(ISERROR(VLOOKUP($A66,'2. 2016-20 Continuity Schedule'!$A$15:$BD$87,MATCH('3. Appendix A'!$E$20,'2. 2016-20 Continuity Schedule'!$A$15:$BD$15,0),FALSE)),0,VLOOKUP($A66,'2. 2016-20 Continuity Schedule'!$A$15:$BD$87,MATCH('3. Appendix A'!$E$20,'2. 2016-20 Continuity Schedule'!$A$15:$BD$15,0),FALSE)) -> 0 | F66: RRR not filed until Feb 28,2015. However, 2014 activity and closing balances are from PowerStream's general ledger and not expected to be any diffferent from the RRR filing
A67: 42 | C67: Deferred PILs Contra Account 5 | D67: 1563 | E67: =IF(ISERROR(VLOOKUP($A67,'2. 2016-20 Continuity Schedule'!$A$15:$BD$87,MATCH('3. Appendix A'!$E$20,'2. 2016-20 Continuity Schedule'!$A$15:$BD$15,0),FALSE)),0,VLOOKUP($A67,'2. 2016-20 Continuity Schedule'!$A$15:$BD$87,MATCH('3. Appendix A'!$E$20,'2. 2016-20 Continuity Schedule'!$A$15:$BD$15,0),FALSE)) -> 0 | F67: RRR not filed until Feb 28,2015. However, 2014 activity and closing balances are from PowerStream's general ledger and not expected to be any diffferent from the RRR filing
A68: 43 | C68: PILs and Tax Variance for 2006 and Subsequent Years - Sub-Account HST/OVAT Contra Account | D68: 1592 | E68: =IF(ISERROR(VLOOKUP($A68,'2. 2016-20 Continuity Schedule'!$A$15:$BD$87,MATCH('3. Appendix A'!$E$20,'2. 2016-20 Continuity Schedule'!$A$15:$BD$15,0),FALSE)),0,VLOOKUP($A68,'2. 2016-20 Continuity Schedule'!$A$15:$BD$87,MATCH('3. Appendix A'!$E$20,'2. 2016-20 Continuity Schedule'!$A$15:$BD$15,0),FALSE)) -> 0 | F68: RRR not filed until Feb 28,2015. However, 2014 activity and closing balances are from PowerStream's general ledger and not expected to be any diffferent from the RRR filing
A69: 44 | C69: Disposition and Recovery of Regulatory Balances7 | D69: 1595 | E69: =IF(ISERROR(VLOOKUP($A69,'2. 2016-20 Continuity Schedule'!$A$15:$BD$87,MATCH('3. Appendix A'!$E$20,'2. 2016-20 Continuity Schedule'!$A$15:$BD$15,0),FALSE)),0,VLOOKUP($A69,'2. 2016-20 Continuity Schedule'!$A$15:$BD$87,MATCH('3. Appendix A'!$E$20,'2. 2016-20 Continuity Schedule'!$A$15:$BD$15,0),FALSE)) -> 0 | F69: RRR not filed until Feb 28,2015. However, 2014 activity and closing balances are from PowerStream's general ledger and not expected to be any diffferent from the RRR filing

Sheet 4. Billing Determinants
B16: In the green shaded cells, enter the most recent Board Approved volumetric forecast. If there is a material difference between the latest Board-approved volumetric forecast and the most recent 12-month actual volumetric data, use the most recent 12-month actual data. Do not enter data for the MicroFit class.
B19: Rate Class (Enter Rate Classes in cells below) | C19: Units | D19: # of Customers | E19: Metered kWh | F19: Metered kW | G19: Billed kWh for Non-RPP Customers | H19: Estimated kW for Non-RPP Customers | I19: Distribution Revenue 1 | J19: 1590 Recovery Share Proportion | K19: 1595 Recovery Share Proportion (2009) 2 | L19: 1595 Recovery Share Proportion (2010) 2 | M19: 1595 Recovery Share Proportion (2011) 2 | N19: 1595 Recovery Share Proportion (2012) 2 | O19: 1595 Recovery Share Proportion (2013) 2 | P19: 1595 Recovery Share Proportion (2014) 2 | R19: 1568 LRAM Variance Account Class Allocation ($ amounts)
B21: RESIDENTIAL | C21: kWh | D21: 325759 | E21: 2750618680 | G21: 159139043 | H21: =IF(ISERROR(F21/E21*G21), 0, F21/E21*G21) -> 0 | I21: 103190106 | J21: 1 | N21: 0.277
B22: GENERAL SERVICE LESS THAN 50 KW | C22: kWh | D22: 32425 | E22: 1040222607 | G22: 170983976 | H22: =IF(ISERROR(F22/E22*G22), 0, F22/E22*G22) -> 0 | I22: 28859421 | N22: 0.1115
B23: GENERAL SERVICE 50 TO 4,999 KW | C23: kW | D23: 4953 | E23: 4574077591 | F23: 12212781 | G23: 4282552338 | H23: 11434408.97 | I23: 54796480 | N23: 0.5966
B24: LARGE USER | C24: kW | D24: 2 | E24: 76536992 | F24: 150807 | H24: 0 | I24: 373845 | N24: 0.0084
B25: STANDBY POWER | C25: kW | D25: 0 | E25: 0 | G25: 0 | H25: 0 | I25: 0 | N25: 0
B26: UNMETERED SCATTERED LOAD | C26: kWh | D26: 2976 | E26: 14169725 | G26: 274430 | H26: 0 | I26: 557865 | N26: 0
B27: SENTINEL LIGHTING | C27: kW | D27: 208 | E27: 378080 | F27: 975 | G27: 46212 | H27: 119.1723974 | I27: 19175 | N27: 0.0003
B28: STREET LIGHTING | C28: kW | D28: 88226 | E28: 53007707 | F28: 148205 | G28: 61554572 | H28: 172101.3011 | I28: 2721209 | N28: 0.0062
B41: Total | D41: =SUM(D21:D40) -> 454549 | E41: =SUM(E21:E40) -> 8509011382 | F41: =SUM(F21:F40) -> 12512768 | G41: 4674550571 | H41: 11606629.44 | I41: 190518101 | J41: 1 | K41: 0 | L41: 0 | M41: 0 | N41: 1 | O41: 0 | P41: 0 | Q41: 0 | R41: 0
Q42: Balance as per Sheet 5 | R42: ='2. 2016-20 Continuity Schedule'!BD69 -> -504256.9085
Q43: Variance | R43: =R41-R42 -> 504256.9085
A45: 1 For Account 1562, the allocation to customer classes should be performed on the basis of the test year distribution revenue allocation to customer classes found in the Applicant’s Cost of Service application that was most recently approved at the time of disposition of the 1562 account balances
A47: 2 Residual Account balance to be allocated to rate classes in proportion to the recovery share as established when rate riders were implemented.

Sheet 5. Allocation of Balances
D4: Amounts from Sheet 2 | E4: Allocator | F4: =IF(LEN(TRIM('4. Billing Determinants'!$B21))=0, "", '4. Billing Determinants'!$B21) -> RESIDENTIAL | G4: =IF(LEN(TRIM('4. Billing Determinants'!$B22))=0, "", '4. Billing Determinants'!$B22) -> GENERAL SERVICE LESS THAN 50 KW | H4: =IF(LEN(TRIM('4. Billing Determinants'!$B23))=0, "", '4. Billing Determinants'!$B23) -> GENERAL SERVICE 50 TO 4,999 KW | I4: =IF(LEN(TRIM('4. Billing Determinants'!$B24))=0, "", '4. Billing Determinants'!$B24) -> LARGE USER | J4: =IF(LEN(TRIM('4. Billing Determinants'!$B25))=0, "", '4. Billing Determinants'!$B25) -> STANDBY POWER | K4: =IF(LEN(TRIM('4. Billing Determinants'!$B26))=0, "", '4. Billing Determinants'!$B26) -> UNMETERED SCATTERED LOAD | L4: =IF(LEN(TRIM('4. Billing Determinants'!$B27))=0, "", '4. Billing Determinants'!$B27) -> SENTINEL LIGHTING | M4: =IF(LEN(TRIM('4. Billing Determinants'!$B28))=0, "", '4. Billing Determinants'!$B28) -> STREET LIGHTING | N4: =IF(LEN(TRIM('4. Billing Determinants'!$B29))=0, "", '4. Billing Determinants'!$B29) ->  | O4: =IF(LEN(TRIM('4. Billing Determinants'!$B30))=0, "", '4. Billing Determinants'!$B30) ->  | P4: =IF(LEN(TRIM('4. Billing Determinants'!$B31))=0, "", '4. Billing Determinants'!$B31) ->  | Q4: =IF(LEN(TRIM('4. Billing Determinants'!$B32))=0, "", '4. Billing Determinants'!$B32) ->  | R4: =IF(LEN(TRIM('4. Billing Determinants'!$B33))=0, "", '4. Billing Determinants'!$B33) ->  | S4: =IF(LEN(TRIM('4. Billing Determinants'!$B34))=0, "", '4. Billing Determinants'!$B34) ->  | T4: =IF(LEN(TRIM('4. Billing Determinants'!$B35))=0, "", '4. Billing Determinants'!$B35) ->  | U4: =IF(LEN(TRIM('4. Billing Determinants'!$B36))=0, "", '4. Billing Determinants'!$B36) ->  | V4: =IF(LEN(TRIM('4. Billing Determinants'!$B37))=0, "", '4. Billing Determinants'!$B37) ->  | W4: =IF(LEN(TRIM('4. Billing Determinants'!$B38))=0, "", '4. Billing Determinants'!$B38) ->  | X4: =IF(LEN(TRIM('4. Billing Determinants'!$B39))=0, "", '4. Billing Determinants'!$B39) ->  | Y4: =IF(LEN(TRIM('4. Billing Determinants'!$B40))=0, "", '4. Billing Determinants'!$B40) -> 
B5: LV Variance Account | C5: 1550 | D5: ='2. 2016-20 Continuity Schedule'!BD19 -> -251134.5493 | E5: kWh | F5: =IFERROR(IF(F$4="",0,IF($E5="kWh",VLOOKUP(F$4,'4. Billing Determinants'!$B$19:$R$41,4,0)/'4. Billing Determinants'!$E$41*$D5,IF($E5="kW",VLOOKUP(F$4,'4. Billing Determinants'!$B$19:$R$41,5,0)/'4. Billing Determinants'!$F$41*$D5,IF($E5="Non-RPP kWh",VLOOKUP(F$4,'4. Billing Determinants'!$B$19:$R$41,6,0)/'4. Billing Determinants'!$G$41*$D5,IF($E5="Distribution Rev.",VLOOKUP(F$4,'4. Billing Determinants'!$B$19:$R$41,8,0)/'4. Billing Determinants'!$I$41*$D5, VLOOKUP(F$4,'4. Billing Determinants'!$B$19:$R$41,3,0)/'4. Billing Determinants'!$D$41*$D5))))),0) -> -81181.62634 | G5: =IFERROR(IF(G$4="",0,IF($E5="kWh",VLOOKUP(G$4,'4. Billing Determinants'!$B$19:$R$41,4,0)/'4. Billing Determinants'!$E$41*$D5,IF($E5="kW",VLOOKUP(G$4,'4. Billing Determinants'!$B$19:$R$41,5,0)/'4. Billing Determinants'!$F$41*$D5,IF($E5="Non-RPP kWh",VLOOKUP(G$4,'4. Billing Determinants'!$B$19:$R$41,6,0)/'4. Billing Determinants'!$G$41*$D5,IF($E5="Distribution Rev.",VLOOKUP(G$4,'4. Billing Determinants'!$B$19:$R$41,8,0)/'4. Billing Determinants'!$I$41*$D5, VLOOKUP(G$4,'4. Billing Determinants'!$B$19:$R$41,3,0)/'4. Billing Determinants'!$D$41*$D5))))),0) -> -30701.07958 | H5: =IFERROR(IF(H$4="",0,IF($E5="kWh",VLOOKUP(H$4,'4. Billing Determinants'!$B$19:$R$41,4,0)/'4. Billing Determinants'!$E$41*$D5,IF($E5="kW",VLOOKUP(H$4,'4. Billing Determinants'!$B$19:$R$41,5,0)/'4. Billing Determinants'!$F$41*$D5,IF($E5="Non-RPP kWh",VLOOKUP(H$4,'4. Billing Determinants'!$B$19:$R$41,6,0)/'4. Billing Determinants'!$G$41*$D5,IF($E5="Distribution Rev.",VLOOKUP(H$4,'4. Billing Determinants'!$B$19:$R$41,8,0)/'4. Billing Determinants'!$I$41*$D5, VLOOKUP(H$4,'4. Billing Determinants'!$B$19:$R$41,3,0)/'4. Billing Determinants'!$D$41*$D5))))),0) -> -134999.1042 | I5: =IFERROR(IF(I$4="",0,IF($E5="kWh",VLOOKUP(I$4,'4. Billing Determinants'!$B$19:$R$41,4,0)/'4. Billing Determinants'!$E$41*$D5,IF($E5="kW",VLOOKUP(I$4,'4. Billing Determinants'!$B$19:$R$41,5,0)/'4. Billing Determinants'!$F$41*$D5,IF($E5="Non-RPP kWh",VLOOKUP(I$4,'4. Billing Determinants'!$B$19:$R$41,6,0)/'4. Billing Determinants'!$G$41*$D5,IF($E5="Distribution Rev.",VLOOKUP(I$4,'4. Billing Determinants'!$B$19:$R$41,8,0)/'4. Billing Determinants'!$I$41*$D5, VLOOKUP(I$4,'4. Billing Determinants'!$B$19:$R$41,3,0)/'4. Billing Determinants'!$D$41*$D5))))),0) -> -2258.90907 | J5: =IFERROR(IF(J$4="",0,IF($E5="kWh",VLOOKUP(J$4,'4. Billing Determinants'!$B$19:$R$41,4,0)/'4. Billing Determinants'!$E$41*$D5,IF($E5="kW",VLOOKUP(J$4,'4. Billing Determinants'!$B$19:$R$41,5,0)/'4. Billing Determinants'!$F$41*$D5,IF($E5="Non-RPP kWh",VLOOKUP(J$4,'4. Billing Determinants'!$B$19:$R$41,6,0)/'4. Billing Determinants'!$G$41*$D5,IF($E5="Distribution Rev.",VLOOKUP(J$4,'4. Billing Determinants'!$B$19:$R$41,8,0)/'4. Billing Determinants'!$I$41*$D5, VLOOKUP(J$4,'4. Billing Determinants'!$B$19:$R$41,3,0)/'4. Billing Determinants'!$D$41*$D5))))),0) -> 0 | K5: =IFERROR(IF(K$4="",0,IF($E5="kWh",VLOOKUP(K$4,'4. Billing Determinants'!$B$19:$R$41,4,0)/'4. Billing Determinants'!$E$41*$D5,IF($E5="kW",VLOOKUP(K$4,'4. Billing Determinants'!$B$19:$R$41,5,0)/'4. Billing Determinants'!$F$41*$D5,IF($E5="Non-RPP kWh",VLOOKUP(K$4,'4. Billing Determinants'!$B$19:$R$41,6,0)/'4. Billing Determinants'!$G$41*$D5,IF($E5="Distribution Rev.",VLOOKUP(K$4,'4. Billing Determinants'!$B$19:$R$41,8,0)/'4. Billing Determinants'!$I$41*$D5, VLOOKUP(K$4,'4. Billing Determinants'!$B$19:$R$41,3,0)/'4. Billing Determinants'!$D$41*$D5))))),0) -> -418.2045765 | L5: =IFERROR(IF(L$4="",0,IF($E5="kWh",VLOOKUP(L$4,'4. Billing Determinants'!$B$19:$R$41,4,0)/'4. Billing Determinants'!$E$41*$D5,IF($E5="kW",VLOOKUP(L$4,'4. Billing Determinants'!$B$19:$R$41,5,0)/'4. Billing Determinants'!$F$41*$D5,IF($E5="Non-RPP kWh",VLOOKUP(L$4,'4. Billing Determinants'!$B$19:$R$41,6,0)/'4. Billing Determinants'!$G$41*$D5,IF($E5="Distribution Rev.",VLOOKUP(L$4,'4. Billing Determinants'!$B$19:$R$41,8,0)/'4. Billing Determinants'!$I$41*$D5, VLOOKUP(L$4,'4. Billing Determinants'!$B$19:$R$41,3,0)/'4. Billing Determinants'!$D$41*$D5))))),0) -> -11.15863479 | M5: =IFERROR(IF(M$4="",0,IF($E5="kWh",VLOOKUP(M$4,'4. Billing Determinants'!$B$19:$R$41,4,0)/'4. Billing Determinants'!$E$41*$D5,IF($E5="kW",VLOOKUP(M$4,'4. Billing Determinants'!$B$19:$R$41,5,0)/'4. Billing Determinants'!$F$41*$D5,IF($E5="Non-RPP kWh",VLOOKUP(M$4,'4. Billing Determinants'!$B$19:$R$41,6,0)/'4. Billing Determinants'!$G$41*$D5,IF($E5="Distribution Rev.",VLOOKUP(M$4,'4. Billing Determinants'!$B$19:$R$41,8,0)/'4. Billing Determinants'!$I$41*$D5, VLOOKUP(M$4,'4. Billing Determinants'!$B$19:$R$41,3,0)/'4. Billing Determinants'!$D$41*$D5))))),0) -> -1564.466894 | N5: =IFERROR(IF(N$4="",0,IF($E5="kWh",VLOOKUP(N$4,'4. Billing Determinants'!$B$19:$R$41,4,0)/'4. Billing Determinants'!$E$41*$D5,IF($E5="kW",VLOOKUP(N$4,'4. Billing Determinants'!$B$19:$R$41,5,0)/'4. Billing Determinants'!$F$41*$D5,IF($E5="Non-RPP kWh",VLOOKUP(N$4,'4. Billing Determinants'!$B$19:$R$41,6,0)/'4. Billing Determinants'!$G$41*$D5,IF($E5="Distribution Rev.",VLOOKUP(N$4,'4. Billing Determinants'!$B$19:$R$41,8,0)/'4. Billing Determinants'!$I$41*$D5, VLOOKUP(N$4,'4. Billing Determinants'!$B$19:$R$41,3,0)/'4. Billing Determinants'!$D$41*$D5))))),0) -> 0 | O5: =IFERROR(IF(O$4="",0,IF($E5="kWh",VLOOKUP(O$4,'4. Billing Determinants'!$B$19:$R$41,4,0)/'4. Billing Determinants'!$E$41*$D5,IF($E5="kW",VLOOKUP(O$4,'4. Billing Determinants'!$B$19:$R$41,5,0)/'4. Billing Determinants'!$F$41*$D5,IF($E5="Non-RPP kWh",VLOOKUP(O$4,'4. Billing Determinants'!$B$19:$R$41,6,0)/'4. Billing Determinants'!$G$41*$D5,IF($E5="Distribution Rev.",VLOOKUP(O$4,'4. Billing Determinants'!$B$19:$R$41,8,0)/'4. Billing Determinants'!$I$41*$D5, VLOOKUP(O$4,'4. Billing Determinants'!$B$19:$R$41,3,0)/'4. Billing Determinants'!$D$41*$D5))))),0) -> 0 | P5: =IFERROR(IF(P$4="",0,IF($E5="kWh",VLOOKUP(P$4,'4. Billing Determinants'!$B$19:$R$41,4,0)/'4. Billing Determinants'!$E$41*$D5,IF($E5="kW",VLOOKUP(P$4,'4. Billing Determinants'!$B$19:$R$41,5,0)/'4. Billing Determinants'!$F$41*$D5,IF($E5="Non-RPP kWh",VLOOKUP(P$4,'4. Billing Determinants'!$B$19:$R$41,6,0)/'4. Billing Determinants'!$G$41*$D5,IF($E5="Distribution Rev.",VLOOKUP(P$4,'4. Billing Determinants'!$B$19:$R$41,8,0)/'4. Billing Determinants'!$I$41*$D5, VLOOKUP(P$4,'4. Billing Determinants'!$B$19:$R$41,3,0)/'4. Billing Determinants'!$D$41*$D5))))),0) -> 0 | Q5: =IFERROR(IF(Q$4="",0,IF($E5="kWh",VLOOKUP(Q$4,'4. Billing Determinants'!$B$19:$R$41,4,0)/'4. Billing Determinants'!$E$41*$D5,IF($E5="kW",VLOOKUP(Q$4,'4. Billing Determinants'!$B$19:$R$41,5,0)/'4. Billing Determinants'!$F$41*$D5,IF($E5="Non-RPP kWh",VLOOKUP(Q$4,'4. Billing Determinants'!$B$19:$R$41,6,0)/'4. Billing Determinants'!$G$41*$D5,IF($E5="Distribution Rev.",VLOOKUP(Q$4,'4. Billing Determinants'!$B$19:$R$41,8,0)/'4. Billing Determinants'!$I$41*$D5, VLOOKUP(Q$4,'4. Billing Determinants'!$B$19:$R$41,3,0)/'4. Billing Determinants'!$D$41*$D5))))),0) -> 0 | R5: =IFERROR(IF(R$4="",0,IF($E5="kWh",VLOOKUP(R$4,'4. Billing Determinants'!$B$19:$R$41,4,0)/'4. Billing Determinants'!$E$41*$D5,IF($E5="kW",VLOOKUP(R$4,'4. Billing Determinants'!$B$19:$R$41,5,0)/'4. Billing Determinants'!$F$41*$D5,IF($E5="Non-RPP kWh",VLOOKUP(R$4,'4. Billing Determinants'!$B$19:$R$41,6,0)/'4. Billing Determinants'!$G$41*$D5,IF($E5="Distribution Rev.",VLOOKUP(R$4,'4. Billing Determinants'!$B$19:$R$41,8,0)/'4. Billing Determinants'!$I$41*$D5, VLOOKUP(R$4,'4. Billing Determinants'!$B$19:$R$41,3,0)/'4. Billing Determinants'!$D$41*$D5))))),0) -> 0 | S5: =IFERROR(IF(S$4="",0,IF($E5="kWh",VLOOKUP(S$4,'4. Billing Determinants'!$B$19:$R$41,4,0)/'4. Billing Determinants'!$E$41*$D5,IF($E5="kW",VLOOKUP(S$4,'4. Billing Determinants'!$B$19:$R$41,5,0)/'4. Billing Determinants'!$F$41*$D5,IF($E5="Non-RPP kWh",VLOOKUP(S$4,'4. Billing Determinants'!$B$19:$R$41,6,0)/'4. Billing Determinants'!$G$41*$D5,IF($E5="Distribution Rev.",VLOOKUP(S$4,'4. Billing Determinants'!$B$19:$R$41,8,0)/'4. Billing Determinants'!$I$41*$D5, VLOOKUP(S$4,'4. Billing Determinants'!$B$19:$R$41,3,0)/'4. Billing Determinants'!$D$41*$D5))))),0) -> 0 | T5: =IFERROR(IF(T$4="",0,IF($E5="kWh",VLOOKUP(T$4,'4. Billing Determinants'!$B$19:$R$41,4,0)/'4. Billing Determinants'!$E$41*$D5,IF($E5="kW",VLOOKUP(T$4,'4. Billing Determinants'!$B$19:$R$41,5,0)/'4. Billing Determinants'!$F$41*$D5,IF($E5="Non-RPP kWh",VLOOKUP(T$4,'4. Billing Determinants'!$B$19:$R$41,6,0)/'4. Billing Determinants'!$G$41*$D5,IF($E5="Distribution Rev.",VLOOKUP(T$4,'4. Billing Determinants'!$B$19:$R$41,8,0)/'4. Billing Determinants'!$I$41*$D5, VLOOKUP(T$4,'4. Billing Determinants'!$B$19:$R$41,3,0)/'4. Billing Determinants'!$D$41*$D5))))),0) -> 0 | U5: =IFERROR(IF(U$4="",0,IF($E5="kWh",VLOOKUP(U$4,'4. Billing Determinants'!$B$19:$R$41,4,0)/'4. Billing Determinants'!$E$41*$D5,IF($E5="kW",VLOOKUP(U$4,'4. Billing Determinants'!$B$19:$R$41,5,0)/'4. Billing Determinants'!$F$41*$D5,IF($E5="Non-RPP kWh",VLOOKUP(U$4,'4. Billing Determinants'!$B$19:$R$41,6,0)/'4. Billing Determinants'!$G$41*$D5,IF($E5="Distribution Rev.",VLOOKUP(U$4,'4. Billing Determinants'!$B$19:$R$41,8,0)/'4. Billing Determinants'!$I$41*$D5, VLOOKUP(U$4,'4. Billing Determinants'!$B$19:$R$41,3,0)/'4. Billing Determinants'!$D$41*$D5))))),0) -> 0 | V5: =IFERROR(IF(V$4="",0,IF($E5="kWh",VLOOKUP(V$4,'4. Billing Determinants'!$B$19:$R$41,4,0)/'4. Billing Determinants'!$E$41*$D5,IF($E5="kW",VLOOKUP(V$4,'4. Billing Determinants'!$B$19:$R$41,5,0)/'4. Billing Determinants'!$F$41*$D5,IF($E5="Non-RPP kWh",VLOOKUP(V$4,'4. Billing Determinants'!$B$19:$R$41,6,0)/'4. Billing Determinants'!$G$41*$D5,IF($E5="Distribution Rev.",VLOOKUP(V$4,'4. Billing Determinants'!$B$19:$R$41,8,0)/'4. Billing Determinants'!$I$41*$D5, VLOOKUP(V$4,'4. Billing Determinants'!$B$19:$R$41,3,0)/'4. Billing Determinants'!$D$41*$D5))))),0) -> 0 | W5: =IFERROR(IF(W$4="",0,IF($E5="kWh",VLOOKUP(W$4,'4. Billing Determinants'!$B$19:$R$41,4,0)/'4. Billing Determinants'!$E$41*$D5,IF($E5="kW",VLOOKUP(W$4,'4. Billing Determinants'!$B$19:$R$41,5,0)/'4. Billing Determinants'!$F$41*$D5,IF($E5="Non-RPP kWh",VLOOKUP(W$4,'4. Billing Determinants'!$B$19:$R$41,6,0)/'4. Billing Determinants'!$G$41*$D5,IF($E5="Distribution Rev.",VLOOKUP(W$4,'4. Billing Determinants'!$B$19:$R$41,8,0)/'4. Billing Determinants'!$I$41*$D5, VLOOKUP(W$4,'4. Billing Determinants'!$B$19:$R$41,3,0)/'4. Billing Determinants'!$D$41*$D5))))),0) -> 0 | X5: =IFERROR(IF(X$4="",0,IF($E5="kWh",VLOOKUP(X$4,'4. Billing Determinants'!$B$19:$R$41,4,0)/'4. Billing Determinants'!$E$41*$D5,IF($E5="kW",VLOOKUP(X$4,'4. Billing Determinants'!$B$19:$R$41,5,0)/'4. Billing Determinants'!$F$41*$D5,IF($E5="Non-RPP kWh",VLOOKUP(X$4,'4. Billing Determinants'!$B$19:$R$41,6,0)/'4. Billing Determinants'!$G$41*$D5,IF($E5="Distribution Rev.",VLOOKUP(X$4,'4. Billing Determinants'!$B$19:$R$41,8,0)/'4. Billing Determinants'!$I$41*$D5, VLOOKUP(X$4,'4. Billing Determinants'!$B$19:$R$41,3,0)/'4. Billing Determinants'!$D$41*$D5))))),0) -> 0 | Y5: =IFERROR(IF(Y$4="",0,IF($E5="kWh",VLOOKUP(Y$4,'4. Billing Determinants'!$B$19:$R$41,4,0)/'4. Billing Determinants'!$E$41*$D5,IF($E5="kW",VLOOKUP(Y$4,'4. Billing Determinants'!$B$19:$R$41,5,0)/'4. Billing Determinants'!$F$41*$D5,IF($E5="Non-RPP kWh",VLOOKUP(Y$4,'4. Billing Determinants'!$B$19:$R$41,6,0)/'4. Billing Determinants'!$G$41*$D5,IF($E5="Distribution Rev.",VLOOKUP(Y$4,'4. Billing Determinants'!$B$19:$R$41,8,0)/'4. Billing Determinants'!$I$41*$D5, VLOOKUP(Y$4,'4. Billing Determinants'!$B$19:$R$41,3,0)/'4. Billing Determinants'!$D$41*$D5))))),0) -> 0
B6: SME - Smart meter entity | C6: 1551 | D6: ='2. 2016-20 Continuity Schedule'!BD20 -> 96857.255 | E6: kWh | F6: =IFERROR(IF(F$4="",0,IF($E6="kWh",VLOOKUP(F$4,'4. Billing Determinants'!$B$19:$R$41,4,0)/'4. Billing Determinants'!$E$41*$D6,IF($E6="kW",VLOOKUP(F$4,'4. Billing Determinants'!$B$19:$R$41,5,0)/'4. Billing Determinants'!$F$41*$D6,IF($E6="Non-RPP kWh",VLOOKUP(F$4,'4. Billing Determinants'!$B$19:$R$41,6,0)/'4. Billing Determinants'!$G$41*$D6,IF($E6="Distribution Rev.",VLOOKUP(F$4,'4. Billing Determinants'!$B$19:$R$41,8,0)/'4. Billing Determinants'!$I$41*$D6, VLOOKUP(F$4,'4. Billing Determinants'!$B$19:$R$41,3,0)/'4. Billing Determinants'!$D$41*$D6))))),0) -> 31310.02686 | G6: =IFERROR(IF(G$4="",0,IF($E6="kWh",VLOOKUP(G$4,'4. Billing Determinants'!$B$19:$R$41,4,0)/'4. Billing Determinants'!$E$41*$D6,IF($E6="kW",VLOOKUP(G$4,'4. Billing Determinants'!$B$19:$R$41,5,0)/'4. Billing Determinants'!$F$41*$D6,IF($E6="Non-RPP kWh",VLOOKUP(G$4,'4. Billing Determinants'!$B$19:$R$41,6,0)/'4. Billing Determinants'!$G$41*$D6,IF($E6="Distribution Rev.",VLOOKUP(G$4,'4. Billing Determinants'!$B$19:$R$41,8,0)/'4. Billing Determinants'!$I$41*$D6, VLOOKUP(G$4,'4. Billing Determinants'!$B$19:$R$41,3,0)/'4. Billing Determinants'!$D$41*$D6))))),0) -> 11840.7535 | H6: =IFERROR(IF(H$4="",0,IF($E6="kWh",VLOOKUP(H$4,'4. Billing Determinants'!$B$19:$R$41,4,0)/'4. Billing Determinants'!$E$41*$D6,IF($E6="kW",VLOOKUP(H$4,'4. Billing Determinants'!$B$19:$R$41,5,0)/'4. Billing Determinants'!$F$41*$D6,IF($E6="Non-RPP kWh",VLOOKUP(H$4,'4. Billing Determinants'!$B$19:$R$41,6,0)/'4. Billing Determinants'!$G$41*$D6,IF($E6="Distribution Rev.",VLOOKUP(H$4,'4. Billing Determinants'!$B$19:$R$41,8,0)/'4. Billing Determinants'!$I$41*$D6, VLOOKUP(H$4,'4. Billing Determinants'!$B$19:$R$41,3,0)/'4. Billing Determinants'!$D$41*$D6))))),0) -> 52066.28358 | I6: =IFERROR(IF(I$4="",0,IF($E6="kWh",VLOOKUP(I$4,'4. Billing Determinants'!$B$19:$R$41,4,0)/'4. Billing Determinants'!$E$41*$D6,IF($E6="kW",VLOOKUP(I$4,'4. Billing Determinants'!$B$19:$R$41,5,0)/'4. Billing Determinants'!$F$41*$D6,IF($E6="Non-RPP kWh",VLOOKUP(I$4,'4. Billing Determinants'!$B$19:$R$41,6,0)/'4. Billing Determinants'!$G$41*$D6,IF($E6="Distribution Rev.",VLOOKUP(I$4,'4. Billing Determinants'!$B$19:$R$41,8,0)/'4. Billing Determinants'!$I$41*$D6, VLOOKUP(I$4,'4. Billing Determinants'!$B$19:$R$41,3,0)/'4. Billing Determinants'!$D$41*$D6))))),0) -> 871.2131901 | J6: =IFERROR(IF(J$4="",0,IF($E6="kWh",VLOOKUP(J$4,'4. Billing Determinants'!$B$19:$R$41,4,0)/'4. Billing Determinants'!$E$41*$D6,IF($E6="kW",VLOOKUP(J$4,'4. Billing Determinants'!$B$19:$R$41,5,0)/'4. Billing Determinants'!$F$41*$D6,IF($E6="Non-RPP kWh",VLOOKUP(J$4,'4. Billing Determinants'!$B$19:$R$41,6,0)/'4. Billing Determinants'!$G$41*$D6,IF($E6="Distribution Rev.",VLOOKUP(J$4,'4. Billing Determinants'!$B$19:$R$41,8,0)/'4. Billing Determinants'!$I$41*$D6, VLOOKUP(J$4,'4. Billing Determinants'!$B$19:$R$41,3,0)/'4. Billing Determinants'!$D$41*$D6))))),0) -> 0 | K6: =IFERROR(IF(K$4="",0,IF($E6="kWh",VLOOKUP(K$4,'4. Billing Determinants'!$B$19:$R$41,4,0)/'4. Billing Determinants'!$E$41*$D6,IF($E6="kW",VLOOKUP(K$4,'4. Billing Determinants'!$B$19:$R$41,5,0)/'4. Billing Determinants'!$F$41*$D6,IF($E6="Non-RPP kWh",VLOOKUP(K$4,'4. Billing Determinants'!$B$19:$R$41,6,0)/'4. Billing Determinants'!$G$41*$D6,IF($E6="Distribution Rev.",VLOOKUP(K$4,'4. Billing Determinants'!$B$19:$R$41,8,0)/'4. Billing Determinants'!$I$41*$D6, VLOOKUP(K$4,'4. Billing Determinants'!$B$19:$R$41,3,0)/'4. Billing Determinants'!$D$41*$D6))))),0) -> 161.2926116 | L6: =IFERROR(IF(L$4="",0,IF($E6="kWh",VLOOKUP(L$4,'4. Billing Determinants'!$B$19:$R$41,4,0)/'4. Billing Determinants'!$E$41*$D6,IF($E6="kW",VLOOKUP(L$4,'4. Billing Determinants'!$B$19:$R$41,5,0)/'4. Billing Determinants'!$F$41*$D6,IF($E6="Non-RPP kWh",VLOOKUP(L$4,'4. Billing Determinants'!$B$19:$R$41,6,0)/'4. Billing Determinants'!$G$41*$D6,IF($E6="Distribution Rev.",VLOOKUP(L$4,'4. Billing Determinants'!$B$19:$R$41,8,0)/'4. Billing Determinants'!$I$41*$D6, VLOOKUP(L$4,'4. Billing Determinants'!$B$19:$R$41,3,0)/'4. Billing Determinants'!$D$41*$D6))))),0) -> 4.303648136 | M6: =IFERROR(IF(M$4="",0,IF($E6="kWh",VLOOKUP(M$4,'4. Billing Determinants'!$B$19:$R$41,4,0)/'4. Billing Determinants'!$E$41*$D6,IF($E6="kW",VLOOKUP(M$4,'4. Billing Determinants'!$B$19:$R$41,5,0)/'4. Billing Determinants'!$F$41*$D6,IF($E6="Non-RPP kWh",VLOOKUP(M$4,'4. Billing Determinants'!$B$19:$R$41,6,0)/'4. Billing Determinants'!$G$41*$D6,IF($E6="Distribution Rev.",VLOOKUP(M$4,'4. Billing Determinants'!$B$19:$R$41,8,0)/'4. Billing Determinants'!$I$41*$D6, VLOOKUP(M$4,'4. Billing Determinants'!$B$19:$R$41,3,0)/'4. Billing Determinants'!$D$41*$D6))))),0) -> 603.3816108
B7: RSVA - Wholesale Market Service Charge | C7: 1580 | D7: ='2. 2016-20 Continuity Schedule'!BD21 -> -6133745.73 | E7: kWh | F7: =IFERROR(IF(F$4="",0,IF($E7="kWh",VLOOKUP(F$4,'4. Billing Determinants'!$B$19:$R$41,4,0)/'4. Billing Determinants'!$E$41*$D7,IF($E7="kW",VLOOKUP(F$4,'4. Billing Determinants'!$B$19:$R$41,5,0)/'4. Billing Determinants'!$F$41*$D7,IF($E7="Non-RPP kWh",VLOOKUP(F$4,'4. Billing Determinants'!$B$19:$R$41,6,0)/'4. Billing Determinants'!$G$41*$D7,IF($E7="Distribution Rev.",VLOOKUP(F$4,'4. Billing Determinants'!$B$19:$R$41,8,0)/'4. Billing Determinants'!$I$41*$D7, VLOOKUP(F$4,'4. Billing Determinants'!$B$19:$R$41,3,0)/'4. Billing Determinants'!$D$41*$D7))))),0) -> -1982791.517 | G7: =IFERROR(IF(G$4="",0,IF($E7="kWh",VLOOKUP(G$4,'4. Billing Determinants'!$B$19:$R$41,4,0)/'4. Billing Determinants'!$E$41*$D7,IF($E7="kW",VLOOKUP(G$4,'4. Billing Determinants'!$B$19:$R$41,5,0)/'4. Billing Determinants'!$F$41*$D7,IF($E7="Non-RPP kWh",VLOOKUP(G$4,'4. Billing Determinants'!$B$19:$R$41,6,0)/'4. Billing Determinants'!$G$41*$D7,IF($E7="Distribution Rev.",VLOOKUP(G$4,'4. Billing Determinants'!$B$19:$R$41,8,0)/'4. Billing Determinants'!$I$41*$D7, VLOOKUP(G$4,'4. Billing Determinants'!$B$19:$R$41,3,0)/'4. Billing Determinants'!$D$41*$D7))))),0) -> -749847.5072 | H7: =IFERROR(IF(H$4="",0,IF($E7="kWh",VLOOKUP(H$4,'4. Billing Determinants'!$B$19:$R$41,4,0)/'4. Billing Determinants'!$E$41*$D7,IF($E7="kW",VLOOKUP(H$4,'4. Billing Determinants'!$B$19:$R$41,5,0)/'4. Billing Determinants'!$F$41*$D7,IF($E7="Non-RPP kWh",VLOOKUP(H$4,'4. Billing Determinants'!$B$19:$R$41,6,0)/'4. Billing Determinants'!$G$41*$D7,IF($E7="Distribution Rev.",VLOOKUP(H$4,'4. Billing Determinants'!$B$19:$R$41,8,0)/'4. Billing Determinants'!$I$41*$D7, VLOOKUP(H$4,'4. Billing Determinants'!$B$19:$R$41,3,0)/'4. Billing Determinants'!$D$41*$D7))))),0) -> -3297237.203 | I7: =IFERROR(IF(I$4="",0,IF($E7="kWh",VLOOKUP(I$4,'4. Billing Determinants'!$B$19:$R$41,4,0)/'4. Billing Determinants'!$E$41*$D7,IF($E7="kW",VLOOKUP(I$4,'4. Billing Determinants'!$B$19:$R$41,5,0)/'4. Billing Determinants'!$F$41*$D7,IF($E7="Non-RPP kWh",VLOOKUP(I$4,'4. Billing Determinants'!$B$19:$R$41,6,0)/'4. Billing Determinants'!$G$41*$D7,IF($E7="Distribution Rev.",VLOOKUP(I$4,'4. Billing Determinants'!$B$19:$R$41,8,0)/'4. Billing Determinants'!$I$41*$D7, VLOOKUP(I$4,'4. Billing Determinants'!$B$19:$R$41,3,0)/'4. Billing Determinants'!$D$41*$D7))))),0) -> -55171.91443 | J7: =IFERROR(IF(J$4="",0,IF($E7="kWh",VLOOKUP(J$4,'4. Billing Determinants'!$B$19:$R$41,4,0)/'4. Billing Determinants'!$E$41*$D7,IF($E7="kW",VLOOKUP(J$4,'4. Billing Determinants'!$B$19:$R$41,5,0)/'4. Billing Determinants'!$F$41*$D7,IF($E7="Non-RPP kWh",VLOOKUP(J$4,'4. Billing Determinants'!$B$19:$R$41,6,0)/'4. Billing Determinants'!$G$41*$D7,IF($E7="Distribution Rev.",VLOOKUP(J$4,'4. Billing Determinants'!$B$19:$R$41,8,0)/'4. Billing Determinants'!$I$41*$D7, VLOOKUP(J$4,'4. Billing Determinants'!$B$19:$R$41,3,0)/'4. Billing Determinants'!$D$41*$D7))))),0) -> 0 | K7: =IFERROR(IF(K$4="",0,IF($E7="kWh",VLOOKUP(K$4,'4. Billing Determinants'!$B$19:$R$41,4,0)/'4. Billing Determinants'!$E$41*$D7,IF($E7="kW",VLOOKUP(K$4,'4. Billing Determinants'!$B$19:$R$41,5,0)/'4. Billing Determinants'!$F$41*$D7,IF($E7="Non-RPP kWh",VLOOKUP(K$4,'4. Billing Determinants'!$B$19:$R$41,6,0)/'4. Billing Determinants'!$G$41*$D7,IF($E7="Distribution Rev.",VLOOKUP(K$4,'4. Billing Determinants'!$B$19:$R$41,8,0)/'4. Billing Determinants'!$I$41*$D7, VLOOKUP(K$4,'4. Billing Determinants'!$B$19:$R$41,3,0)/'4. Billing Determinants'!$D$41*$D7))))),0) -> -10214.28769 | L7: =IFERROR(IF(L$4="",0,IF($E7="kWh",VLOOKUP(L$4,'4. Billing Determinants'!$B$19:$R$41,4,0)/'4. Billing Determinants'!$E$41*$D7,IF($E7="kW",VLOOKUP(L$4,'4. Billing Determinants'!$B$19:$R$41,5,0)/'4. Billing Determinants'!$F$41*$D7,IF($E7="Non-RPP kWh",VLOOKUP(L$4,'4. Billing Determinants'!$B$19:$R$41,6,0)/'4. Billing Determinants'!$G$41*$D7,IF($E7="Distribution Rev.",VLOOKUP(L$4,'4. Billing Determinants'!$B$19:$R$41,8,0)/'4. Billing Determinants'!$I$41*$D7, VLOOKUP(L$4,'4. Billing Determinants'!$B$19:$R$41,3,0)/'4. Billing Determinants'!$D$41*$D7))))),0) -> -272.5400733 | M7: =IFERROR(IF(M$4="",0,IF($E7="kWh",VLOOKUP(M$4,'4. Billing Determinants'!$B$19:$R$41,4,0)/'4. Billing Determinants'!$E$41*$D7,IF($E7="kW",VLOOKUP(M$4,'4. Billing Determinants'!$B$19:$R$41,5,0)/'4. Billing Determinants'!$F$41*$D7,IF($E7="Non-RPP kWh",VLOOKUP(M$4,'4. Billing Determinants'!$B$19:$R$41,6,0)/'4. Billing Determinants'!$G$41*$D7,IF($E7="Distribution Rev.",VLOOKUP(M$4,'4. Billing Determinants'!$B$19:$R$41,8,0)/'4. Billing Determinants'!$I$41*$D7, VLOOKUP(M$4,'4. Billing Determinants'!$B$19:$R$41,3,0)/'4. Billing Determinants'!$D$41*$D7))))),0) -> -38210.76055 | N7: =IFERROR(IF(N$4="",0,IF($E7="kWh",VLOOKUP(N$4,'4. Billing Determinants'!$B$19:$R$41,4,0)/'4. Billing Determinants'!$E$41*$D7,IF($E7="kW",VLOOKUP(N$4,'4. Billing Determinants'!$B$19:$R$41,5,0)/'4. Billing Determinants'!$F$41*$D7,IF($E7="Non-RPP kWh",VLOOKUP(N$4,'4. Billing Determinants'!$B$19:$R$41,6,0)/'4. Billing Determinants'!$G$41*$D7,IF($E7="Distribution Rev.",VLOOKUP(N$4,'4. Billing Determinants'!$B$19:$R$41,8,0)/'4. Billing Determinants'!$I$41*$D7, VLOOKUP(N$4,'4. Billing Determinants'!$B$19:$R$41,3,0)/'4. Billing Determinants'!$D$41*$D7))))),0) -> 0 | O7: =IFERROR(IF(O$4="",0,IF($E7="kWh",VLOOKUP(O$4,'4. Billing Determinants'!$B$19:$R$41,4,0)/'4. Billing Determinants'!$E$41*$D7,IF($E7="kW",VLOOKUP(O$4,'4. Billing Determinants'!$B$19:$R$41,5,0)/'4. Billing Determinants'!$F$41*$D7,IF($E7="Non-RPP kWh",VLOOKUP(O$4,'4. Billing Determinants'!$B$19:$R$41,6,0)/'4. Billing Determinants'!$G$41*$D7,IF($E7="Distribution Rev.",VLOOKUP(O$4,'4. Billing Determinants'!$B$19:$R$41,8,0)/'4. Billing Determinants'!$I$41*$D7, VLOOKUP(O$4,'4. Billing Determinants'!$B$19:$R$41,3,0)/'4. Billing Determinants'!$D$41*$D7))))),0) -> 0 | P7: =IFERROR(IF(P$4="",0,IF($E7="kWh",VLOOKUP(P$4,'4. Billing Determinants'!$B$19:$R$41,4,0)/'4. Billing Determinants'!$E$41*$D7,IF($E7="kW",VLOOKUP(P$4,'4. Billing Determinants'!$B$19:$R$41,5,0)/'4. Billing Determinants'!$F$41*$D7,IF($E7="Non-RPP kWh",VLOOKUP(P$4,'4. Billing Determinants'!$B$19:$R$41,6,0)/'4. Billing Determinants'!$G$41*$D7,IF($E7="Distribution Rev.",VLOOKUP(P$4,'4. Billing Determinants'!$B$19:$R$41,8,0)/'4. Billing Determinants'!$I$41*$D7, VLOOKUP(P$4,'4. Billing Determinants'!$B$19:$R$41,3,0)/'4. Billing Determinants'!$D$41*$D7))))),0) -> 0 | Q7: =IFERROR(IF(Q$4="",0,IF($E7="kWh",VLOOKUP(Q$4,'4. Billing Determinants'!$B$19:$R$41,4,0)/'4. Billing Determinants'!$E$41*$D7,IF($E7="kW",VLOOKUP(Q$4,'4. Billing Determinants'!$B$19:$R$41,5,0)/'4. Billing Determinants'!$F$41*$D7,IF($E7="Non-RPP kWh",VLOOKUP(Q$4,'4. Billing Determinants'!$B$19:$R$41,6,0)/'4. Billing Determinants'!$G$41*$D7,IF($E7="Distribution Rev.",VLOOKUP(Q$4,'4. Billing Determinants'!$B$19:$R$41,8,0)/'4. Billing Determinants'!$I$41*$D7, VLOOKUP(Q$4,'4. Billing Determinants'!$B$19:$R$41,3,0)/'4. Billing Determinants'!$D$41*$D7))))),0) -> 0 | R7: =IFERROR(IF(R$4="",0,IF($E7="kWh",VLOOKUP(R$4,'4. Billing Determinants'!$B$19:$R$41,4,0)/'4. Billing Determinants'!$E$41*$D7,IF($E7="kW",VLOOKUP(R$4,'4. Billing Determinants'!$B$19:$R$41,5,0)/'4. Billing Determinants'!$F$41*$D7,IF($E7="Non-RPP kWh",VLOOKUP(R$4,'4. Billing Determinants'!$B$19:$R$41,6,0)/'4. Billing Determinants'!$G$41*$D7,IF($E7="Distribution Rev.",VLOOKUP(R$4,'4. Billing Determinants'!$B$19:$R$41,8,0)/'4. Billing Determinants'!$I$41*$D7, VLOOKUP(R$4,'4. Billing Determinants'!$B$19:$R$41,3,0)/'4. Billing Determinants'!$D$41*$D7))))),0) -> 0 | S7: =IFERROR(IF(S$4="",0,IF($E7="kWh",VLOOKUP(S$4,'4. Billing Determinants'!$B$19:$R$41,4,0)/'4. Billing Determinants'!$E$41*$D7,IF($E7="kW",VLOOKUP(S$4,'4. Billing Determinants'!$B$19:$R$41,5,0)/'4. Billing Determinants'!$F$41*$D7,IF($E7="Non-RPP kWh",VLOOKUP(S$4,'4. Billing Determinants'!$B$19:$R$41,6,0)/'4. Billing Determinants'!$G$41*$D7,IF($E7="Distribution Rev.",VLOOKUP(S$4,'4. Billing Determinants'!$B$19:$R$41,8,0)/'4. Billing Determinants'!$I$41*$D7, VLOOKUP(S$4,'4. Billing Determinants'!$B$19:$R$41,3,0)/'4. Billing Determinants'!$D$41*$D7))))),0) -> 0 | T7: =IFERROR(IF(T$4="",0,IF($E7="kWh",VLOOKUP(T$4,'4. Billing Determinants'!$B$19:$R$41,4,0)/'4. Billing Determinants'!$E$41*$D7,IF($E7="kW",VLOOKUP(T$4,'4. Billing Determinants'!$B$19:$R$41,5,0)/'4. Billing Determinants'!$F$41*$D7,IF($E7="Non-RPP kWh",VLOOKUP(T$4,'4. Billing Determinants'!$B$19:$R$41,6,0)/'4. Billing Determinants'!$G$41*$D7,IF($E7="Distribution Rev.",VLOOKUP(T$4,'4. Billing Determinants'!$B$19:$R$41,8,0)/'4. Billing Determinants'!$I$41*$D7, VLOOKUP(T$4,'4. Billing Determinants'!$B$19:$R$41,3,0)/'4. Billing Determinants'!$D$41*$D7))))),0) -> 0 | U7: =IFERROR(IF(U$4="",0,IF($E7="kWh",VLOOKUP(U$4,'4. Billing Determinants'!$B$19:$R$41,4,0)/'4. Billing Determinants'!$E$41*$D7,IF($E7="kW",VLOOKUP(U$4,'4. Billing Determinants'!$B$19:$R$41,5,0)/'4. Billing Determinants'!$F$41*$D7,IF($E7="Non-RPP kWh",VLOOKUP(U$4,'4. Billing Determinants'!$B$19:$R$41,6,0)/'4. Billing Determinants'!$G$41*$D7,IF($E7="Distribution Rev.",VLOOKUP(U$4,'4. Billing Determinants'!$B$19:$R$41,8,0)/'4. Billing Determinants'!$I$41*$D7, VLOOKUP(U$4,'4. Billing Determinants'!$B$19:$R$41,3,0)/'4. Billing Determinants'!$D$41*$D7))))),0) -> 0 | V7: =IFERROR(IF(V$4="",0,IF($E7="kWh",VLOOKUP(V$4,'4. Billing Determinants'!$B$19:$R$41,4,0)/'4. Billing Determinants'!$E$41*$D7,IF($E7="kW",VLOOKUP(V$4,'4. Billing Determinants'!$B$19:$R$41,5,0)/'4. Billing Determinants'!$F$41*$D7,IF($E7="Non-RPP kWh",VLOOKUP(V$4,'4. Billing Determinants'!$B$19:$R$41,6,0)/'4. Billing Determinants'!$G$41*$D7,IF($E7="Distribution Rev.",VLOOKUP(V$4,'4. Billing Determinants'!$B$19:$R$41,8,0)/'4. Billing Determinants'!$I$41*$D7, VLOOKUP(V$4,'4. Billing Determinants'!$B$19:$R$41,3,0)/'4. Billing Determinants'!$D$41*$D7))))),0) -> 0 | W7: =IFERROR(IF(W$4="",0,IF($E7="kWh",VLOOKUP(W$4,'4. Billing Determinants'!$B$19:$R$41,4,0)/'4. Billing Determinants'!$E$41*$D7,IF($E7="kW",VLOOKUP(W$4,'4. Billing Determinants'!$B$19:$R$41,5,0)/'4. Billing Determinants'!$F$41*$D7,IF($E7="Non-RPP kWh",VLOOKUP(W$4,'4. Billing Determinants'!$B$19:$R$41,6,0)/'4. Billing Determinants'!$G$41*$D7,IF($E7="Distribution Rev.",VLOOKUP(W$4,'4. Billing Determinants'!$B$19:$R$41,8,0)/'4. Billing Determinants'!$I$41*$D7, VLOOKUP(W$4,'4. Billing Determinants'!$B$19:$R$41,3,0)/'4. Billing Determinants'!$D$41*$D7))))),0) -> 0 | X7: =IFERROR(IF(X$4="",0,IF($E7="kWh",VLOOKUP(X$4,'4. Billing Determinants'!$B$19:$R$41,4,0)/'4. Billing Determinants'!$E$41*$D7,IF($E7="kW",VLOOKUP(X$4,'4. Billing Determinants'!$B$19:$R$41,5,0)/'4. Billing Determinants'!$F$41*$D7,IF($E7="Non-RPP kWh",VLOOKUP(X$4,'4. Billing Determinants'!$B$19:$R$41,6,0)/'4. Billing Determinants'!$G$41*$D7,IF($E7="Distribution Rev.",VLOOKUP(X$4,'4. Billing Determinants'!$B$19:$R$41,8,0)/'4. Billing Determinants'!$I$41*$D7, VLOOKUP(X$4,'4. Billing Determinants'!$B$19:$R$41,3,0)/'4. Billing Determinants'!$D$41*$D7))))),0) -> 0 | Y7: =IFERROR(IF(Y$4="",0,IF($E7="kWh",VLOOKUP(Y$4,'4. Billing Determinants'!$B$19:$R$41,4,0)/'4. Billing Determinants'!$E$41*$D7,IF($E7="kW",VLOOKUP(Y$4,'4. Billing Determinants'!$B$19:$R$41,5,0)/'4. Billing Determinants'!$F$41*$D7,IF($E7="Non-RPP kWh",VLOOKUP(Y$4,'4. Billing Determinants'!$B$19:$R$41,6,0)/'4. Billing Determinants'!$G$41*$D7,IF($E7="Distribution Rev.",VLOOKUP(Y$4,'4. Billing Determinants'!$B$19:$R$41,8,0)/'4. Billing Determinants'!$I$41*$D7, VLOOKUP(Y$4,'4. Billing Determinants'!$B$19:$R$41,3,0)/'4. Billing Determinants'!$D$41*$D7))))),0) -> 0
B8: RSVA - Retail Transmission Network Charge | C8: 1584 | D8: ='2. 2016-20 Continuity Schedule'!BD22 -> 4026086.513 | E8: kWh | F8: =IFERROR(IF(F$4="",0,IF($E8="kWh",VLOOKUP(F$4,'4. Billing Determinants'!$B$19:$R$41,4,0)/'4. Billing Determinants'!$E$41*$D8,IF($E8="kW",VLOOKUP(F$4,'4. Billing Determinants'!$B$19:$R$41,5,0)/'4. Billing Determinants'!$F$41*$D8,IF($E8="Non-RPP kWh",VLOOKUP(F$4,'4. Billing Determinants'!$B$19:$R$41,6,0)/'4. Billing Determinants'!$G$41*$D8,IF($E8="Distribution Rev.",VLOOKUP(F$4,'4. Billing Determinants'!$B$19:$R$41,8,0)/'4. Billing Determinants'!$I$41*$D8, VLOOKUP(F$4,'4. Billing Determinants'!$B$19:$R$41,3,0)/'4. Billing Determinants'!$D$41*$D8))))),0) -> 1301470.673 | G8: =IFERROR(IF(G$4="",0,IF($E8="kWh",VLOOKUP(G$4,'4. Billing Determinants'!$B$19:$R$41,4,0)/'4. Billing Determinants'!$E$41*$D8,IF($E8="kW",VLOOKUP(G$4,'4. Billing Determinants'!$B$19:$R$41,5,0)/'4. Billing Determinants'!$F$41*$D8,IF($E8="Non-RPP kWh",VLOOKUP(G$4,'4. Billing Determinants'!$B$19:$R$41,6,0)/'4. Billing Determinants'!$G$41*$D8,IF($E8="Distribution Rev.",VLOOKUP(G$4,'4. Billing Determinants'!$B$19:$R$41,8,0)/'4. Billing Determinants'!$I$41*$D8, VLOOKUP(G$4,'4. Billing Determinants'!$B$19:$R$41,3,0)/'4. Billing Determinants'!$D$41*$D8))))),0) -> 492187.1673 | H8: =IFERROR(IF(H$4="",0,IF($E8="kWh",VLOOKUP(H$4,'4. Billing Determinants'!$B$19:$R$41,4,0)/'4. Billing Determinants'!$E$41*$D8,IF($E8="kW",VLOOKUP(H$4,'4. Billing Determinants'!$B$19:$R$41,5,0)/'4. Billing Determinants'!$F$41*$D8,IF($E8="Non-RPP kWh",VLOOKUP(H$4,'4. Billing Determinants'!$B$19:$R$41,6,0)/'4. Billing Determinants'!$G$41*$D8,IF($E8="Distribution Rev.",VLOOKUP(H$4,'4. Billing Determinants'!$B$19:$R$41,8,0)/'4. Billing Determinants'!$I$41*$D8, VLOOKUP(H$4,'4. Billing Determinants'!$B$19:$R$41,3,0)/'4. Billing Determinants'!$D$41*$D8))))),0) -> 2164250.495 | I8: =IFERROR(IF(I$4="",0,IF($E8="kWh",VLOOKUP(I$4,'4. Billing Determinants'!$B$19:$R$41,4,0)/'4. Billing Determinants'!$E$41*$D8,IF($E8="kW",VLOOKUP(I$4,'4. Billing Determinants'!$B$19:$R$41,5,0)/'4. Billing Determinants'!$F$41*$D8,IF($E8="Non-RPP kWh",VLOOKUP(I$4,'4. Billing Determinants'!$B$19:$R$41,6,0)/'4. Billing Determinants'!$G$41*$D8,IF($E8="Distribution Rev.",VLOOKUP(I$4,'4. Billing Determinants'!$B$19:$R$41,8,0)/'4. Billing Determinants'!$I$41*$D8, VLOOKUP(I$4,'4. Billing Determinants'!$B$19:$R$41,3,0)/'4. Billing Determinants'!$D$41*$D8))))),0) -> 36213.90752 | J8: =IFERROR(IF(J$4="",0,IF($E8="kWh",VLOOKUP(J$4,'4. Billing Determinants'!$B$19:$R$41,4,0)/'4. Billing Determinants'!$E$41*$D8,IF($E8="kW",VLOOKUP(J$4,'4. Billing Determinants'!$B$19:$R$41,5,0)/'4. Billing Determinants'!$F$41*$D8,IF($E8="Non-RPP kWh",VLOOKUP(J$4,'4. Billing Determinants'!$B$19:$R$41,6,0)/'4. Billing Determinants'!$G$41*$D8,IF($E8="Distribution Rev.",VLOOKUP(J$4,'4. Billing Determinants'!$B$19:$R$41,8,0)/'4. Billing Determinants'!$I$41*$D8, VLOOKUP(J$4,'4. Billing Determinants'!$B$19:$R$41,3,0)/'4. Billing Determinants'!$D$41*$D8))))),0) -> 0 | K8: =IFERROR(IF(K$4="",0,IF($E8="kWh",VLOOKUP(K$4,'4. Billing Determinants'!$B$19:$R$41,4,0)/'4. Billing Determinants'!$E$41*$D8,IF($E8="kW",VLOOKUP(K$4,'4. Billing Determinants'!$B$19:$R$41,5,0)/'4. Billing Determinants'!$F$41*$D8,IF($E8="Non-RPP kWh",VLOOKUP(K$4,'4. Billing Determinants'!$B$19:$R$41,6,0)/'4. Billing Determinants'!$G$41*$D8,IF($E8="Distribution Rev.",VLOOKUP(K$4,'4. Billing Determinants'!$B$19:$R$41,8,0)/'4. Billing Determinants'!$I$41*$D8, VLOOKUP(K$4,'4. Billing Determinants'!$B$19:$R$41,3,0)/'4. Billing Determinants'!$D$41*$D8))))),0) -> 6704.484946 | L8: =IFERROR(IF(L$4="",0,IF($E8="kWh",VLOOKUP(L$4,'4. Billing Determinants'!$B$19:$R$41,4,0)/'4. Billing Determinants'!$E$41*$D8,IF($E8="kW",VLOOKUP(L$4,'4. Billing Determinants'!$B$19:$R$41,5,0)/'4. Billing Determinants'!$F$41*$D8,IF($E8="Non-RPP kWh",VLOOKUP(L$4,'4. Billing Determinants'!$B$19:$R$41,6,0)/'4. Billing Determinants'!$G$41*$D8,IF($E8="Distribution Rev.",VLOOKUP(L$4,'4. Billing Determinants'!$B$19:$R$41,8,0)/'4. Billing Determinants'!$I$41*$D8, VLOOKUP(L$4,'4. Billing Determinants'!$B$19:$R$41,3,0)/'4. Billing Determinants'!$D$41*$D8))))),0) -> 178.8906749 | M8: =IFERROR(IF(M$4="",0,IF($E8="kWh",VLOOKUP(M$4,'4. Billing Determinants'!$B$19:$R$41,4,0)/'4. Billing Determinants'!$E$41*$D8,IF($E8="kW",VLOOKUP(M$4,'4. Billing Determinants'!$B$19:$R$41,5,0)/'4. Billing Determinants'!$F$41*$D8,IF($E8="Non-RPP kWh",VLOOKUP(M$4,'4. Billing Determinants'!$B$19:$R$41,6,0)/'4. Billing Determinants'!$G$41*$D8,IF($E8="Distribution Rev.",VLOOKUP(M$4,'4. Billing Determinants'!$B$19:$R$41,8,0)/'4. Billing Determinants'!$I$41*$D8, VLOOKUP(M$4,'4. Billing Determinants'!$B$19:$R$41,3,0)/'4. Billing Determinants'!$D$41*$D8))))),0) -> 25080.8942 | N8: =IFERROR(IF(N$4="",0,IF($E8="kWh",VLOOKUP(N$4,'4. Billing Determinants'!$B$19:$R$41,4,0)/'4. Billing Determinants'!$E$41*$D8,IF($E8="kW",VLOOKUP(N$4,'4. Billing Determinants'!$B$19:$R$41,5,0)/'4. Billing Determinants'!$F$41*$D8,IF($E8="Non-RPP kWh",VLOOKUP(N$4,'4. Billing Determinants'!$B$19:$R$41,6,0)/'4. Billing Determinants'!$G$41*$D8,IF($E8="Distribution Rev.",VLOOKUP(N$4,'4. Billing Determinants'!$B$19:$R$41,8,0)/'4. Billing Determinants'!$I$41*$D8, VLOOKUP(N$4,'4. Billing Determinants'!$B$19:$R$41,3,0)/'4. Billing Determinants'!$D$41*$D8))))),0) -> 0 | O8: =IFERROR(IF(O$4="",0,IF($E8="kWh",VLOOKUP(O$4,'4. Billing Determinants'!$B$19:$R$41,4,0)/'4. Billing Determinants'!$E$41*$D8,IF($E8="kW",VLOOKUP(O$4,'4. Billing Determinants'!$B$19:$R$41,5,0)/'4. Billing Determinants'!$F$41*$D8,IF($E8="Non-RPP kWh",VLOOKUP(O$4,'4. Billing Determinants'!$B$19:$R$41,6,0)/'4. Billing Determinants'!$G$41*$D8,IF($E8="Distribution Rev.",VLOOKUP(O$4,'4. Billing Determinants'!$B$19:$R$41,8,0)/'4. Billing Determinants'!$I$41*$D8, VLOOKUP(O$4,'4. Billing Determinants'!$B$19:$R$41,3,0)/'4. Billing Determinants'!$D$41*$D8))))),0) -> 0 | P8: =IFERROR(IF(P$4="",0,IF($E8="kWh",VLOOKUP(P$4,'4. Billing Determinants'!$B$19:$R$41,4,0)/'4. Billing Determinants'!$E$41*$D8,IF($E8="kW",VLOOKUP(P$4,'4. Billing Determinants'!$B$19:$R$41,5,0)/'4. Billing Determinants'!$F$41*$D8,IF($E8="Non-RPP kWh",VLOOKUP(P$4,'4. Billing Determinants'!$B$19:$R$41,6,0)/'4. Billing Determinants'!$G$41*$D8,IF($E8="Distribution Rev.",VLOOKUP(P$4,'4. Billing Determinants'!$B$19:$R$41,8,0)/'4. Billing Determinants'!$I$41*$D8, VLOOKUP(P$4,'4. Billing Determinants'!$B$19:$R$41,3,0)/'4. Billing Determinants'!$D$41*$D8))))),0) -> 0 | Q8: =IFERROR(IF(Q$4="",0,IF($E8="kWh",VLOOKUP(Q$4,'4. Billing Determinants'!$B$19:$R$41,4,0)/'4. Billing Determinants'!$E$41*$D8,IF($E8="kW",VLOOKUP(Q$4,'4. Billing Determinants'!$B$19:$R$41,5,0)/'4. Billing Determinants'!$F$41*$D8,IF($E8="Non-RPP kWh",VLOOKUP(Q$4,'4. Billing Determinants'!$B$19:$R$41,6,0)/'4. Billing Determinants'!$G$41*$D8,IF($E8="Distribution Rev.",VLOOKUP(Q$4,'4. Billing Determinants'!$B$19:$R$41,8,0)/'4. Billing Determinants'!$I$41*$D8, VLOOKUP(Q$4,'4. Billing Determinants'!$B$19:$R$41,3,0)/'4. Billing Determinants'!$D$41*$D8))))),0) -> 0 | R8: =IFERROR(IF(R$4="",0,IF($E8="kWh",VLOOKUP(R$4,'4. Billing Determinants'!$B$19:$R$41,4,0)/'4. Billing Determinants'!$E$41*$D8,IF($E8="kW",VLOOKUP(R$4,'4. Billing Determinants'!$B$19:$R$41,5,0)/'4. Billing Determinants'!$F$41*$D8,IF($E8="Non-RPP kWh",VLOOKUP(R$4,'4. Billing Determinants'!$B$19:$R$41,6,0)/'4. Billing Determinants'!$G$41*$D8,IF($E8="Distribution Rev.",VLOOKUP(R$4,'4. Billing Determinants'!$B$19:$R$41,8,0)/'4. Billing Determinants'!$I$41*$D8, VLOOKUP(R$4,'4. Billing Determinants'!$B$19:$R$41,3,0)/'4. Billing Determinants'!$D$41*$D8))))),0) -> 0 | S8: =IFERROR(IF(S$4="",0,IF($E8="kWh",VLOOKUP(S$4,'4. Billing Determinants'!$B$19:$R$41,4,0)/'4. Billing Determinants'!$E$41*$D8,IF($E8="kW",VLOOKUP(S$4,'4. Billing Determinants'!$B$19:$R$41,5,0)/'4. Billing Determinants'!$F$41*$D8,IF($E8="Non-RPP kWh",VLOOKUP(S$4,'4. Billing Determinants'!$B$19:$R$41,6,0)/'4. Billing Determinants'!$G$41*$D8,IF($E8="Distribution Rev.",VLOOKUP(S$4,'4. Billing Determinants'!$B$19:$R$41,8,0)/'4. Billing Determinants'!$I$41*$D8, VLOOKUP(S$4,'4. Billing Determinants'!$B$19:$R$41,3,0)/'4. Billing Determinants'!$D$41*$D8))))),0) -> 0 | T8: =IFERROR(IF(T$4="",0,IF($E8="kWh",VLOOKUP(T$4,'4. Billing Determinants'!$B$19:$R$41,4,0)/'4. Billing Determinants'!$E$41*$D8,IF($E8="kW",VLOOKUP(T$4,'4. Billing Determinants'!$B$19:$R$41,5,0)/'4. Billing Determinants'!$F$41*$D8,IF($E8="Non-RPP kWh",VLOOKUP(T$4,'4. Billing Determinants'!$B$19:$R$41,6,0)/'4. Billing Determinants'!$G$41*$D8,IF($E8="Distribution Rev.",VLOOKUP(T$4,'4. Billing Determinants'!$B$19:$R$41,8,0)/'4. Billing Determinants'!$I$41*$D8, VLOOKUP(T$4,'4. Billing Determinants'!$B$19:$R$41,3,0)/'4. Billing Determinants'!$D$41*$D8))))),0) -> 0 | U8: =IFERROR(IF(U$4="",0,IF($E8="kWh",VLOOKUP(U$4,'4. Billing Determinants'!$B$19:$R$41,4,0)/'4. Billing Determinants'!$E$41*$D8,IF($E8="kW",VLOOKUP(U$4,'4. Billing Determinants'!$B$19:$R$41,5,0)/'4. Billing Determinants'!$F$41*$D8,IF($E8="Non-RPP kWh",VLOOKUP(U$4,'4. Billing Determinants'!$B$19:$R$41,6,0)/'4. Billing Determinants'!$G$41*$D8,IF($E8="Distribution Rev.",VLOOKUP(U$4,'4. Billing Determinants'!$B$19:$R$41,8,0)/'4. Billing Determinants'!$I$41*$D8, VLOOKUP(U$4,'4. Billing Determinants'!$B$19:$R$41,3,0)/'4. Billing Determinants'!$D$41*$D8))))),0) -> 0 | V8: =IFERROR(IF(V$4="",0,IF($E8="kWh",VLOOKUP(V$4,'4. Billing Determinants'!$B$19:$R$41,4,0)/'4. Billing Determinants'!$E$41*$D8,IF($E8="kW",VLOOKUP(V$4,'4. Billing Determinants'!$B$19:$R$41,5,0)/'4. Billing Determinants'!$F$41*$D8,IF($E8="Non-RPP kWh",VLOOKUP(V$4,'4. Billing Determinants'!$B$19:$R$41,6,0)/'4. Billing Determinants'!$G$41*$D8,IF($E8="Distribution Rev.",VLOOKUP(V$4,'4. Billing Determinants'!$B$19:$R$41,8,0)/'4. Billing Determinants'!$I$41*$D8, VLOOKUP(V$4,'4. Billing Determinants'!$B$19:$R$41,3,0)/'4. Billing Determinants'!$D$41*$D8))))),0) -> 0 | W8: =IFERROR(IF(W$4="",0,IF($E8="kWh",VLOOKUP(W$4,'4. Billing Determinants'!$B$19:$R$41,4,0)/'4. Billing Determinants'!$E$41*$D8,IF($E8="kW",VLOOKUP(W$4,'4. Billing Determinants'!$B$19:$R$41,5,0)/'4. Billing Determinants'!$F$41*$D8,IF($E8="Non-RPP kWh",VLOOKUP(W$4,'4. Billing Determinants'!$B$19:$R$41,6,0)/'4. Billing Determinants'!$G$41*$D8,IF($E8="Distribution Rev.",VLOOKUP(W$4,'4. Billing Determinants'!$B$19:$R$41,8,0)/'4. Billing Determinants'!$I$41*$D8, VLOOKUP(W$4,'4. Billing Determinants'!$B$19:$R$41,3,0)/'4. Billing Determinants'!$D$41*$D8))))),0) -> 0 | X8: =IFERROR(IF(X$4="",0,IF($E8="kWh",VLOOKUP(X$4,'4. Billing Determinants'!$B$19:$R$41,4,0)/'4. Billing Determinants'!$E$41*$D8,IF($E8="kW",VLOOKUP(X$4,'4. Billing Determinants'!$B$19:$R$41,5,0)/'4. Billing Determinants'!$F$41*$D8,IF($E8="Non-RPP kWh",VLOOKUP(X$4,'4. Billing Determinants'!$B$19:$R$41,6,0)/'4. Billing Determinants'!$G$41*$D8,IF($E8="Distribution Rev.",VLOOKUP(X$4,'4. Billing Determinants'!$B$19:$R$41,8,0)/'4. Billing Determinants'!$I$41*$D8, VLOOKUP(X$4,'4. Billing Determinants'!$B$19:$R$41,3,0)/'4. Billing Determinants'!$D$41*$D8))))),0) -> 0 | Y8: =IFERROR(IF(Y$4="",0,IF($E8="kWh",VLOOKUP(Y$4,'4. Billing Determinants'!$B$19:$R$41,4,0)/'4. Billing Determinants'!$E$41*$D8,IF($E8="kW",VLOOKUP(Y$4,'4. Billing Determinants'!$B$19:$R$41,5,0)/'4. Billing Determinants'!$F$41*$D8,IF($E8="Non-RPP kWh",VLOOKUP(Y$4,'4. Billing Determinants'!$B$19:$R$41,6,0)/'4. Billing Determinants'!$G$41*$D8,IF($E8="Distribution Rev.",VLOOKUP(Y$4,'4. Billing Determinants'!$B$19:$R$41,8,0)/'4. Billing Determinants'!$I$41*$D8, VLOOKUP(Y$4,'4. Billing Determinants'!$B$19:$R$41,3,0)/'4. Billing Determinants'!$D$41*$D8))))),0) -> 0
B9: RSVA - Retail Transmission Connection Charge | C9: 1586 | D9: ='2. 2016-20 Continuity Schedule'!BD23 -> 1487907.833 | E9: kWh | F9: =IFERROR(IF(F$4="",0,IF($E9="kWh",VLOOKUP(F$4,'4. Billing Determinants'!$B$19:$R$41,4,0)/'4. Billing Determinants'!$E$41*$D9,IF($E9="kW",VLOOKUP(F$4,'4. Billing Determinants'!$B$19:$R$41,5,0)/'4. Billing Determinants'!$F$41*$D9,IF($E9="Non-RPP kWh",VLOOKUP(F$4,'4. Billing Determinants'!$B$19:$R$41,6,0)/'4. Billing Determinants'!$G$41*$D9,IF($E9="Distribution Rev.",VLOOKUP(F$4,'4. Billing Determinants'!$B$19:$R$41,8,0)/'4. Billing Determinants'!$I$41*$D9, VLOOKUP(F$4,'4. Billing Determinants'!$B$19:$R$41,3,0)/'4. Billing Determinants'!$D$41*$D9))))),0) -> 480980.3274 | G9: =IFERROR(IF(G$4="",0,IF($E9="kWh",VLOOKUP(G$4,'4. Billing Determinants'!$B$19:$R$41,4,0)/'4. Billing Determinants'!$E$41*$D9,IF($E9="kW",VLOOKUP(G$4,'4. Billing Determinants'!$B$19:$R$41,5,0)/'4. Billing Determinants'!$F$41*$D9,IF($E9="Non-RPP kWh",VLOOKUP(G$4,'4. Billing Determinants'!$B$19:$R$41,6,0)/'4. Billing Determinants'!$G$41*$D9,IF($E9="Distribution Rev.",VLOOKUP(G$4,'4. Billing Determinants'!$B$19:$R$41,8,0)/'4. Billing Determinants'!$I$41*$D9, VLOOKUP(G$4,'4. Billing Determinants'!$B$19:$R$41,3,0)/'4. Billing Determinants'!$D$41*$D9))))),0) -> 181896.0272 | H9: =IFERROR(IF(H$4="",0,IF($E9="kWh",VLOOKUP(H$4,'4. Billing Determinants'!$B$19:$R$41,4,0)/'4. Billing Determinants'!$E$41*$D9,IF($E9="kW",VLOOKUP(H$4,'4. Billing Determinants'!$B$19:$R$41,5,0)/'4. Billing Determinants'!$F$41*$D9,IF($E9="Non-RPP kWh",VLOOKUP(H$4,'4. Billing Determinants'!$B$19:$R$41,6,0)/'4. Billing Determinants'!$G$41*$D9,IF($E9="Distribution Rev.",VLOOKUP(H$4,'4. Billing Determinants'!$B$19:$R$41,8,0)/'4. Billing Determinants'!$I$41*$D9, VLOOKUP(H$4,'4. Billing Determinants'!$B$19:$R$41,3,0)/'4. Billing Determinants'!$D$41*$D9))))),0) -> 799835.0893 | I9: =IFERROR(IF(I$4="",0,IF($E9="kWh",VLOOKUP(I$4,'4. Billing Determinants'!$B$19:$R$41,4,0)/'4. Billing Determinants'!$E$41*$D9,IF($E9="kW",VLOOKUP(I$4,'4. Billing Determinants'!$B$19:$R$41,5,0)/'4. Billing Determinants'!$F$41*$D9,IF($E9="Non-RPP kWh",VLOOKUP(I$4,'4. Billing Determinants'!$B$19:$R$41,6,0)/'4. Billing Determinants'!$G$41*$D9,IF($E9="Distribution Rev.",VLOOKUP(I$4,'4. Billing Determinants'!$B$19:$R$41,8,0)/'4. Billing Determinants'!$I$41*$D9, VLOOKUP(I$4,'4. Billing Determinants'!$B$19:$R$41,3,0)/'4. Billing Determinants'!$D$41*$D9))))),0) -> 13383.45723 | J9: =IFERROR(IF(J$4="",0,IF($E9="kWh",VLOOKUP(J$4,'4. Billing Determinants'!$B$19:$R$41,4,0)/'4. Billing Determinants'!$E$41*$D9,IF($E9="kW",VLOOKUP(J$4,'4. Billing Determinants'!$B$19:$R$41,5,0)/'4. Billing Determinants'!$F$41*$D9,IF($E9="Non-RPP kWh",VLOOKUP(J$4,'4. Billing Determinants'!$B$19:$R$41,6,0)/'4. Billing Determinants'!$G$41*$D9,IF($E9="Distribution Rev.",VLOOKUP(J$4,'4. Billing Determinants'!$B$19:$R$41,8,0)/'4. Billing Determinants'!$I$41*$D9, VLOOKUP(J$4,'4. Billing Determinants'!$B$19:$R$41,3,0)/'4. Billing Determinants'!$D$41*$D9))))),0) -> 0 | K9: =IFERROR(IF(K$4="",0,IF($E9="kWh",VLOOKUP(K$4,'4. Billing Determinants'!$B$19:$R$41,4,0)/'4. Billing Determinants'!$E$41*$D9,IF($E9="kW",VLOOKUP(K$4,'4. Billing Determinants'!$B$19:$R$41,5,0)/'4. Billing Determinants'!$F$41*$D9,IF($E9="Non-RPP kWh",VLOOKUP(K$4,'4. Billing Determinants'!$B$19:$R$41,6,0)/'4. Billing Determinants'!$G$41*$D9,IF($E9="Distribution Rev.",VLOOKUP(K$4,'4. Billing Determinants'!$B$19:$R$41,8,0)/'4. Billing Determinants'!$I$41*$D9, VLOOKUP(K$4,'4. Billing Determinants'!$B$19:$R$41,3,0)/'4. Billing Determinants'!$D$41*$D9))))),0) -> 2477.754921 | L9: =IFERROR(IF(L$4="",0,IF($E9="kWh",VLOOKUP(L$4,'4. Billing Determinants'!$B$19:$R$41,4,0)/'4. Billing Determinants'!$E$41*$D9,IF($E9="kW",VLOOKUP(L$4,'4. Billing Determinants'!$B$19:$R$41,5,0)/'4. Billing Determinants'!$F$41*$D9,IF($E9="Non-RPP kWh",VLOOKUP(L$4,'4. Billing Determinants'!$B$19:$R$41,6,0)/'4. Billing Determinants'!$G$41*$D9,IF($E9="Distribution Rev.",VLOOKUP(L$4,'4. Billing Determinants'!$B$19:$R$41,8,0)/'4. Billing Determinants'!$I$41*$D9, VLOOKUP(L$4,'4. Billing Determinants'!$B$19:$R$41,3,0)/'4. Billing Determinants'!$D$41*$D9))))),0) -> 66.11205091 | M9: =IFERROR(IF(M$4="",0,IF($E9="kWh",VLOOKUP(M$4,'4. Billing Determinants'!$B$19:$R$41,4,0)/'4. Billing Determinants'!$E$41*$D9,IF($E9="kW",VLOOKUP(M$4,'4. Billing Determinants'!$B$19:$R$41,5,0)/'4. Billing Determinants'!$F$41*$D9,IF($E9="Non-RPP kWh",VLOOKUP(M$4,'4. Billing Determinants'!$B$19:$R$41,6,0)/'4. Billing Determinants'!$G$41*$D9,IF($E9="Distribution Rev.",VLOOKUP(M$4,'4. Billing Determinants'!$B$19:$R$41,8,0)/'4. Billing Determinants'!$I$41*$D9, VLOOKUP(M$4,'4. Billing Determinants'!$B$19:$R$41,3,0)/'4. Billing Determinants'!$D$41*$D9))))),0) -> 9269.06534 | N9: =IFERROR(IF(N$4="",0,IF($E9="kWh",VLOOKUP(N$4,'4. Billing Determinants'!$B$19:$R$41,4,0)/'4. Billing Determinants'!$E$41*$D9,IF($E9="kW",VLOOKUP(N$4,'4. Billing Determinants'!$B$19:$R$41,5,0)/'4. Billing Determinants'!$F$41*$D9,IF($E9="Non-RPP kWh",VLOOKUP(N$4,'4. Billing Determinants'!$B$19:$R$41,6,0)/'4. Billing Determinants'!$G$41*$D9,IF($E9="Distribution Rev.",VLOOKUP(N$4,'4. Billing Determinants'!$B$19:$R$41,8,0)/'4. Billing Determinants'!$I$41*$D9, VLOOKUP(N$4,'4. Billing Determinants'!$B$19:$R$41,3,0)/'4. Billing Determinants'!$D$41*$D9))))),0) -> 0 | O9: =IFERROR(IF(O$4="",0,IF($E9="kWh",VLOOKUP(O$4,'4. Billing Determinants'!$B$19:$R$41,4,0)/'4. Billing Determinants'!$E$41*$D9,IF($E9="kW",VLOOKUP(O$4,'4. Billing Determinants'!$B$19:$R$41,5,0)/'4. Billing Determinants'!$F$41*$D9,IF($E9="Non-RPP kWh",VLOOKUP(O$4,'4. Billing Determinants'!$B$19:$R$41,6,0)/'4. Billing Determinants'!$G$41*$D9,IF($E9="Distribution Rev.",VLOOKUP(O$4,'4. Billing Determinants'!$B$19:$R$41,8,0)/'4. Billing Determinants'!$I$41*$D9, VLOOKUP(O$4,'4. Billing Determinants'!$B$19:$R$41,3,0)/'4. Billing Determinants'!$D$41*$D9))))),0) -> 0 | P9: =IFERROR(IF(P$4="",0,IF($E9="kWh",VLOOKUP(P$4,'4. Billing Determinants'!$B$19:$R$41,4,0)/'4. Billing Determinants'!$E$41*$D9,IF($E9="kW",VLOOKUP(P$4,'4. Billing Determinants'!$B$19:$R$41,5,0)/'4. Billing Determinants'!$F$41*$D9,IF($E9="Non-RPP kWh",VLOOKUP(P$4,'4. Billing Determinants'!$B$19:$R$41,6,0)/'4. Billing Determinants'!$G$41*$D9,IF($E9="Distribution Rev.",VLOOKUP(P$4,'4. Billing Determinants'!$B$19:$R$41,8,0)/'4. Billing Determinants'!$I$41*$D9, VLOOKUP(P$4,'4. Billing Determinants'!$B$19:$R$41,3,0)/'4. Billing Determinants'!$D$41*$D9))))),0) -> 0 | Q9: =IFERROR(IF(Q$4="",0,IF($E9="kWh",VLOOKUP(Q$4,'4. Billing Determinants'!$B$19:$R$41,4,0)/'4. Billing Determinants'!$E$41*$D9,IF($E9="kW",VLOOKUP(Q$4,'4. Billing Determinants'!$B$19:$R$41,5,0)/'4. Billing Determinants'!$F$41*$D9,IF($E9="Non-RPP kWh",VLOOKUP(Q$4,'4. Billing Determinants'!$B$19:$R$41,6,0)/'4. Billing Determinants'!$G$41*$D9,IF($E9="Distribution Rev.",VLOOKUP(Q$4,'4. Billing Determinants'!$B$19:$R$41,8,0)/'4. Billing Determinants'!$I$41*$D9, VLOOKUP(Q$4,'4. Billing Determinants'!$B$19:$R$41,3,0)/'4. Billing Determinants'!$D$41*$D9))))),0) -> 0 | R9: =IFERROR(IF(R$4="",0,IF($E9="kWh",VLOOKUP(R$4,'4. Billing Determinants'!$B$19:$R$41,4,0)/'4. Billing Determinants'!$E$41*$D9,IF($E9="kW",VLOOKUP(R$4,'4. Billing Determinants'!$B$19:$R$41,5,0)/'4. Billing Determinants'!$F$41*$D9,IF($E9="Non-RPP kWh",VLOOKUP(R$4,'4. Billing Determinants'!$B$19:$R$41,6,0)/'4. Billing Determinants'!$G$41*$D9,IF($E9="Distribution Rev.",VLOOKUP(R$4,'4. Billing Determinants'!$B$19:$R$41,8,0)/'4. Billing Determinants'!$I$41*$D9, VLOOKUP(R$4,'4. Billing Determinants'!$B$19:$R$41,3,0)/'4. Billing Determinants'!$D$41*$D9))))),0) -> 0 | S9: =IFERROR(IF(S$4="",0,IF($E9="kWh",VLOOKUP(S$4,'4. Billing Determinants'!$B$19:$R$41,4,0)/'4. Billing Determinants'!$E$41*$D9,IF($E9="kW",VLOOKUP(S$4,'4. Billing Determinants'!$B$19:$R$41,5,0)/'4. Billing Determinants'!$F$41*$D9,IF($E9="Non-RPP kWh",VLOOKUP(S$4,'4. Billing Determinants'!$B$19:$R$41,6,0)/'4. Billing Determinants'!$G$41*$D9,IF($E9="Distribution Rev.",VLOOKUP(S$4,'4. Billing Determinants'!$B$19:$R$41,8,0)/'4. Billing Determinants'!$I$41*$D9, VLOOKUP(S$4,'4. Billing Determinants'!$B$19:$R$41,3,0)/'4. Billing Determinants'!$D$41*$D9))))),0) -> 0 | T9: =IFERROR(IF(T$4="",0,IF($E9="kWh",VLOOKUP(T$4,'4. Billing Determinants'!$B$19:$R$41,4,0)/'4. Billing Determinants'!$E$41*$D9,IF($E9="kW",VLOOKUP(T$4,'4. Billing Determinants'!$B$19:$R$41,5,0)/'4. Billing Determinants'!$F$41*$D9,IF($E9="Non-RPP kWh",VLOOKUP(T$4,'4. Billing Determinants'!$B$19:$R$41,6,0)/'4. Billing Determinants'!$G$41*$D9,IF($E9="Distribution Rev.",VLOOKUP(T$4,'4. Billing Determinants'!$B$19:$R$41,8,0)/'4. Billing Determinants'!$I$41*$D9, VLOOKUP(T$4,'4. Billing Determinants'!$B$19:$R$41,3,0)/'4. Billing Determinants'!$D$41*$D9))))),0) -> 0 | U9: =IFERROR(IF(U$4="",0,IF($E9="kWh",VLOOKUP(U$4,'4. Billing Determinants'!$B$19:$R$41,4,0)/'4. Billing Determinants'!$E$41*$D9,IF($E9="kW",VLOOKUP(U$4,'4. Billing Determinants'!$B$19:$R$41,5,0)/'4. Billing Determinants'!$F$41*$D9,IF($E9="Non-RPP kWh",VLOOKUP(U$4,'4. Billing Determinants'!$B$19:$R$41,6,0)/'4. Billing Determinants'!$G$41*$D9,IF($E9="Distribution Rev.",VLOOKUP(U$4,'4. Billing Determinants'!$B$19:$R$41,8,0)/'4. Billing Determinants'!$I$41*$D9, VLOOKUP(U$4,'4. Billing Determinants'!$B$19:$R$41,3,0)/'4. Billing Determinants'!$D$41*$D9))))),0) -> 0 | V9: =IFERROR(IF(V$4="",0,IF($E9="kWh",VLOOKUP(V$4,'4. Billing Determinants'!$B$19:$R$41,4,0)/'4. Billing Determinants'!$E$41*$D9,IF($E9="kW",VLOOKUP(V$4,'4. Billing Determinants'!$B$19:$R$41,5,0)/'4. Billing Determinants'!$F$41*$D9,IF($E9="Non-RPP kWh",VLOOKUP(V$4,'4. Billing Determinants'!$B$19:$R$41,6,0)/'4. Billing Determinants'!$G$41*$D9,IF($E9="Distribution Rev.",VLOOKUP(V$4,'4. Billing Determinants'!$B$19:$R$41,8,0)/'4. Billing Determinants'!$I$41*$D9, VLOOKUP(V$4,'4. Billing Determinants'!$B$19:$R$41,3,0)/'4. Billing Determinants'!$D$41*$D9))))),0) -> 0 | W9: =IFERROR(IF(W$4="",0,IF($E9="kWh",VLOOKUP(W$4,'4. Billing Determinants'!$B$19:$R$41,4,0)/'4. Billing Determinants'!$E$41*$D9,IF($E9="kW",VLOOKUP(W$4,'4. Billing Determinants'!$B$19:$R$41,5,0)/'4. Billing Determinants'!$F$41*$D9,IF($E9="Non-RPP kWh",VLOOKUP(W$4,'4. Billing Determinants'!$B$19:$R$41,6,0)/'4. Billing Determinants'!$G$41*$D9,IF($E9="Distribution Rev.",VLOOKUP(W$4,'4. Billing Determinants'!$B$19:$R$41,8,0)/'4. Billing Determinants'!$I$41*$D9, VLOOKUP(W$4,'4. Billing Determinants'!$B$19:$R$41,3,0)/'4. Billing Determinants'!$D$41*$D9))))),0) -> 0 | X9: =IFERROR(IF(X$4="",0,IF($E9="kWh",VLOOKUP(X$4,'4. Billing Determinants'!$B$19:$R$41,4,0)/'4. Billing Determinants'!$E$41*$D9,IF($E9="kW",VLOOKUP(X$4,'4. Billing Determinants'!$B$19:$R$41,5,0)/'4. Billing Determinants'!$F$41*$D9,IF($E9="Non-RPP kWh",VLOOKUP(X$4,'4. Billing Determinants'!$B$19:$R$41,6,0)/'4. Billing Determinants'!$G$41*$D9,IF($E9="Distribution Rev.",VLOOKUP(X$4,'4. Billing Determinants'!$B$19:$R$41,8,0)/'4. Billing Determinants'!$I$41*$D9, VLOOKUP(X$4,'4. Billing Determinants'!$B$19:$R$41,3,0)/'4. Billing Determinants'!$D$41*$D9))))),0) -> 0 | Y9: =IFERROR(IF(Y$4="",0,IF($E9="kWh",VLOOKUP(Y$4,'4. Billing Determinants'!$B$19:$R$41,4,0)/'4. Billing Determinants'!$E$41*$D9,IF($E9="kW",VLOOKUP(Y$4,'4. Billing Determinants'!$B$19:$R$41,5,0)/'4. Billing Determinants'!$F$41*$D9,IF($E9="Non-RPP kWh",VLOOKUP(Y$4,'4. Billing Determinants'!$B$19:$R$41,6,0)/'4. Billing Determinants'!$G$41*$D9,IF($E9="Distribution Rev.",VLOOKUP(Y$4,'4. Billing Determinants'!$B$19:$R$41,8,0)/'4. Billing Determinants'!$I$41*$D9, VLOOKUP(Y$4,'4. Billing Determinants'!$B$19:$R$41,3,0)/'4. Billing Determinants'!$D$41*$D9))))),0) -> 0
B10: RSVA - Power (excluding Global Adjustment) | C10: 1588 | D10: ='2. 2016-20 Continuity Schedule'!BD24 -> 637393.7337 | E10: kWh | F10: =IFERROR(IF(F$4="",0,IF($E10="kWh",VLOOKUP(F$4,'4. Billing Determinants'!$B$19:$R$41,4,0)/'4. Billing Determinants'!$E$41*$D10,IF($E10="kW",VLOOKUP(F$4,'4. Billing Determinants'!$B$19:$R$41,5,0)/'4. Billing Determinants'!$F$41*$D10,IF($E10="Non-RPP kWh",VLOOKUP(F$4,'4. Billing Determinants'!$B$19:$R$41,6,0)/'4. Billing Determinants'!$G$41*$D10,IF($E10="Distribution Rev.",VLOOKUP(F$4,'4. Billing Determinants'!$B$19:$R$41,8,0)/'4. Billing Determinants'!$I$41*$D10, VLOOKUP(F$4,'4. Billing Determinants'!$B$19:$R$41,3,0)/'4. Billing Determinants'!$D$41*$D10))))),0) -> 206043.5733 | G10: =IFERROR(IF(G$4="",0,IF($E10="kWh",VLOOKUP(G$4,'4. Billing Determinants'!$B$19:$R$41,4,0)/'4. Billing Determinants'!$E$41*$D10,IF($E10="kW",VLOOKUP(G$4,'4. Billing Determinants'!$B$19:$R$41,5,0)/'4. Billing Determinants'!$F$41*$D10,IF($E10="Non-RPP kWh",VLOOKUP(G$4,'4. Billing Determinants'!$B$19:$R$41,6,0)/'4. Billing Determinants'!$G$41*$D10,IF($E10="Distribution Rev.",VLOOKUP(G$4,'4. Billing Determinants'!$B$19:$R$41,8,0)/'4. Billing Determinants'!$I$41*$D10, VLOOKUP(G$4,'4. Billing Determinants'!$B$19:$R$41,3,0)/'4. Billing Determinants'!$D$41*$D10))))),0) -> 77921.08173 | H10: =IFERROR(IF(H$4="",0,IF($E10="kWh",VLOOKUP(H$4,'4. Billing Determinants'!$B$19:$R$41,4,0)/'4. Billing Determinants'!$E$41*$D10,IF($E10="kW",VLOOKUP(H$4,'4. Billing Determinants'!$B$19:$R$41,5,0)/'4. Billing Determinants'!$F$41*$D10,IF($E10="Non-RPP kWh",VLOOKUP(H$4,'4. Billing Determinants'!$B$19:$R$41,6,0)/'4. Billing Determinants'!$G$41*$D10,IF($E10="Distribution Rev.",VLOOKUP(H$4,'4. Billing Determinants'!$B$19:$R$41,8,0)/'4. Billing Determinants'!$I$41*$D10, VLOOKUP(H$4,'4. Billing Determinants'!$B$19:$R$41,3,0)/'4. Billing Determinants'!$D$41*$D10))))),0) -> 342635.3854 | I10: =IFERROR(IF(I$4="",0,IF($E10="kWh",VLOOKUP(I$4,'4. Billing Determinants'!$B$19:$R$41,4,0)/'4. Billing Determinants'!$E$41*$D10,IF($E10="kW",VLOOKUP(I$4,'4. Billing Determinants'!$B$19:$R$41,5,0)/'4. Billing Determinants'!$F$41*$D10,IF($E10="Non-RPP kWh",VLOOKUP(I$4,'4. Billing Determinants'!$B$19:$R$41,6,0)/'4. Billing Determinants'!$G$41*$D10,IF($E10="Distribution Rev.",VLOOKUP(I$4,'4. Billing Determinants'!$B$19:$R$41,8,0)/'4. Billing Determinants'!$I$41*$D10, VLOOKUP(I$4,'4. Billing Determinants'!$B$19:$R$41,3,0)/'4. Billing Determinants'!$D$41*$D10))))),0) -> 5733.239375 | J10: =IFERROR(IF(J$4="",0,IF($E10="kWh",VLOOKUP(J$4,'4. Billing Determinants'!$B$19:$R$41,4,0)/'4. Billing Determinants'!$E$41*$D10,IF($E10="kW",VLOOKUP(J$4,'4. Billing Determinants'!$B$19:$R$41,5,0)/'4. Billing Determinants'!$F$41*$D10,IF($E10="Non-RPP kWh",VLOOKUP(J$4,'4. Billing Determinants'!$B$19:$R$41,6,0)/'4. Billing Determinants'!$G$41*$D10,IF($E10="Distribution Rev.",VLOOKUP(J$4,'4. Billing Determinants'!$B$19:$R$41,8,0)/'4. Billing Determinants'!$I$41*$D10, VLOOKUP(J$4,'4. Billing Determinants'!$B$19:$R$41,3,0)/'4. Billing Determinants'!$D$41*$D10))))),0) -> 0 | K10: =IFERROR(IF(K$4="",0,IF($E10="kWh",VLOOKUP(K$4,'4. Billing Determinants'!$B$19:$R$41,4,0)/'4. Billing Determinants'!$E$41*$D10,IF($E10="kW",VLOOKUP(K$4,'4. Billing Determinants'!$B$19:$R$41,5,0)/'4. Billing Determinants'!$F$41*$D10,IF($E10="Non-RPP kWh",VLOOKUP(K$4,'4. Billing Determinants'!$B$19:$R$41,6,0)/'4. Billing Determinants'!$G$41*$D10,IF($E10="Distribution Rev.",VLOOKUP(K$4,'4. Billing Determinants'!$B$19:$R$41,8,0)/'4. Billing Determinants'!$I$41*$D10, VLOOKUP(K$4,'4. Billing Determinants'!$B$19:$R$41,3,0)/'4. Billing Determinants'!$D$41*$D10))))),0) -> 1061.426941 | L10: =IFERROR(IF(L$4="",0,IF($E10="kWh",VLOOKUP(L$4,'4. Billing Determinants'!$B$19:$R$41,4,0)/'4. Billing Determinants'!$E$41*$D10,IF($E10="kW",VLOOKUP(L$4,'4. Billing Determinants'!$B$19:$R$41,5,0)/'4. Billing Determinants'!$F$41*$D10,IF($E10="Non-RPP kWh",VLOOKUP(L$4,'4. Billing Determinants'!$B$19:$R$41,6,0)/'4. Billing Determinants'!$G$41*$D10,IF($E10="Distribution Rev.",VLOOKUP(L$4,'4. Billing Determinants'!$B$19:$R$41,8,0)/'4. Billing Determinants'!$I$41*$D10, VLOOKUP(L$4,'4. Billing Determinants'!$B$19:$R$41,3,0)/'4. Billing Determinants'!$D$41*$D10))))),0) -> 28.32124815 | M10: =IFERROR(IF(M$4="",0,IF($E10="kWh",VLOOKUP(M$4,'4. Billing Determinants'!$B$19:$R$41,4,0)/'4. Billing Determinants'!$E$41*$D10,IF($E10="kW",VLOOKUP(M$4,'4. Billing Determinants'!$B$19:$R$41,5,0)/'4. Billing Determinants'!$F$41*$D10,IF($E10="Non-RPP kWh",VLOOKUP(M$4,'4. Billing Determinants'!$B$19:$R$41,6,0)/'4. Billing Determinants'!$G$41*$D10,IF($E10="Distribution Rev.",VLOOKUP(M$4,'4. Billing Determinants'!$B$19:$R$41,8,0)/'4. Billing Determinants'!$I$41*$D10, VLOOKUP(M$4,'4. Billing Determinants'!$B$19:$R$41,3,0)/'4. Billing Determinants'!$D$41*$D10))))),0) -> 3970.705733 | N10: =IFERROR(IF(N$4="",0,IF($E10="kWh",VLOOKUP(N$4,'4. Billing Determinants'!$B$19:$R$41,4,0)/'4. Billing Determinants'!$E$41*$D10,IF($E10="kW",VLOOKUP(N$4,'4. Billing Determinants'!$B$19:$R$41,5,0)/'4. Billing Determinants'!$F$41*$D10,IF($E10="Non-RPP kWh",VLOOKUP(N$4,'4. Billing Determinants'!$B$19:$R$41,6,0)/'4. Billing Determinants'!$G$41*$D10,IF($E10="Distribution Rev.",VLOOKUP(N$4,'4. Billing Determinants'!$B$19:$R$41,8,0)/'4. Billing Determinants'!$I$41*$D10, VLOOKUP(N$4,'4. Billing Determinants'!$B$19:$R$41,3,0)/'4. Billing Determinants'!$D$41*$D10))))),0) -> 0 | O10: =IFERROR(IF(O$4="",0,IF($E10="kWh",VLOOKUP(O$4,'4. Billing Determinants'!$B$19:$R$41,4,0)/'4. Billing Determinants'!$E$41*$D10,IF($E10="kW",VLOOKUP(O$4,'4. Billing Determinants'!$B$19:$R$41,5,0)/'4. Billing Determinants'!$F$41*$D10,IF($E10="Non-RPP kWh",VLOOKUP(O$4,'4. Billing Determinants'!$B$19:$R$41,6,0)/'4. Billing Determinants'!$G$41*$D10,IF($E10="Distribution Rev.",VLOOKUP(O$4,'4. Billing Determinants'!$B$19:$R$41,8,0)/'4. Billing Determinants'!$I$41*$D10, VLOOKUP(O$4,'4. Billing Determinants'!$B$19:$R$41,3,0)/'4. Billing Determinants'!$D$41*$D10))))),0) -> 0 | P10: =IFERROR(IF(P$4="",0,IF($E10="kWh",VLOOKUP(P$4,'4. Billing Determinants'!$B$19:$R$41,4,0)/'4. Billing Determinants'!$E$41*$D10,IF($E10="kW",VLOOKUP(P$4,'4. Billing Determinants'!$B$19:$R$41,5,0)/'4. Billing Determinants'!$F$41*$D10,IF($E10="Non-RPP kWh",VLOOKUP(P$4,'4. Billing Determinants'!$B$19:$R$41,6,0)/'4. Billing Determinants'!$G$41*$D10,IF($E10="Distribution Rev.",VLOOKUP(P$4,'4. Billing Determinants'!$B$19:$R$41,8,0)/'4. Billing Determinants'!$I$41*$D10, VLOOKUP(P$4,'4. Billing Determinants'!$B$19:$R$41,3,0)/'4. Billing Determinants'!$D$41*$D10))))),0) -> 0 | Q10: =IFERROR(IF(Q$4="",0,IF($E10="kWh",VLOOKUP(Q$4,'4. Billing Determinants'!$B$19:$R$41,4,0)/'4. Billing Determinants'!$E$41*$D10,IF($E10="kW",VLOOKUP(Q$4,'4. Billing Determinants'!$B$19:$R$41,5,0)/'4. Billing Determinants'!$F$41*$D10,IF($E10="Non-RPP kWh",VLOOKUP(Q$4,'4. Billing Determinants'!$B$19:$R$41,6,0)/'4. Billing Determinants'!$G$41*$D10,IF($E10="Distribution Rev.",VLOOKUP(Q$4,'4. Billing Determinants'!$B$19:$R$41,8,0)/'4. Billing Determinants'!$I$41*$D10, VLOOKUP(Q$4,'4. Billing Determinants'!$B$19:$R$41,3,0)/'4. Billing Determinants'!$D$41*$D10))))),0) -> 0 | R10: =IFERROR(IF(R$4="",0,IF($E10="kWh",VLOOKUP(R$4,'4. Billing Determinants'!$B$19:$R$41,4,0)/'4. Billing Determinants'!$E$41*$D10,IF($E10="kW",VLOOKUP(R$4,'4. Billing Determinants'!$B$19:$R$41,5,0)/'4. Billing Determinants'!$F$41*$D10,IF($E10="Non-RPP kWh",VLOOKUP(R$4,'4. Billing Determinants'!$B$19:$R$41,6,0)/'4. Billing Determinants'!$G$41*$D10,IF($E10="Distribution Rev.",VLOOKUP(R$4,'4. Billing Determinants'!$B$19:$R$41,8,0)/'4. Billing Determinants'!$I$41*$D10, VLOOKUP(R$4,'4. Billing Determinants'!$B$19:$R$41,3,0)/'4. Billing Determinants'!$D$41*$D10))))),0) -> 0 | S10: =IFERROR(IF(S$4="",0,IF($E10="kWh",VLOOKUP(S$4,'4. Billing Determinants'!$B$19:$R$41,4,0)/'4. Billing Determinants'!$E$41*$D10,IF($E10="kW",VLOOKUP(S$4,'4. Billing Determinants'!$B$19:$R$41,5,0)/'4. Billing Determinants'!$F$41*$D10,IF($E10="Non-RPP kWh",VLOOKUP(S$4,'4. Billing Determinants'!$B$19:$R$41,6,0)/'4. Billing Determinants'!$G$41*$D10,IF($E10="Distribution Rev.",VLOOKUP(S$4,'4. Billing Determinants'!$B$19:$R$41,8,0)/'4. Billing Determinants'!$I$41*$D10, VLOOKUP(S$4,'4. Billing Determinants'!$B$19:$R$41,3,0)/'4. Billing Determinants'!$D$41*$D10))))),0) -> 0 | T10: =IFERROR(IF(T$4="",0,IF($E10="kWh",VLOOKUP(T$4,'4. Billing Determinants'!$B$19:$R$41,4,0)/'4. Billing Determinants'!$E$41*$D10,IF($E10="kW",VLOOKUP(T$4,'4. Billing Determinants'!$B$19:$R$41,5,0)/'4. Billing Determinants'!$F$41*$D10,IF($E10="Non-RPP kWh",VLOOKUP(T$4,'4. Billing Determinants'!$B$19:$R$41,6,0)/'4. Billing Determinants'!$G$41*$D10,IF($E10="Distribution Rev.",VLOOKUP(T$4,'4. Billing Determinants'!$B$19:$R$41,8,0)/'4. Billing Determinants'!$I$41*$D10, VLOOKUP(T$4,'4. Billing Determinants'!$B$19:$R$41,3,0)/'4. Billing Determinants'!$D$41*$D10))))),0) -> 0 | U10: =IFERROR(IF(U$4="",0,IF($E10="kWh",VLOOKUP(U$4,'4. Billing Determinants'!$B$19:$R$41,4,0)/'4. Billing Determinants'!$E$41*$D10,IF($E10="kW",VLOOKUP(U$4,'4. Billing Determinants'!$B$19:$R$41,5,0)/'4. Billing Determinants'!$F$41*$D10,IF($E10="Non-RPP kWh",VLOOKUP(U$4,'4. Billing Determinants'!$B$19:$R$41,6,0)/'4. Billing Determinants'!$G$41*$D10,IF($E10="Distribution Rev.",VLOOKUP(U$4,'4. Billing Determinants'!$B$19:$R$41,8,0)/'4. Billing Determinants'!$I$41*$D10, VLOOKUP(U$4,'4. Billing Determinants'!$B$19:$R$41,3,0)/'4. Billing Determinants'!$D$41*$D10))))),0) -> 0 | V10: =IFERROR(IF(V$4="",0,IF($E10="kWh",VLOOKUP(V$4,'4. Billing Determinants'!$B$19:$R$41,4,0)/'4. Billing Determinants'!$E$41*$D10,IF($E10="kW",VLOOKUP(V$4,'4. Billing Determinants'!$B$19:$R$41,5,0)/'4. Billing Determinants'!$F$41*$D10,IF($E10="Non-RPP kWh",VLOOKUP(V$4,'4. Billing Determinants'!$B$19:$R$41,6,0)/'4. Billing Determinants'!$G$41*$D10,IF($E10="Distribution Rev.",VLOOKUP(V$4,'4. Billing Determinants'!$B$19:$R$41,8,0)/'4. Billing Determinants'!$I$41*$D10, VLOOKUP(V$4,'4. Billing Determinants'!$B$19:$R$41,3,0)/'4. Billing Determinants'!$D$41*$D10))))),0) -> 0 | W10: =IFERROR(IF(W$4="",0,IF($E10="kWh",VLOOKUP(W$4,'4. Billing Determinants'!$B$19:$R$41,4,0)/'4. Billing Determinants'!$E$41*$D10,IF($E10="kW",VLOOKUP(W$4,'4. Billing Determinants'!$B$19:$R$41,5,0)/'4. Billing Determinants'!$F$41*$D10,IF($E10="Non-RPP kWh",VLOOKUP(W$4,'4. Billing Determinants'!$B$19:$R$41,6,0)/'4. Billing Determinants'!$G$41*$D10,IF($E10="Distribution Rev.",VLOOKUP(W$4,'4. Billing Determinants'!$B$19:$R$41,8,0)/'4. Billing Determinants'!$I$41*$D10, VLOOKUP(W$4,'4. Billing Determinants'!$B$19:$R$41,3,0)/'4. Billing Determinants'!$D$41*$D10))))),0) -> 0 | X10: =IFERROR(IF(X$4="",0,IF($E10="kWh",VLOOKUP(X$4,'4. Billing Determinants'!$B$19:$R$41,4,0)/'4. Billing Determinants'!$E$41*$D10,IF($E10="kW",VLOOKUP(X$4,'4. Billing Determinants'!$B$19:$R$41,5,0)/'4. Billing Determinants'!$F$41*$D10,IF($E10="Non-RPP kWh",VLOOKUP(X$4,'4. Billing Determinants'!$B$19:$R$41,6,0)/'4. Billing Determinants'!$G$41*$D10,IF($E10="Distribution Rev.",VLOOKUP(X$4,'4. Billing Determinants'!$B$19:$R$41,8,0)/'4. Billing Determinants'!$I$41*$D10, VLOOKUP(X$4,'4. Billing Determinants'!$B$19:$R$41,3,0)/'4. Billing Determinants'!$D$41*$D10))))),0) -> 0 | Y10: =IFERROR(IF(Y$4="",0,IF($E10="kWh",VLOOKUP(Y$4,'4. Billing Determinants'!$B$19:$R$41,4,0)/'4. Billing Determinants'!$E$41*$D10,IF($E10="kW",VLOOKUP(Y$4,'4. Billing Determinants'!$B$19:$R$41,5,0)/'4. Billing Determinants'!$F$41*$D10,IF($E10="Non-RPP kWh",VLOOKUP(Y$4,'4. Billing Determinants'!$B$19:$R$41,6,0)/'4. Billing Determinants'!$G$41*$D10,IF($E10="Distribution Rev.",VLOOKUP(Y$4,'4. Billing Determinants'!$B$19:$R$41,8,0)/'4. Billing Determinants'!$I$41*$D10, VLOOKUP(Y$4,'4. Billing Determinants'!$B$19:$R$41,3,0)/'4. Billing Determinants'!$D$41*$D10))))),0) -> 0
B11: RSVA - Global Adjustment | C11: 1589 | D11: ='2. 2016-20 Continuity Schedule'!BD25 -> 10422090.72 | E11: Non-RPP kWh | F11: =IF('4. Billing Determinants'!G21>0,'4. Billing Determinants'!$G$21/'4. Billing Determinants'!$G$41*'5. Allocation of Balances'!$D$11,0) -> 354806.6319 | G11: =IF('4. Billing Determinants'!G22>0,'4. Billing Determinants'!$G$22/'4. Billing Determinants'!$G$41*'5. Allocation of Balances'!$D$11,0) -> 381215.3667 | H11: =IF('4. Billing Determinants'!G23>0,'4. Billing Determinants'!$G$23/'4. Billing Determinants'!$G$41*'5. Allocation of Balances'!$D$11,0) -> 9548115.549 | I11: =IF('4. Billing Determinants'!G24>0,'4. Billing Determinants'!$G$24/'4. Billing Determinants'!$G$41*'5. Allocation of Balances'!$D$11,0) -> 0 | J11: =IF('4. Billing Determinants'!G25>0,'4. Billing Determinants'!$G$25/'4. Billing Determinants'!$G$41*'5. Allocation of Balances'!$D$11,0) -> 0 | K11: =IF('4. Billing Determinants'!G26>0,'4. Billing Determinants'!$G$26/'4. Billing Determinants'!$G$41*'5. Allocation of Balances'!$D$11,0) -> 611.8522655 | L11: =IF('4. Billing Determinants'!G27>0,'4. Billing Determinants'!$G$27/'4. Billing Determinants'!$G$41*'5. Allocation of Balances'!$D$11,0) -> 103.0314357 | M11: =IF('4. Billing Determinants'!G28>0,'4. Billing Determinants'!$G$28/'4. Billing Determinants'!$G$41*'5. Allocation of Balances'!$D$11,0) -> 137238.2915 | N11: =IF('4. Billing Determinants'!O21>0,'4. Billing Determinants'!$G$21/'4. Billing Determinants'!$G$41*'5. Allocation of Balances'!L11,0) -> 0 | O11: =IF('4. Billing Determinants'!P21>0,'4. Billing Determinants'!$G$21/'4. Billing Determinants'!$G$41*'5. Allocation of Balances'!M11,0) -> 0 | P11: =IF('4. Billing Determinants'!Q21>0,'4. Billing Determinants'!$G$21/'4. Billing Determinants'!$G$41*'5. Allocation of Balances'!N11,0) -> 0 | Q11: =IF('4. Billing Determinants'!R21>0,'4. Billing Determinants'!$G$21/'4. Billing Determinants'!$G$41*'5. Allocation of Balances'!O11,0) -> 0 | R11: =IF('4. Billing Determinants'!S21>0,'4. Billing Determinants'!$G$21/'4. Billing Determinants'!$G$41*'5. Allocation of Balances'!P11,0) -> 0 | S11: =IF('4. Billing Determinants'!T21>0,'4. Billing Determinants'!$G$21/'4. Billing Determinants'!$G$41*'5. Allocation of Balances'!Q11,0) -> 0 | T11: =IF('4. Billing Determinants'!U21>0,'4. Billing Determinants'!$G$21/'4. Billing Determinants'!$G$41*'5. Allocation of Balances'!R11,0) -> 0 | U11: =IF('4. Billing Determinants'!V21>0,'4. Billing Determinants'!$G$21/'4. Billing Determinants'!$G$41*'5. Allocation of Balances'!S11,0) -> 0 | V11: =IF('4. Billing Determinants'!W21>0,'4. Billing Determinants'!$G$21/'4. Billing Determinants'!$G$41*'5. Allocation of Balances'!T11,0) -> 0 | W11: =IF('4. Billing Determinants'!X21>0,'4. Billing Determinants'!$G$21/'4. Billing Determinants'!$G$41*'5. Allocation of Balances'!U11,0) -> 0 | X11: =IF('4. Billing Determinants'!Y21>0,'4. Billing Determinants'!$G$21/'4. Billing Determinants'!$G$41*'5. Allocation of Balances'!V11,0) -> 0 | Y11: =IF('4. Billing Determinants'!Z21>0,'4. Billing Determinants'!$G$21/'4. Billing Determinants'!$G$41*'5. Allocation of Balances'!W11,0) -> 0
B12: Recovery of Regulatory Asset Balances | C12: 1590 | D12: ='2. 2016-20 Continuity Schedule'!BD26 -> 2.0294 | E12: kWh | F12: =IFERROR(IF(F$4="",0,IF($E12="kWh",VLOOKUP(F$4,'4. Billing Determinants'!$B$19:$R$41,4,0)/'4. Billing Determinants'!$E$41*$D12,IF($E12="kW",VLOOKUP(F$4,'4. Billing Determinants'!$B$19:$R$41,5,0)/'4. Billing Determinants'!$F$41*$D12,IF($E12="Non-RPP kWh",VLOOKUP(F$4,'4. Billing Determinants'!$B$19:$R$41,6,0)/'4. Billing Determinants'!$G$41*$D12,IF($E12="Distribution Rev.",VLOOKUP(F$4,'4. Billing Determinants'!$B$19:$R$41,8,0)/'4. Billing Determinants'!$I$41*$D12, VLOOKUP(F$4,'4. Billing Determinants'!$B$19:$R$41,3,0)/'4. Billing Determinants'!$D$41*$D12))))),0) -> 0.6560228091 | G12: =IFERROR(IF(G$4="",0,IF($E12="kWh",VLOOKUP(G$4,'4. Billing Determinants'!$B$19:$R$41,4,0)/'4. Billing Determinants'!$E$41*$D12,IF($E12="kW",VLOOKUP(G$4,'4. Billing Determinants'!$B$19:$R$41,5,0)/'4. Billing Determinants'!$F$41*$D12,IF($E12="Non-RPP kWh",VLOOKUP(G$4,'4. Billing Determinants'!$B$19:$R$41,6,0)/'4. Billing Determinants'!$G$41*$D12,IF($E12="Distribution Rev.",VLOOKUP(G$4,'4. Billing Determinants'!$B$19:$R$41,8,0)/'4. Billing Determinants'!$I$41*$D12, VLOOKUP(G$4,'4. Billing Determinants'!$B$19:$R$41,3,0)/'4. Billing Determinants'!$D$41*$D12))))),0) -> 0.2480931878 | H12: =IFERROR(IF(H$4="",0,IF($E12="kWh",VLOOKUP(H$4,'4. Billing Determinants'!$B$19:$R$41,4,0)/'4. Billing Determinants'!$E$41*$D12,IF($E12="kW",VLOOKUP(H$4,'4. Billing Determinants'!$B$19:$R$41,5,0)/'4. Billing Determinants'!$F$41*$D12,IF($E12="Non-RPP kWh",VLOOKUP(H$4,'4. Billing Determinants'!$B$19:$R$41,6,0)/'4. Billing Determinants'!$G$41*$D12,IF($E12="Distribution Rev.",VLOOKUP(H$4,'4. Billing Determinants'!$B$19:$R$41,8,0)/'4. Billing Determinants'!$I$41*$D12, VLOOKUP(H$4,'4. Billing Determinants'!$B$19:$R$41,3,0)/'4. Billing Determinants'!$D$41*$D12))))),0) -> 1.090917928 | I12: =IFERROR(IF(I$4="",0,IF($E12="kWh",VLOOKUP(I$4,'4. Billing Determinants'!$B$19:$R$41,4,0)/'4. Billing Determinants'!$E$41*$D12,IF($E12="kW",VLOOKUP(I$4,'4. Billing Determinants'!$B$19:$R$41,5,0)/'4. Billing Determinants'!$F$41*$D12,IF($E12="Non-RPP kWh",VLOOKUP(I$4,'4. Billing Determinants'!$B$19:$R$41,6,0)/'4. Billing Determinants'!$G$41*$D12,IF($E12="Distribution Rev.",VLOOKUP(I$4,'4. Billing Determinants'!$B$19:$R$41,8,0)/'4. Billing Determinants'!$I$41*$D12, VLOOKUP(I$4,'4. Billing Determinants'!$B$19:$R$41,3,0)/'4. Billing Determinants'!$D$41*$D12))))),0) -> 0.01825407966 | J12: =IFERROR(IF(J$4="",0,IF($E12="kWh",VLOOKUP(J$4,'4. Billing Determinants'!$B$19:$R$41,4,0)/'4. Billing Determinants'!$E$41*$D12,IF($E12="kW",VLOOKUP(J$4,'4. Billing Determinants'!$B$19:$R$41,5,0)/'4. Billing Determinants'!$F$41*$D12,IF($E12="Non-RPP kWh",VLOOKUP(J$4,'4. Billing Determinants'!$B$19:$R$41,6,0)/'4. Billing Determinants'!$G$41*$D12,IF($E12="Distribution Rev.",VLOOKUP(J$4,'4. Billing Determinants'!$B$19:$R$41,8,0)/'4. Billing Determinants'!$I$41*$D12, VLOOKUP(J$4,'4. Billing Determinants'!$B$19:$R$41,3,0)/'4. Billing Determinants'!$D$41*$D12))))),0) -> 0 | K12: =IFERROR(IF(K$4="",0,IF($E12="kWh",VLOOKUP(K$4,'4. Billing Determinants'!$B$19:$R$41,4,0)/'4. Billing Determinants'!$E$41*$D12,IF($E12="kW",VLOOKUP(K$4,'4. Billing Determinants'!$B$19:$R$41,5,0)/'4. Billing Determinants'!$F$41*$D12,IF($E12="Non-RPP kWh",VLOOKUP(K$4,'4. Billing Determinants'!$B$19:$R$41,6,0)/'4. Billing Determinants'!$G$41*$D12,IF($E12="Distribution Rev.",VLOOKUP(K$4,'4. Billing Determinants'!$B$19:$R$41,8,0)/'4. Billing Determinants'!$I$41*$D12, VLOOKUP(K$4,'4. Billing Determinants'!$B$19:$R$41,3,0)/'4. Billing Determinants'!$D$41*$D12))))),0) -> 0.00337948072 | L12: =IFERROR(IF(L$4="",0,IF($E12="kWh",VLOOKUP(L$4,'4. Billing Determinants'!$B$19:$R$41,4,0)/'4. Billing Determinants'!$E$41*$D12,IF($E12="kW",VLOOKUP(L$4,'4. Billing Determinants'!$B$19:$R$41,5,0)/'4. Billing Determinants'!$F$41*$D12,IF($E12="Non-RPP kWh",VLOOKUP(L$4,'4. Billing Determinants'!$B$19:$R$41,6,0)/'4. Billing Determinants'!$G$41*$D12,IF($E12="Distribution Rev.",VLOOKUP(L$4,'4. Billing Determinants'!$B$19:$R$41,8,0)/'4. Billing Determinants'!$I$41*$D12, VLOOKUP(L$4,'4. Billing Determinants'!$B$19:$R$41,3,0)/'4. Billing Determinants'!$D$41*$D12))))),0) -> 9.01721149e-05 | M12: =IFERROR(IF(M$4="",0,IF($E12="kWh",VLOOKUP(M$4,'4. Billing Determinants'!$B$19:$R$41,4,0)/'4. Billing Determinants'!$E$41*$D12,IF($E12="kW",VLOOKUP(M$4,'4. Billing Determinants'!$B$19:$R$41,5,0)/'4. Billing Determinants'!$F$41*$D12,IF($E12="Non-RPP kWh",VLOOKUP(M$4,'4. Billing Determinants'!$B$19:$R$41,6,0)/'4. Billing Determinants'!$G$41*$D12,IF($E12="Distribution Rev.",VLOOKUP(M$4,'4. Billing Determinants'!$B$19:$R$41,8,0)/'4. Billing Determinants'!$I$41*$D12, VLOOKUP(M$4,'4. Billing Determinants'!$B$19:$R$41,3,0)/'4. Billing Determinants'!$D$41*$D12))))),0) -> 0.01264234301 | N12: =IFERROR(IF(N$4="",0,IF($E12="kWh",VLOOKUP(N$4,'4. Billing Determinants'!$B$19:$R$41,4,0)/'4. Billing Determinants'!$E$41*$D12,IF($E12="kW",VLOOKUP(N$4,'4. Billing Determinants'!$B$19:$R$41,5,0)/'4. Billing Determinants'!$F$41*$D12,IF($E12="Non-RPP kWh",VLOOKUP(N$4,'4. Billing Determinants'!$B$19:$R$41,6,0)/'4. Billing Determinants'!$G$41*$D12,IF($E12="Distribution Rev.",VLOOKUP(N$4,'4. Billing Determinants'!$B$19:$R$41,8,0)/'4. Billing Determinants'!$I$41*$D12, VLOOKUP(N$4,'4. Billing Determinants'!$B$19:$R$41,3,0)/'4. Billing Determinants'!$D$41*$D12))))),0) -> 0 | O12: =IFERROR(IF(O$4="",0,IF($E12="kWh",VLOOKUP(O$4,'4. Billing Determinants'!$B$19:$R$41,4,0)/'4. Billing Determinants'!$E$41*$D12,IF($E12="kW",VLOOKUP(O$4,'4. Billing Determinants'!$B$19:$R$41,5,0)/'4. Billing Determinants'!$F$41*$D12,IF($E12="Non-RPP kWh",VLOOKUP(O$4,'4. Billing Determinants'!$B$19:$R$41,6,0)/'4. Billing Determinants'!$G$41*$D12,IF($E12="Distribution Rev.",VLOOKUP(O$4,'4. Billing Determinants'!$B$19:$R$41,8,0)/'4. Billing Determinants'!$I$41*$D12, VLOOKUP(O$4,'4. Billing Determinants'!$B$19:$R$41,3,0)/'4. Billing Determinants'!$D$41*$D12))))),0) -> 0 | P12: =IFERROR(IF(P$4="",0,IF($E12="kWh",VLOOKUP(P$4,'4. Billing Determinants'!$B$19:$R$41,4,0)/'4. Billing Determinants'!$E$41*$D12,IF($E12="kW",VLOOKUP(P$4,'4. Billing Determinants'!$B$19:$R$41,5,0)/'4. Billing Determinants'!$F$41*$D12,IF($E12="Non-RPP kWh",VLOOKUP(P$4,'4. Billing Determinants'!$B$19:$R$41,6,0)/'4. Billing Determinants'!$G$41*$D12,IF($E12="Distribution Rev.",VLOOKUP(P$4,'4. Billing Determinants'!$B$19:$R$41,8,0)/'4. Billing Determinants'!$I$41*$D12, VLOOKUP(P$4,'4. Billing Determinants'!$B$19:$R$41,3,0)/'4. Billing Determinants'!$D$41*$D12))))),0) -> 0 | Q12: =IFERROR(IF(Q$4="",0,IF($E12="kWh",VLOOKUP(Q$4,'4. Billing Determinants'!$B$19:$R$41,4,0)/'4. Billing Determinants'!$E$41*$D12,IF($E12="kW",VLOOKUP(Q$4,'4. Billing Determinants'!$B$19:$R$41,5,0)/'4. Billing Determinants'!$F$41*$D12,IF($E12="Non-RPP kWh",VLOOKUP(Q$4,'4. Billing Determinants'!$B$19:$R$41,6,0)/'4. Billing Determinants'!$G$41*$D12,IF($E12="Distribution Rev.",VLOOKUP(Q$4,'4. Billing Determinants'!$B$19:$R$41,8,0)/'4. Billing Determinants'!$I$41*$D12, VLOOKUP(Q$4,'4. Billing Determinants'!$B$19:$R$41,3,0)/'4. Billing Determinants'!$D$41*$D12))))),0) -> 0 | R12: =IFERROR(IF(R$4="",0,IF($E12="kWh",VLOOKUP(R$4,'4. Billing Determinants'!$B$19:$R$41,4,0)/'4. Billing Determinants'!$E$41*$D12,IF($E12="kW",VLOOKUP(R$4,'4. Billing Determinants'!$B$19:$R$41,5,0)/'4. Billing Determinants'!$F$41*$D12,IF($E12="Non-RPP kWh",VLOOKUP(R$4,'4. Billing Determinants'!$B$19:$R$41,6,0)/'4. Billing Determinants'!$G$41*$D12,IF($E12="Distribution Rev.",VLOOKUP(R$4,'4. Billing Determinants'!$B$19:$R$41,8,0)/'4. Billing Determinants'!$I$41*$D12, VLOOKUP(R$4,'4. Billing Determinants'!$B$19:$R$41,3,0)/'4. Billing Determinants'!$D$41*$D12))))),0) -> 0 | S12: =IFERROR(IF(S$4="",0,IF($E12="kWh",VLOOKUP(S$4,'4. Billing Determinants'!$B$19:$R$41,4,0)/'4. Billing Determinants'!$E$41*$D12,IF($E12="kW",VLOOKUP(S$4,'4. Billing Determinants'!$B$19:$R$41,5,0)/'4. Billing Determinants'!$F$41*$D12,IF($E12="Non-RPP kWh",VLOOKUP(S$4,'4. Billing Determinants'!$B$19:$R$41,6,0)/'4. Billing Determinants'!$G$41*$D12,IF($E12="Distribution Rev.",VLOOKUP(S$4,'4. Billing Determinants'!$B$19:$R$41,8,0)/'4. Billing Determinants'!$I$41*$D12, VLOOKUP(S$4,'4. Billing Determinants'!$B$19:$R$41,3,0)/'4. Billing Determinants'!$D$41*$D12))))),0) -> 0 | T12: =IFERROR(IF(T$4="",0,IF($E12="kWh",VLOOKUP(T$4,'4. Billing Determinants'!$B$19:$R$41,4,0)/'4. Billing Determinants'!$E$41*$D12,IF($E12="kW",VLOOKUP(T$4,'4. Billing Determinants'!$B$19:$R$41,5,0)/'4. Billing Determinants'!$F$41*$D12,IF($E12="Non-RPP kWh",VLOOKUP(T$4,'4. Billing Determinants'!$B$19:$R$41,6,0)/'4. Billing Determinants'!$G$41*$D12,IF($E12="Distribution Rev.",VLOOKUP(T$4,'4. Billing Determinants'!$B$19:$R$41,8,0)/'4. Billing Determinants'!$I$41*$D12, VLOOKUP(T$4,'4. Billing Determinants'!$B$19:$R$41,3,0)/'4. Billing Determinants'!$D$41*$D12))))),0) -> 0 | U12: =IFERROR(IF(U$4="",0,IF($E12="kWh",VLOOKUP(U$4,'4. Billing Determinants'!$B$19:$R$41,4,0)/'4. Billing Determinants'!$E$41*$D12,IF($E12="kW",VLOOKUP(U$4,'4. Billing Determinants'!$B$19:$R$41,5,0)/'4. Billing Determinants'!$F$41*$D12,IF($E12="Non-RPP kWh",VLOOKUP(U$4,'4. Billing Determinants'!$B$19:$R$41,6,0)/'4. Billing Determinants'!$G$41*$D12,IF($E12="Distribution Rev.",VLOOKUP(U$4,'4. Billing Determinants'!$B$19:$R$41,8,0)/'4. Billing Determinants'!$I$41*$D12, VLOOKUP(U$4,'4. Billing Determinants'!$B$19:$R$41,3,0)/'4. Billing Determinants'!$D$41*$D12))))),0) -> 0 | V12: =IFERROR(IF(V$4="",0,IF($E12="kWh",VLOOKUP(V$4,'4. Billing Determinants'!$B$19:$R$41,4,0)/'4. Billing Determinants'!$E$41*$D12,IF($E12="kW",VLOOKUP(V$4,'4. Billing Determinants'!$B$19:$R$41,5,0)/'4. Billing Determinants'!$F$41*$D12,IF($E12="Non-RPP kWh",VLOOKUP(V$4,'4. Billing Determinants'!$B$19:$R$41,6,0)/'4. Billing Determinants'!$G$41*$D12,IF($E12="Distribution Rev.",VLOOKUP(V$4,'4. Billing Determinants'!$B$19:$R$41,8,0)/'4. Billing Determinants'!$I$41*$D12, VLOOKUP(V$4,'4. Billing Determinants'!$B$19:$R$41,3,0)/'4. Billing Determinants'!$D$41*$D12))))),0) -> 0 | W12: =IFERROR(IF(W$4="",0,IF($E12="kWh",VLOOKUP(W$4,'4. Billing Determinants'!$B$19:$R$41,4,0)/'4. Billing Determinants'!$E$41*$D12,IF($E12="kW",VLOOKUP(W$4,'4. Billing Determinants'!$B$19:$R$41,5,0)/'4. Billing Determinants'!$F$41*$D12,IF($E12="Non-RPP kWh",VLOOKUP(W$4,'4. Billing Determinants'!$B$19:$R$41,6,0)/'4. Billing Determinants'!$G$41*$D12,IF($E12="Distribution Rev.",VLOOKUP(W$4,'4. Billing Determinants'!$B$19:$R$41,8,0)/'4. Billing Determinants'!$I$41*$D12, VLOOKUP(W$4,'4. Billing Determinants'!$B$19:$R$41,3,0)/'4. Billing Determinants'!$D$41*$D12))))),0) -> 0 | X12: =IFERROR(IF(X$4="",0,IF($E12="kWh",VLOOKUP(X$4,'4. Billing Determinants'!$B$19:$R$41,4,0)/'4. Billing Determinants'!$E$41*$D12,IF($E12="kW",VLOOKUP(X$4,'4. Billing Determinants'!$B$19:$R$41,5,0)/'4. Billing Determinants'!$F$41*$D12,IF($E12="Non-RPP kWh",VLOOKUP(X$4,'4. Billing Determinants'!$B$19:$R$41,6,0)/'4. Billing Determinants'!$G$41*$D12,IF($E12="Distribution Rev.",VLOOKUP(X$4,'4. Billing Determinants'!$B$19:$R$41,8,0)/'4. Billing Determinants'!$I$41*$D12, VLOOKUP(X$4,'4. Billing Determinants'!$B$19:$R$41,3,0)/'4. Billing Determinants'!$D$41*$D12))))),0) -> 0 | Y12: =IFERROR(IF(Y$4="",0,IF($E12="kWh",VLOOKUP(Y$4,'4. Billing Determinants'!$B$19:$R$41,4,0)/'4. Billing Determinants'!$E$41*$D12,IF($E12="kW",VLOOKUP(Y$4,'4. Billing Determinants'!$B$19:$R$41,5,0)/'4. Billing Determinants'!$F$41*$D12,IF($E12="Non-RPP kWh",VLOOKUP(Y$4,'4. Billing Determinants'!$B$19:$R$41,6,0)/'4. Billing Determinants'!$G$41*$D12,IF($E12="Distribution Rev.",VLOOKUP(Y$4,'4. Billing Determinants'!$B$19:$R$41,8,0)/'4. Billing Determinants'!$I$41*$D12, VLOOKUP(Y$4,'4. Billing Determinants'!$B$19:$R$41,3,0)/'4. Billing Determinants'!$D$41*$D12))))),0) -> 0
B13: Disposition and Recovery/Refund of Regulatory Balances (2008) | C13: 1595 | D13: ='2. 2016-20 Continuity Schedule'!BD27 -> 0 | E13: % | F13: =IF(ISERROR(VLOOKUP(F$4, '4. Billing Determinants'!$B$19:$R$41, 10, FALSE)*'2. 2016-20 Continuity Schedule'!$BD$27), 0, VLOOKUP(F$4, '4. Billing Determinants'!$B$19:$R$41, 10, FALSE)*'2. 2016-20 Continuity Schedule'!$BD$27) -> 0 | G13: =IF(ISERROR(VLOOKUP(G$4, '4. Billing Determinants'!$B$19:$R$41, 10, FALSE)*'2. 2016-20 Continuity Schedule'!$BD$27), 0, VLOOKUP(G$4, '4. Billing Determinants'!$B$19:$R$41, 10, FALSE)*'2. 2016-20 Continuity Schedule'!$BD$27) -> 0 | H13: =IF(ISERROR(VLOOKUP(H$4, '4. Billing Determinants'!$B$19:$R$41, 10, FALSE)*'2. 2016-20 Continuity Schedule'!$BD$27), 0, VLOOKUP(H$4, '4. Billing Determinants'!$B$19:$R$41, 10, FALSE)*'2. 2016-20 Continuity Schedule'!$BD$27) -> 0 | I13: =IF(ISERROR(VLOOKUP(I$4, '4. Billing Determinants'!$B$19:$R$41, 10, FALSE)*'2. 2016-20 Continuity Schedule'!$BD$27), 0, VLOOKUP(I$4, '4. Billing Determinants'!$B$19:$R$41, 10, FALSE)*'2. 2016-20 Continuity Schedule'!$BD$27) -> 0 | J13: =IF(ISERROR(VLOOKUP(J$4, '4. Billing Determinants'!$B$19:$R$41, 10, FALSE)*'2. 2016-20 Continuity Schedule'!$BD$27), 0, VLOOKUP(J$4, '4. Billing Determinants'!$B$19:$R$41, 10, FALSE)*'2. 2016-20 Continuity Schedule'!$BD$27) -> 0 | K13: =IF(ISERROR(VLOOKUP(K$4, '4. Billing Determinants'!$B$19:$R$41, 10, FALSE)*'2. 2016-20 Continuity Schedule'!$BD$27), 0, VLOOKUP(K$4, '4. Billing Determinants'!$B$19:$R$41, 10, FALSE)*'2. 2016-20 Continuity Schedule'!$BD$27) -> 0 | L13: =IF(ISERROR(VLOOKUP(L$4, '4. Billing Determinants'!$B$19:$R$41, 10, FALSE)*'2. 2016-20 Continuity Schedule'!$BD$27), 0, VLOOKUP(L$4, '4. Billing Determinants'!$B$19:$R$41, 10, FALSE)*'2. 2016-20 Continuity Schedule'!$BD$27) -> 0 | M13: =IF(ISERROR(VLOOKUP(M$4, '4. Billing Determinants'!$B$19:$R$41, 10, FALSE)*'2. 2016-20 Continuity Schedule'!$BD$27), 0, VLOOKUP(M$4, '4. Billing Determinants'!$B$19:$R$41, 10, FALSE)*'2. 2016-20 Continuity Schedule'!$BD$27) -> 0 | N13: =IF(ISERROR(VLOOKUP(N$4, '4. Billing Determinants'!$B$19:$R$41, 10, FALSE)*'2. 2016-20 Continuity Schedule'!$BD$27), 0, VLOOKUP(N$4, '4. Billing Determinants'!$B$19:$R$41, 10, FALSE)*'2. 2016-20 Continuity Schedule'!$BD$27) -> 0 | O13: =IF(ISERROR(VLOOKUP(O$4, '4. Billing Determinants'!$B$19:$R$41, 10, FALSE)*'2. 2016-20 Continuity Schedule'!$BD$27), 0, VLOOKUP(O$4, '4. Billing Determinants'!$B$19:$R$41, 10, FALSE)*'2. 2016-20 Continuity Schedule'!$BD$27) -> 0 | P13: =IF(ISERROR(VLOOKUP(P$4, '4. Billing Determinants'!$B$19:$R$41, 10, FALSE)*'2. 2016-20 Continuity Schedule'!$BD$27), 0, VLOOKUP(P$4, '4. Billing Determinants'!$B$19:$R$41, 10, FALSE)*'2. 2016-20 Continuity Schedule'!$BD$27) -> 0 | Q13: =IF(ISERROR(VLOOKUP(Q$4, '4. Billing Determinants'!$B$19:$R$41, 10, FALSE)*'2. 2016-20 Continuity Schedule'!$BD$27), 0, VLOOKUP(Q$4, '4. Billing Determinants'!$B$19:$R$41, 10, FALSE)*'2. 2016-20 Continuity Schedule'!$BD$27) -> 0 | R13: =IF(ISERROR(VLOOKUP(R$4, '4. Billing Determinants'!$B$19:$R$41, 10, FALSE)*'2. 2016-20 Continuity Schedule'!$BD$27), 0, VLOOKUP(R$4, '4. Billing Determinants'!$B$19:$R$41, 10, FALSE)*'2. 2016-20 Continuity Schedule'!$BD$27) -> 0 | S13: =IF(ISERROR(VLOOKUP(S$4, '4. Billing Determinants'!$B$19:$R$41, 10, FALSE)*'2. 2016-20 Continuity Schedule'!$BD$27), 0, VLOOKUP(S$4, '4. Billing Determinants'!$B$19:$R$41, 10, FALSE)*'2. 2016-20 Continuity Schedule'!$BD$27) -> 0 | T13: =IF(ISERROR(VLOOKUP(T$4, '4. Billing Determinants'!$B$19:$R$41, 10, FALSE)*'2. 2016-20 Continuity Schedule'!$BD$27), 0, VLOOKUP(T$4, '4. Billing Determinants'!$B$19:$R$41, 10, FALSE)*'2. 2016-20 Continuity Schedule'!$BD$27) -> 0 | U13: =IF(ISERROR(VLOOKUP(U$4, '4. Billing Determinants'!$B$19:$R$41, 10, FALSE)*'2. 2016-20 Continuity Schedule'!$BD$27), 0, VLOOKUP(U$4, '4. Billing Determinants'!$B$19:$R$41, 10, FALSE)*'2. 2016-20 Continuity Schedule'!$BD$27) -> 0 | V13: =IF(ISERROR(VLOOKUP(V$4, '4. Billing Determinants'!$B$19:$R$41, 10, FALSE)*'2. 2016-20 Continuity Schedule'!$BD$27), 0, VLOOKUP(V$4, '4. Billing Determinants'!$B$19:$R$41, 10, FALSE)*'2. 2016-20 Continuity Schedule'!$BD$27) -> 0 | W13: =IF(ISERROR(VLOOKUP(W$4, '4. Billing Determinants'!$B$19:$R$41, 10, FALSE)*'2. 2016-20 Continuity Schedule'!$BD$27), 0, VLOOKUP(W$4, '4. Billing Determinants'!$B$19:$R$41, 10, FALSE)*'2. 2016-20 Continuity Schedule'!$BD$27) -> 0 | X13: =IF(ISERROR(VLOOKUP(X$4, '4. Billing Determinants'!$B$19:$R$41, 10, FALSE)*'2. 2016-20 Continuity Schedule'!$BD$27), 0, VLOOKUP(X$4, '4. Billing Determinants'!$B$19:$R$41, 10, FALSE)*'2. 2016-20 Continuity Schedule'!$BD$27) -> 0 | Y13: =IF(ISERROR(VLOOKUP(Y$4, '4. Billing Determinants'!$B$19:$R$41, 10, FALSE)*'2. 2016-20 Continuity Schedule'!$BD$27), 0, VLOOKUP(Y$4, '4. Billing Determinants'!$B$19:$R$41, 10, FALSE)*'2. 2016-20 Continuity Schedule'!$BD$27) -> 0
B14: Disposition and Recovery/Refund of Regulatory Balances (2009) | C14: 1595 | D14: ='2. 2016-20 Continuity Schedule'!BD28 -> 0 | E14: % | F14: =IF(ISERROR(VLOOKUP(F$4, '4. Billing Determinants'!$B$19:$R$41, 11, FALSE)*'2. 2016-20 Continuity Schedule'!$BD$28), 0, VLOOKUP(F$4, '4. Billing Determinants'!$B$19:$R$41, 11, FALSE)*'2. 2016-20 Continuity Schedule'!$BD$28) -> 0 | G14: =IF(ISERROR(VLOOKUP(G$4, '4. Billing Determinants'!$B$19:$R$41, 11, FALSE)*'2. 2016-20 Continuity Schedule'!$BD$28), 0, VLOOKUP(G$4, '4. Billing Determinants'!$B$19:$R$41, 11, FALSE)*'2. 2016-20 Continuity Schedule'!$BD$28) -> 0 | H14: =IF(ISERROR(VLOOKUP(H$4, '4. Billing Determinants'!$B$19:$R$41, 11, FALSE)*'2. 2016-20 Continuity Schedule'!$BD$28), 0, VLOOKUP(H$4, '4. Billing Determinants'!$B$19:$R$41, 11, FALSE)*'2. 2016-20 Continuity Schedule'!$BD$28) -> 0 | I14: =IF(ISERROR(VLOOKUP(I$4, '4. Billing Determinants'!$B$19:$R$41, 11, FALSE)*'2. 2016-20 Continuity Schedule'!$BD$28), 0, VLOOKUP(I$4, '4. Billing Determinants'!$B$19:$R$41, 11, FALSE)*'2. 2016-20 Continuity Schedule'!$BD$28) -> 0 | J14: =IF(ISERROR(VLOOKUP(J$4, '4. Billing Determinants'!$B$19:$R$41, 11, FALSE)*'2. 2016-20 Continuity Schedule'!$BD$28), 0, VLOOKUP(J$4, '4. Billing Determinants'!$B$19:$R$41, 11, FALSE)*'2. 2016-20 Continuity Schedule'!$BD$28) -> 0 | K14: =IF(ISERROR(VLOOKUP(K$4, '4. Billing Determinants'!$B$19:$R$41, 11, FALSE)*'2. 2016-20 Continuity Schedule'!$BD$28), 0, VLOOKUP(K$4, '4. Billing Determinants'!$B$19:$R$41, 11, FALSE)*'2. 2016-20 Continuity Schedule'!$BD$28) -> 0 | L14: =IF(ISERROR(VLOOKUP(L$4, '4. Billing Determinants'!$B$19:$R$41, 11, FALSE)*'2. 2016-20 Continuity Schedule'!$BD$28), 0, VLOOKUP(L$4, '4. Billing Determinants'!$B$19:$R$41, 11, FALSE)*'2. 2016-20 Continuity Schedule'!$BD$28) -> 0 | M14: =IF(ISERROR(VLOOKUP(M$4, '4. Billing Determinants'!$B$19:$R$41, 11, FALSE)*'2. 2016-20 Continuity Schedule'!$BD$28), 0, VLOOKUP(M$4, '4. Billing Determinants'!$B$19:$R$41, 11, FALSE)*'2. 2016-20 Continuity Schedule'!$BD$28) -> 0 | N14: =IF(ISERROR(VLOOKUP(N$4, '4. Billing Determinants'!$B$19:$R$41, 11, FALSE)*'2. 2016-20 Continuity Schedule'!$BD$28), 0, VLOOKUP(N$4, '4. Billing Determinants'!$B$19:$R$41, 11, FALSE)*'2. 2016-20 Continuity Schedule'!$BD$28) -> 0 | O14: =IF(ISERROR(VLOOKUP(O$4, '4. Billing Determinants'!$B$19:$R$41, 11, FALSE)*'2. 2016-20 Continuity Schedule'!$BD$28), 0, VLOOKUP(O$4, '4. Billing Determinants'!$B$19:$R$41, 11, FALSE)*'2. 2016-20 Continuity Schedule'!$BD$28) -> 0 | P14: =IF(ISERROR(VLOOKUP(P$4, '4. Billing Determinants'!$B$19:$R$41, 11, FALSE)*'2. 2016-20 Continuity Schedule'!$BD$28), 0, VLOOKUP(P$4, '4. Billing Determinants'!$B$19:$R$41, 11, FALSE)*'2. 2016-20 Continuity Schedule'!$BD$28) -> 0 | Q14: =IF(ISERROR(VLOOKUP(Q$4, '4. Billing Determinants'!$B$19:$R$41, 11, FALSE)*'2. 2016-20 Continuity Schedule'!$BD$28), 0, VLOOKUP(Q$4, '4. Billing Determinants'!$B$19:$R$41, 11, FALSE)*'2. 2016-20 Continuity Schedule'!$BD$28) -> 0 | R14: =IF(ISERROR(VLOOKUP(R$4, '4. Billing Determinants'!$B$19:$R$41, 11, FALSE)*'2. 2016-20 Continuity Schedule'!$BD$28), 0, VLOOKUP(R$4, '4. Billing Determinants'!$B$19:$R$41, 11, FALSE)*'2. 2016-20 Continuity Schedule'!$BD$28) -> 0 | S14: =IF(ISERROR(VLOOKUP(S$4, '4. Billing Determinants'!$B$19:$R$41, 11, FALSE)*'2. 2016-20 Continuity Schedule'!$BD$28), 0, VLOOKUP(S$4, '4. Billing Determinants'!$B$19:$R$41, 11, FALSE)*'2. 2016-20 Continuity Schedule'!$BD$28) -> 0 | T14: =IF(ISERROR(VLOOKUP(T$4, '4. Billing Determinants'!$B$19:$R$41, 11, FALSE)*'2. 2016-20 Continuity Schedule'!$BD$28), 0, VLOOKUP(T$4, '4. Billing Determinants'!$B$19:$R$41, 11, FALSE)*'2. 2016-20 Continuity Schedule'!$BD$28) -> 0 | U14: =IF(ISERROR(VLOOKUP(U$4, '4. Billing Determinants'!$B$19:$R$41, 11, FALSE)*'2. 2016-20 Continuity Schedule'!$BD$28), 0, VLOOKUP(U$4, '4. Billing Determinants'!$B$19:$R$41, 11, FALSE)*'2. 2016-20 Continuity Schedule'!$BD$28) -> 0 | V14: =IF(ISERROR(VLOOKUP(V$4, '4. Billing Determinants'!$B$19:$R$41, 11, FALSE)*'2. 2016-20 Continuity Schedule'!$BD$28), 0, VLOOKUP(V$4, '4. Billing Determinants'!$B$19:$R$41, 11, FALSE)*'2. 2016-20 Continuity Schedule'!$BD$28) -> 0 | W14: =IF(ISERROR(VLOOKUP(W$4, '4. Billing Determinants'!$B$19:$R$41, 11, FALSE)*'2. 2016-20 Continuity Schedule'!$BD$28), 0, VLOOKUP(W$4, '4. Billing Determinants'!$B$19:$R$41, 11, FALSE)*'2. 2016-20 Continuity Schedule'!$BD$28) -> 0 | X14: =IF(ISERROR(VLOOKUP(X$4, '4. Billing Determinants'!$B$19:$R$41, 11, FALSE)*'2. 2016-20 Continuity Schedule'!$BD$28), 0, VLOOKUP(X$4, '4. Billing Determinants'!$B$19:$R$41, 11, FALSE)*'2. 2016-20 Continuity Schedule'!$BD$28) -> 0 | Y14: =IF(ISERROR(VLOOKUP(Y$4, '4. Billing Determinants'!$B$19:$R$41, 11, FALSE)*'2. 2016-20 Continuity Schedule'!$BD$28), 0, VLOOKUP(Y$4, '4. Billing Determinants'!$B$19:$R$41, 11, FALSE)*'2. 2016-20 Continuity Schedule'!$BD$28) -> 0
B15: Disposition and Recovery/Refund of Regulatory Balances (2010) | C15: 1595 | D15: ='2. 2016-20 Continuity Schedule'!BD29 -> 0 | E15: % | F15: =IF(ISERROR(VLOOKUP(F$4, '4. Billing Determinants'!$B$19:$R$41, 12, FALSE)*'2. 2016-20 Continuity Schedule'!$BD$29), 0, VLOOKUP(F$4, '4. Billing Determinants'!$B$19:$R$41, 12, FALSE)*'2. 2016-20 Continuity Schedule'!$BD$29) -> 0 | G15: =IF(ISERROR(VLOOKUP(G$4, '4. Billing Determinants'!$B$19:$R$41, 12, FALSE)*'2. 2016-20 Continuity Schedule'!$BD$29), 0, VLOOKUP(G$4, '4. Billing Determinants'!$B$19:$R$41, 12, FALSE)*'2. 2016-20 Continuity Schedule'!$BD$29) -> 0 | H15: =IF(ISERROR(VLOOKUP(H$4, '4. Billing Determinants'!$B$19:$R$41, 12, FALSE)*'2. 2016-20 Continuity Schedule'!$BD$29), 0, VLOOKUP(H$4, '4. Billing Determinants'!$B$19:$R$41, 12, FALSE)*'2. 2016-20 Continuity Schedule'!$BD$29) -> 0 | I15: =IF(ISERROR(VLOOKUP(I$4, '4. Billing Determinants'!$B$19:$R$41, 12, FALSE)*'2. 2016-20 Continuity Schedule'!$BD$29), 0, VLOOKUP(I$4, '4. Billing Determinants'!$B$19:$R$41, 12, FALSE)*'2. 2016-20 Continuity Schedule'!$BD$29) -> 0 | J15: =IF(ISERROR(VLOOKUP(J$4, '4. Billing Determinants'!$B$19:$R$41, 12, FALSE)*'2. 2016-20 Continuity Schedule'!$BD$29), 0, VLOOKUP(J$4, '4. Billing Determinants'!$B$19:$R$41, 12, FALSE)*'2. 2016-20 Continuity Schedule'!$BD$29) -> 0 | K15: =IF(ISERROR(VLOOKUP(K$4, '4. Billing Determinants'!$B$19:$R$41, 12, FALSE)*'2. 2016-20 Continuity Schedule'!$BD$29), 0, VLOOKUP(K$4, '4. Billing Determinants'!$B$19:$R$41, 12, FALSE)*'2. 2016-20 Continuity Schedule'!$BD$29) -> 0 | L15: =IF(ISERROR(VLOOKUP(L$4, '4. Billing Determinants'!$B$19:$R$41, 12, FALSE)*'2. 2016-20 Continuity Schedule'!$BD$29), 0, VLOOKUP(L$4, '4. Billing Determinants'!$B$19:$R$41, 12, FALSE)*'2. 2016-20 Continuity Schedule'!$BD$29) -> 0 | M15: =IF(ISERROR(VLOOKUP(M$4, '4. Billing Determinants'!$B$19:$R$41, 12, FALSE)*'2. 2016-20 Continuity Schedule'!$BD$29), 0, VLOOKUP(M$4, '4. Billing Determinants'!$B$19:$R$41, 12, FALSE)*'2. 2016-20 Continuity Schedule'!$BD$29) -> 0 | N15: =IF(ISERROR(VLOOKUP(N$4, '4. Billing Determinants'!$B$19:$R$41, 12, FALSE)*'2. 2016-20 Continuity Schedule'!$BD$29), 0, VLOOKUP(N$4, '4. Billing Determinants'!$B$19:$R$41, 12, FALSE)*'2. 2016-20 Continuity Schedule'!$BD$29) -> 0 | O15: =IF(ISERROR(VLOOKUP(O$4, '4. Billing Determinants'!$B$19:$R$41, 12, FALSE)*'2. 2016-20 Continuity Schedule'!$BD$29), 0, VLOOKUP(O$4, '4. Billing Determinants'!$B$19:$R$41, 12, FALSE)*'2. 2016-20 Continuity Schedule'!$BD$29) -> 0 | P15: =IF(ISERROR(VLOOKUP(P$4, '4. Billing Determinants'!$B$19:$R$41, 12, FALSE)*'2. 2016-20 Continuity Schedule'!$BD$29), 0, VLOOKUP(P$4, '4. Billing Determinants'!$B$19:$R$41, 12, FALSE)*'2. 2016-20 Continuity Schedule'!$BD$29) -> 0 | Q15: =IF(ISERROR(VLOOKUP(Q$4, '4. Billing Determinants'!$B$19:$R$41, 12, FALSE)*'2. 2016-20 Continuity Schedule'!$BD$29), 0, VLOOKUP(Q$4, '4. Billing Determinants'!$B$19:$R$41, 12, FALSE)*'2. 2016-20 Continuity Schedule'!$BD$29) -> 0 | R15: =IF(ISERROR(VLOOKUP(R$4, '4. Billing Determinants'!$B$19:$R$41, 12, FALSE)*'2. 2016-20 Continuity Schedule'!$BD$29), 0, VLOOKUP(R$4, '4. Billing Determinants'!$B$19:$R$41, 12, FALSE)*'2. 2016-20 Continuity Schedule'!$BD$29) -> 0 | S15: =IF(ISERROR(VLOOKUP(S$4, '4. Billing Determinants'!$B$19:$R$41, 12, FALSE)*'2. 2016-20 Continuity Schedule'!$BD$29), 0, VLOOKUP(S$4, '4. Billing Determinants'!$B$19:$R$41, 12, FALSE)*'2. 2016-20 Continuity Schedule'!$BD$29) -> 0 | T15: =IF(ISERROR(VLOOKUP(T$4, '4. Billing Determinants'!$B$19:$R$41, 12, FALSE)*'2. 2016-20 Continuity Schedule'!$BD$29), 0, VLOOKUP(T$4, '4. Billing Determinants'!$B$19:$R$41, 12, FALSE)*'2. 2016-20 Continuity Schedule'!$BD$29) -> 0 | U15: =IF(ISERROR(VLOOKUP(U$4, '4. Billing Determinants'!$B$19:$R$41, 12, FALSE)*'2. 2016-20 Continuity Schedule'!$BD$29), 0, VLOOKUP(U$4, '4. Billing Determinants'!$B$19:$R$41, 12, FALSE)*'2. 2016-20 Continuity Schedule'!$BD$29) -> 0 | V15: =IF(ISERROR(VLOOKUP(V$4, '4. Billing Determinants'!$B$19:$R$41, 12, FALSE)*'2. 2016-20 Continuity Schedule'!$BD$29), 0, VLOOKUP(V$4, '4. Billing Determinants'!$B$19:$R$41, 12, FALSE)*'2. 2016-20 Continuity Schedule'!$BD$29) -> 0 | W15: =IF(ISERROR(VLOOKUP(W$4, '4. Billing Determinants'!$B$19:$R$41, 12, FALSE)*'2. 2016-20 Continuity Schedule'!$BD$29), 0, VLOOKUP(W$4, '4. Billing Determinants'!$B$19:$R$41, 12, FALSE)*'2. 2016-20 Continuity Schedule'!$BD$29) -> 0 | X15: =IF(ISERROR(VLOOKUP(X$4, '4. Billing Determinants'!$B$19:$R$41, 12, FALSE)*'2. 2016-20 Continuity Schedule'!$BD$29), 0, VLOOKUP(X$4, '4. Billing Determinants'!$B$19:$R$41, 12, FALSE)*'2. 2016-20 Continuity Schedule'!$BD$29) -> 0 | Y15: =IF(ISERROR(VLOOKUP(Y$4, '4. Billing Determinants'!$B$19:$R$41, 12, FALSE)*'2. 2016-20 Continuity Schedule'!$BD$29), 0, VLOOKUP(Y$4, '4. Billing Determinants'!$B$19:$R$41, 12, FALSE)*'2. 2016-20 Continuity Schedule'!$BD$29) -> 0
B16: Disposition and Recovery/Refund of Regulatory Balances (2011) | C16: 1595 | D16: ='2. 2016-20 Continuity Schedule'!BD30 -> 0 | E16: % | F16: =IF(ISERROR(VLOOKUP(F$4, '4. Billing Determinants'!$B$19:$R$41, 13, FALSE)*'2. 2016-20 Continuity Schedule'!$BD$30), 0, VLOOKUP(F$4, '4. Billing Determinants'!$B$19:$R$41, 13, FALSE)*'2. 2016-20 Continuity Schedule'!$BD$30) -> 0 | G16: =IF(ISERROR(VLOOKUP(G$4, '4. Billing Determinants'!$B$19:$R$41, 13, FALSE)*'2. 2016-20 Continuity Schedule'!$BD$30), 0, VLOOKUP(G$4, '4. Billing Determinants'!$B$19:$R$41, 13, FALSE)*'2. 2016-20 Continuity Schedule'!$BD$30) -> 0 | H16: =IF(ISERROR(VLOOKUP(H$4, '4. Billing Determinants'!$B$19:$R$41, 13, FALSE)*'2. 2016-20 Continuity Schedule'!$BD$30), 0, VLOOKUP(H$4, '4. Billing Determinants'!$B$19:$R$41, 13, FALSE)*'2. 2016-20 Continuity Schedule'!$BD$30) -> 0 | I16: =IF(ISERROR(VLOOKUP(I$4, '4. Billing Determinants'!$B$19:$R$41, 13, FALSE)*'2. 2016-20 Continuity Schedule'!$BD$30), 0, VLOOKUP(I$4, '4. Billing Determinants'!$B$19:$R$41, 13, FALSE)*'2. 2016-20 Continuity Schedule'!$BD$30) -> 0 | J16: =IF(ISERROR(VLOOKUP(J$4, '4. Billing Determinants'!$B$19:$R$41, 13, FALSE)*'2. 2016-20 Continuity Schedule'!$BD$30), 0, VLOOKUP(J$4, '4. Billing Determinants'!$B$19:$R$41, 13, FALSE)*'2. 2016-20 Continuity Schedule'!$BD$30) -> 0 | K16: =IF(ISERROR(VLOOKUP(K$4, '4. Billing Determinants'!$B$19:$R$41, 13, FALSE)*'2. 2016-20 Continuity Schedule'!$BD$30), 0, VLOOKUP(K$4, '4. Billing Determinants'!$B$19:$R$41, 13, FALSE)*'2. 2016-20 Continuity Schedule'!$BD$30) -> 0 | L16: =IF(ISERROR(VLOOKUP(L$4, '4. Billing Determinants'!$B$19:$R$41, 13, FALSE)*'2. 2016-20 Continuity Schedule'!$BD$30), 0, VLOOKUP(L$4, '4. Billing Determinants'!$B$19:$R$41, 13, FALSE)*'2. 2016-20 Continuity Schedule'!$BD$30) -> 0 | M16: =IF(ISERROR(VLOOKUP(M$4, '4. Billing Determinants'!$B$19:$R$41, 13, FALSE)*'2. 2016-20 Continuity Schedule'!$BD$30), 0, VLOOKUP(M$4, '4. Billing Determinants'!$B$19:$R$41, 13, FALSE)*'2. 2016-20 Continuity Schedule'!$BD$30) -> 0 | N16: =IF(ISERROR(VLOOKUP(N$4, '4. Billing Determinants'!$B$19:$R$41, 13, FALSE)*'2. 2016-20 Continuity Schedule'!$BD$30), 0, VLOOKUP(N$4, '4. Billing Determinants'!$B$19:$R$41, 13, FALSE)*'2. 2016-20 Continuity Schedule'!$BD$30) -> 0 | O16: =IF(ISERROR(VLOOKUP(O$4, '4. Billing Determinants'!$B$19:$R$41, 13, FALSE)*'2. 2016-20 Continuity Schedule'!$BD$30), 0, VLOOKUP(O$4, '4. Billing Determinants'!$B$19:$R$41, 13, FALSE)*'2. 2016-20 Continuity Schedule'!$BD$30) -> 0 | P16: =IF(ISERROR(VLOOKUP(P$4, '4. Billing Determinants'!$B$19:$R$41, 13, FALSE)*'2. 2016-20 Continuity Schedule'!$BD$30), 0, VLOOKUP(P$4, '4. Billing Determinants'!$B$19:$R$41, 13, FALSE)*'2. 2016-20 Continuity Schedule'!$BD$30) -> 0 | Q16: =IF(ISERROR(VLOOKUP(Q$4, '4. Billing Determinants'!$B$19:$R$41, 13, FALSE)*'2. 2016-20 Continuity Schedule'!$BD$30), 0, VLOOKUP(Q$4, '4. Billing Determinants'!$B$19:$R$41, 13, FALSE)*'2. 2016-20 Continuity Schedule'!$BD$30) -> 0 | R16: =IF(ISERROR(VLOOKUP(R$4, '4. Billing Determinants'!$B$19:$R$41, 13, FALSE)*'2. 2016-20 Continuity Schedule'!$BD$30), 0, VLOOKUP(R$4, '4. Billing Determinants'!$B$19:$R$41, 13, FALSE)*'2. 2016-20 Continuity Schedule'!$BD$30) -> 0 | S16: =IF(ISERROR(VLOOKUP(S$4, '4. Billing Determinants'!$B$19:$R$41, 13, FALSE)*'2. 2016-20 Continuity Schedule'!$BD$30), 0, VLOOKUP(S$4, '4. Billing Determinants'!$B$19:$R$41, 13, FALSE)*'2. 2016-20 Continuity Schedule'!$BD$30) -> 0 | T16: =IF(ISERROR(VLOOKUP(T$4, '4. Billing Determinants'!$B$19:$R$41, 13, FALSE)*'2. 2016-20 Continuity Schedule'!$BD$30), 0, VLOOKUP(T$4, '4. Billing Determinants'!$B$19:$R$41, 13, FALSE)*'2. 2016-20 Continuity Schedule'!$BD$30) -> 0 | U16: =IF(ISERROR(VLOOKUP(U$4, '4. Billing Determinants'!$B$19:$R$41, 13, FALSE)*'2. 2016-20 Continuity Schedule'!$BD$30), 0, VLOOKUP(U$4, '4. Billing Determinants'!$B$19:$R$41, 13, FALSE)*'2. 2016-20 Continuity Schedule'!$BD$30) -> 0 | V16: =IF(ISERROR(VLOOKUP(V$4, '4. Billing Determinants'!$B$19:$R$41, 13, FALSE)*'2. 2016-20 Continuity Schedule'!$BD$30), 0, VLOOKUP(V$4, '4. Billing Determinants'!$B$19:$R$41, 13, FALSE)*'2. 2016-20 Continuity Schedule'!$BD$30) -> 0 | W16: =IF(ISERROR(VLOOKUP(W$4, '4. Billing Determinants'!$B$19:$R$41, 13, FALSE)*'2. 2016-20 Continuity Schedule'!$BD$30), 0, VLOOKUP(W$4, '4. Billing Determinants'!$B$19:$R$41, 13, FALSE)*'2. 2016-20 Continuity Schedule'!$BD$30) -> 0 | X16: =IF(ISERROR(VLOOKUP(X$4, '4. Billing Determinants'!$B$19:$R$41, 13, FALSE)*'2. 2016-20 Continuity Schedule'!$BD$30), 0, VLOOKUP(X$4, '4. Billing Determinants'!$B$19:$R$41, 13, FALSE)*'2. 2016-20 Continuity Schedule'!$BD$30) -> 0 | Y16: =IF(ISERROR(VLOOKUP(Y$4, '4. Billing Determinants'!$B$19:$R$41, 13, FALSE)*'2. 2016-20 Continuity Schedule'!$BD$30), 0, VLOOKUP(Y$4, '4. Billing Determinants'!$B$19:$R$41, 13, FALSE)*'2. 2016-20 Continuity Schedule'!$BD$30) -> 0
B17: Total of Group 1 Accounts (excluding 1589) | D17: =SUM(D5:D16)-D11 -> -136632.9144 | F17: =SUM(F5:F16)-F11 -> -44167.88623 | G17: =SUM(G5:G16)-G11 -> -16703.309 | H17: -73447.96286 | I17: -1228.987929 | J17: 0 | K17: -227.5294668 | L17: -6.07099579 | M17: -851.1679169 | N17: 0 | O17: 0 | P17: 0 | Q17: 0 | R17: 0 | S17: 0 | T17: 0 | U17: 0 | V17: 0 | W17: 0 | X17: 0 | Y17: 0
B19: Other Regulatory Assets - Sub-Account - OEB Cost Assessments | C19: 1508 | D19: ='2. 2016-20 Continuity Schedule'!BD37 -> 273869.806 | E19: Distribution Rev. | F19: =IFERROR(IF(F$4="",0,IF($E19="kWh",VLOOKUP(F$4,'4. Billing Determinants'!$B$19:$R$41,4,0)/'4. Billing Determinants'!$E$41*$D19,IF($E19="kW",VLOOKUP(F$4,'4. Billing Determinants'!$B$19:$R$41,5,0)/'4. Billing Determinants'!$F$41*$D19,IF($E19="Non-RPP kWh",VLOOKUP(F$4,'4. Billing Determinants'!$B$19:$R$41,6,0)/'4. Billing Determinants'!$G$41*$D19,IF($E19="Distribution Rev.",VLOOKUP(F$4,'4. Billing Determinants'!$B$19:$R$41,8,0)/'4. Billing Determinants'!$I$41*$D19, VLOOKUP(F$4,'4. Billing Determinants'!$B$19:$R$41,3,0)/'4. Billing Determinants'!$D$41*$D19))))),0) -> 148335.7968 | G19: =IFERROR(IF(G$4="",0,IF($E19="kWh",VLOOKUP(G$4,'4. Billing Determinants'!$B$19:$R$41,4,0)/'4. Billing Determinants'!$E$41*$D19,IF($E19="kW",VLOOKUP(G$4,'4. Billing Determinants'!$B$19:$R$41,5,0)/'4. Billing Determinants'!$F$41*$D19,IF($E19="Non-RPP kWh",VLOOKUP(G$4,'4. Billing Determinants'!$B$19:$R$41,6,0)/'4. Billing Determinants'!$G$41*$D19,IF($E19="Distribution Rev.",VLOOKUP(G$4,'4. Billing Determinants'!$B$19:$R$41,8,0)/'4. Billing Determinants'!$I$41*$D19, VLOOKUP(G$4,'4. Billing Determinants'!$B$19:$R$41,3,0)/'4. Billing Determinants'!$D$41*$D19))))),0) -> 41485.42312 | H19: =IFERROR(IF(H$4="",0,IF($E19="kWh",VLOOKUP(H$4,'4. Billing Determinants'!$B$19:$R$41,4,0)/'4. Billing Determinants'!$E$41*$D19,IF($E19="kW",VLOOKUP(H$4,'4. Billing Determinants'!$B$19:$R$41,5,0)/'4. Billing Determinants'!$F$41*$D19,IF($E19="Non-RPP kWh",VLOOKUP(H$4,'4. Billing Determinants'!$B$19:$R$41,6,0)/'4. Billing Determinants'!$G$41*$D19,IF($E19="Distribution Rev.",VLOOKUP(H$4,'4. Billing Determinants'!$B$19:$R$41,8,0)/'4. Billing Determinants'!$I$41*$D19, VLOOKUP(H$4,'4. Billing Determinants'!$B$19:$R$41,3,0)/'4. Billing Determinants'!$D$41*$D19))))),0) -> 78769.95031 | I19: =IFERROR(IF(I$4="",0,IF($E19="kWh",VLOOKUP(I$4,'4. Billing Determinants'!$B$19:$R$41,4,0)/'4. Billing Determinants'!$E$41*$D19,IF($E19="kW",VLOOKUP(I$4,'4. Billing Determinants'!$B$19:$R$41,5,0)/'4. Billing Determinants'!$F$41*$D19,IF($E19="Non-RPP kWh",VLOOKUP(I$4,'4. Billing Determinants'!$B$19:$R$41,6,0)/'4. Billing Determinants'!$G$41*$D19,IF($E19="Distribution Rev.",VLOOKUP(I$4,'4. Billing Determinants'!$B$19:$R$41,8,0)/'4. Billing Determinants'!$I$41*$D19, VLOOKUP(I$4,'4. Billing Determinants'!$B$19:$R$41,3,0)/'4. Billing Determinants'!$D$41*$D19))))),0) -> 537.4022578 | J19: =IFERROR(IF(J$4="",0,IF($E19="kWh",VLOOKUP(J$4,'4. Billing Determinants'!$B$19:$R$41,4,0)/'4. Billing Determinants'!$E$41*$D19,IF($E19="kW",VLOOKUP(J$4,'4. Billing Determinants'!$B$19:$R$41,5,0)/'4. Billing Determinants'!$F$41*$D19,IF($E19="Non-RPP kWh",VLOOKUP(J$4,'4. Billing Determinants'!$B$19:$R$41,6,0)/'4. Billing Determinants'!$G$41*$D19,IF($E19="Distribution Rev.",VLOOKUP(J$4,'4. Billing Determinants'!$B$19:$R$41,8,0)/'4. Billing Determinants'!$I$41*$D19, VLOOKUP(J$4,'4. Billing Determinants'!$B$19:$R$41,3,0)/'4. Billing Determinants'!$D$41*$D19))))),0) -> 0 | K19: =IFERROR(IF(K$4="",0,IF($E19="kWh",VLOOKUP(K$4,'4. Billing Determinants'!$B$19:$R$41,4,0)/'4. Billing Determinants'!$E$41*$D19,IF($E19="kW",VLOOKUP(K$4,'4. Billing Determinants'!$B$19:$R$41,5,0)/'4. Billing Determinants'!$F$41*$D19,IF($E19="Non-RPP kWh",VLOOKUP(K$4,'4. Billing Determinants'!$B$19:$R$41,6,0)/'4. Billing Determinants'!$G$41*$D19,IF($E19="Distribution Rev.",VLOOKUP(K$4,'4. Billing Determinants'!$B$19:$R$41,8,0)/'4. Billing Determinants'!$I$41*$D19, VLOOKUP(K$4,'4. Billing Determinants'!$B$19:$R$41,3,0)/'4. Billing Determinants'!$D$41*$D19))))),0) -> 801.9310425 | L19: =IFERROR(IF(L$4="",0,IF($E19="kWh",VLOOKUP(L$4,'4. Billing Determinants'!$B$19:$R$41,4,0)/'4. Billing Determinants'!$E$41*$D19,IF($E19="kW",VLOOKUP(L$4,'4. Billing Determinants'!$B$19:$R$41,5,0)/'4. Billing Determinants'!$F$41*$D19,IF($E19="Non-RPP kWh",VLOOKUP(L$4,'4. Billing Determinants'!$B$19:$R$41,6,0)/'4. Billing Determinants'!$G$41*$D19,IF($E19="Distribution Rev.",VLOOKUP(L$4,'4. Billing Determinants'!$B$19:$R$41,8,0)/'4. Billing Determinants'!$I$41*$D19, VLOOKUP(L$4,'4. Billing Determinants'!$B$19:$R$41,3,0)/'4. Billing Determinants'!$D$41*$D19))))),0) -> 27.56406611 | M19: =IFERROR(IF(M$4="",0,IF($E19="kWh",VLOOKUP(M$4,'4. Billing Determinants'!$B$19:$R$41,4,0)/'4. Billing Determinants'!$E$41*$D19,IF($E19="kW",VLOOKUP(M$4,'4. Billing Determinants'!$B$19:$R$41,5,0)/'4. Billing Determinants'!$F$41*$D19,IF($E19="Non-RPP kWh",VLOOKUP(M$4,'4. Billing Determinants'!$B$19:$R$41,6,0)/'4. Billing Determinants'!$G$41*$D19,IF($E19="Distribution Rev.",VLOOKUP(M$4,'4. Billing Determinants'!$B$19:$R$41,8,0)/'4. Billing Determinants'!$I$41*$D19, VLOOKUP(M$4,'4. Billing Determinants'!$B$19:$R$41,3,0)/'4. Billing Determinants'!$D$41*$D19))))),0) -> 3911.738449 | N19: =IFERROR(IF(N$4="",0,IF($E19="kWh",VLOOKUP(N$4,'4. Billing Determinants'!$B$19:$R$41,4,0)/'4. Billing Determinants'!$E$41*$D19,IF($E19="kW",VLOOKUP(N$4,'4. Billing Determinants'!$B$19:$R$41,5,0)/'4. Billing Determinants'!$F$41*$D19,IF($E19="Non-RPP kWh",VLOOKUP(N$4,'4. Billing Determinants'!$B$19:$R$41,6,0)/'4. Billing Determinants'!$G$41*$D19,IF($E19="Distribution Rev.",VLOOKUP(N$4,'4. Billing Determinants'!$B$19:$R$41,8,0)/'4. Billing Determinants'!$I$41*$D19, VLOOKUP(N$4,'4. Billing Determinants'!$B$19:$R$41,3,0)/'4. Billing Determinants'!$D$41*$D19))))),0) -> 0 | O19: =IFERROR(IF(O$4="",0,IF($E19="kWh",VLOOKUP(O$4,'4. Billing Determinants'!$B$19:$R$41,4,0)/'4. Billing Determinants'!$E$41*$D19,IF($E19="kW",VLOOKUP(O$4,'4. Billing Determinants'!$B$19:$R$41,5,0)/'4. Billing Determinants'!$F$41*$D19,IF($E19="Non-RPP kWh",VLOOKUP(O$4,'4. Billing Determinants'!$B$19:$R$41,6,0)/'4. Billing Determinants'!$G$41*$D19,IF($E19="Distribution Rev.",VLOOKUP(O$4,'4. Billing Determinants'!$B$19:$R$41,8,0)/'4. Billing Determinants'!$I$41*$D19, VLOOKUP(O$4,'4. Billing Determinants'!$B$19:$R$41,3,0)/'4. Billing Determinants'!$D$41*$D19))))),0) -> 0 | P19: =IFERROR(IF(P$4="",0,IF($E19="kWh",VLOOKUP(P$4,'4. Billing Determinants'!$B$19:$R$41,4,0)/'4. Billing Determinants'!$E$41*$D19,IF($E19="kW",VLOOKUP(P$4,'4. Billing Determinants'!$B$19:$R$41,5,0)/'4. Billing Determinants'!$F$41*$D19,IF($E19="Non-RPP kWh",VLOOKUP(P$4,'4. Billing Determinants'!$B$19:$R$41,6,0)/'4. Billing Determinants'!$G$41*$D19,IF($E19="Distribution Rev.",VLOOKUP(P$4,'4. Billing Determinants'!$B$19:$R$41,8,0)/'4. Billing Determinants'!$I$41*$D19, VLOOKUP(P$4,'4. Billing Determinants'!$B$19:$R$41,3,0)/'4. Billing Determinants'!$D$41*$D19))))),0) -> 0 | Q19: =IFERROR(IF(Q$4="",0,IF($E19="kWh",VLOOKUP(Q$4,'4. Billing Determinants'!$B$19:$R$41,4,0)/'4. Billing Determinants'!$E$41*$D19,IF($E19="kW",VLOOKUP(Q$4,'4. Billing Determinants'!$B$19:$R$41,5,0)/'4. Billing Determinants'!$F$41*$D19,IF($E19="Non-RPP kWh",VLOOKUP(Q$4,'4. Billing Determinants'!$B$19:$R$41,6,0)/'4. Billing Determinants'!$G$41*$D19,IF($E19="Distribution Rev.",VLOOKUP(Q$4,'4. Billing Determinants'!$B$19:$R$41,8,0)/'4. Billing Determinants'!$I$41*$D19, VLOOKUP(Q$4,'4. Billing Determinants'!$B$19:$R$41,3,0)/'4. Billing Determinants'!$D$41*$D19))))),0) -> 0 | R19: =IFERROR(IF(R$4="",0,IF($E19="kWh",VLOOKUP(R$4,'4. Billing Determinants'!$B$19:$R$41,4,0)/'4. Billing Determinants'!$E$41*$D19,IF($E19="kW",VLOOKUP(R$4,'4. Billing Determinants'!$B$19:$R$41,5,0)/'4. Billing Determinants'!$F$41*$D19,IF($E19="Non-RPP kWh",VLOOKUP(R$4,'4. Billing Determinants'!$B$19:$R$41,6,0)/'4. Billing Determinants'!$G$41*$D19,IF($E19="Distribution Rev.",VLOOKUP(R$4,'4. Billing Determinants'!$B$19:$R$41,8,0)/'4. Billing Determinants'!$I$41*$D19, VLOOKUP(R$4,'4. Billing Determinants'!$B$19:$R$41,3,0)/'4. Billing Determinants'!$D$41*$D19))))),0) -> 0 | S19: =IFERROR(IF(S$4="",0,IF($E19="kWh",VLOOKUP(S$4,'4. Billing Determinants'!$B$19:$R$41,4,0)/'4. Billing Determinants'!$E$41*$D19,IF($E19="kW",VLOOKUP(S$4,'4. Billing Determinants'!$B$19:$R$41,5,0)/'4. Billing Determinants'!$F$41*$D19,IF($E19="Non-RPP kWh",VLOOKUP(S$4,'4. Billing Determinants'!$B$19:$R$41,6,0)/'4. Billing Determinants'!$G$41*$D19,IF($E19="Distribution Rev.",VLOOKUP(S$4,'4. Billing Determinants'!$B$19:$R$41,8,0)/'4. Billing Determinants'!$I$41*$D19, VLOOKUP(S$4,'4. Billing Determinants'!$B$19:$R$41,3,0)/'4. Billing Determinants'!$D$41*$D19))))),0) -> 0 | T19: =IFERROR(IF(T$4="",0,IF($E19="kWh",VLOOKUP(T$4,'4. Billing Determinants'!$B$19:$R$41,4,0)/'4. Billing Determinants'!$E$41*$D19,IF($E19="kW",VLOOKUP(T$4,'4. Billing Determinants'!$B$19:$R$41,5,0)/'4. Billing Determinants'!$F$41*$D19,IF($E19="Non-RPP kWh",VLOOKUP(T$4,'4. Billing Determinants'!$B$19:$R$41,6,0)/'4. Billing Determinants'!$G$41*$D19,IF($E19="Distribution Rev.",VLOOKUP(T$4,'4. Billing Determinants'!$B$19:$R$41,8,0)/'4. Billing Determinants'!$I$41*$D19, VLOOKUP(T$4,'4. Billing Determinants'!$B$19:$R$41,3,0)/'4. Billing Determinants'!$D$41*$D19))))),0) -> 0 | U19: =IFERROR(IF(U$4="",0,IF($E19="kWh",VLOOKUP(U$4,'4. Billing Determinants'!$B$19:$R$41,4,0)/'4. Billing Determinants'!$E$41*$D19,IF($E19="kW",VLOOKUP(U$4,'4. Billing Determinants'!$B$19:$R$41,5,0)/'4. Billing Determinants'!$F$41*$D19,IF($E19="Non-RPP kWh",VLOOKUP(U$4,'4. Billing Determinants'!$B$19:$R$41,6,0)/'4. Billing Determinants'!$G$41*$D19,IF($E19="Distribution Rev.",VLOOKUP(U$4,'4. Billing Determinants'!$B$19:$R$41,8,0)/'4. Billing Determinants'!$I$41*$D19, VLOOKUP(U$4,'4. Billing Determinants'!$B$19:$R$41,3,0)/'4. Billing Determinants'!$D$41*$D19))))),0) -> 0 | V19: =IFERROR(IF(V$4="",0,IF($E19="kWh",VLOOKUP(V$4,'4. Billing Determinants'!$B$19:$R$41,4,0)/'4. Billing Determinants'!$E$41*$D19,IF($E19="kW",VLOOKUP(V$4,'4. Billing Determinants'!$B$19:$R$41,5,0)/'4. Billing Determinants'!$F$41*$D19,IF($E19="Non-RPP kWh",VLOOKUP(V$4,'4. Billing Determinants'!$B$19:$R$41,6,0)/'4. Billing Determinants'!$G$41*$D19,IF($E19="Distribution Rev.",VLOOKUP(V$4,'4. Billing Determinants'!$B$19:$R$41,8,0)/'4. Billing Determinants'!$I$41*$D19, VLOOKUP(V$4,'4. Billing Determinants'!$B$19:$R$41,3,0)/'4. Billing Determinants'!$D$41*$D19))))),0) -> 0 | W19: =IFERROR(IF(W$4="",0,IF($E19="kWh",VLOOKUP(W$4,'4. Billing Determinants'!$B$19:$R$41,4,0)/'4. Billing Determinants'!$E$41*$D19,IF($E19="kW",VLOOKUP(W$4,'4. Billing Determinants'!$B$19:$R$41,5,0)/'4. Billing Determinants'!$F$41*$D19,IF($E19="Non-RPP kWh",VLOOKUP(W$4,'4. Billing Determinants'!$B$19:$R$41,6,0)/'4. Billing Determinants'!$G$41*$D19,IF($E19="Distribution Rev.",VLOOKUP(W$4,'4. Billing Determinants'!$B$19:$R$41,8,0)/'4. Billing Determinants'!$I$41*$D19, VLOOKUP(W$4,'4. Billing Determinants'!$B$19:$R$41,3,0)/'4. Billing Determinants'!$D$41*$D19))))),0) -> 0 | X19: =IFERROR(IF(X$4="",0,IF($E19="kWh",VLOOKUP(X$4,'4. Billing Determinants'!$B$19:$R$41,4,0)/'4. Billing Determinants'!$E$41*$D19,IF($E19="kW",VLOOKUP(X$4,'4. Billing Determinants'!$B$19:$R$41,5,0)/'4. Billing Determinants'!$F$41*$D19,IF($E19="Non-RPP kWh",VLOOKUP(X$4,'4. Billing Determinants'!$B$19:$R$41,6,0)/'4. Billing Determinants'!$G$41*$D19,IF($E19="Distribution Rev.",VLOOKUP(X$4,'4. Billing Determinants'!$B$19:$R$41,8,0)/'4. Billing Determinants'!$I$41*$D19, VLOOKUP(X$4,'4. Billing Determinants'!$B$19:$R$41,3,0)/'4. Billing Determinants'!$D$41*$D19))))),0) -> 0 | Y19: =IFERROR(IF(Y$4="",0,IF($E19="kWh",VLOOKUP(Y$4,'4. Billing Determinants'!$B$19:$R$41,4,0)/'4. Billing Determinants'!$E$41*$D19,IF($E19="kW",VLOOKUP(Y$4,'4. Billing Determinants'!$B$19:$R$41,5,0)/'4. Billing Determinants'!$F$41*$D19,IF($E19="Non-RPP kWh",VLOOKUP(Y$4,'4. Billing Determinants'!$B$19:$R$41,6,0)/'4. Billing Determinants'!$G$41*$D19,IF($E19="Distribution Rev.",VLOOKUP(Y$4,'4. Billing Determinants'!$B$19:$R$41,8,0)/'4. Billing Determinants'!$I$41*$D19, VLOOKUP(Y$4,'4. Billing Determinants'!$B$19:$R$41,3,0)/'4. Billing Determinants'!$D$41*$D19))))),0) -> 0
B20: Other Regulatory Assets - Sub-Account - Pension Contributions | C20: 1508 | D20: ='2. 2016-20 Continuity Schedule'!BD38 -> 0 | E20: Distribution Rev. | F20: =IFERROR(IF(F$4="",0,IF($E20="kWh",VLOOKUP(F$4,'4. Billing Determinants'!$B$19:$R$41,4,0)/'4. Billing Determinants'!$E$41*$D20,IF($E20="kW",VLOOKUP(F$4,'4. Billing Determinants'!$B$19:$R$41,5,0)/'4. Billing Determinants'!$F$41*$D20,IF($E20="Non-RPP kWh",VLOOKUP(F$4,'4. Billing Determinants'!$B$19:$R$41,6,0)/'4. Billing Determinants'!$G$41*$D20,IF($E20="Distribution Rev.",VLOOKUP(F$4,'4. Billing Determinants'!$B$19:$R$41,8,0)/'4. Billing Determinants'!$I$41*$D20, VLOOKUP(F$4,'4. Billing Determinants'!$B$19:$R$41,3,0)/'4. Billing Determinants'!$D$41*$D20))))),0) -> 0 | G20: =IFERROR(IF(G$4="",0,IF($E20="kWh",VLOOKUP(G$4,'4. Billing Determinants'!$B$19:$R$41,4,0)/'4. Billing Determinants'!$E$41*$D20,IF($E20="kW",VLOOKUP(G$4,'4. Billing Determinants'!$B$19:$R$41,5,0)/'4. Billing Determinants'!$F$41*$D20,IF($E20="Non-RPP kWh",VLOOKUP(G$4,'4. Billing Determinants'!$B$19:$R$41,6,0)/'4. Billing Determinants'!$G$41*$D20,IF($E20="Distribution Rev.",VLOOKUP(G$4,'4. Billing Determinants'!$B$19:$R$41,8,0)/'4. Billing Determinants'!$I$41*$D20, VLOOKUP(G$4,'4. Billing Determinants'!$B$19:$R$41,3,0)/'4. Billing Determinants'!$D$41*$D20))))),0) -> 0 | H20: =IFERROR(IF(H$4="",0,IF($E20="kWh",VLOOKUP(H$4,'4. Billing Determinants'!$B$19:$R$41,4,0)/'4. Billing Determinants'!$E$41*$D20,IF($E20="kW",VLOOKUP(H$4,'4. Billing Determinants'!$B$19:$R$41,5,0)/'4. Billing Determinants'!$F$41*$D20,IF($E20="Non-RPP kWh",VLOOKUP(H$4,'4. Billing Determinants'!$B$19:$R$41,6,0)/'4. Billing Determinants'!$G$41*$D20,IF($E20="Distribution Rev.",VLOOKUP(H$4,'4. Billing Determinants'!$B$19:$R$41,8,0)/'4. Billing Determinants'!$I$41*$D20, VLOOKUP(H$4,'4. Billing Determinants'!$B$19:$R$41,3,0)/'4. Billing Determinants'!$D$41*$D20))))),0) -> 0 | I20: =IFERROR(IF(I$4="",0,IF($E20="kWh",VLOOKUP(I$4,'4. Billing Determinants'!$B$19:$R$41,4,0)/'4. Billing Determinants'!$E$41*$D20,IF($E20="kW",VLOOKUP(I$4,'4. Billing Determinants'!$B$19:$R$41,5,0)/'4. Billing Determinants'!$F$41*$D20,IF($E20="Non-RPP kWh",VLOOKUP(I$4,'4. Billing Determinants'!$B$19:$R$41,6,0)/'4. Billing Determinants'!$G$41*$D20,IF($E20="Distribution Rev.",VLOOKUP(I$4,'4. Billing Determinants'!$B$19:$R$41,8,0)/'4. Billing Determinants'!$I$41*$D20, VLOOKUP(I$4,'4. Billing Determinants'!$B$19:$R$41,3,0)/'4. Billing Determinants'!$D$41*$D20))))),0) -> 0 | J20: =IFERROR(IF(J$4="",0,IF($E20="kWh",VLOOKUP(J$4,'4. Billing Determinants'!$B$19:$R$41,4,0)/'4. Billing Determinants'!$E$41*$D20,IF($E20="kW",VLOOKUP(J$4,'4. Billing Determinants'!$B$19:$R$41,5,0)/'4. Billing Determinants'!$F$41*$D20,IF($E20="Non-RPP kWh",VLOOKUP(J$4,'4. Billing Determinants'!$B$19:$R$41,6,0)/'4. Billing Determinants'!$G$41*$D20,IF($E20="Distribution Rev.",VLOOKUP(J$4,'4. Billing Determinants'!$B$19:$R$41,8,0)/'4. Billing Determinants'!$I$41*$D20, VLOOKUP(J$4,'4. Billing Determinants'!$B$19:$R$41,3,0)/'4. Billing Determinants'!$D$41*$D20))))),0) -> 0 | K20: =IFERROR(IF(K$4="",0,IF($E20="kWh",VLOOKUP(K$4,'4. Billing Determinants'!$B$19:$R$41,4,0)/'4. Billing Determinants'!$E$41*$D20,IF($E20="kW",VLOOKUP(K$4,'4. Billing Determinants'!$B$19:$R$41,5,0)/'4. Billing Determinants'!$F$41*$D20,IF($E20="Non-RPP kWh",VLOOKUP(K$4,'4. Billing Determinants'!$B$19:$R$41,6,0)/'4. Billing Determinants'!$G$41*$D20,IF($E20="Distribution Rev.",VLOOKUP(K$4,'4. Billing Determinants'!$B$19:$R$41,8,0)/'4. Billing Determinants'!$I$41*$D20, VLOOKUP(K$4,'4. Billing Determinants'!$B$19:$R$41,3,0)/'4. Billing Determinants'!$D$41*$D20))))),0) -> 0 | L20: =IFERROR(IF(L$4="",0,IF($E20="kWh",VLOOKUP(L$4,'4. Billing Determinants'!$B$19:$R$41,4,0)/'4. Billing Determinants'!$E$41*$D20,IF($E20="kW",VLOOKUP(L$4,'4. Billing Determinants'!$B$19:$R$41,5,0)/'4. Billing Determinants'!$F$41*$D20,IF($E20="Non-RPP kWh",VLOOKUP(L$4,'4. Billing Determinants'!$B$19:$R$41,6,0)/'4. Billing Determinants'!$G$41*$D20,IF($E20="Distribution Rev.",VLOOKUP(L$4,'4. Billing Determinants'!$B$19:$R$41,8,0)/'4. Billing Determinants'!$I$41*$D20, VLOOKUP(L$4,'4. Billing Determinants'!$B$19:$R$41,3,0)/'4. Billing Determinants'!$D$41*$D20))))),0) -> 0 | M20: =IFERROR(IF(M$4="",0,IF($E20="kWh",VLOOKUP(M$4,'4. Billing Determinants'!$B$19:$R$41,4,0)/'4. Billing Determinants'!$E$41*$D20,IF($E20="kW",VLOOKUP(M$4,'4. Billing Determinants'!$B$19:$R$41,5,0)/'4. Billing Determinants'!$F$41*$D20,IF($E20="Non-RPP kWh",VLOOKUP(M$4,'4. Billing Determinants'!$B$19:$R$41,6,0)/'4. Billing Determinants'!$G$41*$D20,IF($E20="Distribution Rev.",VLOOKUP(M$4,'4. Billing Determinants'!$B$19:$R$41,8,0)/'4. Billing Determinants'!$I$41*$D20, VLOOKUP(M$4,'4. Billing Determinants'!$B$19:$R$41,3,0)/'4. Billing Determinants'!$D$41*$D20))))),0) -> 0 | N20: =IFERROR(IF(N$4="",0,IF($E20="kWh",VLOOKUP(N$4,'4. Billing Determinants'!$B$19:$R$41,4,0)/'4. Billing Determinants'!$E$41*$D20,IF($E20="kW",VLOOKUP(N$4,'4. Billing Determinants'!$B$19:$R$41,5,0)/'4. Billing Determinants'!$F$41*$D20,IF($E20="Non-RPP kWh",VLOOKUP(N$4,'4. Billing Determinants'!$B$19:$R$41,6,0)/'4. Billing Determinants'!$G$41*$D20,IF($E20="Distribution Rev.",VLOOKUP(N$4,'4. Billing Determinants'!$B$19:$R$41,8,0)/'4. Billing Determinants'!$I$41*$D20, VLOOKUP(N$4,'4. Billing Determinants'!$B$19:$R$41,3,0)/'4. Billing Determinants'!$D$41*$D20))))),0) -> 0 | O20: =IFERROR(IF(O$4="",0,IF($E20="kWh",VLOOKUP(O$4,'4. Billing Determinants'!$B$19:$R$41,4,0)/'4. Billing Determinants'!$E$41*$D20,IF($E20="kW",VLOOKUP(O$4,'4. Billing Determinants'!$B$19:$R$41,5,0)/'4. Billing Determinants'!$F$41*$D20,IF($E20="Non-RPP kWh",VLOOKUP(O$4,'4. Billing Determinants'!$B$19:$R$41,6,0)/'4. Billing Determinants'!$G$41*$D20,IF($E20="Distribution Rev.",VLOOKUP(O$4,'4. Billing Determinants'!$B$19:$R$41,8,0)/'4. Billing Determinants'!$I$41*$D20, VLOOKUP(O$4,'4. Billing Determinants'!$B$19:$R$41,3,0)/'4. Billing Determinants'!$D$41*$D20))))),0) -> 0 | P20: =IFERROR(IF(P$4="",0,IF($E20="kWh",VLOOKUP(P$4,'4. Billing Determinants'!$B$19:$R$41,4,0)/'4. Billing Determinants'!$E$41*$D20,IF($E20="kW",VLOOKUP(P$4,'4. Billing Determinants'!$B$19:$R$41,5,0)/'4. Billing Determinants'!$F$41*$D20,IF($E20="Non-RPP kWh",VLOOKUP(P$4,'4. Billing Determinants'!$B$19:$R$41,6,0)/'4. Billing Determinants'!$G$41*$D20,IF($E20="Distribution Rev.",VLOOKUP(P$4,'4. Billing Determinants'!$B$19:$R$41,8,0)/'4. Billing Determinants'!$I$41*$D20, VLOOKUP(P$4,'4. Billing Determinants'!$B$19:$R$41,3,0)/'4. Billing Determinants'!$D$41*$D20))))),0) -> 0 | Q20: =IFERROR(IF(Q$4="",0,IF($E20="kWh",VLOOKUP(Q$4,'4. Billing Determinants'!$B$19:$R$41,4,0)/'4. Billing Determinants'!$E$41*$D20,IF($E20="kW",VLOOKUP(Q$4,'4. Billing Determinants'!$B$19:$R$41,5,0)/'4. Billing Determinants'!$F$41*$D20,IF($E20="Non-RPP kWh",VLOOKUP(Q$4,'4. Billing Determinants'!$B$19:$R$41,6,0)/'4. Billing Determinants'!$G$41*$D20,IF($E20="Distribution Rev.",VLOOKUP(Q$4,'4. Billing Determinants'!$B$19:$R$41,8,0)/'4. Billing Determinants'!$I$41*$D20, VLOOKUP(Q$4,'4. Billing Determinants'!$B$19:$R$41,3,0)/'4. Billing Determinants'!$D$41*$D20))))),0) -> 0 | R20: =IFERROR(IF(R$4="",0,IF($E20="kWh",VLOOKUP(R$4,'4. Billing Determinants'!$B$19:$R$41,4,0)/'4. Billing Determinants'!$E$41*$D20,IF($E20="kW",VLOOKUP(R$4,'4. Billing Determinants'!$B$19:$R$41,5,0)/'4. Billing Determinants'!$F$41*$D20,IF($E20="Non-RPP kWh",VLOOKUP(R$4,'4. Billing Determinants'!$B$19:$R$41,6,0)/'4. Billing Determinants'!$G$41*$D20,IF($E20="Distribution Rev.",VLOOKUP(R$4,'4. Billing Determinants'!$B$19:$R$41,8,0)/'4. Billing Determinants'!$I$41*$D20, VLOOKUP(R$4,'4. Billing Determinants'!$B$19:$R$41,3,0)/'4. Billing Determinants'!$D$41*$D20))))),0) -> 0 | S20: =IFERROR(IF(S$4="",0,IF($E20="kWh",VLOOKUP(S$4,'4. Billing Determinants'!$B$19:$R$41,4,0)/'4. Billing Determinants'!$E$41*$D20,IF($E20="kW",VLOOKUP(S$4,'4. Billing Determinants'!$B$19:$R$41,5,0)/'4. Billing Determinants'!$F$41*$D20,IF($E20="Non-RPP kWh",VLOOKUP(S$4,'4. Billing Determinants'!$B$19:$R$41,6,0)/'4. Billing Determinants'!$G$41*$D20,IF($E20="Distribution Rev.",VLOOKUP(S$4,'4. Billing Determinants'!$B$19:$R$41,8,0)/'4. Billing Determinants'!$I$41*$D20, VLOOKUP(S$4,'4. Billing Determinants'!$B$19:$R$41,3,0)/'4. Billing Determinants'!$D$41*$D20))))),0) -> 0 | T20: =IFERROR(IF(T$4="",0,IF($E20="kWh",VLOOKUP(T$4,'4. Billing Determinants'!$B$19:$R$41,4,0)/'4. Billing Determinants'!$E$41*$D20,IF($E20="kW",VLOOKUP(T$4,'4. Billing Determinants'!$B$19:$R$41,5,0)/'4. Billing Determinants'!$F$41*$D20,IF($E20="Non-RPP kWh",VLOOKUP(T$4,'4. Billing Determinants'!$B$19:$R$41,6,0)/'4. Billing Determinants'!$G$41*$D20,IF($E20="Distribution Rev.",VLOOKUP(T$4,'4. Billing Determinants'!$B$19:$R$41,8,0)/'4. Billing Determinants'!$I$41*$D20, VLOOKUP(T$4,'4. Billing Determinants'!$B$19:$R$41,3,0)/'4. Billing Determinants'!$D$41*$D20))))),0) -> 0 | U20: =IFERROR(IF(U$4="",0,IF($E20="kWh",VLOOKUP(U$4,'4. Billing Determinants'!$B$19:$R$41,4,0)/'4. Billing Determinants'!$E$41*$D20,IF($E20="kW",VLOOKUP(U$4,'4. Billing Determinants'!$B$19:$R$41,5,0)/'4. Billing Determinants'!$F$41*$D20,IF($E20="Non-RPP kWh",VLOOKUP(U$4,'4. Billing Determinants'!$B$19:$R$41,6,0)/'4. Billing Determinants'!$G$41*$D20,IF($E20="Distribution Rev.",VLOOKUP(U$4,'4. Billing Determinants'!$B$19:$R$41,8,0)/'4. Billing Determinants'!$I$41*$D20, VLOOKUP(U$4,'4. Billing Determinants'!$B$19:$R$41,3,0)/'4. Billing Determinants'!$D$41*$D20))))),0) -> 0 | V20: =IFERROR(IF(V$4="",0,IF($E20="kWh",VLOOKUP(V$4,'4. Billing Determinants'!$B$19:$R$41,4,0)/'4. Billing Determinants'!$E$41*$D20,IF($E20="kW",VLOOKUP(V$4,'4. Billing Determinants'!$B$19:$R$41,5,0)/'4. Billing Determinants'!$F$41*$D20,IF($E20="Non-RPP kWh",VLOOKUP(V$4,'4. Billing Determinants'!$B$19:$R$41,6,0)/'4. Billing Determinants'!$G$41*$D20,IF($E20="Distribution Rev.",VLOOKUP(V$4,'4. Billing Determinants'!$B$19:$R$41,8,0)/'4. Billing Determinants'!$I$41*$D20, VLOOKUP(V$4,'4. Billing Determinants'!$B$19:$R$41,3,0)/'4. Billing Determinants'!$D$41*$D20))))),0) -> 0 | W20: =IFERROR(IF(W$4="",0,IF($E20="kWh",VLOOKUP(W$4,'4. Billing Determinants'!$B$19:$R$41,4,0)/'4. Billing Determinants'!$E$41*$D20,IF($E20="kW",VLOOKUP(W$4,'4. Billing Determinants'!$B$19:$R$41,5,0)/'4. Billing Determinants'!$F$41*$D20,IF($E20="Non-RPP kWh",VLOOKUP(W$4,'4. Billing Determinants'!$B$19:$R$41,6,0)/'4. Billing Determinants'!$G$41*$D20,IF($E20="Distribution Rev.",VLOOKUP(W$4,'4. Billing Determinants'!$B$19:$R$41,8,0)/'4. Billing Determinants'!$I$41*$D20, VLOOKUP(W$4,'4. Billing Determinants'!$B$19:$R$41,3,0)/'4. Billing Determinants'!$D$41*$D20))))),0) -> 0 | X20: =IFERROR(IF(X$4="",0,IF($E20="kWh",VLOOKUP(X$4,'4. Billing Determinants'!$B$19:$R$41,4,0)/'4. Billing Determinants'!$E$41*$D20,IF($E20="kW",VLOOKUP(X$4,'4. Billing Determinants'!$B$19:$R$41,5,0)/'4. Billing Determinants'!$F$41*$D20,IF($E20="Non-RPP kWh",VLOOKUP(X$4,'4. Billing Determinants'!$B$19:$R$41,6,0)/'4. Billing Determinants'!$G$41*$D20,IF($E20="Distribution Rev.",VLOOKUP(X$4,'4. Billing Determinants'!$B$19:$R$41,8,0)/'4. Billing Determinants'!$I$41*$D20, VLOOKUP(X$4,'4. Billing Determinants'!$B$19:$R$41,3,0)/'4. Billing Determinants'!$D$41*$D20))))),0) -> 0 | Y20: =IFERROR(IF(Y$4="",0,IF($E20="kWh",VLOOKUP(Y$4,'4. Billing Determinants'!$B$19:$R$41,4,0)/'4. Billing Determinants'!$E$41*$D20,IF($E20="kW",VLOOKUP(Y$4,'4. Billing Determinants'!$B$19:$R$41,5,0)/'4. Billing Determinants'!$F$41*$D20,IF($E20="Non-RPP kWh",VLOOKUP(Y$4,'4. Billing Determinants'!$B$19:$R$41,6,0)/'4. Billing Determinants'!$G$41*$D20,IF($E20="Distribution Rev.",VLOOKUP(Y$4,'4. Billing Determinants'!$B$19:$R$41,8,0)/'4. Billing Determinants'!$I$41*$D20, VLOOKUP(Y$4,'4. Billing Determinants'!$B$19:$R$41,3,0)/'4. Billing Determinants'!$D$41*$D20))))),0) -> 0
B21: Other Regulatory Assets - Sub-Account - Deferred IFRS Transition Costs | C21: 1508 | D21: ='2. 2016-20 Continuity Schedule'!BD39 -> -146323.3887 | E21: Distribution Rev. | F21: =IFERROR(IF(F$4="",0,IF($E21="kWh",VLOOKUP(F$4,'4. Billing Determinants'!$B$19:$R$41,4,0)/'4. Billing Determinants'!$E$41*$D21,IF($E21="kW",VLOOKUP(F$4,'4. Billing Determinants'!$B$19:$R$41,5,0)/'4. Billing Determinants'!$F$41*$D21,IF($E21="Non-RPP kWh",VLOOKUP(F$4,'4. Billing Determinants'!$B$19:$R$41,6,0)/'4. Billing Determinants'!$G$41*$D21,IF($E21="Distribution Rev.",VLOOKUP(F$4,'4. Billing Determinants'!$B$19:$R$41,8,0)/'4. Billing Determinants'!$I$41*$D21, VLOOKUP(F$4,'4. Billing Determinants'!$B$19:$R$41,3,0)/'4. Billing Determinants'!$D$41*$D21))))),0) -> -79252.9734 | G21: =IFERROR(IF(G$4="",0,IF($E21="kWh",VLOOKUP(G$4,'4. Billing Determinants'!$B$19:$R$41,4,0)/'4. Billing Determinants'!$E$41*$D21,IF($E21="kW",VLOOKUP(G$4,'4. Billing Determinants'!$B$19:$R$41,5,0)/'4. Billing Determinants'!$F$41*$D21,IF($E21="Non-RPP kWh",VLOOKUP(G$4,'4. Billing Determinants'!$B$19:$R$41,6,0)/'4. Billing Determinants'!$G$41*$D21,IF($E21="Distribution Rev.",VLOOKUP(G$4,'4. Billing Determinants'!$B$19:$R$41,8,0)/'4. Billing Determinants'!$I$41*$D21, VLOOKUP(G$4,'4. Billing Determinants'!$B$19:$R$41,3,0)/'4. Billing Determinants'!$D$41*$D21))))),0) -> -22164.86651 | H21: =IFERROR(IF(H$4="",0,IF($E21="kWh",VLOOKUP(H$4,'4. Billing Determinants'!$B$19:$R$41,4,0)/'4. Billing Determinants'!$E$41*$D21,IF($E21="kW",VLOOKUP(H$4,'4. Billing Determinants'!$B$19:$R$41,5,0)/'4. Billing Determinants'!$F$41*$D21,IF($E21="Non-RPP kWh",VLOOKUP(H$4,'4. Billing Determinants'!$B$19:$R$41,6,0)/'4. Billing Determinants'!$G$41*$D21,IF($E21="Distribution Rev.",VLOOKUP(H$4,'4. Billing Determinants'!$B$19:$R$41,8,0)/'4. Billing Determinants'!$I$41*$D21, VLOOKUP(H$4,'4. Billing Determinants'!$B$19:$R$41,3,0)/'4. Billing Determinants'!$D$41*$D21))))),0) -> -42085.27484 | I21: =IFERROR(IF(I$4="",0,IF($E21="kWh",VLOOKUP(I$4,'4. Billing Determinants'!$B$19:$R$41,4,0)/'4. Billing Determinants'!$E$41*$D21,IF($E21="kW",VLOOKUP(I$4,'4. Billing Determinants'!$B$19:$R$41,5,0)/'4. Billing Determinants'!$F$41*$D21,IF($E21="Non-RPP kWh",VLOOKUP(I$4,'4. Billing Determinants'!$B$19:$R$41,6,0)/'4. Billing Determinants'!$G$41*$D21,IF($E21="Distribution Rev.",VLOOKUP(I$4,'4. Billing Determinants'!$B$19:$R$41,8,0)/'4. Billing Determinants'!$I$41*$D21, VLOOKUP(I$4,'4. Billing Determinants'!$B$19:$R$41,3,0)/'4. Billing Determinants'!$D$41*$D21))))),0) -> -287.1237271 | J21: =IFERROR(IF(J$4="",0,IF($E21="kWh",VLOOKUP(J$4,'4. Billing Determinants'!$B$19:$R$41,4,0)/'4. Billing Determinants'!$E$41*$D21,IF($E21="kW",VLOOKUP(J$4,'4. Billing Determinants'!$B$19:$R$41,5,0)/'4. Billing Determinants'!$F$41*$D21,IF($E21="Non-RPP kWh",VLOOKUP(J$4,'4. Billing Determinants'!$B$19:$R$41,6,0)/'4. Billing Determinants'!$G$41*$D21,IF($E21="Distribution Rev.",VLOOKUP(J$4,'4. Billing Determinants'!$B$19:$R$41,8,0)/'4. Billing Determinants'!$I$41*$D21, VLOOKUP(J$4,'4. Billing Determinants'!$B$19:$R$41,3,0)/'4. Billing Determinants'!$D$41*$D21))))),0) -> 0 | K21: =IFERROR(IF(K$4="",0,IF($E21="kWh",VLOOKUP(K$4,'4. Billing Determinants'!$B$19:$R$41,4,0)/'4. Billing Determinants'!$E$41*$D21,IF($E21="kW",VLOOKUP(K$4,'4. Billing Determinants'!$B$19:$R$41,5,0)/'4. Billing Determinants'!$F$41*$D21,IF($E21="Non-RPP kWh",VLOOKUP(K$4,'4. Billing Determinants'!$B$19:$R$41,6,0)/'4. Billing Determinants'!$G$41*$D21,IF($E21="Distribution Rev.",VLOOKUP(K$4,'4. Billing Determinants'!$B$19:$R$41,8,0)/'4. Billing Determinants'!$I$41*$D21, VLOOKUP(K$4,'4. Billing Determinants'!$B$19:$R$41,3,0)/'4. Billing Determinants'!$D$41*$D21))))),0) -> -428.4563871 | L21: =IFERROR(IF(L$4="",0,IF($E21="kWh",VLOOKUP(L$4,'4. Billing Determinants'!$B$19:$R$41,4,0)/'4. Billing Determinants'!$E$41*$D21,IF($E21="kW",VLOOKUP(L$4,'4. Billing Determinants'!$B$19:$R$41,5,0)/'4. Billing Determinants'!$F$41*$D21,IF($E21="Non-RPP kWh",VLOOKUP(L$4,'4. Billing Determinants'!$B$19:$R$41,6,0)/'4. Billing Determinants'!$G$41*$D21,IF($E21="Distribution Rev.",VLOOKUP(L$4,'4. Billing Determinants'!$B$19:$R$41,8,0)/'4. Billing Determinants'!$I$41*$D21, VLOOKUP(L$4,'4. Billing Determinants'!$B$19:$R$41,3,0)/'4. Billing Determinants'!$D$41*$D21))))),0) -> -14.72695226 | M21: =IFERROR(IF(M$4="",0,IF($E21="kWh",VLOOKUP(M$4,'4. Billing Determinants'!$B$19:$R$41,4,0)/'4. Billing Determinants'!$E$41*$D21,IF($E21="kW",VLOOKUP(M$4,'4. Billing Determinants'!$B$19:$R$41,5,0)/'4. Billing Determinants'!$F$41*$D21,IF($E21="Non-RPP kWh",VLOOKUP(M$4,'4. Billing Determinants'!$B$19:$R$41,6,0)/'4. Billing Determinants'!$G$41*$D21,IF($E21="Distribution Rev.",VLOOKUP(M$4,'4. Billing Determinants'!$B$19:$R$41,8,0)/'4. Billing Determinants'!$I$41*$D21, VLOOKUP(M$4,'4. Billing Determinants'!$B$19:$R$41,3,0)/'4. Billing Determinants'!$D$41*$D21))))),0) -> -2089.966886 | N21: =IFERROR(IF(N$4="",0,IF($E21="kWh",VLOOKUP(N$4,'4. Billing Determinants'!$B$19:$R$41,4,0)/'4. Billing Determinants'!$E$41*$D21,IF($E21="kW",VLOOKUP(N$4,'4. Billing Determinants'!$B$19:$R$41,5,0)/'4. Billing Determinants'!$F$41*$D21,IF($E21="Non-RPP kWh",VLOOKUP(N$4,'4. Billing Determinants'!$B$19:$R$41,6,0)/'4. Billing Determinants'!$G$41*$D21,IF($E21="Distribution Rev.",VLOOKUP(N$4,'4. Billing Determinants'!$B$19:$R$41,8,0)/'4. Billing Determinants'!$I$41*$D21, VLOOKUP(N$4,'4. Billing Determinants'!$B$19:$R$41,3,0)/'4. Billing Determinants'!$D$41*$D21))))),0) -> 0 | O21: =IFERROR(IF(O$4="",0,IF($E21="kWh",VLOOKUP(O$4,'4. Billing Determinants'!$B$19:$R$41,4,0)/'4. Billing Determinants'!$E$41*$D21,IF($E21="kW",VLOOKUP(O$4,'4. Billing Determinants'!$B$19:$R$41,5,0)/'4. Billing Determinants'!$F$41*$D21,IF($E21="Non-RPP kWh",VLOOKUP(O$4,'4. Billing Determinants'!$B$19:$R$41,6,0)/'4. Billing Determinants'!$G$41*$D21,IF($E21="Distribution Rev.",VLOOKUP(O$4,'4. Billing Determinants'!$B$19:$R$41,8,0)/'4. Billing Determinants'!$I$41*$D21, VLOOKUP(O$4,'4. Billing Determinants'!$B$19:$R$41,3,0)/'4. Billing Determinants'!$D$41*$D21))))),0) -> 0 | P21: =IFERROR(IF(P$4="",0,IF($E21="kWh",VLOOKUP(P$4,'4. Billing Determinants'!$B$19:$R$41,4,0)/'4. Billing Determinants'!$E$41*$D21,IF($E21="kW",VLOOKUP(P$4,'4. Billing Determinants'!$B$19:$R$41,5,0)/'4. Billing Determinants'!$F$41*$D21,IF($E21="Non-RPP kWh",VLOOKUP(P$4,'4. Billing Determinants'!$B$19:$R$41,6,0)/'4. Billing Determinants'!$G$41*$D21,IF($E21="Distribution Rev.",VLOOKUP(P$4,'4. Billing Determinants'!$B$19:$R$41,8,0)/'4. Billing Determinants'!$I$41*$D21, VLOOKUP(P$4,'4. Billing Determinants'!$B$19:$R$41,3,0)/'4. Billing Determinants'!$D$41*$D21))))),0) -> 0 | Q21: =IFERROR(IF(Q$4="",0,IF($E21="kWh",VLOOKUP(Q$4,'4. Billing Determinants'!$B$19:$R$41,4,0)/'4. Billing Determinants'!$E$41*$D21,IF($E21="kW",VLOOKUP(Q$4,'4. Billing Determinants'!$B$19:$R$41,5,0)/'4. Billing Determinants'!$F$41*$D21,IF($E21="Non-RPP kWh",VLOOKUP(Q$4,'4. Billing Determinants'!$B$19:$R$41,6,0)/'4. Billing Determinants'!$G$41*$D21,IF($E21="Distribution Rev.",VLOOKUP(Q$4,'4. Billing Determinants'!$B$19:$R$41,8,0)/'4. Billing Determinants'!$I$41*$D21, VLOOKUP(Q$4,'4. Billing Determinants'!$B$19:$R$41,3,0)/'4. Billing Determinants'!$D$41*$D21))))),0) -> 0 | R21: =IFERROR(IF(R$4="",0,IF($E21="kWh",VLOOKUP(R$4,'4. Billing Determinants'!$B$19:$R$41,4,0)/'4. Billing Determinants'!$E$41*$D21,IF($E21="kW",VLOOKUP(R$4,'4. Billing Determinants'!$B$19:$R$41,5,0)/'4. Billing Determinants'!$F$41*$D21,IF($E21="Non-RPP kWh",VLOOKUP(R$4,'4. Billing Determinants'!$B$19:$R$41,6,0)/'4. Billing Determinants'!$G$41*$D21,IF($E21="Distribution Rev.",VLOOKUP(R$4,'4. Billing Determinants'!$B$19:$R$41,8,0)/'4. Billing Determinants'!$I$41*$D21, VLOOKUP(R$4,'4. Billing Determinants'!$B$19:$R$41,3,0)/'4. Billing Determinants'!$D$41*$D21))))),0) -> 0 | S21: =IFERROR(IF(S$4="",0,IF($E21="kWh",VLOOKUP(S$4,'4. Billing Determinants'!$B$19:$R$41,4,0)/'4. Billing Determinants'!$E$41*$D21,IF($E21="kW",VLOOKUP(S$4,'4. Billing Determinants'!$B$19:$R$41,5,0)/'4. Billing Determinants'!$F$41*$D21,IF($E21="Non-RPP kWh",VLOOKUP(S$4,'4. Billing Determinants'!$B$19:$R$41,6,0)/'4. Billing Determinants'!$G$41*$D21,IF($E21="Distribution Rev.",VLOOKUP(S$4,'4. Billing Determinants'!$B$19:$R$41,8,0)/'4. Billing Determinants'!$I$41*$D21, VLOOKUP(S$4,'4. Billing Determinants'!$B$19:$R$41,3,0)/'4. Billing Determinants'!$D$41*$D21))))),0) -> 0 | T21: =IFERROR(IF(T$4="",0,IF($E21="kWh",VLOOKUP(T$4,'4. Billing Determinants'!$B$19:$R$41,4,0)/'4. Billing Determinants'!$E$41*$D21,IF($E21="kW",VLOOKUP(T$4,'4. Billing Determinants'!$B$19:$R$41,5,0)/'4. Billing Determinants'!$F$41*$D21,IF($E21="Non-RPP kWh",VLOOKUP(T$4,'4. Billing Determinants'!$B$19:$R$41,6,0)/'4. Billing Determinants'!$G$41*$D21,IF($E21="Distribution Rev.",VLOOKUP(T$4,'4. Billing Determinants'!$B$19:$R$41,8,0)/'4. Billing Determinants'!$I$41*$D21, VLOOKUP(T$4,'4. Billing Determinants'!$B$19:$R$41,3,0)/'4. Billing Determinants'!$D$41*$D21))))),0) -> 0 | U21: =IFERROR(IF(U$4="",0,IF($E21="kWh",VLOOKUP(U$4,'4. Billing Determinants'!$B$19:$R$41,4,0)/'4. Billing Determinants'!$E$41*$D21,IF($E21="kW",VLOOKUP(U$4,'4. Billing Determinants'!$B$19:$R$41,5,0)/'4. Billing Determinants'!$F$41*$D21,IF($E21="Non-RPP kWh",VLOOKUP(U$4,'4. Billing Determinants'!$B$19:$R$41,6,0)/'4. Billing Determinants'!$G$41*$D21,IF($E21="Distribution Rev.",VLOOKUP(U$4,'4. Billing Determinants'!$B$19:$R$41,8,0)/'4. Billing Determinants'!$I$41*$D21, VLOOKUP(U$4,'4. Billing Determinants'!$B$19:$R$41,3,0)/'4. Billing Determinants'!$D$41*$D21))))),0) -> 0 | V21: =IFERROR(IF(V$4="",0,IF($E21="kWh",VLOOKUP(V$4,'4. Billing Determinants'!$B$19:$R$41,4,0)/'4. Billing Determinants'!$E$41*$D21,IF($E21="kW",VLOOKUP(V$4,'4. Billing Determinants'!$B$19:$R$41,5,0)/'4. Billing Determinants'!$F$41*$D21,IF($E21="Non-RPP kWh",VLOOKUP(V$4,'4. Billing Determinants'!$B$19:$R$41,6,0)/'4. Billing Determinants'!$G$41*$D21,IF($E21="Distribution Rev.",VLOOKUP(V$4,'4. Billing Determinants'!$B$19:$R$41,8,0)/'4. Billing Determinants'!$I$41*$D21, VLOOKUP(V$4,'4. Billing Determinants'!$B$19:$R$41,3,0)/'4. Billing Determinants'!$D$41*$D21))))),0) -> 0 | W21: =IFERROR(IF(W$4="",0,IF($E21="kWh",VLOOKUP(W$4,'4. Billing Determinants'!$B$19:$R$41,4,0)/'4. Billing Determinants'!$E$41*$D21,IF($E21="kW",VLOOKUP(W$4,'4. Billing Determinants'!$B$19:$R$41,5,0)/'4. Billing Determinants'!$F$41*$D21,IF($E21="Non-RPP kWh",VLOOKUP(W$4,'4. Billing Determinants'!$B$19:$R$41,6,0)/'4. Billing Determinants'!$G$41*$D21,IF($E21="Distribution Rev.",VLOOKUP(W$4,'4. Billing Determinants'!$B$19:$R$41,8,0)/'4. Billing Determinants'!$I$41*$D21, VLOOKUP(W$4,'4. Billing Determinants'!$B$19:$R$41,3,0)/'4. Billing Determinants'!$D$41*$D21))))),0) -> 0 | X21: =IFERROR(IF(X$4="",0,IF($E21="kWh",VLOOKUP(X$4,'4. Billing Determinants'!$B$19:$R$41,4,0)/'4. Billing Determinants'!$E$41*$D21,IF($E21="kW",VLOOKUP(X$4,'4. Billing Determinants'!$B$19:$R$41,5,0)/'4. Billing Determinants'!$F$41*$D21,IF($E21="Non-RPP kWh",VLOOKUP(X$4,'4. Billing Determinants'!$B$19:$R$41,6,0)/'4. Billing Determinants'!$G$41*$D21,IF($E21="Distribution Rev.",VLOOKUP(X$4,'4. Billing Determinants'!$B$19:$R$41,8,0)/'4. Billing Determinants'!$I$41*$D21, VLOOKUP(X$4,'4. Billing Determinants'!$B$19:$R$41,3,0)/'4. Billing Determinants'!$D$41*$D21))))),0) -> 0 | Y21: =IFERROR(IF(Y$4="",0,IF($E21="kWh",VLOOKUP(Y$4,'4. Billing Determinants'!$B$19:$R$41,4,0)/'4. Billing Determinants'!$E$41*$D21,IF($E21="kW",VLOOKUP(Y$4,'4. Billing Determinants'!$B$19:$R$41,5,0)/'4. Billing Determinants'!$F$41*$D21,IF($E21="Non-RPP kWh",VLOOKUP(Y$4,'4. Billing Determinants'!$B$19:$R$41,6,0)/'4. Billing Determinants'!$G$41*$D21,IF($E21="Distribution Rev.",VLOOKUP(Y$4,'4. Billing Determinants'!$B$19:$R$41,8,0)/'4. Billing Determinants'!$I$41*$D21, VLOOKUP(Y$4,'4. Billing Determinants'!$B$19:$R$41,3,0)/'4. Billing Determinants'!$D$41*$D21))))),0) -> 0
B22: Other Regulatory Assets - Sub-Account - Incremental Capital Charges | C22: 1508 | D22: ='2. 2016-20 Continuity Schedule'!BD40 -> 288985 | E22: Distribution Rev. | F22: =IFERROR(IF(F$4="",0,IF($E22="kWh",VLOOKUP(F$4,'4. Billing Determinants'!$B$19:$R$41,4,0)/'4. Billing Determinants'!$E$41*$D22,IF($E22="kW",VLOOKUP(F$4,'4. Billing Determinants'!$B$19:$R$41,5,0)/'4. Billing Determinants'!$F$41*$D22,IF($E22="Non-RPP kWh",VLOOKUP(F$4,'4. Billing Determinants'!$B$19:$R$41,6,0)/'4. Billing Determinants'!$G$41*$D22,IF($E22="Distribution Rev.",VLOOKUP(F$4,'4. Billing Determinants'!$B$19:$R$41,8,0)/'4. Billing Determinants'!$I$41*$D22, VLOOKUP(F$4,'4. Billing Determinants'!$B$19:$R$41,3,0)/'4. Billing Determinants'!$D$41*$D22))))),0) -> 156522.6224 | G22: =IFERROR(IF(G$4="",0,IF($E22="kWh",VLOOKUP(G$4,'4. Billing Determinants'!$B$19:$R$41,4,0)/'4. Billing Determinants'!$E$41*$D22,IF($E22="kW",VLOOKUP(G$4,'4. Billing Determinants'!$B$19:$R$41,5,0)/'4. Billing Determinants'!$F$41*$D22,IF($E22="Non-RPP kWh",VLOOKUP(G$4,'4. Billing Determinants'!$B$19:$R$41,6,0)/'4. Billing Determinants'!$G$41*$D22,IF($E22="Distribution Rev.",VLOOKUP(G$4,'4. Billing Determinants'!$B$19:$R$41,8,0)/'4. Billing Determinants'!$I$41*$D22, VLOOKUP(G$4,'4. Billing Determinants'!$B$19:$R$41,3,0)/'4. Billing Determinants'!$D$41*$D22))))),0) -> 43775.052 | H22: =IFERROR(IF(H$4="",0,IF($E22="kWh",VLOOKUP(H$4,'4. Billing Determinants'!$B$19:$R$41,4,0)/'4. Billing Determinants'!$E$41*$D22,IF($E22="kW",VLOOKUP(H$4,'4. Billing Determinants'!$B$19:$R$41,5,0)/'4. Billing Determinants'!$F$41*$D22,IF($E22="Non-RPP kWh",VLOOKUP(H$4,'4. Billing Determinants'!$B$19:$R$41,6,0)/'4. Billing Determinants'!$G$41*$D22,IF($E22="Distribution Rev.",VLOOKUP(H$4,'4. Billing Determinants'!$B$19:$R$41,8,0)/'4. Billing Determinants'!$I$41*$D22, VLOOKUP(H$4,'4. Billing Determinants'!$B$19:$R$41,3,0)/'4. Billing Determinants'!$D$41*$D22))))),0) -> 83117.35572 | I22: =IFERROR(IF(I$4="",0,IF($E22="kWh",VLOOKUP(I$4,'4. Billing Determinants'!$B$19:$R$41,4,0)/'4. Billing Determinants'!$E$41*$D22,IF($E22="kW",VLOOKUP(I$4,'4. Billing Determinants'!$B$19:$R$41,5,0)/'4. Billing Determinants'!$F$41*$D22,IF($E22="Non-RPP kWh",VLOOKUP(I$4,'4. Billing Determinants'!$B$19:$R$41,6,0)/'4. Billing Determinants'!$G$41*$D22,IF($E22="Distribution Rev.",VLOOKUP(I$4,'4. Billing Determinants'!$B$19:$R$41,8,0)/'4. Billing Determinants'!$I$41*$D22, VLOOKUP(I$4,'4. Billing Determinants'!$B$19:$R$41,3,0)/'4. Billing Determinants'!$D$41*$D22))))),0) -> 567.0621151 | J22: =IFERROR(IF(J$4="",0,IF($E22="kWh",VLOOKUP(J$4,'4. Billing Determinants'!$B$19:$R$41,4,0)/'4. Billing Determinants'!$E$41*$D22,IF($E22="kW",VLOOKUP(J$4,'4. Billing Determinants'!$B$19:$R$41,5,0)/'4. Billing Determinants'!$F$41*$D22,IF($E22="Non-RPP kWh",VLOOKUP(J$4,'4. Billing Determinants'!$B$19:$R$41,6,0)/'4. Billing Determinants'!$G$41*$D22,IF($E22="Distribution Rev.",VLOOKUP(J$4,'4. Billing Determinants'!$B$19:$R$41,8,0)/'4. Billing Determinants'!$I$41*$D22, VLOOKUP(J$4,'4. Billing Determinants'!$B$19:$R$41,3,0)/'4. Billing Determinants'!$D$41*$D22))))),0) -> 0 | K22: =IFERROR(IF(K$4="",0,IF($E22="kWh",VLOOKUP(K$4,'4. Billing Determinants'!$B$19:$R$41,4,0)/'4. Billing Determinants'!$E$41*$D22,IF($E22="kW",VLOOKUP(K$4,'4. Billing Determinants'!$B$19:$R$41,5,0)/'4. Billing Determinants'!$F$41*$D22,IF($E22="Non-RPP kWh",VLOOKUP(K$4,'4. Billing Determinants'!$B$19:$R$41,6,0)/'4. Billing Determinants'!$G$41*$D22,IF($E22="Distribution Rev.",VLOOKUP(K$4,'4. Billing Determinants'!$B$19:$R$41,8,0)/'4. Billing Determinants'!$I$41*$D22, VLOOKUP(K$4,'4. Billing Determinants'!$B$19:$R$41,3,0)/'4. Billing Determinants'!$D$41*$D22))))),0) -> 846.1905519 | L22: =IFERROR(IF(L$4="",0,IF($E22="kWh",VLOOKUP(L$4,'4. Billing Determinants'!$B$19:$R$41,4,0)/'4. Billing Determinants'!$E$41*$D22,IF($E22="kW",VLOOKUP(L$4,'4. Billing Determinants'!$B$19:$R$41,5,0)/'4. Billing Determinants'!$F$41*$D22,IF($E22="Non-RPP kWh",VLOOKUP(L$4,'4. Billing Determinants'!$B$19:$R$41,6,0)/'4. Billing Determinants'!$G$41*$D22,IF($E22="Distribution Rev.",VLOOKUP(L$4,'4. Billing Determinants'!$B$19:$R$41,8,0)/'4. Billing Determinants'!$I$41*$D22, VLOOKUP(L$4,'4. Billing Determinants'!$B$19:$R$41,3,0)/'4. Billing Determinants'!$D$41*$D22))))),0) -> 29.08535906 | M22: =IFERROR(IF(M$4="",0,IF($E22="kWh",VLOOKUP(M$4,'4. Billing Determinants'!$B$19:$R$41,4,0)/'4. Billing Determinants'!$E$41*$D22,IF($E22="kW",VLOOKUP(M$4,'4. Billing Determinants'!$B$19:$R$41,5,0)/'4. Billing Determinants'!$F$41*$D22,IF($E22="Non-RPP kWh",VLOOKUP(M$4,'4. Billing Determinants'!$B$19:$R$41,6,0)/'4. Billing Determinants'!$G$41*$D22,IF($E22="Distribution Rev.",VLOOKUP(M$4,'4. Billing Determinants'!$B$19:$R$41,8,0)/'4. Billing Determinants'!$I$41*$D22, VLOOKUP(M$4,'4. Billing Determinants'!$B$19:$R$41,3,0)/'4. Billing Determinants'!$D$41*$D22))))),0) -> 4127.631856 | N22: =IFERROR(IF(N$4="",0,IF($E22="kWh",VLOOKUP(N$4,'4. Billing Determinants'!$B$19:$R$41,4,0)/'4. Billing Determinants'!$E$41*$D22,IF($E22="kW",VLOOKUP(N$4,'4. Billing Determinants'!$B$19:$R$41,5,0)/'4. Billing Determinants'!$F$41*$D22,IF($E22="Non-RPP kWh",VLOOKUP(N$4,'4. Billing Determinants'!$B$19:$R$41,6,0)/'4. Billing Determinants'!$G$41*$D22,IF($E22="Distribution Rev.",VLOOKUP(N$4,'4. Billing Determinants'!$B$19:$R$41,8,0)/'4. Billing Determinants'!$I$41*$D22, VLOOKUP(N$4,'4. Billing Determinants'!$B$19:$R$41,3,0)/'4. Billing Determinants'!$D$41*$D22))))),0) -> 0 | O22: =IFERROR(IF(O$4="",0,IF($E22="kWh",VLOOKUP(O$4,'4. Billing Determinants'!$B$19:$R$41,4,0)/'4. Billing Determinants'!$E$41*$D22,IF($E22="kW",VLOOKUP(O$4,'4. Billing Determinants'!$B$19:$R$41,5,0)/'4. Billing Determinants'!$F$41*$D22,IF($E22="Non-RPP kWh",VLOOKUP(O$4,'4. Billing Determinants'!$B$19:$R$41,6,0)/'4. Billing Determinants'!$G$41*$D22,IF($E22="Distribution Rev.",VLOOKUP(O$4,'4. Billing Determinants'!$B$19:$R$41,8,0)/'4. Billing Determinants'!$I$41*$D22, VLOOKUP(O$4,'4. Billing Determinants'!$B$19:$R$41,3,0)/'4. Billing Determinants'!$D$41*$D22))))),0) -> 0 | P22: =IFERROR(IF(P$4="",0,IF($E22="kWh",VLOOKUP(P$4,'4. Billing Determinants'!$B$19:$R$41,4,0)/'4. Billing Determinants'!$E$41*$D22,IF($E22="kW",VLOOKUP(P$4,'4. Billing Determinants'!$B$19:$R$41,5,0)/'4. Billing Determinants'!$F$41*$D22,IF($E22="Non-RPP kWh",VLOOKUP(P$4,'4. Billing Determinants'!$B$19:$R$41,6,0)/'4. Billing Determinants'!$G$41*$D22,IF($E22="Distribution Rev.",VLOOKUP(P$4,'4. Billing Determinants'!$B$19:$R$41,8,0)/'4. Billing Determinants'!$I$41*$D22, VLOOKUP(P$4,'4. Billing Determinants'!$B$19:$R$41,3,0)/'4. Billing Determinants'!$D$41*$D22))))),0) -> 0 | Q22: =IFERROR(IF(Q$4="",0,IF($E22="kWh",VLOOKUP(Q$4,'4. Billing Determinants'!$B$19:$R$41,4,0)/'4. Billing Determinants'!$E$41*$D22,IF($E22="kW",VLOOKUP(Q$4,'4. Billing Determinants'!$B$19:$R$41,5,0)/'4. Billing Determinants'!$F$41*$D22,IF($E22="Non-RPP kWh",VLOOKUP(Q$4,'4. Billing Determinants'!$B$19:$R$41,6,0)/'4. Billing Determinants'!$G$41*$D22,IF($E22="Distribution Rev.",VLOOKUP(Q$4,'4. Billing Determinants'!$B$19:$R$41,8,0)/'4. Billing Determinants'!$I$41*$D22, VLOOKUP(Q$4,'4. Billing Determinants'!$B$19:$R$41,3,0)/'4. Billing Determinants'!$D$41*$D22))))),0) -> 0 | R22: =IFERROR(IF(R$4="",0,IF($E22="kWh",VLOOKUP(R$4,'4. Billing Determinants'!$B$19:$R$41,4,0)/'4. Billing Determinants'!$E$41*$D22,IF($E22="kW",VLOOKUP(R$4,'4. Billing Determinants'!$B$19:$R$41,5,0)/'4. Billing Determinants'!$F$41*$D22,IF($E22="Non-RPP kWh",VLOOKUP(R$4,'4. Billing Determinants'!$B$19:$R$41,6,0)/'4. Billing Determinants'!$G$41*$D22,IF($E22="Distribution Rev.",VLOOKUP(R$4,'4. Billing Determinants'!$B$19:$R$41,8,0)/'4. Billing Determinants'!$I$41*$D22, VLOOKUP(R$4,'4. Billing Determinants'!$B$19:$R$41,3,0)/'4. Billing Determinants'!$D$41*$D22))))),0) -> 0 | S22: =IFERROR(IF(S$4="",0,IF($E22="kWh",VLOOKUP(S$4,'4. Billing Determinants'!$B$19:$R$41,4,0)/'4. Billing Determinants'!$E$41*$D22,IF($E22="kW",VLOOKUP(S$4,'4. Billing Determinants'!$B$19:$R$41,5,0)/'4. Billing Determinants'!$F$41*$D22,IF($E22="Non-RPP kWh",VLOOKUP(S$4,'4. Billing Determinants'!$B$19:$R$41,6,0)/'4. Billing Determinants'!$G$41*$D22,IF($E22="Distribution Rev.",VLOOKUP(S$4,'4. Billing Determinants'!$B$19:$R$41,8,0)/'4. Billing Determinants'!$I$41*$D22, VLOOKUP(S$4,'4. Billing Determinants'!$B$19:$R$41,3,0)/'4. Billing Determinants'!$D$41*$D22))))),0) -> 0 | T22: =IFERROR(IF(T$4="",0,IF($E22="kWh",VLOOKUP(T$4,'4. Billing Determinants'!$B$19:$R$41,4,0)/'4. Billing Determinants'!$E$41*$D22,IF($E22="kW",VLOOKUP(T$4,'4. Billing Determinants'!$B$19:$R$41,5,0)/'4. Billing Determinants'!$F$41*$D22,IF($E22="Non-RPP kWh",VLOOKUP(T$4,'4. Billing Determinants'!$B$19:$R$41,6,0)/'4. Billing Determinants'!$G$41*$D22,IF($E22="Distribution Rev.",VLOOKUP(T$4,'4. Billing Determinants'!$B$19:$R$41,8,0)/'4. Billing Determinants'!$I$41*$D22, VLOOKUP(T$4,'4. Billing Determinants'!$B$19:$R$41,3,0)/'4. Billing Determinants'!$D$41*$D22))))),0) -> 0 | U22: =IFERROR(IF(U$4="",0,IF($E22="kWh",VLOOKUP(U$4,'4. Billing Determinants'!$B$19:$R$41,4,0)/'4. Billing Determinants'!$E$41*$D22,IF($E22="kW",VLOOKUP(U$4,'4. Billing Determinants'!$B$19:$R$41,5,0)/'4. Billing Determinants'!$F$41*$D22,IF($E22="Non-RPP kWh",VLOOKUP(U$4,'4. Billing Determinants'!$B$19:$R$41,6,0)/'4. Billing Determinants'!$G$41*$D22,IF($E22="Distribution Rev.",VLOOKUP(U$4,'4. Billing Determinants'!$B$19:$R$41,8,0)/'4. Billing Determinants'!$I$41*$D22, VLOOKUP(U$4,'4. Billing Determinants'!$B$19:$R$41,3,0)/'4. Billing Determinants'!$D$41*$D22))))),0) -> 0 | V22: =IFERROR(IF(V$4="",0,IF($E22="kWh",VLOOKUP(V$4,'4. Billing Determinants'!$B$19:$R$41,4,0)/'4. Billing Determinants'!$E$41*$D22,IF($E22="kW",VLOOKUP(V$4,'4. Billing Determinants'!$B$19:$R$41,5,0)/'4. Billing Determinants'!$F$41*$D22,IF($E22="Non-RPP kWh",VLOOKUP(V$4,'4. Billing Determinants'!$B$19:$R$41,6,0)/'4. Billing Determinants'!$G$41*$D22,IF($E22="Distribution Rev.",VLOOKUP(V$4,'4. Billing Determinants'!$B$19:$R$41,8,0)/'4. Billing Determinants'!$I$41*$D22, VLOOKUP(V$4,'4. Billing Determinants'!$B$19:$R$41,3,0)/'4. Billing Determinants'!$D$41*$D22))))),0) -> 0 | W22: =IFERROR(IF(W$4="",0,IF($E22="kWh",VLOOKUP(W$4,'4. Billing Determinants'!$B$19:$R$41,4,0)/'4. Billing Determinants'!$E$41*$D22,IF($E22="kW",VLOOKUP(W$4,'4. Billing Determinants'!$B$19:$R$41,5,0)/'4. Billing Determinants'!$F$41*$D22,IF($E22="Non-RPP kWh",VLOOKUP(W$4,'4. Billing Determinants'!$B$19:$R$41,6,0)/'4. Billing Determinants'!$G$41*$D22,IF($E22="Distribution Rev.",VLOOKUP(W$4,'4. Billing Determinants'!$B$19:$R$41,8,0)/'4. Billing Determinants'!$I$41*$D22, VLOOKUP(W$4,'4. Billing Determinants'!$B$19:$R$41,3,0)/'4. Billing Determinants'!$D$41*$D22))))),0) -> 0 | X22: =IFERROR(IF(X$4="",0,IF($E22="kWh",VLOOKUP(X$4,'4. Billing Determinants'!$B$19:$R$41,4,0)/'4. Billing Determinants'!$E$41*$D22,IF($E22="kW",VLOOKUP(X$4,'4. Billing Determinants'!$B$19:$R$41,5,0)/'4. Billing Determinants'!$F$41*$D22,IF($E22="Non-RPP kWh",VLOOKUP(X$4,'4. Billing Determinants'!$B$19:$R$41,6,0)/'4. Billing Determinants'!$G$41*$D22,IF($E22="Distribution Rev.",VLOOKUP(X$4,'4. Billing Determinants'!$B$19:$R$41,8,0)/'4. Billing Determinants'!$I$41*$D22, VLOOKUP(X$4,'4. Billing Determinants'!$B$19:$R$41,3,0)/'4. Billing Determinants'!$D$41*$D22))))),0) -> 0 | Y22: =IFERROR(IF(Y$4="",0,IF($E22="kWh",VLOOKUP(Y$4,'4. Billing Determinants'!$B$19:$R$41,4,0)/'4. Billing Determinants'!$E$41*$D22,IF($E22="kW",VLOOKUP(Y$4,'4. Billing Determinants'!$B$19:$R$41,5,0)/'4. Billing Determinants'!$F$41*$D22,IF($E22="Non-RPP kWh",VLOOKUP(Y$4,'4. Billing Determinants'!$B$19:$R$41,6,0)/'4. Billing Determinants'!$G$41*$D22,IF($E22="Distribution Rev.",VLOOKUP(Y$4,'4. Billing Determinants'!$B$19:$R$41,8,0)/'4. Billing Determinants'!$I$41*$D22, VLOOKUP(Y$4,'4. Billing Determinants'!$B$19:$R$41,3,0)/'4. Billing Determinants'!$D$41*$D22))))),0) -> 0
B23: Other Regulatory Assets - Sub-Account - Financial Assistance Payment and Recovery Variance - Ontario Clean Energy Benefit Act | C23: 1508 | D23: ='2. 2016-20 Continuity Schedule'!BD41 -> 0 | E23: Distribution Rev. | F23: =IFERROR(IF(F$4="",0,IF($E23="kWh",VLOOKUP(F$4,'4. Billing Determinants'!$B$19:$R$41,4,0)/'4. Billing Determinants'!$E$41*$D23,IF($E23="kW",VLOOKUP(F$4,'4. Billing Determinants'!$B$19:$R$41,5,0)/'4. Billing Determinants'!$F$41*$D23,IF($E23="Non-RPP kWh",VLOOKUP(F$4,'4. Billing Determinants'!$B$19:$R$41,6,0)/'4. Billing Determinants'!$G$41*$D23,IF($E23="Distribution Rev.",VLOOKUP(F$4,'4. Billing Determinants'!$B$19:$R$41,8,0)/'4. Billing Determinants'!$I$41*$D23, VLOOKUP(F$4,'4. Billing Determinants'!$B$19:$R$41,3,0)/'4. Billing Determinants'!$D$41*$D23))))),0) -> 0 | G23: =IFERROR(IF(G$4="",0,IF($E23="kWh",VLOOKUP(G$4,'4. Billing Determinants'!$B$19:$R$41,4,0)/'4. Billing Determinants'!$E$41*$D23,IF($E23="kW",VLOOKUP(G$4,'4. Billing Determinants'!$B$19:$R$41,5,0)/'4. Billing Determinants'!$F$41*$D23,IF($E23="Non-RPP kWh",VLOOKUP(G$4,'4. Billing Determinants'!$B$19:$R$41,6,0)/'4. Billing Determinants'!$G$41*$D23,IF($E23="Distribution Rev.",VLOOKUP(G$4,'4. Billing Determinants'!$B$19:$R$41,8,0)/'4. Billing Determinants'!$I$41*$D23, VLOOKUP(G$4,'4. Billing Determinants'!$B$19:$R$41,3,0)/'4. Billing Determinants'!$D$41*$D23))))),0) -> 0 | H23: =IFERROR(IF(H$4="",0,IF($E23="kWh",VLOOKUP(H$4,'4. Billing Determinants'!$B$19:$R$41,4,0)/'4. Billing Determinants'!$E$41*$D23,IF($E23="kW",VLOOKUP(H$4,'4. Billing Determinants'!$B$19:$R$41,5,0)/'4. Billing Determinants'!$F$41*$D23,IF($E23="Non-RPP kWh",VLOOKUP(H$4,'4. Billing Determinants'!$B$19:$R$41,6,0)/'4. Billing Determinants'!$G$41*$D23,IF($E23="Distribution Rev.",VLOOKUP(H$4,'4. Billing Determinants'!$B$19:$R$41,8,0)/'4. Billing Determinants'!$I$41*$D23, VLOOKUP(H$4,'4. Billing Determinants'!$B$19:$R$41,3,0)/'4. Billing Determinants'!$D$41*$D23))))),0) -> 0 | I23: =IFERROR(IF(I$4="",0,IF($E23="kWh",VLOOKUP(I$4,'4. Billing Determinants'!$B$19:$R$41,4,0)/'4. Billing Determinants'!$E$41*$D23,IF($E23="kW",VLOOKUP(I$4,'4. Billing Determinants'!$B$19:$R$41,5,0)/'4. Billing Determinants'!$F$41*$D23,IF($E23="Non-RPP kWh",VLOOKUP(I$4,'4. Billing Determinants'!$B$19:$R$41,6,0)/'4. Billing Determinants'!$G$41*$D23,IF($E23="Distribution Rev.",VLOOKUP(I$4,'4. Billing Determinants'!$B$19:$R$41,8,0)/'4. Billing Determinants'!$I$41*$D23, VLOOKUP(I$4,'4. Billing Determinants'!$B$19:$R$41,3,0)/'4. Billing Determinants'!$D$41*$D23))))),0) -> 0 | J23: =IFERROR(IF(J$4="",0,IF($E23="kWh",VLOOKUP(J$4,'4. Billing Determinants'!$B$19:$R$41,4,0)/'4. Billing Determinants'!$E$41*$D23,IF($E23="kW",VLOOKUP(J$4,'4. Billing Determinants'!$B$19:$R$41,5,0)/'4. Billing Determinants'!$F$41*$D23,IF($E23="Non-RPP kWh",VLOOKUP(J$4,'4. Billing Determinants'!$B$19:$R$41,6,0)/'4. Billing Determinants'!$G$41*$D23,IF($E23="Distribution Rev.",VLOOKUP(J$4,'4. Billing Determinants'!$B$19:$R$41,8,0)/'4. Billing Determinants'!$I$41*$D23, VLOOKUP(J$4,'4. Billing Determinants'!$B$19:$R$41,3,0)/'4. Billing Determinants'!$D$41*$D23))))),0) -> 0 | K23: =IFERROR(IF(K$4="",0,IF($E23="kWh",VLOOKUP(K$4,'4. Billing Determinants'!$B$19:$R$41,4,0)/'4. Billing Determinants'!$E$41*$D23,IF($E23="kW",VLOOKUP(K$4,'4. Billing Determinants'!$B$19:$R$41,5,0)/'4. Billing Determinants'!$F$41*$D23,IF($E23="Non-RPP kWh",VLOOKUP(K$4,'4. Billing Determinants'!$B$19:$R$41,6,0)/'4. Billing Determinants'!$G$41*$D23,IF($E23="Distribution Rev.",VLOOKUP(K$4,'4. Billing Determinants'!$B$19:$R$41,8,0)/'4. Billing Determinants'!$I$41*$D23, VLOOKUP(K$4,'4. Billing Determinants'!$B$19:$R$41,3,0)/'4. Billing Determinants'!$D$41*$D23))))),0) -> 0 | L23: =IFERROR(IF(L$4="",0,IF($E23="kWh",VLOOKUP(L$4,'4. Billing Determinants'!$B$19:$R$41,4,0)/'4. Billing Determinants'!$E$41*$D23,IF($E23="kW",VLOOKUP(L$4,'4. Billing Determinants'!$B$19:$R$41,5,0)/'4. Billing Determinants'!$F$41*$D23,IF($E23="Non-RPP kWh",VLOOKUP(L$4,'4. Billing Determinants'!$B$19:$R$41,6,0)/'4. Billing Determinants'!$G$41*$D23,IF($E23="Distribution Rev.",VLOOKUP(L$4,'4. Billing Determinants'!$B$19:$R$41,8,0)/'4. Billing Determinants'!$I$41*$D23, VLOOKUP(L$4,'4. Billing Determinants'!$B$19:$R$41,3,0)/'4. Billing Determinants'!$D$41*$D23))))),0) -> 0 | M23: =IFERROR(IF(M$4="",0,IF($E23="kWh",VLOOKUP(M$4,'4. Billing Determinants'!$B$19:$R$41,4,0)/'4. Billing Determinants'!$E$41*$D23,IF($E23="kW",VLOOKUP(M$4,'4. Billing Determinants'!$B$19:$R$41,5,0)/'4. Billing Determinants'!$F$41*$D23,IF($E23="Non-RPP kWh",VLOOKUP(M$4,'4. Billing Determinants'!$B$19:$R$41,6,0)/'4. Billing Determinants'!$G$41*$D23,IF($E23="Distribution Rev.",VLOOKUP(M$4,'4. Billing Determinants'!$B$19:$R$41,8,0)/'4. Billing Determinants'!$I$41*$D23, VLOOKUP(M$4,'4. Billing Determinants'!$B$19:$R$41,3,0)/'4. Billing Determinants'!$D$41*$D23))))),0) -> 0 | N23: =IFERROR(IF(N$4="",0,IF($E23="kWh",VLOOKUP(N$4,'4. Billing Determinants'!$B$19:$R$41,4,0)/'4. Billing Determinants'!$E$41*$D23,IF($E23="kW",VLOOKUP(N$4,'4. Billing Determinants'!$B$19:$R$41,5,0)/'4. Billing Determinants'!$F$41*$D23,IF($E23="Non-RPP kWh",VLOOKUP(N$4,'4. Billing Determinants'!$B$19:$R$41,6,0)/'4. Billing Determinants'!$G$41*$D23,IF($E23="Distribution Rev.",VLOOKUP(N$4,'4. Billing Determinants'!$B$19:$R$41,8,0)/'4. Billing Determinants'!$I$41*$D23, VLOOKUP(N$4,'4. Billing Determinants'!$B$19:$R$41,3,0)/'4. Billing Determinants'!$D$41*$D23))))),0) -> 0 | O23: =IFERROR(IF(O$4="",0,IF($E23="kWh",VLOOKUP(O$4,'4. Billing Determinants'!$B$19:$R$41,4,0)/'4. Billing Determinants'!$E$41*$D23,IF($E23="kW",VLOOKUP(O$4,'4. Billing Determinants'!$B$19:$R$41,5,0)/'4. Billing Determinants'!$F$41*$D23,IF($E23="Non-RPP kWh",VLOOKUP(O$4,'4. Billing Determinants'!$B$19:$R$41,6,0)/'4. Billing Determinants'!$G$41*$D23,IF($E23="Distribution Rev.",VLOOKUP(O$4,'4. Billing Determinants'!$B$19:$R$41,8,0)/'4. Billing Determinants'!$I$41*$D23, VLOOKUP(O$4,'4. Billing Determinants'!$B$19:$R$41,3,0)/'4. Billing Determinants'!$D$41*$D23))))),0) -> 0 | P23: =IFERROR(IF(P$4="",0,IF($E23="kWh",VLOOKUP(P$4,'4. Billing Determinants'!$B$19:$R$41,4,0)/'4. Billing Determinants'!$E$41*$D23,IF($E23="kW",VLOOKUP(P$4,'4. Billing Determinants'!$B$19:$R$41,5,0)/'4. Billing Determinants'!$F$41*$D23,IF($E23="Non-RPP kWh",VLOOKUP(P$4,'4. Billing Determinants'!$B$19:$R$41,6,0)/'4. Billing Determinants'!$G$41*$D23,IF($E23="Distribution Rev.",VLOOKUP(P$4,'4. Billing Determinants'!$B$19:$R$41,8,0)/'4. Billing Determinants'!$I$41*$D23, VLOOKUP(P$4,'4. Billing Determinants'!$B$19:$R$41,3,0)/'4. Billing Determinants'!$D$41*$D23))))),0) -> 0 | Q23: =IFERROR(IF(Q$4="",0,IF($E23="kWh",VLOOKUP(Q$4,'4. Billing Determinants'!$B$19:$R$41,4,0)/'4. Billing Determinants'!$E$41*$D23,IF($E23="kW",VLOOKUP(Q$4,'4. Billing Determinants'!$B$19:$R$41,5,0)/'4. Billing Determinants'!$F$41*$D23,IF($E23="Non-RPP kWh",VLOOKUP(Q$4,'4. Billing Determinants'!$B$19:$R$41,6,0)/'4. Billing Determinants'!$G$41*$D23,IF($E23="Distribution Rev.",VLOOKUP(Q$4,'4. Billing Determinants'!$B$19:$R$41,8,0)/'4. Billing Determinants'!$I$41*$D23, VLOOKUP(Q$4,'4. Billing Determinants'!$B$19:$R$41,3,0)/'4. Billing Determinants'!$D$41*$D23))))),0) -> 0 | R23: =IFERROR(IF(R$4="",0,IF($E23="kWh",VLOOKUP(R$4,'4. Billing Determinants'!$B$19:$R$41,4,0)/'4. Billing Determinants'!$E$41*$D23,IF($E23="kW",VLOOKUP(R$4,'4. Billing Determinants'!$B$19:$R$41,5,0)/'4. Billing Determinants'!$F$41*$D23,IF($E23="Non-RPP kWh",VLOOKUP(R$4,'4. Billing Determinants'!$B$19:$R$41,6,0)/'4. Billing Determinants'!$G$41*$D23,IF($E23="Distribution Rev.",VLOOKUP(R$4,'4. Billing Determinants'!$B$19:$R$41,8,0)/'4. Billing Determinants'!$I$41*$D23, VLOOKUP(R$4,'4. Billing Determinants'!$B$19:$R$41,3,0)/'4. Billing Determinants'!$D$41*$D23))))),0) -> 0 | S23: =IFERROR(IF(S$4="",0,IF($E23="kWh",VLOOKUP(S$4,'4. Billing Determinants'!$B$19:$R$41,4,0)/'4. Billing Determinants'!$E$41*$D23,IF($E23="kW",VLOOKUP(S$4,'4. Billing Determinants'!$B$19:$R$41,5,0)/'4. Billing Determinants'!$F$41*$D23,IF($E23="Non-RPP kWh",VLOOKUP(S$4,'4. Billing Determinants'!$B$19:$R$41,6,0)/'4. Billing Determinants'!$G$41*$D23,IF($E23="Distribution Rev.",VLOOKUP(S$4,'4. Billing Determinants'!$B$19:$R$41,8,0)/'4. Billing Determinants'!$I$41*$D23, VLOOKUP(S$4,'4. Billing Determinants'!$B$19:$R$41,3,0)/'4. Billing Determinants'!$D$41*$D23))))),0) -> 0 | T23: =IFERROR(IF(T$4="",0,IF($E23="kWh",VLOOKUP(T$4,'4. Billing Determinants'!$B$19:$R$41,4,0)/'4. Billing Determinants'!$E$41*$D23,IF($E23="kW",VLOOKUP(T$4,'4. Billing Determinants'!$B$19:$R$41,5,0)/'4. Billing Determinants'!$F$41*$D23,IF($E23="Non-RPP kWh",VLOOKUP(T$4,'4. Billing Determinants'!$B$19:$R$41,6,0)/'4. Billing Determinants'!$G$41*$D23,IF($E23="Distribution Rev.",VLOOKUP(T$4,'4. Billing Determinants'!$B$19:$R$41,8,0)/'4. Billing Determinants'!$I$41*$D23, VLOOKUP(T$4,'4. Billing Determinants'!$B$19:$R$41,3,0)/'4. Billing Determinants'!$D$41*$D23))))),0) -> 0 | U23: =IFERROR(IF(U$4="",0,IF($E23="kWh",VLOOKUP(U$4,'4. Billing Determinants'!$B$19:$R$41,4,0)/'4. Billing Determinants'!$E$41*$D23,IF($E23="kW",VLOOKUP(U$4,'4. Billing Determinants'!$B$19:$R$41,5,0)/'4. Billing Determinants'!$F$41*$D23,IF($E23="Non-RPP kWh",VLOOKUP(U$4,'4. Billing Determinants'!$B$19:$R$41,6,0)/'4. Billing Determinants'!$G$41*$D23,IF($E23="Distribution Rev.",VLOOKUP(U$4,'4. Billing Determinants'!$B$19:$R$41,8,0)/'4. Billing Determinants'!$I$41*$D23, VLOOKUP(U$4,'4. Billing Determinants'!$B$19:$R$41,3,0)/'4. Billing Determinants'!$D$41*$D23))))),0) -> 0 | V23: =IFERROR(IF(V$4="",0,IF($E23="kWh",VLOOKUP(V$4,'4. Billing Determinants'!$B$19:$R$41,4,0)/'4. Billing Determinants'!$E$41*$D23,IF($E23="kW",VLOOKUP(V$4,'4. Billing Determinants'!$B$19:$R$41,5,0)/'4. Billing Determinants'!$F$41*$D23,IF($E23="Non-RPP kWh",VLOOKUP(V$4,'4. Billing Determinants'!$B$19:$R$41,6,0)/'4. Billing Determinants'!$G$41*$D23,IF($E23="Distribution Rev.",VLOOKUP(V$4,'4. Billing Determinants'!$B$19:$R$41,8,0)/'4. Billing Determinants'!$I$41*$D23, VLOOKUP(V$4,'4. Billing Determinants'!$B$19:$R$41,3,0)/'4. Billing Determinants'!$D$41*$D23))))),0) -> 0 | W23: =IFERROR(IF(W$4="",0,IF($E23="kWh",VLOOKUP(W$4,'4. Billing Determinants'!$B$19:$R$41,4,0)/'4. Billing Determinants'!$E$41*$D23,IF($E23="kW",VLOOKUP(W$4,'4. Billing Determinants'!$B$19:$R$41,5,0)/'4. Billing Determinants'!$F$41*$D23,IF($E23="Non-RPP kWh",VLOOKUP(W$4,'4. Billing Determinants'!$B$19:$R$41,6,0)/'4. Billing Determinants'!$G$41*$D23,IF($E23="Distribution Rev.",VLOOKUP(W$4,'4. Billing Determinants'!$B$19:$R$41,8,0)/'4. Billing Determinants'!$I$41*$D23, VLOOKUP(W$4,'4. Billing Determinants'!$B$19:$R$41,3,0)/'4. Billing Determinants'!$D$41*$D23))))),0) -> 0 | X23: =IFERROR(IF(X$4="",0,IF($E23="kWh",VLOOKUP(X$4,'4. Billing Determinants'!$B$19:$R$41,4,0)/'4. Billing Determinants'!$E$41*$D23,IF($E23="kW",VLOOKUP(X$4,'4. Billing Determinants'!$B$19:$R$41,5,0)/'4. Billing Determinants'!$F$41*$D23,IF($E23="Non-RPP kWh",VLOOKUP(X$4,'4. Billing Determinants'!$B$19:$R$41,6,0)/'4. Billing Determinants'!$G$41*$D23,IF($E23="Distribution Rev.",VLOOKUP(X$4,'4. Billing Determinants'!$B$19:$R$41,8,0)/'4. Billing Determinants'!$I$41*$D23, VLOOKUP(X$4,'4. Billing Determinants'!$B$19:$R$41,3,0)/'4. Billing Determinants'!$D$41*$D23))))),0) -> 0 | Y23: =IFERROR(IF(Y$4="",0,IF($E23="kWh",VLOOKUP(Y$4,'4. Billing Determinants'!$B$19:$R$41,4,0)/'4. Billing Determinants'!$E$41*$D23,IF($E23="kW",VLOOKUP(Y$4,'4. Billing Determinants'!$B$19:$R$41,5,0)/'4. Billing Determinants'!$F$41*$D23,IF($E23="Non-RPP kWh",VLOOKUP(Y$4,'4. Billing Determinants'!$B$19:$R$41,6,0)/'4. Billing Determinants'!$G$41*$D23,IF($E23="Distribution Rev.",VLOOKUP(Y$4,'4. Billing Determinants'!$B$19:$R$41,8,0)/'4. Billing Determinants'!$I$41*$D23, VLOOKUP(Y$4,'4. Billing Determinants'!$B$19:$R$41,3,0)/'4. Billing Determinants'!$D$41*$D23))))),0) -> 0
B24: Other Regulatory Assets - Sub-Account - Financial Assistance Payment and Recovery Carrying Charges | C24: 1508 | D24: ='2. 2016-20 Continuity Schedule'!BD42 -> 0 | F24: =IFERROR(IF(F$4="",0,IF($E24="kWh",VLOOKUP(F$4,'4. Billing Determinants'!$B$19:$R$41,4,0)/'4. Billing Determinants'!$E$41*$D24,IF($E24="kW",VLOOKUP(F$4,'4. Billing Determinants'!$B$19:$R$41,5,0)/'4. Billing Determinants'!$F$41*$D24,IF($E24="Non-RPP kWh",VLOOKUP(F$4,'4. Billing Determinants'!$B$19:$R$41,6,0)/'4. Billing Determinants'!$G$41*$D24,IF($E24="Distribution Rev.",VLOOKUP(F$4,'4. Billing Determinants'!$B$19:$R$41,8,0)/'4. Billing Determinants'!$I$41*$D24, VLOOKUP(F$4,'4. Billing Determinants'!$B$19:$R$41,3,0)/'4. Billing Determinants'!$D$41*$D24))))),0) -> 0 | G24: =IFERROR(IF(G$4="",0,IF($E24="kWh",VLOOKUP(G$4,'4. Billing Determinants'!$B$19:$R$41,4,0)/'4. Billing Determinants'!$E$41*$D24,IF($E24="kW",VLOOKUP(G$4,'4. Billing Determinants'!$B$19:$R$41,5,0)/'4. Billing Determinants'!$F$41*$D24,IF($E24="Non-RPP kWh",VLOOKUP(G$4,'4. Billing Determinants'!$B$19:$R$41,6,0)/'4. Billing Determinants'!$G$41*$D24,IF($E24="Distribution Rev.",VLOOKUP(G$4,'4. Billing Determinants'!$B$19:$R$41,8,0)/'4. Billing Determinants'!$I$41*$D24, VLOOKUP(G$4,'4. Billing Determinants'!$B$19:$R$41,3,0)/'4. Billing Determinants'!$D$41*$D24))))),0) -> 0 | H24: =IFERROR(IF(H$4="",0,IF($E24="kWh",VLOOKUP(H$4,'4. Billing Determinants'!$B$19:$R$41,4,0)/'4. Billing Determinants'!$E$41*$D24,IF($E24="kW",VLOOKUP(H$4,'4. Billing Determinants'!$B$19:$R$41,5,0)/'4. Billing Determinants'!$F$41*$D24,IF($E24="Non-RPP kWh",VLOOKUP(H$4,'4. Billing Determinants'!$B$19:$R$41,6,0)/'4. Billing Determinants'!$G$41*$D24,IF($E24="Distribution Rev.",VLOOKUP(H$4,'4. Billing Determinants'!$B$19:$R$41,8,0)/'4. Billing Determinants'!$I$41*$D24, VLOOKUP(H$4,'4. Billing Determinants'!$B$19:$R$41,3,0)/'4. Billing Determinants'!$D$41*$D24))))),0) -> 0 | I24: =IFERROR(IF(I$4="",0,IF($E24="kWh",VLOOKUP(I$4,'4. Billing Determinants'!$B$19:$R$41,4,0)/'4. Billing Determinants'!$E$41*$D24,IF($E24="kW",VLOOKUP(I$4,'4. Billing Determinants'!$B$19:$R$41,5,0)/'4. Billing Determinants'!$F$41*$D24,IF($E24="Non-RPP kWh",VLOOKUP(I$4,'4. Billing Determinants'!$B$19:$R$41,6,0)/'4. Billing Determinants'!$G$41*$D24,IF($E24="Distribution Rev.",VLOOKUP(I$4,'4. Billing Determinants'!$B$19:$R$41,8,0)/'4. Billing Determinants'!$I$41*$D24, VLOOKUP(I$4,'4. Billing Determinants'!$B$19:$R$41,3,0)/'4. Billing Determinants'!$D$41*$D24))))),0) -> 0 | J24: =IFERROR(IF(J$4="",0,IF($E24="kWh",VLOOKUP(J$4,'4. Billing Determinants'!$B$19:$R$41,4,0)/'4. Billing Determinants'!$E$41*$D24,IF($E24="kW",VLOOKUP(J$4,'4. Billing Determinants'!$B$19:$R$41,5,0)/'4. Billing Determinants'!$F$41*$D24,IF($E24="Non-RPP kWh",VLOOKUP(J$4,'4. Billing Determinants'!$B$19:$R$41,6,0)/'4. Billing Determinants'!$G$41*$D24,IF($E24="Distribution Rev.",VLOOKUP(J$4,'4. Billing Determinants'!$B$19:$R$41,8,0)/'4. Billing Determinants'!$I$41*$D24, VLOOKUP(J$4,'4. Billing Determinants'!$B$19:$R$41,3,0)/'4. Billing Determinants'!$D$41*$D24))))),0) -> 0 | K24: =IFERROR(IF(K$4="",0,IF($E24="kWh",VLOOKUP(K$4,'4. Billing Determinants'!$B$19:$R$41,4,0)/'4. Billing Determinants'!$E$41*$D24,IF($E24="kW",VLOOKUP(K$4,'4. Billing Determinants'!$B$19:$R$41,5,0)/'4. Billing Determinants'!$F$41*$D24,IF($E24="Non-RPP kWh",VLOOKUP(K$4,'4. Billing Determinants'!$B$19:$R$41,6,0)/'4. Billing Determinants'!$G$41*$D24,IF($E24="Distribution Rev.",VLOOKUP(K$4,'4. Billing Determinants'!$B$19:$R$41,8,0)/'4. Billing Determinants'!$I$41*$D24, VLOOKUP(K$4,'4. Billing Determinants'!$B$19:$R$41,3,0)/'4. Billing Determinants'!$D$41*$D24))))),0) -> 0 | L24: =IFERROR(IF(L$4="",0,IF($E24="kWh",VLOOKUP(L$4,'4. Billing Determinants'!$B$19:$R$41,4,0)/'4. Billing Determinants'!$E$41*$D24,IF($E24="kW",VLOOKUP(L$4,'4. Billing Determinants'!$B$19:$R$41,5,0)/'4. Billing Determinants'!$F$41*$D24,IF($E24="Non-RPP kWh",VLOOKUP(L$4,'4. Billing Determinants'!$B$19:$R$41,6,0)/'4. Billing Determinants'!$G$41*$D24,IF($E24="Distribution Rev.",VLOOKUP(L$4,'4. Billing Determinants'!$B$19:$R$41,8,0)/'4. Billing Determinants'!$I$41*$D24, VLOOKUP(L$4,'4. Billing Determinants'!$B$19:$R$41,3,0)/'4. Billing Determinants'!$D$41*$D24))))),0) -> 0 | M24: =IFERROR(IF(M$4="",0,IF($E24="kWh",VLOOKUP(M$4,'4. Billing Determinants'!$B$19:$R$41,4,0)/'4. Billing Determinants'!$E$41*$D24,IF($E24="kW",VLOOKUP(M$4,'4. Billing Determinants'!$B$19:$R$41,5,0)/'4. Billing Determinants'!$F$41*$D24,IF($E24="Non-RPP kWh",VLOOKUP(M$4,'4. Billing Determinants'!$B$19:$R$41,6,0)/'4. Billing Determinants'!$G$41*$D24,IF($E24="Distribution Rev.",VLOOKUP(M$4,'4. Billing Determinants'!$B$19:$R$41,8,0)/'4. Billing Determinants'!$I$41*$D24, VLOOKUP(M$4,'4. Billing Determinants'!$B$19:$R$41,3,0)/'4. Billing Determinants'!$D$41*$D24))))),0) -> 0 | N24: =IFERROR(IF(N$4="",0,IF($E24="kWh",VLOOKUP(N$4,'4. Billing Determinants'!$B$19:$R$41,4,0)/'4. Billing Determinants'!$E$41*$D24,IF($E24="kW",VLOOKUP(N$4,'4. Billing Determinants'!$B$19:$R$41,5,0)/'4. Billing Determinants'!$F$41*$D24,IF($E24="Non-RPP kWh",VLOOKUP(N$4,'4. Billing Determinants'!$B$19:$R$41,6,0)/'4. Billing Determinants'!$G$41*$D24,IF($E24="Distribution Rev.",VLOOKUP(N$4,'4. Billing Determinants'!$B$19:$R$41,8,0)/'4. Billing Determinants'!$I$41*$D24, VLOOKUP(N$4,'4. Billing Determinants'!$B$19:$R$41,3,0)/'4. Billing Determinants'!$D$41*$D24))))),0) -> 0 | O24: =IFERROR(IF(O$4="",0,IF($E24="kWh",VLOOKUP(O$4,'4. Billing Determinants'!$B$19:$R$41,4,0)/'4. Billing Determinants'!$E$41*$D24,IF($E24="kW",VLOOKUP(O$4,'4. Billing Determinants'!$B$19:$R$41,5,0)/'4. Billing Determinants'!$F$41*$D24,IF($E24="Non-RPP kWh",VLOOKUP(O$4,'4. Billing Determinants'!$B$19:$R$41,6,0)/'4. Billing Determinants'!$G$41*$D24,IF($E24="Distribution Rev.",VLOOKUP(O$4,'4. Billing Determinants'!$B$19:$R$41,8,0)/'4. Billing Determinants'!$I$41*$D24, VLOOKUP(O$4,'4. Billing Determinants'!$B$19:$R$41,3,0)/'4. Billing Determinants'!$D$41*$D24))))),0) -> 0 | P24: =IFERROR(IF(P$4="",0,IF($E24="kWh",VLOOKUP(P$4,'4. Billing Determinants'!$B$19:$R$41,4,0)/'4. Billing Determinants'!$E$41*$D24,IF($E24="kW",VLOOKUP(P$4,'4. Billing Determinants'!$B$19:$R$41,5,0)/'4. Billing Determinants'!$F$41*$D24,IF($E24="Non-RPP kWh",VLOOKUP(P$4,'4. Billing Determinants'!$B$19:$R$41,6,0)/'4. Billing Determinants'!$G$41*$D24,IF($E24="Distribution Rev.",VLOOKUP(P$4,'4. Billing Determinants'!$B$19:$R$41,8,0)/'4. Billing Determinants'!$I$41*$D24, VLOOKUP(P$4,'4. Billing Determinants'!$B$19:$R$41,3,0)/'4. Billing Determinants'!$D$41*$D24))))),0) -> 0 | Q24: =IFERROR(IF(Q$4="",0,IF($E24="kWh",VLOOKUP(Q$4,'4. Billing Determinants'!$B$19:$R$41,4,0)/'4. Billing Determinants'!$E$41*$D24,IF($E24="kW",VLOOKUP(Q$4,'4. Billing Determinants'!$B$19:$R$41,5,0)/'4. Billing Determinants'!$F$41*$D24,IF($E24="Non-RPP kWh",VLOOKUP(Q$4,'4. Billing Determinants'!$B$19:$R$41,6,0)/'4. Billing Determinants'!$G$41*$D24,IF($E24="Distribution Rev.",VLOOKUP(Q$4,'4. Billing Determinants'!$B$19:$R$41,8,0)/'4. Billing Determinants'!$I$41*$D24, VLOOKUP(Q$4,'4. Billing Determinants'!$B$19:$R$41,3,0)/'4. Billing Determinants'!$D$41*$D24))))),0) -> 0 | R24: =IFERROR(IF(R$4="",0,IF($E24="kWh",VLOOKUP(R$4,'4. Billing Determinants'!$B$19:$R$41,4,0)/'4. Billing Determinants'!$E$41*$D24,IF($E24="kW",VLOOKUP(R$4,'4. Billing Determinants'!$B$19:$R$41,5,0)/'4. Billing Determinants'!$F$41*$D24,IF($E24="Non-RPP kWh",VLOOKUP(R$4,'4. Billing Determinants'!$B$19:$R$41,6,0)/'4. Billing Determinants'!$G$41*$D24,IF($E24="Distribution Rev.",VLOOKUP(R$4,'4. Billing Determinants'!$B$19:$R$41,8,0)/'4. Billing Determinants'!$I$41*$D24, VLOOKUP(R$4,'4. Billing Determinants'!$B$19:$R$41,3,0)/'4. Billing Determinants'!$D$41*$D24))))),0) -> 0 | S24: =IFERROR(IF(S$4="",0,IF($E24="kWh",VLOOKUP(S$4,'4. Billing Determinants'!$B$19:$R$41,4,0)/'4. Billing Determinants'!$E$41*$D24,IF($E24="kW",VLOOKUP(S$4,'4. Billing Determinants'!$B$19:$R$41,5,0)/'4. Billing Determinants'!$F$41*$D24,IF($E24="Non-RPP kWh",VLOOKUP(S$4,'4. Billing Determinants'!$B$19:$R$41,6,0)/'4. Billing Determinants'!$G$41*$D24,IF($E24="Distribution Rev.",VLOOKUP(S$4,'4. Billing Determinants'!$B$19:$R$41,8,0)/'4. Billing Determinants'!$I$41*$D24, VLOOKUP(S$4,'4. Billing Determinants'!$B$19:$R$41,3,0)/'4. Billing Determinants'!$D$41*$D24))))),0) -> 0 | T24: =IFERROR(IF(T$4="",0,IF($E24="kWh",VLOOKUP(T$4,'4. Billing Determinants'!$B$19:$R$41,4,0)/'4. Billing Determinants'!$E$41*$D24,IF($E24="kW",VLOOKUP(T$4,'4. Billing Determinants'!$B$19:$R$41,5,0)/'4. Billing Determinants'!$F$41*$D24,IF($E24="Non-RPP kWh",VLOOKUP(T$4,'4. Billing Determinants'!$B$19:$R$41,6,0)/'4. Billing Determinants'!$G$41*$D24,IF($E24="Distribution Rev.",VLOOKUP(T$4,'4. Billing Determinants'!$B$19:$R$41,8,0)/'4. Billing Determinants'!$I$41*$D24, VLOOKUP(T$4,'4. Billing Determinants'!$B$19:$R$41,3,0)/'4. Billing Determinants'!$D$41*$D24))))),0) -> 0 | U24: =IFERROR(IF(U$4="",0,IF($E24="kWh",VLOOKUP(U$4,'4. Billing Determinants'!$B$19:$R$41,4,0)/'4. Billing Determinants'!$E$41*$D24,IF($E24="kW",VLOOKUP(U$4,'4. Billing Determinants'!$B$19:$R$41,5,0)/'4. Billing Determinants'!$F$41*$D24,IF($E24="Non-RPP kWh",VLOOKUP(U$4,'4. Billing Determinants'!$B$19:$R$41,6,0)/'4. Billing Determinants'!$G$41*$D24,IF($E24="Distribution Rev.",VLOOKUP(U$4,'4. Billing Determinants'!$B$19:$R$41,8,0)/'4. Billing Determinants'!$I$41*$D24, VLOOKUP(U$4,'4. Billing Determinants'!$B$19:$R$41,3,0)/'4. Billing Determinants'!$D$41*$D24))))),0) -> 0 | V24: =IFERROR(IF(V$4="",0,IF($E24="kWh",VLOOKUP(V$4,'4. Billing Determinants'!$B$19:$R$41,4,0)/'4. Billing Determinants'!$E$41*$D24,IF($E24="kW",VLOOKUP(V$4,'4. Billing Determinants'!$B$19:$R$41,5,0)/'4. Billing Determinants'!$F$41*$D24,IF($E24="Non-RPP kWh",VLOOKUP(V$4,'4. Billing Determinants'!$B$19:$R$41,6,0)/'4. Billing Determinants'!$G$41*$D24,IF($E24="Distribution Rev.",VLOOKUP(V$4,'4. Billing Determinants'!$B$19:$R$41,8,0)/'4. Billing Determinants'!$I$41*$D24, VLOOKUP(V$4,'4. Billing Determinants'!$B$19:$R$41,3,0)/'4. Billing Determinants'!$D$41*$D24))))),0) -> 0 | W24: =IFERROR(IF(W$4="",0,IF($E24="kWh",VLOOKUP(W$4,'4. Billing Determinants'!$B$19:$R$41,4,0)/'4. Billing Determinants'!$E$41*$D24,IF($E24="kW",VLOOKUP(W$4,'4. Billing Determinants'!$B$19:$R$41,5,0)/'4. Billing Determinants'!$F$41*$D24,IF($E24="Non-RPP kWh",VLOOKUP(W$4,'4. Billing Determinants'!$B$19:$R$41,6,0)/'4. Billing Determinants'!$G$41*$D24,IF($E24="Distribution Rev.",VLOOKUP(W$4,'4. Billing Determinants'!$B$19:$R$41,8,0)/'4. Billing Determinants'!$I$41*$D24, VLOOKUP(W$4,'4. Billing Determinants'!$B$19:$R$41,3,0)/'4. Billing Determinants'!$D$41*$D24))))),0) -> 0 | X24: =IFERROR(IF(X$4="",0,IF($E24="kWh",VLOOKUP(X$4,'4. Billing Determinants'!$B$19:$R$41,4,0)/'4. Billing Determinants'!$E$41*$D24,IF($E24="kW",VLOOKUP(X$4,'4. Billing Determinants'!$B$19:$R$41,5,0)/'4. Billing Determinants'!$F$41*$D24,IF($E24="Non-RPP kWh",VLOOKUP(X$4,'4. Billing Determinants'!$B$19:$R$41,6,0)/'4. Billing Determinants'!$G$41*$D24,IF($E24="Distribution Rev.",VLOOKUP(X$4,'4. Billing Determinants'!$B$19:$R$41,8,0)/'4. Billing Determinants'!$I$41*$D24, VLOOKUP(X$4,'4. Billing Determinants'!$B$19:$R$41,3,0)/'4. Billing Determinants'!$D$41*$D24))))),0) -> 0 | Y24: =IFERROR(IF(Y$4="",0,IF($E24="kWh",VLOOKUP(Y$4,'4. Billing Determinants'!$B$19:$R$41,4,0)/'4. Billing Determinants'!$E$41*$D24,IF($E24="kW",VLOOKUP(Y$4,'4. Billing Determinants'!$B$19:$R$41,5,0)/'4. Billing Determinants'!$F$41*$D24,IF($E24="Non-RPP kWh",VLOOKUP(Y$4,'4. Billing Determinants'!$B$19:$R$41,6,0)/'4. Billing Determinants'!$G$41*$D24,IF($E24="Distribution Rev.",VLOOKUP(Y$4,'4. Billing Determinants'!$B$19:$R$41,8,0)/'4. Billing Determinants'!$I$41*$D24, VLOOKUP(Y$4,'4. Billing Determinants'!$B$19:$R$41,3,0)/'4. Billing Determinants'!$D$41*$D24))))),0) -> 0
B25: Other Regulatory Assets - Sub-Account - Other | C25: 1508 | D25: ='2. 2016-20 Continuity Schedule'!BD43 -> 0 | E25: Distribution Rev. | F25: =IFERROR(IF(F$4="",0,IF($E25="kWh",VLOOKUP(F$4,'4. Billing Determinants'!$B$19:$R$41,4,0)/'4. Billing Determinants'!$E$41*$D25,IF($E25="kW",VLOOKUP(F$4,'4. Billing Determinants'!$B$19:$R$41,5,0)/'4. Billing Determinants'!$F$41*$D25,IF($E25="Non-RPP kWh",VLOOKUP(F$4,'4. Billing Determinants'!$B$19:$R$41,6,0)/'4. Billing Determinants'!$G$41*$D25,IF($E25="Distribution Rev.",VLOOKUP(F$4,'4. Billing Determinants'!$B$19:$R$41,8,0)/'4. Billing Determinants'!$I$41*$D25, VLOOKUP(F$4,'4. Billing Determinants'!$B$19:$R$41,3,0)/'4. Billing Determinants'!$D$41*$D25))))),0) -> 0 | G25: =IFERROR(IF(G$4="",0,IF($E25="kWh",VLOOKUP(G$4,'4. Billing Determinants'!$B$19:$R$41,4,0)/'4. Billing Determinants'!$E$41*$D25,IF($E25="kW",VLOOKUP(G$4,'4. Billing Determinants'!$B$19:$R$41,5,0)/'4. Billing Determinants'!$F$41*$D25,IF($E25="Non-RPP kWh",VLOOKUP(G$4,'4. Billing Determinants'!$B$19:$R$41,6,0)/'4. Billing Determinants'!$G$41*$D25,IF($E25="Distribution Rev.",VLOOKUP(G$4,'4. Billing Determinants'!$B$19:$R$41,8,0)/'4. Billing Determinants'!$I$41*$D25, VLOOKUP(G$4,'4. Billing Determinants'!$B$19:$R$41,3,0)/'4. Billing Determinants'!$D$41*$D25))))),0) -> 0 | H25: =IFERROR(IF(H$4="",0,IF($E25="kWh",VLOOKUP(H$4,'4. Billing Determinants'!$B$19:$R$41,4,0)/'4. Billing Determinants'!$E$41*$D25,IF($E25="kW",VLOOKUP(H$4,'4. Billing Determinants'!$B$19:$R$41,5,0)/'4. Billing Determinants'!$F$41*$D25,IF($E25="Non-RPP kWh",VLOOKUP(H$4,'4. Billing Determinants'!$B$19:$R$41,6,0)/'4. Billing Determinants'!$G$41*$D25,IF($E25="Distribution Rev.",VLOOKUP(H$4,'4. Billing Determinants'!$B$19:$R$41,8,0)/'4. Billing Determinants'!$I$41*$D25, VLOOKUP(H$4,'4. Billing Determinants'!$B$19:$R$41,3,0)/'4. Billing Determinants'!$D$41*$D25))))),0) -> 0 | I25: =IFERROR(IF(I$4="",0,IF($E25="kWh",VLOOKUP(I$4,'4. Billing Determinants'!$B$19:$R$41,4,0)/'4. Billing Determinants'!$E$41*$D25,IF($E25="kW",VLOOKUP(I$4,'4. Billing Determinants'!$B$19:$R$41,5,0)/'4. Billing Determinants'!$F$41*$D25,IF($E25="Non-RPP kWh",VLOOKUP(I$4,'4. Billing Determinants'!$B$19:$R$41,6,0)/'4. Billing Determinants'!$G$41*$D25,IF($E25="Distribution Rev.",VLOOKUP(I$4,'4. Billing Determinants'!$B$19:$R$41,8,0)/'4. Billing Determinants'!$I$41*$D25, VLOOKUP(I$4,'4. Billing Determinants'!$B$19:$R$41,3,0)/'4. Billing Determinants'!$D$41*$D25))))),0) -> 0 | J25: =IFERROR(IF(J$4="",0,IF($E25="kWh",VLOOKUP(J$4,'4. Billing Determinants'!$B$19:$R$41,4,0)/'4. Billing Determinants'!$E$41*$D25,IF($E25="kW",VLOOKUP(J$4,'4. Billing Determinants'!$B$19:$R$41,5,0)/'4. Billing Determinants'!$F$41*$D25,IF($E25="Non-RPP kWh",VLOOKUP(J$4,'4. Billing Determinants'!$B$19:$R$41,6,0)/'4. Billing Determinants'!$G$41*$D25,IF($E25="Distribution Rev.",VLOOKUP(J$4,'4. Billing Determinants'!$B$19:$R$41,8,0)/'4. Billing Determinants'!$I$41*$D25, VLOOKUP(J$4,'4. Billing Determinants'!$B$19:$R$41,3,0)/'4. Billing Determinants'!$D$41*$D25))))),0) -> 0 | K25: =IFERROR(IF(K$4="",0,IF($E25="kWh",VLOOKUP(K$4,'4. Billing Determinants'!$B$19:$R$41,4,0)/'4. Billing Determinants'!$E$41*$D25,IF($E25="kW",VLOOKUP(K$4,'4. Billing Determinants'!$B$19:$R$41,5,0)/'4. Billing Determinants'!$F$41*$D25,IF($E25="Non-RPP kWh",VLOOKUP(K$4,'4. Billing Determinants'!$B$19:$R$41,6,0)/'4. Billing Determinants'!$G$41*$D25,IF($E25="Distribution Rev.",VLOOKUP(K$4,'4. Billing Determinants'!$B$19:$R$41,8,0)/'4. Billing Determinants'!$I$41*$D25, VLOOKUP(K$4,'4. Billing Determinants'!$B$19:$R$41,3,0)/'4. Billing Determinants'!$D$41*$D25))))),0) -> 0 | L25: =IFERROR(IF(L$4="",0,IF($E25="kWh",VLOOKUP(L$4,'4. Billing Determinants'!$B$19:$R$41,4,0)/'4. Billing Determinants'!$E$41*$D25,IF($E25="kW",VLOOKUP(L$4,'4. Billing Determinants'!$B$19:$R$41,5,0)/'4. Billing Determinants'!$F$41*$D25,IF($E25="Non-RPP kWh",VLOOKUP(L$4,'4. Billing Determinants'!$B$19:$R$41,6,0)/'4. Billing Determinants'!$G$41*$D25,IF($E25="Distribution Rev.",VLOOKUP(L$4,'4. Billing Determinants'!$B$19:$R$41,8,0)/'4. Billing Determinants'!$I$41*$D25, VLOOKUP(L$4,'4. Billing Determinants'!$B$19:$R$41,3,0)/'4. Billing Determinants'!$D$41*$D25))))),0) -> 0 | M25: =IFERROR(IF(M$4="",0,IF($E25="kWh",VLOOKUP(M$4,'4. Billing Determinants'!$B$19:$R$41,4,0)/'4. Billing Determinants'!$E$41*$D25,IF($E25="kW",VLOOKUP(M$4,'4. Billing Determinants'!$B$19:$R$41,5,0)/'4. Billing Determinants'!$F$41*$D25,IF($E25="Non-RPP kWh",VLOOKUP(M$4,'4. Billing Determinants'!$B$19:$R$41,6,0)/'4. Billing Determinants'!$G$41*$D25,IF($E25="Distribution Rev.",VLOOKUP(M$4,'4. Billing Determinants'!$B$19:$R$41,8,0)/'4. Billing Determinants'!$I$41*$D25, VLOOKUP(M$4,'4. Billing Determinants'!$B$19:$R$41,3,0)/'4. Billing Determinants'!$D$41*$D25))))),0) -> 0 | N25: =IFERROR(IF(N$4="",0,IF($E25="kWh",VLOOKUP(N$4,'4. Billing Determinants'!$B$19:$R$41,4,0)/'4. Billing Determinants'!$E$41*$D25,IF($E25="kW",VLOOKUP(N$4,'4. Billing Determinants'!$B$19:$R$41,5,0)/'4. Billing Determinants'!$F$41*$D25,IF($E25="Non-RPP kWh",VLOOKUP(N$4,'4. Billing Determinants'!$B$19:$R$41,6,0)/'4. Billing Determinants'!$G$41*$D25,IF($E25="Distribution Rev.",VLOOKUP(N$4,'4. Billing Determinants'!$B$19:$R$41,8,0)/'4. Billing Determinants'!$I$41*$D25, VLOOKUP(N$4,'4. Billing Determinants'!$B$19:$R$41,3,0)/'4. Billing Determinants'!$D$41*$D25))))),0) -> 0 | O25: =IFERROR(IF(O$4="",0,IF($E25="kWh",VLOOKUP(O$4,'4. Billing Determinants'!$B$19:$R$41,4,0)/'4. Billing Determinants'!$E$41*$D25,IF($E25="kW",VLOOKUP(O$4,'4. Billing Determinants'!$B$19:$R$41,5,0)/'4. Billing Determinants'!$F$41*$D25,IF($E25="Non-RPP kWh",VLOOKUP(O$4,'4. Billing Determinants'!$B$19:$R$41,6,0)/'4. Billing Determinants'!$G$41*$D25,IF($E25="Distribution Rev.",VLOOKUP(O$4,'4. Billing Determinants'!$B$19:$R$41,8,0)/'4. Billing Determinants'!$I$41*$D25, VLOOKUP(O$4,'4. Billing Determinants'!$B$19:$R$41,3,0)/'4. Billing Determinants'!$D$41*$D25))))),0) -> 0 | P25: =IFERROR(IF(P$4="",0,IF($E25="kWh",VLOOKUP(P$4,'4. Billing Determinants'!$B$19:$R$41,4,0)/'4. Billing Determinants'!$E$41*$D25,IF($E25="kW",VLOOKUP(P$4,'4. Billing Determinants'!$B$19:$R$41,5,0)/'4. Billing Determinants'!$F$41*$D25,IF($E25="Non-RPP kWh",VLOOKUP(P$4,'4. Billing Determinants'!$B$19:$R$41,6,0)/'4. Billing Determinants'!$G$41*$D25,IF($E25="Distribution Rev.",VLOOKUP(P$4,'4. Billing Determinants'!$B$19:$R$41,8,0)/'4. Billing Determinants'!$I$41*$D25, VLOOKUP(P$4,'4. Billing Determinants'!$B$19:$R$41,3,0)/'4. Billing Determinants'!$D$41*$D25))))),0) -> 0 | Q25: =IFERROR(IF(Q$4="",0,IF($E25="kWh",VLOOKUP(Q$4,'4. Billing Determinants'!$B$19:$R$41,4,0)/'4. Billing Determinants'!$E$41*$D25,IF($E25="kW",VLOOKUP(Q$4,'4. Billing Determinants'!$B$19:$R$41,5,0)/'4. Billing Determinants'!$F$41*$D25,IF($E25="Non-RPP kWh",VLOOKUP(Q$4,'4. Billing Determinants'!$B$19:$R$41,6,0)/'4. Billing Determinants'!$G$41*$D25,IF($E25="Distribution Rev.",VLOOKUP(Q$4,'4. Billing Determinants'!$B$19:$R$41,8,0)/'4. Billing Determinants'!$I$41*$D25, VLOOKUP(Q$4,'4. Billing Determinants'!$B$19:$R$41,3,0)/'4. Billing Determinants'!$D$41*$D25))))),0) -> 0 | R25: =IFERROR(IF(R$4="",0,IF($E25="kWh",VLOOKUP(R$4,'4. Billing Determinants'!$B$19:$R$41,4,0)/'4. Billing Determinants'!$E$41*$D25,IF($E25="kW",VLOOKUP(R$4,'4. Billing Determinants'!$B$19:$R$41,5,0)/'4. Billing Determinants'!$F$41*$D25,IF($E25="Non-RPP kWh",VLOOKUP(R$4,'4. Billing Determinants'!$B$19:$R$41,6,0)/'4. Billing Determinants'!$G$41*$D25,IF($E25="Distribution Rev.",VLOOKUP(R$4,'4. Billing Determinants'!$B$19:$R$41,8,0)/'4. Billing Determinants'!$I$41*$D25, VLOOKUP(R$4,'4. Billing Determinants'!$B$19:$R$41,3,0)/'4. Billing Determinants'!$D$41*$D25))))),0) -> 0 | S25: =IFERROR(IF(S$4="",0,IF($E25="kWh",VLOOKUP(S$4,'4. Billing Determinants'!$B$19:$R$41,4,0)/'4. Billing Determinants'!$E$41*$D25,IF($E25="kW",VLOOKUP(S$4,'4. Billing Determinants'!$B$19:$R$41,5,0)/'4. Billing Determinants'!$F$41*$D25,IF($E25="Non-RPP kWh",VLOOKUP(S$4,'4. Billing Determinants'!$B$19:$R$41,6,0)/'4. Billing Determinants'!$G$41*$D25,IF($E25="Distribution Rev.",VLOOKUP(S$4,'4. Billing Determinants'!$B$19:$R$41,8,0)/'4. Billing Determinants'!$I$41*$D25, VLOOKUP(S$4,'4. Billing Determinants'!$B$19:$R$41,3,0)/'4. Billing Determinants'!$D$41*$D25))))),0) -> 0 | T25: =IFERROR(IF(T$4="",0,IF($E25="kWh",VLOOKUP(T$4,'4. Billing Determinants'!$B$19:$R$41,4,0)/'4. Billing Determinants'!$E$41*$D25,IF($E25="kW",VLOOKUP(T$4,'4. Billing Determinants'!$B$19:$R$41,5,0)/'4. Billing Determinants'!$F$41*$D25,IF($E25="Non-RPP kWh",VLOOKUP(T$4,'4. Billing Determinants'!$B$19:$R$41,6,0)/'4. Billing Determinants'!$G$41*$D25,IF($E25="Distribution Rev.",VLOOKUP(T$4,'4. Billing Determinants'!$B$19:$R$41,8,0)/'4. Billing Determinants'!$I$41*$D25, VLOOKUP(T$4,'4. Billing Determinants'!$B$19:$R$41,3,0)/'4. Billing Determinants'!$D$41*$D25))))),0) -> 0 | U25: =IFERROR(IF(U$4="",0,IF($E25="kWh",VLOOKUP(U$4,'4. Billing Determinants'!$B$19:$R$41,4,0)/'4. Billing Determinants'!$E$41*$D25,IF($E25="kW",VLOOKUP(U$4,'4. Billing Determinants'!$B$19:$R$41,5,0)/'4. Billing Determinants'!$F$41*$D25,IF($E25="Non-RPP kWh",VLOOKUP(U$4,'4. Billing Determinants'!$B$19:$R$41,6,0)/'4. Billing Determinants'!$G$41*$D25,IF($E25="Distribution Rev.",VLOOKUP(U$4,'4. Billing Determinants'!$B$19:$R$41,8,0)/'4. Billing Determinants'!$I$41*$D25, VLOOKUP(U$4,'4. Billing Determinants'!$B$19:$R$41,3,0)/'4. Billing Determinants'!$D$41*$D25))))),0) -> 0 | V25: =IFERROR(IF(V$4="",0,IF($E25="kWh",VLOOKUP(V$4,'4. Billing Determinants'!$B$19:$R$41,4,0)/'4. Billing Determinants'!$E$41*$D25,IF($E25="kW",VLOOKUP(V$4,'4. Billing Determinants'!$B$19:$R$41,5,0)/'4. Billing Determinants'!$F$41*$D25,IF($E25="Non-RPP kWh",VLOOKUP(V$4,'4. Billing Determinants'!$B$19:$R$41,6,0)/'4. Billing Determinants'!$G$41*$D25,IF($E25="Distribution Rev.",VLOOKUP(V$4,'4. Billing Determinants'!$B$19:$R$41,8,0)/'4. Billing Determinants'!$I$41*$D25, VLOOKUP(V$4,'4. Billing Determinants'!$B$19:$R$41,3,0)/'4. Billing Determinants'!$D$41*$D25))))),0) -> 0 | W25: =IFERROR(IF(W$4="",0,IF($E25="kWh",VLOOKUP(W$4,'4. Billing Determinants'!$B$19:$R$41,4,0)/'4. Billing Determinants'!$E$41*$D25,IF($E25="kW",VLOOKUP(W$4,'4. Billing Determinants'!$B$19:$R$41,5,0)/'4. Billing Determinants'!$F$41*$D25,IF($E25="Non-RPP kWh",VLOOKUP(W$4,'4. Billing Determinants'!$B$19:$R$41,6,0)/'4. Billing Determinants'!$G$41*$D25,IF($E25="Distribution Rev.",VLOOKUP(W$4,'4. Billing Determinants'!$B$19:$R$41,8,0)/'4. Billing Determinants'!$I$41*$D25, VLOOKUP(W$4,'4. Billing Determinants'!$B$19:$R$41,3,0)/'4. Billing Determinants'!$D$41*$D25))))),0) -> 0 | X25: =IFERROR(IF(X$4="",0,IF($E25="kWh",VLOOKUP(X$4,'4. Billing Determinants'!$B$19:$R$41,4,0)/'4. Billing Determinants'!$E$41*$D25,IF($E25="kW",VLOOKUP(X$4,'4. Billing Determinants'!$B$19:$R$41,5,0)/'4. Billing Determinants'!$F$41*$D25,IF($E25="Non-RPP kWh",VLOOKUP(X$4,'4. Billing Determinants'!$B$19:$R$41,6,0)/'4. Billing Determinants'!$G$41*$D25,IF($E25="Distribution Rev.",VLOOKUP(X$4,'4. Billing Determinants'!$B$19:$R$41,8,0)/'4. Billing Determinants'!$I$41*$D25, VLOOKUP(X$4,'4. Billing Determinants'!$B$19:$R$41,3,0)/'4. Billing Determinants'!$D$41*$D25))))),0) -> 0 | Y25: =IFERROR(IF(Y$4="",0,IF($E25="kWh",VLOOKUP(Y$4,'4. Billing Determinants'!$B$19:$R$41,4,0)/'4. Billing Determinants'!$E$41*$D25,IF($E25="kW",VLOOKUP(Y$4,'4. Billing Determinants'!$B$19:$R$41,5,0)/'4. Billing Determinants'!$F$41*$D25,IF($E25="Non-RPP kWh",VLOOKUP(Y$4,'4. Billing Determinants'!$B$19:$R$41,6,0)/'4. Billing Determinants'!$G$41*$D25,IF($E25="Distribution Rev.",VLOOKUP(Y$4,'4. Billing Determinants'!$B$19:$R$41,8,0)/'4. Billing Determinants'!$I$41*$D25, VLOOKUP(Y$4,'4. Billing Determinants'!$B$19:$R$41,3,0)/'4. Billing Determinants'!$D$41*$D25))))),0) -> 0
B26: Retail Cost Variance Account - Retail | C26: 1518 | D26: ='2. 2016-20 Continuity Schedule'!BD44 -> 217879.3436 | E26: Distribution Rev. | F26: =IFERROR(IF(F$4="",0,IF($E26="kWh",VLOOKUP(F$4,'4. Billing Determinants'!$B$19:$R$41,4,0)/'4. Billing Determinants'!$E$41*$D26,IF($E26="kW",VLOOKUP(F$4,'4. Billing Determinants'!$B$19:$R$41,5,0)/'4. Billing Determinants'!$F$41*$D26,IF($E26="Non-RPP kWh",VLOOKUP(F$4,'4. Billing Determinants'!$B$19:$R$41,6,0)/'4. Billing Determinants'!$G$41*$D26,IF($E26="Distribution Rev.",VLOOKUP(F$4,'4. Billing Determinants'!$B$19:$R$41,8,0)/'4. Billing Determinants'!$I$41*$D26, VLOOKUP(F$4,'4. Billing Determinants'!$B$19:$R$41,3,0)/'4. Billing Determinants'!$D$41*$D26))))),0) -> 118009.7452 | G26: =IFERROR(IF(G$4="",0,IF($E26="kWh",VLOOKUP(G$4,'4. Billing Determinants'!$B$19:$R$41,4,0)/'4. Billing Determinants'!$E$41*$D26,IF($E26="kW",VLOOKUP(G$4,'4. Billing Determinants'!$B$19:$R$41,5,0)/'4. Billing Determinants'!$F$41*$D26,IF($E26="Non-RPP kWh",VLOOKUP(G$4,'4. Billing Determinants'!$B$19:$R$41,6,0)/'4. Billing Determinants'!$G$41*$D26,IF($E26="Distribution Rev.",VLOOKUP(G$4,'4. Billing Determinants'!$B$19:$R$41,8,0)/'4. Billing Determinants'!$I$41*$D26, VLOOKUP(G$4,'4. Billing Determinants'!$B$19:$R$41,3,0)/'4. Billing Determinants'!$D$41*$D26))))),0) -> 33004.06455 | H26: =IFERROR(IF(H$4="",0,IF($E26="kWh",VLOOKUP(H$4,'4. Billing Determinants'!$B$19:$R$41,4,0)/'4. Billing Determinants'!$E$41*$D26,IF($E26="kW",VLOOKUP(H$4,'4. Billing Determinants'!$B$19:$R$41,5,0)/'4. Billing Determinants'!$F$41*$D26,IF($E26="Non-RPP kWh",VLOOKUP(H$4,'4. Billing Determinants'!$B$19:$R$41,6,0)/'4. Billing Determinants'!$G$41*$D26,IF($E26="Distribution Rev.",VLOOKUP(H$4,'4. Billing Determinants'!$B$19:$R$41,8,0)/'4. Billing Determinants'!$I$41*$D26, VLOOKUP(H$4,'4. Billing Determinants'!$B$19:$R$41,3,0)/'4. Billing Determinants'!$D$41*$D26))))),0) -> 62666.07231 | I26: =IFERROR(IF(I$4="",0,IF($E26="kWh",VLOOKUP(I$4,'4. Billing Determinants'!$B$19:$R$41,4,0)/'4. Billing Determinants'!$E$41*$D26,IF($E26="kW",VLOOKUP(I$4,'4. Billing Determinants'!$B$19:$R$41,5,0)/'4. Billing Determinants'!$F$41*$D26,IF($E26="Non-RPP kWh",VLOOKUP(I$4,'4. Billing Determinants'!$B$19:$R$41,6,0)/'4. Billing Determinants'!$G$41*$D26,IF($E26="Distribution Rev.",VLOOKUP(I$4,'4. Billing Determinants'!$B$19:$R$41,8,0)/'4. Billing Determinants'!$I$41*$D26, VLOOKUP(I$4,'4. Billing Determinants'!$B$19:$R$41,3,0)/'4. Billing Determinants'!$D$41*$D26))))),0) -> 427.5347213 | J26: =IFERROR(IF(J$4="",0,IF($E26="kWh",VLOOKUP(J$4,'4. Billing Determinants'!$B$19:$R$41,4,0)/'4. Billing Determinants'!$E$41*$D26,IF($E26="kW",VLOOKUP(J$4,'4. Billing Determinants'!$B$19:$R$41,5,0)/'4. Billing Determinants'!$F$41*$D26,IF($E26="Non-RPP kWh",VLOOKUP(J$4,'4. Billing Determinants'!$B$19:$R$41,6,0)/'4. Billing Determinants'!$G$41*$D26,IF($E26="Distribution Rev.",VLOOKUP(J$4,'4. Billing Determinants'!$B$19:$R$41,8,0)/'4. Billing Determinants'!$I$41*$D26, VLOOKUP(J$4,'4. Billing Determinants'!$B$19:$R$41,3,0)/'4. Billing Determinants'!$D$41*$D26))))),0) -> 0 | K26: =IFERROR(IF(K$4="",0,IF($E26="kWh",VLOOKUP(K$4,'4. Billing Determinants'!$B$19:$R$41,4,0)/'4. Billing Determinants'!$E$41*$D26,IF($E26="kW",VLOOKUP(K$4,'4. Billing Determinants'!$B$19:$R$41,5,0)/'4. Billing Determinants'!$F$41*$D26,IF($E26="Non-RPP kWh",VLOOKUP(K$4,'4. Billing Determinants'!$B$19:$R$41,6,0)/'4. Billing Determinants'!$G$41*$D26,IF($E26="Distribution Rev.",VLOOKUP(K$4,'4. Billing Determinants'!$B$19:$R$41,8,0)/'4. Billing Determinants'!$I$41*$D26, VLOOKUP(K$4,'4. Billing Determinants'!$B$19:$R$41,3,0)/'4. Billing Determinants'!$D$41*$D26))))),0) -> 637.9827396 | L26: =IFERROR(IF(L$4="",0,IF($E26="kWh",VLOOKUP(L$4,'4. Billing Determinants'!$B$19:$R$41,4,0)/'4. Billing Determinants'!$E$41*$D26,IF($E26="kW",VLOOKUP(L$4,'4. Billing Determinants'!$B$19:$R$41,5,0)/'4. Billing Determinants'!$F$41*$D26,IF($E26="Non-RPP kWh",VLOOKUP(L$4,'4. Billing Determinants'!$B$19:$R$41,6,0)/'4. Billing Determinants'!$G$41*$D26,IF($E26="Distribution Rev.",VLOOKUP(L$4,'4. Billing Determinants'!$B$19:$R$41,8,0)/'4. Billing Determinants'!$I$41*$D26, VLOOKUP(L$4,'4. Billing Determinants'!$B$19:$R$41,3,0)/'4. Billing Determinants'!$D$41*$D26))))),0) -> 21.92881617 | M26: =IFERROR(IF(M$4="",0,IF($E26="kWh",VLOOKUP(M$4,'4. Billing Determinants'!$B$19:$R$41,4,0)/'4. Billing Determinants'!$E$41*$D26,IF($E26="kW",VLOOKUP(M$4,'4. Billing Determinants'!$B$19:$R$41,5,0)/'4. Billing Determinants'!$F$41*$D26,IF($E26="Non-RPP kWh",VLOOKUP(M$4,'4. Billing Determinants'!$B$19:$R$41,6,0)/'4. Billing Determinants'!$G$41*$D26,IF($E26="Distribution Rev.",VLOOKUP(M$4,'4. Billing Determinants'!$B$19:$R$41,8,0)/'4. Billing Determinants'!$I$41*$D26, VLOOKUP(M$4,'4. Billing Determinants'!$B$19:$R$41,3,0)/'4. Billing Determinants'!$D$41*$D26))))),0) -> 3112.015224 | N26: =IFERROR(IF(N$4="",0,IF($E26="kWh",VLOOKUP(N$4,'4. Billing Determinants'!$B$19:$R$41,4,0)/'4. Billing Determinants'!$E$41*$D26,IF($E26="kW",VLOOKUP(N$4,'4. Billing Determinants'!$B$19:$R$41,5,0)/'4. Billing Determinants'!$F$41*$D26,IF($E26="Non-RPP kWh",VLOOKUP(N$4,'4. Billing Determinants'!$B$19:$R$41,6,0)/'4. Billing Determinants'!$G$41*$D26,IF($E26="Distribution Rev.",VLOOKUP(N$4,'4. Billing Determinants'!$B$19:$R$41,8,0)/'4. Billing Determinants'!$I$41*$D26, VLOOKUP(N$4,'4. Billing Determinants'!$B$19:$R$41,3,0)/'4. Billing Determinants'!$D$41*$D26))))),0) -> 0 | O26: =IFERROR(IF(O$4="",0,IF($E26="kWh",VLOOKUP(O$4,'4. Billing Determinants'!$B$19:$R$41,4,0)/'4. Billing Determinants'!$E$41*$D26,IF($E26="kW",VLOOKUP(O$4,'4. Billing Determinants'!$B$19:$R$41,5,0)/'4. Billing Determinants'!$F$41*$D26,IF($E26="Non-RPP kWh",VLOOKUP(O$4,'4. Billing Determinants'!$B$19:$R$41,6,0)/'4. Billing Determinants'!$G$41*$D26,IF($E26="Distribution Rev.",VLOOKUP(O$4,'4. Billing Determinants'!$B$19:$R$41,8,0)/'4. Billing Determinants'!$I$41*$D26, VLOOKUP(O$4,'4. Billing Determinants'!$B$19:$R$41,3,0)/'4. Billing Determinants'!$D$41*$D26))))),0) -> 0 | P26: =IFERROR(IF(P$4="",0,IF($E26="kWh",VLOOKUP(P$4,'4. Billing Determinants'!$B$19:$R$41,4,0)/'4. Billing Determinants'!$E$41*$D26,IF($E26="kW",VLOOKUP(P$4,'4. Billing Determinants'!$B$19:$R$41,5,0)/'4. Billing Determinants'!$F$41*$D26,IF($E26="Non-RPP kWh",VLOOKUP(P$4,'4. Billing Determinants'!$B$19:$R$41,6,0)/'4. Billing Determinants'!$G$41*$D26,IF($E26="Distribution Rev.",VLOOKUP(P$4,'4. Billing Determinants'!$B$19:$R$41,8,0)/'4. Billing Determinants'!$I$41*$D26, VLOOKUP(P$4,'4. Billing Determinants'!$B$19:$R$41,3,0)/'4. Billing Determinants'!$D$41*$D26))))),0) -> 0 | Q26: =IFERROR(IF(Q$4="",0,IF($E26="kWh",VLOOKUP(Q$4,'4. Billing Determinants'!$B$19:$R$41,4,0)/'4. Billing Determinants'!$E$41*$D26,IF($E26="kW",VLOOKUP(Q$4,'4. Billing Determinants'!$B$19:$R$41,5,0)/'4. Billing Determinants'!$F$41*$D26,IF($E26="Non-RPP kWh",VLOOKUP(Q$4,'4. Billing Determinants'!$B$19:$R$41,6,0)/'4. Billing Determinants'!$G$41*$D26,IF($E26="Distribution Rev.",VLOOKUP(Q$4,'4. Billing Determinants'!$B$19:$R$41,8,0)/'4. Billing Determinants'!$I$41*$D26, VLOOKUP(Q$4,'4. Billing Determinants'!$B$19:$R$41,3,0)/'4. Billing Determinants'!$D$41*$D26))))),0) -> 0 | R26: =IFERROR(IF(R$4="",0,IF($E26="kWh",VLOOKUP(R$4,'4. Billing Determinants'!$B$19:$R$41,4,0)/'4. Billing Determinants'!$E$41*$D26,IF($E26="kW",VLOOKUP(R$4,'4. Billing Determinants'!$B$19:$R$41,5,0)/'4. Billing Determinants'!$F$41*$D26,IF($E26="Non-RPP kWh",VLOOKUP(R$4,'4. Billing Determinants'!$B$19:$R$41,6,0)/'4. Billing Determinants'!$G$41*$D26,IF($E26="Distribution Rev.",VLOOKUP(R$4,'4. Billing Determinants'!$B$19:$R$41,8,0)/'4. Billing Determinants'!$I$41*$D26, VLOOKUP(R$4,'4. Billing Determinants'!$B$19:$R$41,3,0)/'4. Billing Determinants'!$D$41*$D26))))),0) -> 0 | S26: =IFERROR(IF(S$4="",0,IF($E26="kWh",VLOOKUP(S$4,'4. Billing Determinants'!$B$19:$R$41,4,0)/'4. Billing Determinants'!$E$41*$D26,IF($E26="kW",VLOOKUP(S$4,'4. Billing Determinants'!$B$19:$R$41,5,0)/'4. Billing Determinants'!$F$41*$D26,IF($E26="Non-RPP kWh",VLOOKUP(S$4,'4. Billing Determinants'!$B$19:$R$41,6,0)/'4. Billing Determinants'!$G$41*$D26,IF($E26="Distribution Rev.",VLOOKUP(S$4,'4. Billing Determinants'!$B$19:$R$41,8,0)/'4. Billing Determinants'!$I$41*$D26, VLOOKUP(S$4,'4. Billing Determinants'!$B$19:$R$41,3,0)/'4. Billing Determinants'!$D$41*$D26))))),0) -> 0 | T26: =IFERROR(IF(T$4="",0,IF($E26="kWh",VLOOKUP(T$4,'4. Billing Determinants'!$B$19:$R$41,4,0)/'4. Billing Determinants'!$E$41*$D26,IF($E26="kW",VLOOKUP(T$4,'4. Billing Determinants'!$B$19:$R$41,5,0)/'4. Billing Determinants'!$F$41*$D26,IF($E26="Non-RPP kWh",VLOOKUP(T$4,'4. Billing Determinants'!$B$19:$R$41,6,0)/'4. Billing Determinants'!$G$41*$D26,IF($E26="Distribution Rev.",VLOOKUP(T$4,'4. Billing Determinants'!$B$19:$R$41,8,0)/'4. Billing Determinants'!$I$41*$D26, VLOOKUP(T$4,'4. Billing Determinants'!$B$19:$R$41,3,0)/'4. Billing Determinants'!$D$41*$D26))))),0) -> 0 | U26: =IFERROR(IF(U$4="",0,IF($E26="kWh",VLOOKUP(U$4,'4. Billing Determinants'!$B$19:$R$41,4,0)/'4. Billing Determinants'!$E$41*$D26,IF($E26="kW",VLOOKUP(U$4,'4. Billing Determinants'!$B$19:$R$41,5,0)/'4. Billing Determinants'!$F$41*$D26,IF($E26="Non-RPP kWh",VLOOKUP(U$4,'4. Billing Determinants'!$B$19:$R$41,6,0)/'4. Billing Determinants'!$G$41*$D26,IF($E26="Distribution Rev.",VLOOKUP(U$4,'4. Billing Determinants'!$B$19:$R$41,8,0)/'4. Billing Determinants'!$I$41*$D26, VLOOKUP(U$4,'4. Billing Determinants'!$B$19:$R$41,3,0)/'4. Billing Determinants'!$D$41*$D26))))),0) -> 0 | V26: =IFERROR(IF(V$4="",0,IF($E26="kWh",VLOOKUP(V$4,'4. Billing Determinants'!$B$19:$R$41,4,0)/'4. Billing Determinants'!$E$41*$D26,IF($E26="kW",VLOOKUP(V$4,'4. Billing Determinants'!$B$19:$R$41,5,0)/'4. Billing Determinants'!$F$41*$D26,IF($E26="Non-RPP kWh",VLOOKUP(V$4,'4. Billing Determinants'!$B$19:$R$41,6,0)/'4. Billing Determinants'!$G$41*$D26,IF($E26="Distribution Rev.",VLOOKUP(V$4,'4. Billing Determinants'!$B$19:$R$41,8,0)/'4. Billing Determinants'!$I$41*$D26, VLOOKUP(V$4,'4. Billing Determinants'!$B$19:$R$41,3,0)/'4. Billing Determinants'!$D$41*$D26))))),0) -> 0 | W26: =IFERROR(IF(W$4="",0,IF($E26="kWh",VLOOKUP(W$4,'4. Billing Determinants'!$B$19:$R$41,4,0)/'4. Billing Determinants'!$E$41*$D26,IF($E26="kW",VLOOKUP(W$4,'4. Billing Determinants'!$B$19:$R$41,5,0)/'4. Billing Determinants'!$F$41*$D26,IF($E26="Non-RPP kWh",VLOOKUP(W$4,'4. Billing Determinants'!$B$19:$R$41,6,0)/'4. Billing Determinants'!$G$41*$D26,IF($E26="Distribution Rev.",VLOOKUP(W$4,'4. Billing Determinants'!$B$19:$R$41,8,0)/'4. Billing Determinants'!$I$41*$D26, VLOOKUP(W$4,'4. Billing Determinants'!$B$19:$R$41,3,0)/'4. Billing Determinants'!$D$41*$D26))))),0) -> 0 | X26: =IFERROR(IF(X$4="",0,IF($E26="kWh",VLOOKUP(X$4,'4. Billing Determinants'!$B$19:$R$41,4,0)/'4. Billing Determinants'!$E$41*$D26,IF($E26="kW",VLOOKUP(X$4,'4. Billing Determinants'!$B$19:$R$41,5,0)/'4. Billing Determinants'!$F$41*$D26,IF($E26="Non-RPP kWh",VLOOKUP(X$4,'4. Billing Determinants'!$B$19:$R$41,6,0)/'4. Billing Determinants'!$G$41*$D26,IF($E26="Distribution Rev.",VLOOKUP(X$4,'4. Billing Determinants'!$B$19:$R$41,8,0)/'4. Billing Determinants'!$I$41*$D26, VLOOKUP(X$4,'4. Billing Determinants'!$B$19:$R$41,3,0)/'4. Billing Determinants'!$D$41*$D26))))),0) -> 0 | Y26: =IFERROR(IF(Y$4="",0,IF($E26="kWh",VLOOKUP(Y$4,'4. Billing Determinants'!$B$19:$R$41,4,0)/'4. Billing Determinants'!$E$41*$D26,IF($E26="kW",VLOOKUP(Y$4,'4. Billing Determinants'!$B$19:$R$41,5,0)/'4. Billing Determinants'!$F$41*$D26,IF($E26="Non-RPP kWh",VLOOKUP(Y$4,'4. Billing Determinants'!$B$19:$R$41,6,0)/'4. Billing Determinants'!$G$41*$D26,IF($E26="Distribution Rev.",VLOOKUP(Y$4,'4. Billing Determinants'!$B$19:$R$41,8,0)/'4. Billing Determinants'!$I$41*$D26, VLOOKUP(Y$4,'4. Billing Determinants'!$B$19:$R$41,3,0)/'4. Billing Determinants'!$D$41*$D26))))),0) -> 0
B27: Misc. Deferred Debits | C27: 1525 | D27: ='2. 2016-20 Continuity Schedule'!BD45 -> 0 | F27: =IFERROR(IF(F$4="",0,IF($E27="kWh",VLOOKUP(F$4,'4. Billing Determinants'!$B$19:$R$41,4,0)/'4. Billing Determinants'!$E$41*$D27,IF($E27="kW",VLOOKUP(F$4,'4. Billing Determinants'!$B$19:$R$41,5,0)/'4. Billing Determinants'!$F$41*$D27,IF($E27="Non-RPP kWh",VLOOKUP(F$4,'4. Billing Determinants'!$B$19:$R$41,6,0)/'4. Billing Determinants'!$G$41*$D27,IF($E27="Distribution Rev.",VLOOKUP(F$4,'4. Billing Determinants'!$B$19:$R$41,8,0)/'4. Billing Determinants'!$I$41*$D27, VLOOKUP(F$4,'4. Billing Determinants'!$B$19:$R$41,3,0)/'4. Billing Determinants'!$D$41*$D27))))),0) -> 0 | G27: =IFERROR(IF(G$4="",0,IF($E27="kWh",VLOOKUP(G$4,'4. Billing Determinants'!$B$19:$R$41,4,0)/'4. Billing Determinants'!$E$41*$D27,IF($E27="kW",VLOOKUP(G$4,'4. Billing Determinants'!$B$19:$R$41,5,0)/'4. Billing Determinants'!$F$41*$D27,IF($E27="Non-RPP kWh",VLOOKUP(G$4,'4. Billing Determinants'!$B$19:$R$41,6,0)/'4. Billing Determinants'!$G$41*$D27,IF($E27="Distribution Rev.",VLOOKUP(G$4,'4. Billing Determinants'!$B$19:$R$41,8,0)/'4. Billing Determinants'!$I$41*$D27, VLOOKUP(G$4,'4. Billing Determinants'!$B$19:$R$41,3,0)/'4. Billing Determinants'!$D$41*$D27))))),0) -> 0 | H27: =IFERROR(IF(H$4="",0,IF($E27="kWh",VLOOKUP(H$4,'4. Billing Determinants'!$B$19:$R$41,4,0)/'4. Billing Determinants'!$E$41*$D27,IF($E27="kW",VLOOKUP(H$4,'4. Billing Determinants'!$B$19:$R$41,5,0)/'4. Billing Determinants'!$F$41*$D27,IF($E27="Non-RPP kWh",VLOOKUP(H$4,'4. Billing Determinants'!$B$19:$R$41,6,0)/'4. Billing Determinants'!$G$41*$D27,IF($E27="Distribution Rev.",VLOOKUP(H$4,'4. Billing Determinants'!$B$19:$R$41,8,0)/'4. Billing Determinants'!$I$41*$D27, VLOOKUP(H$4,'4. Billing Determinants'!$B$19:$R$41,3,0)/'4. Billing Determinants'!$D$41*$D27))))),0) -> 0 | I27: =IFERROR(IF(I$4="",0,IF($E27="kWh",VLOOKUP(I$4,'4. Billing Determinants'!$B$19:$R$41,4,0)/'4. Billing Determinants'!$E$41*$D27,IF($E27="kW",VLOOKUP(I$4,'4. Billing Determinants'!$B$19:$R$41,5,0)/'4. Billing Determinants'!$F$41*$D27,IF($E27="Non-RPP kWh",VLOOKUP(I$4,'4. Billing Determinants'!$B$19:$R$41,6,0)/'4. Billing Determinants'!$G$41*$D27,IF($E27="Distribution Rev.",VLOOKUP(I$4,'4. Billing Determinants'!$B$19:$R$41,8,0)/'4. Billing Determinants'!$I$41*$D27, VLOOKUP(I$4,'4. Billing Determinants'!$B$19:$R$41,3,0)/'4. Billing Determinants'!$D$41*$D27))))),0) -> 0 | J27: =IFERROR(IF(J$4="",0,IF($E27="kWh",VLOOKUP(J$4,'4. Billing Determinants'!$B$19:$R$41,4,0)/'4. Billing Determinants'!$E$41*$D27,IF($E27="kW",VLOOKUP(J$4,'4. Billing Determinants'!$B$19:$R$41,5,0)/'4. Billing Determinants'!$F$41*$D27,IF($E27="Non-RPP kWh",VLOOKUP(J$4,'4. Billing Determinants'!$B$19:$R$41,6,0)/'4. Billing Determinants'!$G$41*$D27,IF($E27="Distribution Rev.",VLOOKUP(J$4,'4. Billing Determinants'!$B$19:$R$41,8,0)/'4. Billing Determinants'!$I$41*$D27, VLOOKUP(J$4,'4. Billing Determinants'!$B$19:$R$41,3,0)/'4. Billing Determinants'!$D$41*$D27))))),0) -> 0 | K27: =IFERROR(IF(K$4="",0,IF($E27="kWh",VLOOKUP(K$4,'4. Billing Determinants'!$B$19:$R$41,4,0)/'4. Billing Determinants'!$E$41*$D27,IF($E27="kW",VLOOKUP(K$4,'4. Billing Determinants'!$B$19:$R$41,5,0)/'4. Billing Determinants'!$F$41*$D27,IF($E27="Non-RPP kWh",VLOOKUP(K$4,'4. Billing Determinants'!$B$19:$R$41,6,0)/'4. Billing Determinants'!$G$41*$D27,IF($E27="Distribution Rev.",VLOOKUP(K$4,'4. Billing Determinants'!$B$19:$R$41,8,0)/'4. Billing Determinants'!$I$41*$D27, VLOOKUP(K$4,'4. Billing Determinants'!$B$19:$R$41,3,0)/'4. Billing Determinants'!$D$41*$D27))))),0) -> 0 | L27: =IFERROR(IF(L$4="",0,IF($E27="kWh",VLOOKUP(L$4,'4. Billing Determinants'!$B$19:$R$41,4,0)/'4. Billing Determinants'!$E$41*$D27,IF($E27="kW",VLOOKUP(L$4,'4. Billing Determinants'!$B$19:$R$41,5,0)/'4. Billing Determinants'!$F$41*$D27,IF($E27="Non-RPP kWh",VLOOKUP(L$4,'4. Billing Determinants'!$B$19:$R$41,6,0)/'4. Billing Determinants'!$G$41*$D27,IF($E27="Distribution Rev.",VLOOKUP(L$4,'4. Billing Determinants'!$B$19:$R$41,8,0)/'4. Billing Determinants'!$I$41*$D27, VLOOKUP(L$4,'4. Billing Determinants'!$B$19:$R$41,3,0)/'4. Billing Determinants'!$D$41*$D27))))),0) -> 0 | M27: =IFERROR(IF(M$4="",0,IF($E27="kWh",VLOOKUP(M$4,'4. Billing Determinants'!$B$19:$R$41,4,0)/'4. Billing Determinants'!$E$41*$D27,IF($E27="kW",VLOOKUP(M$4,'4. Billing Determinants'!$B$19:$R$41,5,0)/'4. Billing Determinants'!$F$41*$D27,IF($E27="Non-RPP kWh",VLOOKUP(M$4,'4. Billing Determinants'!$B$19:$R$41,6,0)/'4. Billing Determinants'!$G$41*$D27,IF($E27="Distribution Rev.",VLOOKUP(M$4,'4. Billing Determinants'!$B$19:$R$41,8,0)/'4. Billing Determinants'!$I$41*$D27, VLOOKUP(M$4,'4. Billing Determinants'!$B$19:$R$41,3,0)/'4. Billing Determinants'!$D$41*$D27))))),0) -> 0 | N27: =IFERROR(IF(N$4="",0,IF($E27="kWh",VLOOKUP(N$4,'4. Billing Determinants'!$B$19:$R$41,4,0)/'4. Billing Determinants'!$E$41*$D27,IF($E27="kW",VLOOKUP(N$4,'4. Billing Determinants'!$B$19:$R$41,5,0)/'4. Billing Determinants'!$F$41*$D27,IF($E27="Non-RPP kWh",VLOOKUP(N$4,'4. Billing Determinants'!$B$19:$R$41,6,0)/'4. Billing Determinants'!$G$41*$D27,IF($E27="Distribution Rev.",VLOOKUP(N$4,'4. Billing Determinants'!$B$19:$R$41,8,0)/'4. Billing Determinants'!$I$41*$D27, VLOOKUP(N$4,'4. Billing Determinants'!$B$19:$R$41,3,0)/'4. Billing Determinants'!$D$41*$D27))))),0) -> 0 | O27: =IFERROR(IF(O$4="",0,IF($E27="kWh",VLOOKUP(O$4,'4. Billing Determinants'!$B$19:$R$41,4,0)/'4. Billing Determinants'!$E$41*$D27,IF($E27="kW",VLOOKUP(O$4,'4. Billing Determinants'!$B$19:$R$41,5,0)/'4. Billing Determinants'!$F$41*$D27,IF($E27="Non-RPP kWh",VLOOKUP(O$4,'4. Billing Determinants'!$B$19:$R$41,6,0)/'4. Billing Determinants'!$G$41*$D27,IF($E27="Distribution Rev.",VLOOKUP(O$4,'4. Billing Determinants'!$B$19:$R$41,8,0)/'4. Billing Determinants'!$I$41*$D27, VLOOKUP(O$4,'4. Billing Determinants'!$B$19:$R$41,3,0)/'4. Billing Determinants'!$D$41*$D27))))),0) -> 0 | P27: =IFERROR(IF(P$4="",0,IF($E27="kWh",VLOOKUP(P$4,'4. Billing Determinants'!$B$19:$R$41,4,0)/'4. Billing Determinants'!$E$41*$D27,IF($E27="kW",VLOOKUP(P$4,'4. Billing Determinants'!$B$19:$R$41,5,0)/'4. Billing Determinants'!$F$41*$D27,IF($E27="Non-RPP kWh",VLOOKUP(P$4,'4. Billing Determinants'!$B$19:$R$41,6,0)/'4. Billing Determinants'!$G$41*$D27,IF($E27="Distribution Rev.",VLOOKUP(P$4,'4. Billing Determinants'!$B$19:$R$41,8,0)/'4. Billing Determinants'!$I$41*$D27, VLOOKUP(P$4,'4. Billing Determinants'!$B$19:$R$41,3,0)/'4. Billing Determinants'!$D$41*$D27))))),0) -> 0 | Q27: =IFERROR(IF(Q$4="",0,IF($E27="kWh",VLOOKUP(Q$4,'4. Billing Determinants'!$B$19:$R$41,4,0)/'4. Billing Determinants'!$E$41*$D27,IF($E27="kW",VLOOKUP(Q$4,'4. Billing Determinants'!$B$19:$R$41,5,0)/'4. Billing Determinants'!$F$41*$D27,IF($E27="Non-RPP kWh",VLOOKUP(Q$4,'4. Billing Determinants'!$B$19:$R$41,6,0)/'4. Billing Determinants'!$G$41*$D27,IF($E27="Distribution Rev.",VLOOKUP(Q$4,'4. Billing Determinants'!$B$19:$R$41,8,0)/'4. Billing Determinants'!$I$41*$D27, VLOOKUP(Q$4,'4. Billing Determinants'!$B$19:$R$41,3,0)/'4. Billing Determinants'!$D$41*$D27))))),0) -> 0 | R27: =IFERROR(IF(R$4="",0,IF($E27="kWh",VLOOKUP(R$4,'4. Billing Determinants'!$B$19:$R$41,4,0)/'4. Billing Determinants'!$E$41*$D27,IF($E27="kW",VLOOKUP(R$4,'4. Billing Determinants'!$B$19:$R$41,5,0)/'4. Billing Determinants'!$F$41*$D27,IF($E27="Non-RPP kWh",VLOOKUP(R$4,'4. Billing Determinants'!$B$19:$R$41,6,0)/'4. Billing Determinants'!$G$41*$D27,IF($E27="Distribution Rev.",VLOOKUP(R$4,'4. Billing Determinants'!$B$19:$R$41,8,0)/'4. Billing Determinants'!$I$41*$D27, VLOOKUP(R$4,'4. Billing Determinants'!$B$19:$R$41,3,0)/'4. Billing Determinants'!$D$41*$D27))))),0) -> 0 | S27: =IFERROR(IF(S$4="",0,IF($E27="kWh",VLOOKUP(S$4,'4. Billing Determinants'!$B$19:$R$41,4,0)/'4. Billing Determinants'!$E$41*$D27,IF($E27="kW",VLOOKUP(S$4,'4. Billing Determinants'!$B$19:$R$41,5,0)/'4. Billing Determinants'!$F$41*$D27,IF($E27="Non-RPP kWh",VLOOKUP(S$4,'4. Billing Determinants'!$B$19:$R$41,6,0)/'4. Billing Determinants'!$G$41*$D27,IF($E27="Distribution Rev.",VLOOKUP(S$4,'4. Billing Determinants'!$B$19:$R$41,8,0)/'4. Billing Determinants'!$I$41*$D27, VLOOKUP(S$4,'4. Billing Determinants'!$B$19:$R$41,3,0)/'4. Billing Determinants'!$D$41*$D27))))),0) -> 0 | T27: =IFERROR(IF(T$4="",0,IF($E27="kWh",VLOOKUP(T$4,'4. Billing Determinants'!$B$19:$R$41,4,0)/'4. Billing Determinants'!$E$41*$D27,IF($E27="kW",VLOOKUP(T$4,'4. Billing Determinants'!$B$19:$R$41,5,0)/'4. Billing Determinants'!$F$41*$D27,IF($E27="Non-RPP kWh",VLOOKUP(T$4,'4. Billing Determinants'!$B$19:$R$41,6,0)/'4. Billing Determinants'!$G$41*$D27,IF($E27="Distribution Rev.",VLOOKUP(T$4,'4. Billing Determinants'!$B$19:$R$41,8,0)/'4. Billing Determinants'!$I$41*$D27, VLOOKUP(T$4,'4. Billing Determinants'!$B$19:$R$41,3,0)/'4. Billing Determinants'!$D$41*$D27))))),0) -> 0 | U27: =IFERROR(IF(U$4="",0,IF($E27="kWh",VLOOKUP(U$4,'4. Billing Determinants'!$B$19:$R$41,4,0)/'4. Billing Determinants'!$E$41*$D27,IF($E27="kW",VLOOKUP(U$4,'4. Billing Determinants'!$B$19:$R$41,5,0)/'4. Billing Determinants'!$F$41*$D27,IF($E27="Non-RPP kWh",VLOOKUP(U$4,'4. Billing Determinants'!$B$19:$R$41,6,0)/'4. Billing Determinants'!$G$41*$D27,IF($E27="Distribution Rev.",VLOOKUP(U$4,'4. Billing Determinants'!$B$19:$R$41,8,0)/'4. Billing Determinants'!$I$41*$D27, VLOOKUP(U$4,'4. Billing Determinants'!$B$19:$R$41,3,0)/'4. Billing Determinants'!$D$41*$D27))))),0) -> 0 | V27: =IFERROR(IF(V$4="",0,IF($E27="kWh",VLOOKUP(V$4,'4. Billing Determinants'!$B$19:$R$41,4,0)/'4. Billing Determinants'!$E$41*$D27,IF($E27="kW",VLOOKUP(V$4,'4. Billing Determinants'!$B$19:$R$41,5,0)/'4. Billing Determinants'!$F$41*$D27,IF($E27="Non-RPP kWh",VLOOKUP(V$4,'4. Billing Determinants'!$B$19:$R$41,6,0)/'4. Billing Determinants'!$G$41*$D27,IF($E27="Distribution Rev.",VLOOKUP(V$4,'4. Billing Determinants'!$B$19:$R$41,8,0)/'4. Billing Determinants'!$I$41*$D27, VLOOKUP(V$4,'4. Billing Determinants'!$B$19:$R$41,3,0)/'4. Billing Determinants'!$D$41*$D27))))),0) -> 0 | W27: =IFERROR(IF(W$4="",0,IF($E27="kWh",VLOOKUP(W$4,'4. Billing Determinants'!$B$19:$R$41,4,0)/'4. Billing Determinants'!$E$41*$D27,IF($E27="kW",VLOOKUP(W$4,'4. Billing Determinants'!$B$19:$R$41,5,0)/'4. Billing Determinants'!$F$41*$D27,IF($E27="Non-RPP kWh",VLOOKUP(W$4,'4. Billing Determinants'!$B$19:$R$41,6,0)/'4. Billing Determinants'!$G$41*$D27,IF($E27="Distribution Rev.",VLOOKUP(W$4,'4. Billing Determinants'!$B$19:$R$41,8,0)/'4. Billing Determinants'!$I$41*$D27, VLOOKUP(W$4,'4. Billing Determinants'!$B$19:$R$41,3,0)/'4. Billing Determinants'!$D$41*$D27))))),0) -> 0 | X27: =IFERROR(IF(X$4="",0,IF($E27="kWh",VLOOKUP(X$4,'4. Billing Determinants'!$B$19:$R$41,4,0)/'4. Billing Determinants'!$E$41*$D27,IF($E27="kW",VLOOKUP(X$4,'4. Billing Determinants'!$B$19:$R$41,5,0)/'4. Billing Determinants'!$F$41*$D27,IF($E27="Non-RPP kWh",VLOOKUP(X$4,'4. Billing Determinants'!$B$19:$R$41,6,0)/'4. Billing Determinants'!$G$41*$D27,IF($E27="Distribution Rev.",VLOOKUP(X$4,'4. Billing Determinants'!$B$19:$R$41,8,0)/'4. Billing Determinants'!$I$41*$D27, VLOOKUP(X$4,'4. Billing Determinants'!$B$19:$R$41,3,0)/'4. Billing Determinants'!$D$41*$D27))))),0) -> 0 | Y27: =IFERROR(IF(Y$4="",0,IF($E27="kWh",VLOOKUP(Y$4,'4. Billing Determinants'!$B$19:$R$41,4,0)/'4. Billing Determinants'!$E$41*$D27,IF($E27="kW",VLOOKUP(Y$4,'4. Billing Determinants'!$B$19:$R$41,5,0)/'4. Billing Determinants'!$F$41*$D27,IF($E27="Non-RPP kWh",VLOOKUP(Y$4,'4. Billing Determinants'!$B$19:$R$41,6,0)/'4. Billing Determinants'!$G$41*$D27,IF($E27="Distribution Rev.",VLOOKUP(Y$4,'4. Billing Determinants'!$B$19:$R$41,8,0)/'4. Billing Determinants'!$I$41*$D27, VLOOKUP(Y$4,'4. Billing Determinants'!$B$19:$R$41,3,0)/'4. Billing Determinants'!$D$41*$D27))))),0) -> 0
B28: Renewable Generation Connection Capital Deferral Account | C28: 1531 | D28: ='2. 2016-20 Continuity Schedule'!BD46 -> 0 | F28: =IFERROR(IF(F$4="",0,IF($E28="kWh",VLOOKUP(F$4,'4. Billing Determinants'!$B$19:$R$41,4,0)/'4. Billing Determinants'!$E$41*$D28,IF($E28="kW",VLOOKUP(F$4,'4. Billing Determinants'!$B$19:$R$41,5,0)/'4. Billing Determinants'!$F$41*$D28,IF($E28="Non-RPP kWh",VLOOKUP(F$4,'4. Billing Determinants'!$B$19:$R$41,6,0)/'4. Billing Determinants'!$G$41*$D28,IF($E28="Distribution Rev.",VLOOKUP(F$4,'4. Billing Determinants'!$B$19:$R$41,8,0)/'4. Billing Determinants'!$I$41*$D28, VLOOKUP(F$4,'4. Billing Determinants'!$B$19:$R$41,3,0)/'4. Billing Determinants'!$D$41*$D28))))),0) -> 0 | G28: =IFERROR(IF(G$4="",0,IF($E28="kWh",VLOOKUP(G$4,'4. Billing Determinants'!$B$19:$R$41,4,0)/'4. Billing Determinants'!$E$41*$D28,IF($E28="kW",VLOOKUP(G$4,'4. Billing Determinants'!$B$19:$R$41,5,0)/'4. Billing Determinants'!$F$41*$D28,IF($E28="Non-RPP kWh",VLOOKUP(G$4,'4. Billing Determinants'!$B$19:$R$41,6,0)/'4. Billing Determinants'!$G$41*$D28,IF($E28="Distribution Rev.",VLOOKUP(G$4,'4. Billing Determinants'!$B$19:$R$41,8,0)/'4. Billing Determinants'!$I$41*$D28, VLOOKUP(G$4,'4. Billing Determinants'!$B$19:$R$41,3,0)/'4. Billing Determinants'!$D$41*$D28))))),0) -> 0 | H28: =IFERROR(IF(H$4="",0,IF($E28="kWh",VLOOKUP(H$4,'4. Billing Determinants'!$B$19:$R$41,4,0)/'4. Billing Determinants'!$E$41*$D28,IF($E28="kW",VLOOKUP(H$4,'4. Billing Determinants'!$B$19:$R$41,5,0)/'4. Billing Determinants'!$F$41*$D28,IF($E28="Non-RPP kWh",VLOOKUP(H$4,'4. Billing Determinants'!$B$19:$R$41,6,0)/'4. Billing Determinants'!$G$41*$D28,IF($E28="Distribution Rev.",VLOOKUP(H$4,'4. Billing Determinants'!$B$19:$R$41,8,0)/'4. Billing Determinants'!$I$41*$D28, VLOOKUP(H$4,'4. Billing Determinants'!$B$19:$R$41,3,0)/'4. Billing Determinants'!$D$41*$D28))))),0) -> 0 | I28: =IFERROR(IF(I$4="",0,IF($E28="kWh",VLOOKUP(I$4,'4. Billing Determinants'!$B$19:$R$41,4,0)/'4. Billing Determinants'!$E$41*$D28,IF($E28="kW",VLOOKUP(I$4,'4. Billing Determinants'!$B$19:$R$41,5,0)/'4. Billing Determinants'!$F$41*$D28,IF($E28="Non-RPP kWh",VLOOKUP(I$4,'4. Billing Determinants'!$B$19:$R$41,6,0)/'4. Billing Determinants'!$G$41*$D28,IF($E28="Distribution Rev.",VLOOKUP(I$4,'4. Billing Determinants'!$B$19:$R$41,8,0)/'4. Billing Determinants'!$I$41*$D28, VLOOKUP(I$4,'4. Billing Determinants'!$B$19:$R$41,3,0)/'4. Billing Determinants'!$D$41*$D28))))),0) -> 0 | J28: =IFERROR(IF(J$4="",0,IF($E28="kWh",VLOOKUP(J$4,'4. Billing Determinants'!$B$19:$R$41,4,0)/'4. Billing Determinants'!$E$41*$D28,IF($E28="kW",VLOOKUP(J$4,'4. Billing Determinants'!$B$19:$R$41,5,0)/'4. Billing Determinants'!$F$41*$D28,IF($E28="Non-RPP kWh",VLOOKUP(J$4,'4. Billing Determinants'!$B$19:$R$41,6,0)/'4. Billing Determinants'!$G$41*$D28,IF($E28="Distribution Rev.",VLOOKUP(J$4,'4. Billing Determinants'!$B$19:$R$41,8,0)/'4. Billing Determinants'!$I$41*$D28, VLOOKUP(J$4,'4. Billing Determinants'!$B$19:$R$41,3,0)/'4. Billing Determinants'!$D$41*$D28))))),0) -> 0 | K28: =IFERROR(IF(K$4="",0,IF($E28="kWh",VLOOKUP(K$4,'4. Billing Determinants'!$B$19:$R$41,4,0)/'4. Billing Determinants'!$E$41*$D28,IF($E28="kW",VLOOKUP(K$4,'4. Billing Determinants'!$B$19:$R$41,5,0)/'4. Billing Determinants'!$F$41*$D28,IF($E28="Non-RPP kWh",VLOOKUP(K$4,'4. Billing Determinants'!$B$19:$R$41,6,0)/'4. Billing Determinants'!$G$41*$D28,IF($E28="Distribution Rev.",VLOOKUP(K$4,'4. Billing Determinants'!$B$19:$R$41,8,0)/'4. Billing Determinants'!$I$41*$D28, VLOOKUP(K$4,'4. Billing Determinants'!$B$19:$R$41,3,0)/'4. Billing Determinants'!$D$41*$D28))))),0) -> 0 | L28: =IFERROR(IF(L$4="",0,IF($E28="kWh",VLOOKUP(L$4,'4. Billing Determinants'!$B$19:$R$41,4,0)/'4. Billing Determinants'!$E$41*$D28,IF($E28="kW",VLOOKUP(L$4,'4. Billing Determinants'!$B$19:$R$41,5,0)/'4. Billing Determinants'!$F$41*$D28,IF($E28="Non-RPP kWh",VLOOKUP(L$4,'4. Billing Determinants'!$B$19:$R$41,6,0)/'4. Billing Determinants'!$G$41*$D28,IF($E28="Distribution Rev.",VLOOKUP(L$4,'4. Billing Determinants'!$B$19:$R$41,8,0)/'4. Billing Determinants'!$I$41*$D28, VLOOKUP(L$4,'4. Billing Determinants'!$B$19:$R$41,3,0)/'4. Billing Determinants'!$D$41*$D28))))),0) -> 0 | M28: =IFERROR(IF(M$4="",0,IF($E28="kWh",VLOOKUP(M$4,'4. Billing Determinants'!$B$19:$R$41,4,0)/'4. Billing Determinants'!$E$41*$D28,IF($E28="kW",VLOOKUP(M$4,'4. Billing Determinants'!$B$19:$R$41,5,0)/'4. Billing Determinants'!$F$41*$D28,IF($E28="Non-RPP kWh",VLOOKUP(M$4,'4. Billing Determinants'!$B$19:$R$41,6,0)/'4. Billing Determinants'!$G$41*$D28,IF($E28="Distribution Rev.",VLOOKUP(M$4,'4. Billing Determinants'!$B$19:$R$41,8,0)/'4. Billing Determinants'!$I$41*$D28, VLOOKUP(M$4,'4. Billing Determinants'!$B$19:$R$41,3,0)/'4. Billing Determinants'!$D$41*$D28))))),0) -> 0 | N28: =IFERROR(IF(N$4="",0,IF($E28="kWh",VLOOKUP(N$4,'4. Billing Determinants'!$B$19:$R$41,4,0)/'4. Billing Determinants'!$E$41*$D28,IF($E28="kW",VLOOKUP(N$4,'4. Billing Determinants'!$B$19:$R$41,5,0)/'4. Billing Determinants'!$F$41*$D28,IF($E28="Non-RPP kWh",VLOOKUP(N$4,'4. Billing Determinants'!$B$19:$R$41,6,0)/'4. Billing Determinants'!$G$41*$D28,IF($E28="Distribution Rev.",VLOOKUP(N$4,'4. Billing Determinants'!$B$19:$R$41,8,0)/'4. Billing Determinants'!$I$41*$D28, VLOOKUP(N$4,'4. Billing Determinants'!$B$19:$R$41,3,0)/'4. Billing Determinants'!$D$41*$D28))))),0) -> 0 | O28: =IFERROR(IF(O$4="",0,IF($E28="kWh",VLOOKUP(O$4,'4. Billing Determinants'!$B$19:$R$41,4,0)/'4. Billing Determinants'!$E$41*$D28,IF($E28="kW",VLOOKUP(O$4,'4. Billing Determinants'!$B$19:$R$41,5,0)/'4. Billing Determinants'!$F$41*$D28,IF($E28="Non-RPP kWh",VLOOKUP(O$4,'4. Billing Determinants'!$B$19:$R$41,6,0)/'4. Billing Determinants'!$G$41*$D28,IF($E28="Distribution Rev.",VLOOKUP(O$4,'4. Billing Determinants'!$B$19:$R$41,8,0)/'4. Billing Determinants'!$I$41*$D28, VLOOKUP(O$4,'4. Billing Determinants'!$B$19:$R$41,3,0)/'4. Billing Determinants'!$D$41*$D28))))),0) -> 0 | P28: =IFERROR(IF(P$4="",0,IF($E28="kWh",VLOOKUP(P$4,'4. Billing Determinants'!$B$19:$R$41,4,0)/'4. Billing Determinants'!$E$41*$D28,IF($E28="kW",VLOOKUP(P$4,'4. Billing Determinants'!$B$19:$R$41,5,0)/'4. Billing Determinants'!$F$41*$D28,IF($E28="Non-RPP kWh",VLOOKUP(P$4,'4. Billing Determinants'!$B$19:$R$41,6,0)/'4. Billing Determinants'!$G$41*$D28,IF($E28="Distribution Rev.",VLOOKUP(P$4,'4. Billing Determinants'!$B$19:$R$41,8,0)/'4. Billing Determinants'!$I$41*$D28, VLOOKUP(P$4,'4. Billing Determinants'!$B$19:$R$41,3,0)/'4. Billing Determinants'!$D$41*$D28))))),0) -> 0 | Q28: =IFERROR(IF(Q$4="",0,IF($E28="kWh",VLOOKUP(Q$4,'4. Billing Determinants'!$B$19:$R$41,4,0)/'4. Billing Determinants'!$E$41*$D28,IF($E28="kW",VLOOKUP(Q$4,'4. Billing Determinants'!$B$19:$R$41,5,0)/'4. Billing Determinants'!$F$41*$D28,IF($E28="Non-RPP kWh",VLOOKUP(Q$4,'4. Billing Determinants'!$B$19:$R$41,6,0)/'4. Billing Determinants'!$G$41*$D28,IF($E28="Distribution Rev.",VLOOKUP(Q$4,'4. Billing Determinants'!$B$19:$R$41,8,0)/'4. Billing Determinants'!$I$41*$D28, VLOOKUP(Q$4,'4. Billing Determinants'!$B$19:$R$41,3,0)/'4. Billing Determinants'!$D$41*$D28))))),0) -> 0 | R28: =IFERROR(IF(R$4="",0,IF($E28="kWh",VLOOKUP(R$4,'4. Billing Determinants'!$B$19:$R$41,4,0)/'4. Billing Determinants'!$E$41*$D28,IF($E28="kW",VLOOKUP(R$4,'4. Billing Determinants'!$B$19:$R$41,5,0)/'4. Billing Determinants'!$F$41*$D28,IF($E28="Non-RPP kWh",VLOOKUP(R$4,'4. Billing Determinants'!$B$19:$R$41,6,0)/'4. Billing Determinants'!$G$41*$D28,IF($E28="Distribution Rev.",VLOOKUP(R$4,'4. Billing Determinants'!$B$19:$R$41,8,0)/'4. Billing Determinants'!$I$41*$D28, VLOOKUP(R$4,'4. Billing Determinants'!$B$19:$R$41,3,0)/'4. Billing Determinants'!$D$41*$D28))))),0) -> 0 | S28: =IFERROR(IF(S$4="",0,IF($E28="kWh",VLOOKUP(S$4,'4. Billing Determinants'!$B$19:$R$41,4,0)/'4. Billing Determinants'!$E$41*$D28,IF($E28="kW",VLOOKUP(S$4,'4. Billing Determinants'!$B$19:$R$41,5,0)/'4. Billing Determinants'!$F$41*$D28,IF($E28="Non-RPP kWh",VLOOKUP(S$4,'4. Billing Determinants'!$B$19:$R$41,6,0)/'4. Billing Determinants'!$G$41*$D28,IF($E28="Distribution Rev.",VLOOKUP(S$4,'4. Billing Determinants'!$B$19:$R$41,8,0)/'4. Billing Determinants'!$I$41*$D28, VLOOKUP(S$4,'4. Billing Determinants'!$B$19:$R$41,3,0)/'4. Billing Determinants'!$D$41*$D28))))),0) -> 0 | T28: =IFERROR(IF(T$4="",0,IF($E28="kWh",VLOOKUP(T$4,'4. Billing Determinants'!$B$19:$R$41,4,0)/'4. Billing Determinants'!$E$41*$D28,IF($E28="kW",VLOOKUP(T$4,'4. Billing Determinants'!$B$19:$R$41,5,0)/'4. Billing Determinants'!$F$41*$D28,IF($E28="Non-RPP kWh",VLOOKUP(T$4,'4. Billing Determinants'!$B$19:$R$41,6,0)/'4. Billing Determinants'!$G$41*$D28,IF($E28="Distribution Rev.",VLOOKUP(T$4,'4. Billing Determinants'!$B$19:$R$41,8,0)/'4. Billing Determinants'!$I$41*$D28, VLOOKUP(T$4,'4. Billing Determinants'!$B$19:$R$41,3,0)/'4. Billing Determinants'!$D$41*$D28))))),0) -> 0 | U28: =IFERROR(IF(U$4="",0,IF($E28="kWh",VLOOKUP(U$4,'4. Billing Determinants'!$B$19:$R$41,4,0)/'4. Billing Determinants'!$E$41*$D28,IF($E28="kW",VLOOKUP(U$4,'4. Billing Determinants'!$B$19:$R$41,5,0)/'4. Billing Determinants'!$F$41*$D28,IF($E28="Non-RPP kWh",VLOOKUP(U$4,'4. Billing Determinants'!$B$19:$R$41,6,0)/'4. Billing Determinants'!$G$41*$D28,IF($E28="Distribution Rev.",VLOOKUP(U$4,'4. Billing Determinants'!$B$19:$R$41,8,0)/'4. Billing Determinants'!$I$41*$D28, VLOOKUP(U$4,'4. Billing Determinants'!$B$19:$R$41,3,0)/'4. Billing Determinants'!$D$41*$D28))))),0) -> 0 | V28: =IFERROR(IF(V$4="",0,IF($E28="kWh",VLOOKUP(V$4,'4. Billing Determinants'!$B$19:$R$41,4,0)/'4. Billing Determinants'!$E$41*$D28,IF($E28="kW",VLOOKUP(V$4,'4. Billing Determinants'!$B$19:$R$41,5,0)/'4. Billing Determinants'!$F$41*$D28,IF($E28="Non-RPP kWh",VLOOKUP(V$4,'4. Billing Determinants'!$B$19:$R$41,6,0)/'4. Billing Determinants'!$G$41*$D28,IF($E28="Distribution Rev.",VLOOKUP(V$4,'4. Billing Determinants'!$B$19:$R$41,8,0)/'4. Billing Determinants'!$I$41*$D28, VLOOKUP(V$4,'4. Billing Determinants'!$B$19:$R$41,3,0)/'4. Billing Determinants'!$D$41*$D28))))),0) -> 0 | W28: =IFERROR(IF(W$4="",0,IF($E28="kWh",VLOOKUP(W$4,'4. Billing Determinants'!$B$19:$R$41,4,0)/'4. Billing Determinants'!$E$41*$D28,IF($E28="kW",VLOOKUP(W$4,'4. Billing Determinants'!$B$19:$R$41,5,0)/'4. Billing Determinants'!$F$41*$D28,IF($E28="Non-RPP kWh",VLOOKUP(W$4,'4. Billing Determinants'!$B$19:$R$41,6,0)/'4. Billing Determinants'!$G$41*$D28,IF($E28="Distribution Rev.",VLOOKUP(W$4,'4. Billing Determinants'!$B$19:$R$41,8,0)/'4. Billing Determinants'!$I$41*$D28, VLOOKUP(W$4,'4. Billing Determinants'!$B$19:$R$41,3,0)/'4. Billing Determinants'!$D$41*$D28))))),0) -> 0 | X28: =IFERROR(IF(X$4="",0,IF($E28="kWh",VLOOKUP(X$4,'4. Billing Determinants'!$B$19:$R$41,4,0)/'4. Billing Determinants'!$E$41*$D28,IF($E28="kW",VLOOKUP(X$4,'4. Billing Determinants'!$B$19:$R$41,5,0)/'4. Billing Determinants'!$F$41*$D28,IF($E28="Non-RPP kWh",VLOOKUP(X$4,'4. Billing Determinants'!$B$19:$R$41,6,0)/'4. Billing Determinants'!$G$41*$D28,IF($E28="Distribution Rev.",VLOOKUP(X$4,'4. Billing Determinants'!$B$19:$R$41,8,0)/'4. Billing Determinants'!$I$41*$D28, VLOOKUP(X$4,'4. Billing Determinants'!$B$19:$R$41,3,0)/'4. Billing Determinants'!$D$41*$D28))))),0) -> 0 | Y28: =IFERROR(IF(Y$4="",0,IF($E28="kWh",VLOOKUP(Y$4,'4. Billing Determinants'!$B$19:$R$41,4,0)/'4. Billing Determinants'!$E$41*$D28,IF($E28="kW",VLOOKUP(Y$4,'4. Billing Determinants'!$B$19:$R$41,5,0)/'4. Billing Determinants'!$F$41*$D28,IF($E28="Non-RPP kWh",VLOOKUP(Y$4,'4. Billing Determinants'!$B$19:$R$41,6,0)/'4. Billing Determinants'!$G$41*$D28,IF($E28="Distribution Rev.",VLOOKUP(Y$4,'4. Billing Determinants'!$B$19:$R$41,8,0)/'4. Billing Determinants'!$I$41*$D28, VLOOKUP(Y$4,'4. Billing Determinants'!$B$19:$R$41,3,0)/'4. Billing Determinants'!$D$41*$D28))))),0) -> 0
